Workbook

Sheet Menu
A1: Pork Industry Greenhouse Gas Calculator Version 1.02.04
H3: PigGAS
L4: =LEFT(FarmDesign!H9,25) -> Harry's Happy Hogs
L6: =LEFT(FarmDesign!H11,25) -> 1000 sow multisite
D27: Developed By
D28: Greg Mills & Ian Kruger
D29: NSW Department of Primary Industries
G93: 1

Sheet Help
H4: HELP MAP
D13: CLICK ON BOXES TO ZOOM IN & OUT
D93: Menu | E93: =VLOOKUP(HelpSheet,$D$94:$F$118,2,FALSE) -> D14 | F93: =VLOOKUP(HelpSheet,$D$94:$F$118,3,FALSE) -> K30 | G93: 0
D94: Menu | E94: D14 | F94: K30
D95: FarmDesign | E95: D34 | F95: M71
D96: MMSSum | E96: O47 | F96: Y71
D97: Graphic | E97: AX63 | F97: BH90
D98: Report | E98: AY47 | F98: BH67
D99: PigMovements | E99: AJ3 | F99: AV41
D100: Help | E100: H93 | F100: L100
D101: Energy Entry | E101: AX3 | F101: BH23
D102: Genetics | E102: AA47 | F102: AI90
D103: UserAssumotions | E103: O3 | F103: AG50
D104: PigDetails | E104: AJ35 | F104: AV90
D105: FeedRaws | E105: D67 | F105: M90
D106: Feeds | E106: Q71 | F106: Y90
D107: OffSets | E107: AX18 | F107: BH43

Sheet OffSets
F1: =IF(F8=0,"*","") ->  | G1: =IF(G8=0,"*","") ->  | I1: * | J1: * | K1: * | L1: * | M1: * | N1: * | O1: *
F6: Offset kg CO-e
E7: =FarmDesign!H9 -> Harry's Happy Hogs
D8: Comment | F8: =FarmDesign!E14 -> Breeder | G8: =FarmDesign!E15 -> Weaner | H8: =FarmDesign!E16 -> GrowOut | I8: =FarmDesign!E17 -> 0 | J8: =FarmDesign!E18 -> 0 | K8: =FarmDesign!E19 -> 0 | L8: =FarmDesign!E20 -> 0 | M8: =FarmDesign!E21 -> 0 | N8: =FarmDesign!E22 -> 0 | O8: =FarmDesign!E23 -> 0
D31: Total | F31: =SUM(F9:F30) -> 0 | G31: =SUM(G9:G30) -> 0 | H31: 0 | I31: 0 | J31: 0 | K31: 0 | L31: 0 | M31: 0 | N31: 0 | O31: 0

Sheet Graphic
BK1: 0 | BR1: 0
J3: PigGas
BN4: On Farm Emissions
V5: Pre Farm Emissions | AG5: Total Emissions | AR5: Post Farm Emissions | BD5: Exported Manure | BS5: Count = | BT5: =COUNT(BT9:BT36) -> 20 | BU5: =COUNT(BU9:BU36) -> 20
AI7: Baseline | AL7: Scenario | AN7: Dif | BS7: Item | BT7: Baseline | BU7: Scenario
Y8: Baseline | AA8: Scenario | AC8: Dif | AU8: Baseline | AW8: Scenario | AY8: Dif | BG8: Baseline | BI8: Scenario | BK8: Dif | BS8: Prefarm
V9: Grain | Y9: =BT9 -> 1320345.877 | AA9: =BU9 -> 1320345.877 | AC9: =AA9-Y9 -> 0 | AG9: kg CO2-e | AI9: =BT43 -> 7274853.547 | AL9: =BU43 -> 7274853.547 | AN9: =AL9-AI9 -> 0 | AR9: Pig Freight | AU9: =BT14 -> 88493.24596 | AW9: =BU14 -> 88493.24596 | AY9: =AW9-AU9 -> 0 | BS9: Grain kg CO2-e | BT9: 1320345.877 | BU9: =AA108 -> 1320345.877
V10: Milling & Delivery | Y10: =BT10 -> 253506.4085 | AA10: =BU10 -> 253506.4085 | AC10: =AA10-Y10 -> 0 | AR10: Meat Processing | AU10: =BT15 -> 551563.92 | AW10: =BU15 -> 551563.92 | AY10: =AW10-AU10 -> 0 | BD10: Total | BG10: =BT16 -> 0 | BI10: =BU16 -> 0 | BK10: =BI10-BG10 -> 0 | BS10: Milling & Delivery kg CO2-e | BT10: 253506.4085 | BU10: =AB108 -> 253506.4085
V11: Pig Freight | Y11: =BT11 -> 0 | AA11: =BU11 -> 0 | AC11: =AA11-Y11 -> 0 | AG11: kg CO2/ kg HSCW | AI11: =AI9/$BT$36 -> 5.275800888 | AL11: =AL9/$Q$44 -> 5.275800888 | AN11: =AI11-AL11 -> 0 | AR11: Exported Off Farm | BS11: Pig Freight kg CO2-e | BT11: 0 | BU11: =AC108 -> 0
V12: Straw & Bedding | Y12: =BT12 -> 10500 | AA12: =AE108 -> 10500 | AC12: =AA12-Y12 -> 0 | AN12: =AJ12-AL12 -> 0 | BD12: =AR15 -> kgCO2/kgHSCW | BG12: =IF($BT$36=0,0,BG10/BT36) -> 0 | BI12: =BI10/BU36 -> 0 | BK12: =BI12-BG12 -> 0 | BS12: Straw & Bedding | BT12: 10500 | BU12: =AE108 -> 10500
J13: =FarmDesign!H11 -> 1000 sow multisite | V13: Total | Y13: =SUM(Y9:Z12) -> 1584352.286 | AA13: =SUM(AA9:AB12) -> 1584352.286 | AC13: =AA13-Y13 -> 0 | AN13: 0 | AR13: Total | AU13: =SUM(AU9:AV11) -> 640057.166 | AW13: =SUM(AW9:AX11) -> 640057.166 | AY13: =AW13-AU13 -> 0 | BS13: Post Farm
BS14: Pig Freight | BT14: 88493.24596 | BU14: =AD108 -> 88493.24596
V15: kgCO2/kgHSCW | Y15: =Y13/$BT$36 -> 1.148989068 | AA15: =AA13/$Q$44 -> 1.148989068 | AC15: =Y15-AA15 -> 0 | AR15: kgCO2/kgHSCW | AU15: =IF($BT$36=0,0,AU13/$BT$36) -> 0.4641762398 | AW15: =AW13/$Q$44 -> 0.4641762398 | AY15: =AU15-AW15 -> 0 | BS15: Meat Processing | BT15: 551563.92 | BU15: =AF108 -> 551563.92
BS16: Exported Manure | BT16: 0 | BU16: =AK95 -> 0
BS17: On Farm
U19: On Farm Emissions | BS19: Purchased Electricity | BT19: 297527 | BU19: =AH95 -> 297527
J20: =FarmDesign!H9 -> Harry's Happy Hogs | AJ20: Net Emissions CO2-e | BA20: Fuel & Energy | BS20: Fuel Stationary | BT20: 67734.92 | BU20: =AI95 -> 67734.92
U21: Australian Methodology DCCEE | BS21: Fuel Transport | BT21: 8574.207 | BU21: =AJ95 -> 8574.207
J22: Select Unit (Double Click) | Q22: Net HSCW | AL22: Baseline | AP22: Scenario | AT22: Dif
AI23: kg CO2-e | AL23: =BT34 -> 5050444.095 | AP23: =BU34 -> 5050444.095 | AT23: =AP23-AL23 -> 0 | BE23: Baseline | BG23: Scenario | BI23: Dif
J24: ON | L24: =IF(FarmDesign!E14<>0,FarmDesign!E14,"") -> Breeder | Q24: =INDEX($AQ$85:$AQ$95,1) -> 174814.8 | AI24: =V15 -> kgCO2/kgHSCW | AL24: =AL23/$BT$36 -> 3.66263558 | AP24: =AP23/$Q$44 -> 3.66263558 | AT24: =AL24-AP24 -> 0 | BA24: Purchased Electricity | BE24: =BT19 -> 297527 | BG24: =BU19 -> 297527 | BI24: =BG24-BE24 -> 0 | BS24: Enteric CH4 | BT24: 185650.298 | BU24: =AA95 -> 185650.298
Y25: Offsets | BA25: Fuel Stationary | BE25: =BT20 -> 67734.92 | BG25: =BU20 -> 67734.92 | BI25: =BG25-BE25 -> 0 | BS25: MMS CH4 | BT25: 3722356.767 | BU25: =AB95 -> 3722356.767
J26: ON | L26: =IF(FarmDesign!E15<>0,FarmDesign!E15,"") -> Weaner | Q26: =INDEX($AQ$85:$AQ$95,2) -> 241669.35 | BA26: Fuel Transport | BE26: =BT21 -> 8574.207 | BG26: =BU21 -> 8574.207 | BI26: =BG26-BE26 -> 0 | BS26: MMS N2O | BT26: 218430.1964 | BU26: =AC95 -> 218430.1964
Y27: Baseline | AA27: Scenario | AC27: Dif | BA27: Total | BE27: =SUM(BE24:BF26) -> 373836.127 | BG27: =SUM(BG24:BH26) -> 373836.127 | BI27: =BG27-BE27 -> 0 | BS27: MMS Vol N2O | BT27: 210157.6442 | BU27: =AD95 -> 210157.6442
J28: ON | L28: =IF(FarmDesign!E16<>0,FarmDesign!E16,"") -> GrowOut | Q28: =INDEX($AQ$85:$AQ$95,3) -> 962425.65 | Y28: =BT32 -> 0 | AA28: =BU32 -> 0 | AC28: =AA28-Y28 -> 0 | BS28: Soil LRO N2O | BT28: 37947.04372 | BU28: =AF95 -> 37947.04372
X29: =V15 -> kgCO2/kgHSCW | BA29: kgCO2/kgHSCW | BE29: =IF($BT$36=0,0,BE27/$BT$36) -> 0.271109921 | BG29: =BG27/$Q$44 -> 0.271109921 | BI29: =BG29-BE29 -> 0 | BS29: Soil Vol N20 | BT29: 302066.0196 | BU29: =AG95 -> 302066.0196
J30: OFF | L30: =IF(FarmDesign!E17<>0,FarmDesign!E17,"") ->  | Q30: =INDEX($AQ$85:$AQ$95,4) -> 0 | Y30: =IF($BT$36=0,0,Y28/$BT$36) -> 0 | AA30: =AA28/$Q$44 -> 0 | AC30: =Y30-AA30 -> 0 | BS30: Emissions | BT30: 5050444.095 | BU30: =SUM(BU19:BU29) -> 5050444.095
J32: OFF | L32: =IF(FarmDesign!E18<>0,FarmDesign!E18,"") ->  | Q32: =INDEX($AQ$85:$AQ$95,5) -> 0 | AG32: Emissions CO2-e | BS32: Offsets | BT32: 0 | BU32: =AG108 -> 0
J34: OFF | L34: =IF(FarmDesign!E19<>0,FarmDesign!E19,"") ->  | Q34: =INDEX($AQ$85:$AQ$95,6) -> 0 | AJ34: Baseline | AL34: Scenario | AN34: Dif | BB34: Combustion Gases | BS34: Net Emissions | BT34: 5050444.095 | BU34: =BU32+BU30 -> 5050444.095
AG35: kg CO2-e | AJ35: =BT30 -> 5050444.095 | AL35: =BU30 -> 5050444.095 | AN35: =AL35-AJ35 -> 0
J36: OFF | L36: =IF(FarmDesign!E20<>0,FarmDesign!E20,"") ->  | Q36: =INDEX($AQ$85:$AQ$95,7) -> 0 | BS36: HSCW | BT36: 1378909.8 | BU36: =Q44 -> 1378909.8
AG37: =AI24 -> kgCO2/kgHSCW | AJ37: =AJ35/$BT$36 -> 3.66263558 | AL37: =AL35/$Q$44 -> 3.66263558 | AN37: =AJ37-AL37 -> 0
J38: OFF | L38: =IF(FarmDesign!E21<>0,FarmDesign!E21,"") ->  | Q38: =INDEX($AQ$85:$AQ$95,8) -> 0 | BN38: Total Emissions
BS39: Pre Farm | BT39: =SUM(BT9:BT12) -> 1584352.286 | BU39: =SUM(BU9:BU12) -> 1584352.286
J40: OFF | L40: =IF(FarmDesign!E22<>0,FarmDesign!E22,"") ->  | Q40: =INDEX($AQ$85:$AQ$95,9) -> 0 | BS40: On Farm | BT40: =SUM(BT19:BT29) -> 5050444.095 | BU40: =SUM(BU19:BU29) -> 5050444.095
BS41: Post Far | BT41: =SUM(BT14:BT16) -> 640057.166 | BU41: =SUM(BU14:BU16) -> 640057.166
J42: OFF | L42: =IF(FarmDesign!E23<>0,FarmDesign!E23,"") ->  | Q42: =INDEX($AQ$85:$AQ$95,10) -> 0
BS43: Total Emissions | BT43: =SUM(BT39:BT41) -> 7274853.547 | BU43: =SUM(BU39:BU41) -> 7274853.547
J44: Total | Q44: =SUM(Q24:R42) -> 1378909.8 | W44: CH4 | AD44: CH4 | AK44: N20 | AR44: N2O | AY44: N2O | BF44: N2O
W45: Baseline | Y45: Scenario | AA45: Dif | AD45: Baseline | AF45: Scenario | AH45: Dif | AK45: Baseline | AM45: Scenario | AO45: Dif | AR45: Baseline | AT45: Scenario | AV45: Dif | AY45: Baseline | BA45: Scenario | BC45: Dif | BF45: Baseline | BH45: Scenario | BJ45: Dif | BT45: =BT7 -> Baseline | BU45: =BU7 -> Scenario
J46: =NOW() -> 2014-05-13T15:34:11.030 | W46: =BT24 -> 185650.298 | Y46: =BU24 -> 185650.298 | AA46: =Y46-W46 -> 0 | AD46: =BT25 -> 3722356.767 | AF46: =BU25 -> 3722356.767 | AH46: =AF46-AD46 -> 0 | AK46: =BT26 -> 218430.1964 | AM46: =BU26 -> 218430.1964 | AO46: =AM46-AK46 -> 0 | AR46: =BT27 -> 210157.6442 | AT46: =BU27 -> 210157.6442 | AV46: =AT46-AR46 -> 0 | AY46: =BT28 -> 37947.04372 | BA46: =BU28 -> 37947.04372 | BC46: =BA46-AY46 -> 0 | BF46: =BT29 -> 302066.0196 | BH46: =BU29 -> 302066.0196 | BJ46: =BH46-BF46 -> 0 | BS46: Pre Farm | BT46: =BT39/BT$36 -> 1.148989068 | BU46: =BU39/BU$36 -> 1.148989068
W47: =V15 -> kgCO2/kgHSCW | AD47: =V15 -> kgCO2/kgHSCW | AK47: =V15 -> kgCO2/kgHSCW | AR47: =V15 -> kgCO2/kgHSCW | AY47: =V15 -> kgCO2/kgHSCW | BF47: =AY47 -> kgCO2/kgHSCW | BS47: On Farm | BT47: =BT40/$BT$36 -> 3.66263558 | BU47: =BU40/$BU$36 -> 3.66263558
W48: =IF($BT$36=0,0,W46/$BT$36) -> 0.1346355635 | Y48: =Y46/$Q$44 -> 0.1346355635 | AA48: =W48-Y48 -> 0 | AD48: =IF($BT$36=0,0,AD46/BT36) -> 2.699492575 | AF48: =AF46/$Q$44 -> 2.699492575 | AH48: =AD48-AF48 -> 0 | AK48: =IF($BT$36=0,0,AK46/$BT$36) -> 0.1584078932 | AM48: =AM46/$Q$44 -> 0.1584078932 | AO48: =AK48-AM48 -> 0 | AR48: =IF($BT$36=0,0,AR46/$BT$36) -> 0.1524085507 | AT48: =AT46/$Q$44 -> 0.1524085507 | AV48: =AR48-AT48 -> 0 | AY48: =IF($BT$36=0,0,AY46/BT36) -> 0.02751959825 | BA48: =BA46/$Q$44 -> 0.02751959825 | BC48: =AY48-BA48 -> 0 | BF48: =IF($BT$36=0,0,BT29/BT36) -> 0.2190614786 | BH48: =BU29/BU36 -> 0.2190614786 | BJ48: =BF48-BH48 -> 0 | BS48: Post Farm | BT48: =BT41/BT$36 -> 0.4641762398 | BU48: =BU41/BU$36 -> 0.4641762398
BS50: Total Emissions | BT50: =BT43/BT$36 -> 5.275800888 | BU50: =BU43/BU$36 -> 5.275800888
Z52: Enteric
AS53: Volatilised NH3 & NOX | AZ53: Leaching, Runoff | BG53: Direct N20
BT54: =BT45 -> Baseline | BU54: =BU45 -> Scenario | BV54: B - Offset | BW54: S - Offset
BS55: =BS24 -> Enteric CH4 | BT55: =BT24/BT$36 -> 0.1346355635 | BU55: 0.1346355635
BS56: =BS25 -> MMS CH4 | BT56: 2.699492575 | BU56: 2.699492575
BS57: =BS26 -> MMS N2O | BT57: 0.1584078932 | BU57: 0.1584078932
BS58: =BS27 -> MMS Vol N2O | BT58: 0.1524085507 | BU58: 0.1524085507
BS59: =BS28 -> Soil LRO N2O | BT59: 0.02751959825 | BU59: 0.02751959825
BS60: Direct N2O | BT60: =BF48 -> 0.2190614786 | BU60: =BH48 -> 0.2190614786
AH61: Manure Management System | AZ61: Waste Applied to Soil | BS61: =BS19 -> Purchased Electricity | BT61: =BT19/BT$36 -> 0.2157697335 | BU61: 0.2157697335
BS62: =BS20 -> Fuel Stationary | BT62: 0.04912208181 | BU62: 0.04912208181
BS63: =BS21 -> Fuel Transport | BT63: 0.006218105782 | BU63: 0.006218105782
BS64: After Offset | BV64: =SUM(BT55:BT63)+BT66 -> 3.66263558 | BW64: =SUM(BU55:BU63)+BU66 -> 3.66263558
BT66: =BT32/BT$36 -> 0 | BU66: =BU32/BU$36 -> 0
G68: =TEXT(NOW(),"d mmmm yyyy")& " - "&Menu!$A$1 -> 13 May 2014 - Pork Industry Greenhouse Gas Calculator Version 1.02.04
W84: On Farm | AA84: Enteric CH4 | AB84: MMS-CH4 | AC84: MMS- Direct N2O | AD84: MMS - Volatilisation N2O | AF84: Soil - Leach & Runoff N2O | AG84: Soil N2O | AH84: PPE | AI84: PFS | AJ84: PFT | AK84: Export | AN84: FPE | AO84: FFT | AP84: FFT | AQ84: DWT
X85: =IF(J24="ON",1,0) -> 1 | Y85: 1 | Z85: =L24 -> Breeder | AA85: =INDEX(Report!$G$60:$P$60,Graphic!Y85)*X85 -> 42629.10765 | AB85: =INDEX(Report!$G$61:$P$61,Graphic!Y85)*X85 -> 922948.0844 | AC85: =INDEX(Report!$G$62:$P$62,Graphic!Y85)*X85 -> 23456.19909 | AD85: =INDEX(Report!$G$63:$P$63,Graphic!Y85)*X85 -> 48416.00069 | AF85: =INDEX(Report!$G$64:$P$64,Graphic!Y85)*X85 -> 8999.478247 | AG85: =INDEX(Report!$G$65:$P$65,Graphic!Y85)*X85 -> 71637.63779 | AH85: =INDEX(Report!$G$53:$P$53,Graphic!Y85)*X85 -> 280350 | AI85: =INDEX(Report!$G$54:$P$54,Graphic!Y85)*X85 -> 54649.765 | AJ85: =INDEX(Report!$G$55:$P$55,Graphic!Y85)*X85 -> 5237.37 | AK85: =INDEX(Report!$G$78:$P$78,Graphic!Y85)*X85 -> 0 | AN85: =INDEX(Report!#REF!,Graphic!Y85)*X85 ->  | AO85: =INDEX(Report!#REF!,Graphic!Y85)*X85 ->  | AP85: =INDEX(Report!#REF!,Graphic!Y85)*X85 ->  | AQ85: =INDEX(Report!$G$31:$P$31,Graphic!Y85)*X85 -> 174814.8
X86: =IF(J26="ON",1,0) -> 1 | Y86: 2 | Z86: =L26 -> Weaner | AA86: =INDEX(Report!$G$60:$P$60,Graphic!Y86)*X86 -> 26523.16715 | AB86: =INDEX(Report!$G$61:$P$61,Graphic!Y86)*X86 -> 11399.10673 | AC86: =INDEX(Report!$G$62:$P$62,Graphic!Y86)*X86 -> 130881.5989 | AD86: =INDEX(Report!$G$63:$P$63,Graphic!Y86)*X86 -> 29448.35975 | AF86: =INDEX(Report!$G$64:$P$64,Graphic!Y86)*X86 -> 4357.130229 | AG86: =INDEX(Report!$G$65:$P$65,Graphic!Y86)*X86 -> 34683.62371 | AH86: =INDEX(Report!$G$53:$P$53,Graphic!Y86)*X86 -> 4272 | AI86: =INDEX(Report!$G$54:$P$54,Graphic!Y86)*X86 -> 13085.155 | AJ86: =INDEX(Report!$G$55:$P$55,Graphic!Y86)*X86 -> 2364.762 | AK86: =INDEX(Report!$G$78:$P$78,Graphic!Y86)*X86 -> 0 | AN86: =INDEX(Report!#REF!,Graphic!Y86)*X86 ->  | AO86: =INDEX(Report!#REF!,Graphic!Y86)*X86 ->  | AP86: =INDEX(Report!#REF!,Graphic!Y86)*X86 ->  | AQ86: =INDEX(Report!$G$31:$P$31,Graphic!Y86)*X86 -> 241669.35
X87: =IF(J28="ON",1,0) -> 1 | Y87: 3 | Z87: =L28 -> GrowOut | AA87: =INDEX(Report!$G$60:$P$60,Graphic!Y87)*X87 -> 116498.0231 | AB87: =INDEX(Report!$G$61:$P$61,Graphic!Y87)*X87 -> 2788009.575 | AC87: =INDEX(Report!$G$62:$P$62,Graphic!Y87)*X87 -> 64092.39835 | AD87: =INDEX(Report!$G$63:$P$63,Graphic!Y87)*X87 -> 132293.2838 | AF87: =INDEX(Report!$G$64:$P$64,Graphic!Y87)*X87 -> 24590.43524 | AG87: =INDEX(Report!$G$65:$P$65,Graphic!Y87)*X87 -> 195744.7581 | AH87: =INDEX(Report!$G$53:$P$53,Graphic!Y87)*X87 -> 12905 | AI87: =INDEX(Report!$G$54:$P$54,Graphic!Y87)*X87 -> 0 | AJ87: =INDEX(Report!$G$55:$P$55,Graphic!Y87)*X87 -> 972.075 | AK87: =INDEX(Report!$G$78:$P$78,Graphic!Y87)*X87 -> 0 | AN87: =INDEX(Report!#REF!,Graphic!Y87)*X87 ->  | AO87: =INDEX(Report!#REF!,Graphic!Y87)*X87 ->  | AP87: =INDEX(Report!#REF!,Graphic!Y87)*X87 ->  | AQ87: =INDEX(Report!$G$31:$P$31,Graphic!Y87)*X87 -> 962425.65
X88: =IF(J30="ON",1,0) -> 0 | Y88: 4 | Z88: =L30 ->  | AA88: =INDEX(Report!$G$60:$P$60,Graphic!Y88)*X88 -> 0 | AB88: =INDEX(Report!$G$61:$P$61,Graphic!Y88)*X88 -> 0 | AC88: =INDEX(Report!$G$62:$P$62,Graphic!Y88)*X88 -> 0 | AD88: =INDEX(Report!$G$63:$P$63,Graphic!Y88)*X88 -> 0 | AF88: =INDEX(Report!$G$64:$P$64,Graphic!Y88)*X88 -> 0 | AG88: =INDEX(Report!$G$65:$P$65,Graphic!Y88)*X88 -> 0 | AH88: =INDEX(Report!$G$53:$P$53,Graphic!Y88)*X88 -> 0 | AI88: =INDEX(Report!$G$54:$P$54,Graphic!Y88)*X88 -> 0 | AJ88: =INDEX(Report!$G$55:$P$55,Graphic!Y88)*X88 -> 0 | AK88: =INDEX(Report!$G$78:$P$78,Graphic!Y88)*X88 -> 0 | AN88: =INDEX(Report!#REF!,Graphic!Y88)*X88 ->  | AO88: =INDEX(Report!#REF!,Graphic!Y88)*X88 ->  | AP88: =INDEX(Report!#REF!,Graphic!Y88)*X88 ->  | AQ88: =INDEX(Report!$G$31:$P$31,Graphic!Y88)*X88 -> 0
X89: =IF(J32="ON",1,0) -> 0 | Y89: 5 | Z89: =L32 ->  | AA89: =INDEX(Report!$G$60:$P$60,Graphic!Y89)*X89 -> 0 | AB89: =INDEX(Report!$G$61:$P$61,Graphic!Y89)*X89 -> 0 | AC89: =INDEX(Report!$G$62:$P$62,Graphic!Y89)*X89 -> 0 | AD89: =INDEX(Report!$G$63:$P$63,Graphic!Y89)*X89 -> 0 | AF89: =INDEX(Report!$G$64:$P$64,Graphic!Y89)*X89 -> 0 | AG89: =INDEX(Report!$G$65:$P$65,Graphic!Y89)*X89 -> 0 | AH89: =INDEX(Report!$G$53:$P$53,Graphic!Y89)*X89 -> 0 | AI89: =INDEX(Report!$G$54:$P$54,Graphic!Y89)*X89 -> 0 | AJ89: =INDEX(Report!$G$55:$P$55,Graphic!Y89)*X89 -> 0 | AK89: =INDEX(Report!$G$78:$P$78,Graphic!Y89)*X89 -> 0 | AN89: =INDEX(Report!#REF!,Graphic!Y89)*X89 ->  | AO89: =INDEX(Report!#REF!,Graphic!Y89)*X89 ->  | AP89: =INDEX(Report!#REF!,Graphic!Y89)*X89 ->  | AQ89: =INDEX(Report!$G$31:$P$31,Graphic!Y89)*X89 -> 0
X90: =IF(J34="ON",1,0) -> 0 | Y90: 6 | Z90: =L34 ->  | AA90: =INDEX(Report!$G$60:$P$60,Graphic!Y90)*X90 -> 0 | AB90: =INDEX(Report!$G$61:$P$61,Graphic!Y90)*X90 -> 0 | AC90: =INDEX(Report!$G$62:$P$62,Graphic!Y90)*X90 -> 0 | AD90: =INDEX(Report!$G$63:$P$63,Graphic!Y90)*X90 -> 0 | AF90: =INDEX(Report!$G$64:$P$64,Graphic!Y90)*X90 -> 0 | AG90: =INDEX(Report!$G$65:$P$65,Graphic!Y90)*X90 -> 0 | AH90: =INDEX(Report!$G$53:$P$53,Graphic!Y90)*X90 -> 0 | AI90: =INDEX(Report!$G$54:$P$54,Graphic!Y90)*X90 -> 0 | AJ90: =INDEX(Report!$G$55:$P$55,Graphic!Y90)*X90 -> 0 | AK90: =INDEX(Report!$G$78:$P$78,Graphic!Y90)*X90 -> 0 | AN90: =INDEX(Report!#REF!,Graphic!Y90)*X90 ->  | AO90: =INDEX(Report!#REF!,Graphic!Y90)*X90 ->  | AP90: =INDEX(Report!#REF!,Graphic!Y90)*X90 ->  | AQ90: =INDEX(Report!$G$31:$P$31,Graphic!Y90)*X90 -> 0
X91: =IF(J36="ON",1,0) -> 0 | Y91: 7 | Z91: =L36 ->  | AA91: =INDEX(Report!$G$60:$P$60,Graphic!Y91)*X91 -> 0 | AB91: =INDEX(Report!$G$61:$P$61,Graphic!Y91)*X91 -> 0 | AC91: =INDEX(Report!$G$62:$P$62,Graphic!Y91)*X91 -> 0 | AD91: =INDEX(Report!$G$63:$P$63,Graphic!Y91)*X91 -> 0 | AF91: =INDEX(Report!$G$64:$P$64,Graphic!Y91)*X91 -> 0 | AG91: =INDEX(Report!$G$65:$P$65,Graphic!Y91)*X91 -> 0 | AH91: =INDEX(Report!$G$53:$P$53,Graphic!Y91)*X91 -> 0 | AI91: =INDEX(Report!$G$54:$P$54,Graphic!Y91)*X91 -> 0 | AJ91: =INDEX(Report!$G$55:$P$55,Graphic!Y91)*X91 -> 0 | AK91: =INDEX(Report!$G$78:$P$78,Graphic!Y91)*X91 -> 0 | AN91: =INDEX(Report!#REF!,Graphic!Y91)*X91 ->  | AO91: =INDEX(Report!#REF!,Graphic!Y91)*X91 ->  | AP91: =INDEX(Report!#REF!,Graphic!Y91)*X91 ->  | AQ91: =INDEX(Report!$G$31:$P$31,Graphic!Y91)*X91 -> 0
X92: =IF(J38="ON",1,0) -> 0 | Y92: 8 | Z92: =L38 ->  | AA92: =INDEX(Report!$G$60:$P$60,Graphic!Y92)*X92 -> 0 | AB92: =INDEX(Report!$G$61:$P$61,Graphic!Y92)*X92 -> 0 | AC92: =INDEX(Report!$G$62:$P$62,Graphic!Y92)*X92 -> 0 | AD92: =INDEX(Report!$G$63:$P$63,Graphic!Y92)*X92 -> 0 | AF92: =INDEX(Report!$G$64:$P$64,Graphic!Y92)*X92 -> 0 | AG92: =INDEX(Report!$G$65:$P$65,Graphic!Y92)*X92 -> 0 | AH92: =INDEX(Report!$G$53:$P$53,Graphic!Y92)*X92 -> 0 | AI92: =INDEX(Report!$G$54:$P$54,Graphic!Y92)*X92 -> 0 | AJ92: =INDEX(Report!$G$55:$P$55,Graphic!Y92)*X92 -> 0 | AK92: =INDEX(Report!$G$78:$P$78,Graphic!Y92)*X92 -> 0 | AN92: =INDEX(Report!#REF!,Graphic!Y92)*X92 ->  | AO92: =INDEX(Report!#REF!,Graphic!Y92)*X92 ->  | AP92: =INDEX(Report!#REF!,Graphic!Y92)*X92 ->  | AQ92: =INDEX(Report!$G$31:$P$31,Graphic!Y92)*X92 -> 0
X93: =IF(J40="ON",1,0) -> 0 | Y93: 9 | Z93: =L40 ->  | AA93: =INDEX(Report!$G$60:$P$60,Graphic!Y93)*X93 -> 0 | AB93: =INDEX(Report!$G$61:$P$61,Graphic!Y93)*X93 -> 0 | AC93: =INDEX(Report!$G$62:$P$62,Graphic!Y93)*X93 -> 0 | AD93: =INDEX(Report!$G$63:$P$63,Graphic!Y93)*X93 -> 0 | AF93: =INDEX(Report!$G$64:$P$64,Graphic!Y93)*X93 -> 0 | AG93: =INDEX(Report!$G$65:$P$65,Graphic!Y93)*X93 -> 0 | AH93: =INDEX(Report!$G$53:$P$53,Graphic!Y93)*X93 -> 0 | AI93: =INDEX(Report!$G$54:$P$54,Graphic!Y93)*X93 -> 0 | AJ93: =INDEX(Report!$G$55:$P$55,Graphic!Y93)*X93 -> 0 | AK93: =INDEX(Report!$G$78:$P$78,Graphic!Y93)*X93 -> 0 | AN93: =INDEX(Report!#REF!,Graphic!Y93)*X93 ->  | AO93: =INDEX(Report!#REF!,Graphic!Y93)*X93 ->  | AP93: =INDEX(Report!#REF!,Graphic!Y93)*X93 ->  | AQ93: =INDEX(Report!$G$31:$P$31,Graphic!Y93)*X93 -> 0
X94: =IF(J42="ON",1,0) -> 0 | Y94: 10 | Z94: =L42 ->  | AA94: =INDEX(Report!$G$60:$P$60,Graphic!Y94)*X94 -> 0 | AB94: =INDEX(Report!$G$61:$P$61,Graphic!Y94)*X94 -> 0 | AC94: =INDEX(Report!$G$62:$P$62,Graphic!Y94)*X94 -> 0 | AD94: =INDEX(Report!$G$63:$P$63,Graphic!Y94)*X94 -> 0 | AF94: =INDEX(Report!$G$64:$P$64,Graphic!Y94)*X94 -> 0 | AG94: =INDEX(Report!$G$65:$P$65,Graphic!Y94)*X94 -> 0 | AH94: =INDEX(Report!$G$53:$P$53,Graphic!Y94)*X94 -> 0 | AI94: =INDEX(Report!$G$54:$P$54,Graphic!Y94)*X94 -> 0 | AJ94: =INDEX(Report!$G$55:$P$55,Graphic!Y94)*X94 -> 0 | AK94: =INDEX(Report!$G$78:$P$78,Graphic!Y94)*X94 -> 0 | AN94: =INDEX(Report!#REF!,Graphic!Y94)*X94 ->  | AO94: =INDEX(Report!#REF!,Graphic!Y94)*X94 ->  | AP94: =INDEX(Report!#REF!,Graphic!Y94)*X94 ->  | AQ94: =INDEX(Report!$G$31:$P$31,Graphic!Y94)*X94 -> 0
Z95: Total | AA95: =SUM(AA85:AA94) -> 185650.298 | AB95: =SUM(AB85:AB94) -> 3722356.767 | AC95: =SUM(AC85:AC94) -> 218430.1964 | AD95: =SUM(AD85:AD94) -> 210157.6442 | AF95: =SUM(AF85:AF94) -> 37947.04372 | AG95: 302066.0196 | AH95: 297527 | AI95: 67734.92 | AJ95: 8574.207 | AK95: 0 | AN95: =SUM(AN85:AN94) ->  | AO95: =SUM(AO85:AO94) ->  | AP95: =SUM(AP85:AP94) ->  | AQ95: =SUM(AQ85:AQ94) -> 1378909.8
W97: Pre/Post Farm & offset | AA97: Grain | AB97: Mill | AC97: Frt In | AD97: Frt out | AE97: Straw | AF97: Kill | AG97: Offset
X98: =X85 -> 1 | Y98: 1 | Z98: Breeder | AA98: =INDEX(Report!$G$43:$P$43,Graphic!Y85)*X85 -> 294139.4775 | AB98: =INDEX(Report!$G$44:$P$44,Graphic!Y85)*X85 -> 56474.77968 | AC98: =INDEX(Report!$G$45:$P$45,Graphic!Y85)*X85 -> 0 | AD98: =INDEX(Report!$G$76:$P$76,Graphic!Y85)*X85 -> 1556.926711 | AE98: =INDEX(Report!$G$46:$P$46,Graphic!Y85)*X85 -> 0 | AF98: =INDEX(Report!$G$77:$P$77,Graphic!Y85)*X85 -> 22626.72 | AG98: =INDEX(Report!$G$70:$P$70,Graphic!Y85)*X85 -> 0
X99: 1 | Y99: 2 | Z99: Weaner | AA99: =INDEX(Report!$G$43:$P$43,Graphic!Y86)*X86 -> 184414.725 | AB99: =INDEX(Report!$G$44:$P$44,Graphic!Y86)*X86 -> 35407.6272 | AC99: =INDEX(Report!$G$45:$P$45,Graphic!Y86)*X86 -> 0 | AD99: =INDEX(Report!$G$76:$P$76,Graphic!Y86)*X86 -> 0 | AE99: =INDEX(Report!$G$46:$P$46,Graphic!Y86)*X86 -> 10500 | AF99: =INDEX(Report!$G$77:$P$77,Graphic!Y86)*X86 -> 0 | AG99: =INDEX(Report!$G$70:$P$70,Graphic!Y86)*X86 -> 0
X100: 1 | Y100: 3 | Z100: GrowOut | AA100: =INDEX(Report!$G$43:$P$43,Graphic!Y87)*X87 -> 841791.675 | AB100: =INDEX(Report!$G$44:$P$44,Graphic!Y87)*X87 -> 161624.0016 | AC100: =INDEX(Report!$G$45:$P$45,Graphic!Y87)*X87 -> 0 | AD100: =INDEX(Report!$G$76:$P$76,Graphic!Y87)*X87 -> 86936.31925 | AE100: =INDEX(Report!$G$46:$P$46,Graphic!Y87)*X87 -> 0 | AF100: =INDEX(Report!$G$77:$P$77,Graphic!Y87)*X87 -> 528937.2 | AG100: =INDEX(Report!$G$70:$P$70,Graphic!Y87)*X87 -> 0
X101: 0 | Y101: 4 | AA101: =INDEX(Report!$G$43:$P$43,Graphic!Y88)*X88 -> 0 | AB101: =INDEX(Report!$G$44:$P$44,Graphic!Y88)*X88 -> 0 | AC101: =INDEX(Report!$G$45:$P$45,Graphic!Y88)*X88 -> 0 | AD101: =INDEX(Report!$G$76:$P$76,Graphic!Y88)*X88 -> 0 | AE101: =INDEX(Report!$G$46:$P$46,Graphic!Y88)*X88 -> 0 | AF101: =INDEX(Report!$G$77:$P$77,Graphic!Y88)*X88 -> 0 | AG101: =INDEX(Report!$G$70:$P$70,Graphic!Y88)*X88 -> 0
X102: 0 | Y102: 5 | AA102: =INDEX(Report!$G$43:$P$43,Graphic!Y89)*X89 -> 0 | AB102: =INDEX(Report!$G$44:$P$44,Graphic!Y89)*X89 -> 0 | AC102: =INDEX(Report!$G$45:$P$45,Graphic!Y89)*X89 -> 0 | AD102: =INDEX(Report!$G$76:$P$76,Graphic!Y89)*X89 -> 0 | AE102: =INDEX(Report!$G$46:$P$46,Graphic!Y89)*X89 -> 0 | AF102: =INDEX(Report!$G$77:$P$77,Graphic!Y89)*X89 -> 0 | AG102: =INDEX(Report!$G$70:$P$70,Graphic!Y89)*X89 -> 0
X103: 0 | Y103: 6 | AA103: =INDEX(Report!$G$43:$P$43,Graphic!Y90)*X90 -> 0 | AB103: =INDEX(Report!$G$44:$P$44,Graphic!Y90)*X90 -> 0 | AC103: =INDEX(Report!$G$45:$P$45,Graphic!Y90)*X90 -> 0 | AD103: =INDEX(Report!$G$76:$P$76,Graphic!Y90)*X90 -> 0 | AE103: =INDEX(Report!$G$46:$P$46,Graphic!Y90)*X90 -> 0 | AF103: =INDEX(Report!$G$77:$P$77,Graphic!Y90)*X90 -> 0 | AG103: =INDEX(Report!$G$70:$P$70,Graphic!Y90)*X90 -> 0
X104: 0 | Y104: 7 | AA104: =INDEX(Report!$G$43:$P$43,Graphic!Y91)*X91 -> 0 | AB104: =INDEX(Report!$G$44:$P$44,Graphic!Y91)*X91 -> 0 | AC104: =INDEX(Report!$G$45:$P$45,Graphic!Y91)*X91 -> 0 | AD104: =INDEX(Report!$G$76:$P$76,Graphic!Y91)*X91 -> 0 | AE104: =INDEX(Report!$G$46:$P$46,Graphic!Y91)*X91 -> 0 | AF104: =INDEX(Report!$G$77:$P$77,Graphic!Y91)*X91 -> 0 | AG104: =INDEX(Report!$G$70:$P$70,Graphic!Y91)*X91 -> 0
X105: 0 | Y105: 8 | AA105: =INDEX(Report!$G$43:$P$43,Graphic!Y92)*X92 -> 0 | AB105: =INDEX(Report!$G$44:$P$44,Graphic!Y92)*X92 -> 0 | AC105: =INDEX(Report!$G$45:$P$45,Graphic!Y92)*X92 -> 0 | AD105: =INDEX(Report!$G$76:$P$76,Graphic!Y92)*X92 -> 0 | AE105: =INDEX(Report!$G$46:$P$46,Graphic!Y92)*X92 -> 0 | AF105: =INDEX(Report!$G$77:$P$77,Graphic!Y92)*X92 -> 0 | AG105: =INDEX(Report!$G$70:$P$70,Graphic!Y92)*X92 -> 0
X106: 0 | Y106: 9 | AA106: =INDEX(Report!$G$43:$P$43,Graphic!Y93)*X93 -> 0 | AB106: =INDEX(Report!$G$44:$P$44,Graphic!Y93)*X93 -> 0 | AC106: =INDEX(Report!$G$45:$P$45,Graphic!Y93)*X93 -> 0 | AD106: =INDEX(Report!$G$76:$P$76,Graphic!Y93)*X93 -> 0 | AE106: =INDEX(Report!$G$46:$P$46,Graphic!Y93)*X93 -> 0 | AF106: =INDEX(Report!$G$77:$P$77,Graphic!Y93)*X93 -> 0 | AG106: =INDEX(Report!$G$70:$P$70,Graphic!Y93)*X93 -> 0
X107: 0 | Y107: 10 | AA107: =INDEX(Report!$G$43:$P$43,Graphic!Y94)*X94 -> 0 | AB107: =INDEX(Report!$G$44:$P$44,Graphic!Y94)*X94 -> 0 | AC107: =INDEX(Report!$G$45:$P$45,Graphic!Y94)*X94 -> 0 | AD107: =INDEX(Report!$G$76:$P$76,Graphic!Y94)*X94 -> 0 | AE107: =INDEX(Report!$G$46:$P$46,Graphic!Y94)*X94 -> 0 | AF107: =INDEX(Report!$G$77:$P$77,Graphic!Y94)*X94 -> 0 | AG107: =INDEX(Report!$G$70:$P$70,Graphic!Y94)*X94 -> 0
Z108: Total | AA108: =SUM(AA98:AA107) -> 1320345.877 | AB108: =SUM(AB98:AB107) -> 253506.4085 | AC108: 0 | AD108: 88493.24596 | AE108: 10500 | AF108: 551563.92 | AG108: 0 | AJ108: 0 | AK108: 0 | AM108: 0 | AN108: 0 | AO108: 0 | AP108: 0

Sheet PigNo
E4: ="Livestock Numbers - "&FarmDesign!H9 -> Livestock Numbers - Harry's Happy Hogs
F6: Unit
F7: 1 | G7: 2 | H7: 3 | I7: 4 | J7: 5 | K7: 6 | L7: 7 | M7: 8 | N7: 9 | O7: 10
E8: Category | F8: =INDEX(FarmDesign!$E$14:$E$23,PigNo!F7) -> Breeder | G8: =INDEX(FarmDesign!$E$14:$E$23,PigNo!G7) -> Weaner | H8: =INDEX(FarmDesign!$E$14:$E$23,PigNo!H7) -> GrowOut | I8: =INDEX(FarmDesign!$E$14:$E$23,PigNo!I7) -> 0 | J8: =INDEX(FarmDesign!$E$14:$E$23,PigNo!J7) -> 0 | K8: =INDEX(FarmDesign!$E$14:$E$23,PigNo!K7) -> 0 | L8: =INDEX(FarmDesign!$E$14:$E$23,PigNo!L7) -> 0 | M8: =INDEX(FarmDesign!$E$14:$E$23,PigNo!M7) -> 0 | N8: =INDEX(FarmDesign!$E$14:$E$23,PigNo!N7) -> 0 | O8: =INDEX(FarmDesign!$E$14:$E$23,PigNo!O7) -> 0 | P8: Total
D9: 1 | E9: =INDEX(PigCats,PigNo!D9) -> Gilts | F9: =SUMIF(PigDetails!$H$18:$BE$18,PigNo!F$8&PigNo!$E9,PigDetails!$H$19:$BE$19) -> 50 | G9: =SUMIF(PigDetails!$H$18:$BE$18,PigNo!G$8&PigNo!$E9,PigDetails!$H$19:$BE$19) -> 0 | H9: =SUMIF(PigDetails!$H$18:$BE$18,PigNo!H$8&PigNo!$E9,PigDetails!$H$19:$BE$19) -> 0 | I9: =SUMIF(PigDetails!$H$18:$BE$18,PigNo!I$8&PigNo!$E9,PigDetails!$H$19:$BE$19) -> 0 | J9: =SUMIF(PigDetails!$H$18:$BE$18,PigNo!J$8&PigNo!$E9,PigDetails!$H$19:$BE$19) -> 0 | K9: =SUMIF(PigDetails!$H$18:$BE$18,PigNo!K$8&PigNo!$E9,PigDetails!$H$19:$BE$19) -> 0 | L9: =SUMIF(PigDetails!$H$18:$BE$18,PigNo!L$8&PigNo!$E9,PigDetails!$H$19:$BE$19) -> 0 | M9: =SUMIF(PigDetails!$H$18:$BE$18,PigNo!M$8&PigNo!$E9,PigDetails!$H$19:$BE$19) -> 0 | N9: =SUMIF(PigDetails!$H$18:$BE$18,PigNo!N$8&PigNo!$E9,PigDetails!$H$19:$BE$19) -> 0 | O9: =SUMIF(PigDetails!$H$18:$BE$18,PigNo!O$8&PigNo!$E9,PigDetails!$H$19:$BE$19) -> 0 | P9: =SUM(F9:O9) -> 50
D10: 2 | E10: =INDEX(PigCats,PigNo!D10) -> Boars | F10: =SUMIF(PigDetails!$H$18:$BE$18,PigNo!F$8&PigNo!$E10,PigDetails!$H$19:$BE$19) -> 42 | G10: =SUMIF(PigDetails!$H$18:$BE$18,PigNo!G$8&PigNo!$E10,PigDetails!$H$19:$BE$19) -> 0 | H10: =SUMIF(PigDetails!$H$18:$BE$18,PigNo!H$8&PigNo!$E10,PigDetails!$H$19:$BE$19) -> 0 | I10: =SUMIF(PigDetails!$H$18:$BE$18,PigNo!I$8&PigNo!$E10,PigDetails!$H$19:$BE$19) -> 0 | J10: =SUMIF(PigDetails!$H$18:$BE$18,PigNo!J$8&PigNo!$E10,PigDetails!$H$19:$BE$19) -> 0 | K10: =SUMIF(PigDetails!$H$18:$BE$18,PigNo!K$8&PigNo!$E10,PigDetails!$H$19:$BE$19) -> 0 | L10: =SUMIF(PigDetails!$H$18:$BE$18,PigNo!L$8&PigNo!$E10,PigDetails!$H$19:$BE$19) -> 0 | M10: =SUMIF(PigDetails!$H$18:$BE$18,PigNo!M$8&PigNo!$E10,PigDetails!$H$19:$BE$19) -> 0 | N10: =SUMIF(PigDetails!$H$18:$BE$18,PigNo!N$8&PigNo!$E10,PigDetails!$H$19:$BE$19) -> 0 | O10: =SUMIF(PigDetails!$H$18:$BE$18,PigNo!O$8&PigNo!$E10,PigDetails!$H$19:$BE$19) -> 0 | P10: =SUM(F10:O10) -> 42
D11: 3 | E11: =INDEX(PigCats,PigNo!D11) -> Gest Sows | F11: =SUMIF(PigDetails!$H$18:$BE$18,PigNo!F$8&PigNo!$E11,PigDetails!$H$19:$BE$19) -> 843 | G11: =SUMIF(PigDetails!$H$18:$BE$18,PigNo!G$8&PigNo!$E11,PigDetails!$H$19:$BE$19) -> 0 | H11: =SUMIF(PigDetails!$H$18:$BE$18,PigNo!H$8&PigNo!$E11,PigDetails!$H$19:$BE$19) -> 0 | I11: =SUMIF(PigDetails!$H$18:$BE$18,PigNo!I$8&PigNo!$E11,PigDetails!$H$19:$BE$19) -> 0 | J11: =SUMIF(PigDetails!$H$18:$BE$18,PigNo!J$8&PigNo!$E11,PigDetails!$H$19:$BE$19) -> 0 | K11: =SUMIF(PigDetails!$H$18:$BE$18,PigNo!K$8&PigNo!$E11,PigDetails!$H$19:$BE$19) -> 0 | L11: =SUMIF(PigDetails!$H$18:$BE$18,PigNo!L$8&PigNo!$E11,PigDetails!$H$19:$BE$19) -> 0 | M11: =SUMIF(PigDetails!$H$18:$BE$18,PigNo!M$8&PigNo!$E11,PigDetails!$H$19:$BE$19) -> 0 | N11: =SUMIF(PigDetails!$H$18:$BE$18,PigNo!N$8&PigNo!$E11,PigDetails!$H$19:$BE$19) -> 0 | O11: =SUMIF(PigDetails!$H$18:$BE$18,PigNo!O$8&PigNo!$E11,PigDetails!$H$19:$BE$19) -> 0 | P11: 843
D12: 4 | E12: =INDEX(PigCats,PigNo!D12) -> Lac Sows | F12: =SUMIF(PigDetails!$H$18:$BE$18,PigNo!F$8&PigNo!$E12,PigDetails!$H$19:$BE$19) -> 157 | G12: =SUMIF(PigDetails!$H$18:$BE$18,PigNo!G$8&PigNo!$E12,PigDetails!$H$19:$BE$19) -> 0 | H12: =SUMIF(PigDetails!$H$18:$BE$18,PigNo!H$8&PigNo!$E12,PigDetails!$H$19:$BE$19) -> 0 | I12: =SUMIF(PigDetails!$H$18:$BE$18,PigNo!I$8&PigNo!$E12,PigDetails!$H$19:$BE$19) -> 0 | J12: =SUMIF(PigDetails!$H$18:$BE$18,PigNo!J$8&PigNo!$E12,PigDetails!$H$19:$BE$19) -> 0 | K12: =SUMIF(PigDetails!$H$18:$BE$18,PigNo!K$8&PigNo!$E12,PigDetails!$H$19:$BE$19) -> 0 | L12: =SUMIF(PigDetails!$H$18:$BE$18,PigNo!L$8&PigNo!$E12,PigDetails!$H$19:$BE$19) -> 0 | M12: =SUMIF(PigDetails!$H$18:$BE$18,PigNo!M$8&PigNo!$E12,PigDetails!$H$19:$BE$19) -> 0 | N12: =SUMIF(PigDetails!$H$18:$BE$18,PigNo!N$8&PigNo!$E12,PigDetails!$H$19:$BE$19) -> 0 | O12: =SUMIF(PigDetails!$H$18:$BE$18,PigNo!O$8&PigNo!$E12,PigDetails!$H$19:$BE$19) -> 0 | P12: 157
D13: 5 | E13: =INDEX(PigCats,PigNo!D13) -> Suckers | F13: =SUMIF(PigDetails!$H$18:$BE$18,PigNo!F$8&PigNo!$E13,PigDetails!$H$19:$BE$19) -> 1497 | G13: =SUMIF(PigDetails!$H$18:$BE$18,PigNo!G$8&PigNo!$E13,PigDetails!$H$19:$BE$19) -> 0 | H13: =SUMIF(PigDetails!$H$18:$BE$18,PigNo!H$8&PigNo!$E13,PigDetails!$H$19:$BE$19) -> 0 | I13: =SUMIF(PigDetails!$H$18:$BE$18,PigNo!I$8&PigNo!$E13,PigDetails!$H$19:$BE$19) -> 0 | J13: =SUMIF(PigDetails!$H$18:$BE$18,PigNo!J$8&PigNo!$E13,PigDetails!$H$19:$BE$19) -> 0 | K13: =SUMIF(PigDetails!$H$18:$BE$18,PigNo!K$8&PigNo!$E13,PigDetails!$H$19:$BE$19) -> 0 | L13: =SUMIF(PigDetails!$H$18:$BE$18,PigNo!L$8&PigNo!$E13,PigDetails!$H$19:$BE$19) -> 0 | M13: =SUMIF(PigDetails!$H$18:$BE$18,PigNo!M$8&PigNo!$E13,PigDetails!$H$19:$BE$19) -> 0 | N13: =SUMIF(PigDetails!$H$18:$BE$18,PigNo!N$8&PigNo!$E13,PigDetails!$H$19:$BE$19) -> 0 | O13: =SUMIF(PigDetails!$H$18:$BE$18,PigNo!O$8&PigNo!$E13,PigDetails!$H$19:$BE$19) -> 0 | P13: 1497
D14: 6 | E14: =INDEX(PigCats,PigNo!D14) -> Weaners | F14: =SUMIF(PigDetails!$H$18:$BE$18,PigNo!F$8&PigNo!$E14,PigDetails!$H$19:$BE$19) -> 0 | G14: =SUMIF(PigDetails!$H$18:$BE$18,PigNo!G$8&PigNo!$E14,PigDetails!$H$19:$BE$19) -> 2295 | H14: =SUMIF(PigDetails!$H$18:$BE$18,PigNo!H$8&PigNo!$E14,PigDetails!$H$19:$BE$19) -> 0 | I14: =SUMIF(PigDetails!$H$18:$BE$18,PigNo!I$8&PigNo!$E14,PigDetails!$H$19:$BE$19) -> 0 | J14: =SUMIF(PigDetails!$H$18:$BE$18,PigNo!J$8&PigNo!$E14,PigDetails!$H$19:$BE$19) -> 0 | K14: =SUMIF(PigDetails!$H$18:$BE$18,PigNo!K$8&PigNo!$E14,PigDetails!$H$19:$BE$19) -> 0 | L14: =SUMIF(PigDetails!$H$18:$BE$18,PigNo!L$8&PigNo!$E14,PigDetails!$H$19:$BE$19) -> 0 | M14: =SUMIF(PigDetails!$H$18:$BE$18,PigNo!M$8&PigNo!$E14,PigDetails!$H$19:$BE$19) -> 0 | N14: =SUMIF(PigDetails!$H$18:$BE$18,PigNo!N$8&PigNo!$E14,PigDetails!$H$19:$BE$19) -> 0 | O14: =SUMIF(PigDetails!$H$18:$BE$18,PigNo!O$8&PigNo!$E14,PigDetails!$H$19:$BE$19) -> 0 | P14: 2295
D15: 7 | E15: =INDEX(PigCats,PigNo!D15) -> Growers | F15: =SUMIF(PigDetails!$H$18:$BE$18,PigNo!F$8&PigNo!$E15,PigDetails!$H$19:$BE$19) -> 0 | G15: =SUMIF(PigDetails!$H$18:$BE$18,PigNo!G$8&PigNo!$E15,PigDetails!$H$19:$BE$19) -> 0 | H15: =SUMIF(PigDetails!$H$18:$BE$18,PigNo!H$8&PigNo!$E15,PigDetails!$H$19:$BE$19) -> 2152 | I15: =SUMIF(PigDetails!$H$18:$BE$18,PigNo!I$8&PigNo!$E15,PigDetails!$H$19:$BE$19) -> 0 | J15: =SUMIF(PigDetails!$H$18:$BE$18,PigNo!J$8&PigNo!$E15,PigDetails!$H$19:$BE$19) -> 0 | K15: =SUMIF(PigDetails!$H$18:$BE$18,PigNo!K$8&PigNo!$E15,PigDetails!$H$19:$BE$19) -> 0 | L15: =SUMIF(PigDetails!$H$18:$BE$18,PigNo!L$8&PigNo!$E15,PigDetails!$H$19:$BE$19) -> 0 | M15: =SUMIF(PigDetails!$H$18:$BE$18,PigNo!M$8&PigNo!$E15,PigDetails!$H$19:$BE$19) -> 0 | N15: =SUMIF(PigDetails!$H$18:$BE$18,PigNo!N$8&PigNo!$E15,PigDetails!$H$19:$BE$19) -> 0 | O15: =SUMIF(PigDetails!$H$18:$BE$18,PigNo!O$8&PigNo!$E15,PigDetails!$H$19:$BE$19) -> 0 | P15: 2152
D16: 8 | E16: =INDEX(PigCats,PigNo!D16) -> Finishers | F16: =SUMIF(PigDetails!$H$18:$BE$18,PigNo!F$8&PigNo!$E16,PigDetails!$H$19:$BE$19) -> 0 | G16: =SUMIF(PigDetails!$H$18:$BE$18,PigNo!G$8&PigNo!$E16,PigDetails!$H$19:$BE$19) -> 0 | H16: =SUMIF(PigDetails!$H$18:$BE$18,PigNo!H$8&PigNo!$E16,PigDetails!$H$19:$BE$19) -> 2140 | I16: =SUMIF(PigDetails!$H$18:$BE$18,PigNo!I$8&PigNo!$E16,PigDetails!$H$19:$BE$19) -> 0 | J16: =SUMIF(PigDetails!$H$18:$BE$18,PigNo!J$8&PigNo!$E16,PigDetails!$H$19:$BE$19) -> 0 | K16: =SUMIF(PigDetails!$H$18:$BE$18,PigNo!K$8&PigNo!$E16,PigDetails!$H$19:$BE$19) -> 0 | L16: =SUMIF(PigDetails!$H$18:$BE$18,PigNo!L$8&PigNo!$E16,PigDetails!$H$19:$BE$19) -> 0 | M16: =SUMIF(PigDetails!$H$18:$BE$18,PigNo!M$8&PigNo!$E16,PigDetails!$H$19:$BE$19) -> 0 | N16: =SUMIF(PigDetails!$H$18:$BE$18,PigNo!N$8&PigNo!$E16,PigDetails!$H$19:$BE$19) -> 0 | O16: =SUMIF(PigDetails!$H$18:$BE$18,PigNo!O$8&PigNo!$E16,PigDetails!$H$19:$BE$19) -> 0 | P16: 2140
D17: 9 | E17: =INDEX(PigCats,PigNo!D17) -> 0 | F17: =SUMIF(PigDetails!$H$18:$BE$18,PigNo!F$8&PigNo!$E17,PigDetails!$H$19:$BE$19) -> 0 | G17: =SUMIF(PigDetails!$H$18:$BE$18,PigNo!G$8&PigNo!$E17,PigDetails!$H$19:$BE$19) -> 0 | H17: =SUMIF(PigDetails!$H$18:$BE$18,PigNo!H$8&PigNo!$E17,PigDetails!$H$19:$BE$19) -> 0 | I17: =SUMIF(PigDetails!$H$18:$BE$18,PigNo!I$8&PigNo!$E17,PigDetails!$H$19:$BE$19) -> 0 | J17: =SUMIF(PigDetails!$H$18:$BE$18,PigNo!J$8&PigNo!$E17,PigDetails!$H$19:$BE$19) -> 0 | K17: =SUMIF(PigDetails!$H$18:$BE$18,PigNo!K$8&PigNo!$E17,PigDetails!$H$19:$BE$19) -> 0 | L17: =SUMIF(PigDetails!$H$18:$BE$18,PigNo!L$8&PigNo!$E17,PigDetails!$H$19:$BE$19) -> 0 | M17: =SUMIF(PigDetails!$H$18:$BE$18,PigNo!M$8&PigNo!$E17,PigDetails!$H$19:$BE$19) -> 0 | N17: =SUMIF(PigDetails!$H$18:$BE$18,PigNo!N$8&PigNo!$E17,PigDetails!$H$19:$BE$19) -> 0 | O17: =SUMIF(PigDetails!$H$18:$BE$18,PigNo!O$8&PigNo!$E17,PigDetails!$H$19:$BE$19) -> 0 | P17: 0
D18: 10 | E18: =INDEX(PigCats,PigNo!D18) -> 0 | F18: =SUMIF(PigDetails!$H$18:$BE$18,PigNo!F$8&PigNo!$E18,PigDetails!$H$19:$BE$19) -> 0 | G18: =SUMIF(PigDetails!$H$18:$BE$18,PigNo!G$8&PigNo!$E18,PigDetails!$H$19:$BE$19) -> 0 | H18: =SUMIF(PigDetails!$H$18:$BE$18,PigNo!H$8&PigNo!$E18,PigDetails!$H$19:$BE$19) -> 0 | I18: =SUMIF(PigDetails!$H$18:$BE$18,PigNo!I$8&PigNo!$E18,PigDetails!$H$19:$BE$19) -> 0 | J18: =SUMIF(PigDetails!$H$18:$BE$18,PigNo!J$8&PigNo!$E18,PigDetails!$H$19:$BE$19) -> 0 | K18: =SUMIF(PigDetails!$H$18:$BE$18,PigNo!K$8&PigNo!$E18,PigDetails!$H$19:$BE$19) -> 0 | L18: =SUMIF(PigDetails!$H$18:$BE$18,PigNo!L$8&PigNo!$E18,PigDetails!$H$19:$BE$19) -> 0 | M18: =SUMIF(PigDetails!$H$18:$BE$18,PigNo!M$8&PigNo!$E18,PigDetails!$H$19:$BE$19) -> 0 | N18: =SUMIF(PigDetails!$H$18:$BE$18,PigNo!N$8&PigNo!$E18,PigDetails!$H$19:$BE$19) -> 0 | O18: =SUMIF(PigDetails!$H$18:$BE$18,PigNo!O$8&PigNo!$E18,PigDetails!$H$19:$BE$19) -> 0 | P18: 0
E19: Total | F19: =SUM(F9:F18) -> 2589 | G19: =SUM(G9:G18) -> 2295 | H19: 4292 | I19: 0 | J19: 0 | K19: 0 | L19: 0 | M19: 0 | N19: 0 | O19: 0 | P19: 9176

Sheet Report
G1: =IF(G7=0,"*","") ->  | H1: =IF(H7=0,"*","") ->  | J1: * | K1: * | L1: * | M1: * | N1: * | O1: * | P1: *
C3: PigGas | G3: =FarmDesign!H9 -> Harry's Happy Hogs
G5: =FarmDesign!H11 -> 1000 sow multisite
G6: 1 | H6: 2 | I6: 3 | J6: 4 | K6: 5 | L6: 6 | M6: 7 | N6: 8 | O6: 9 | P6: 10 | R6: Total
G7: =INDEX(UnitName,G6) -> Breeder | H7: Weaner | I7: GrowOut | J7: 0 | K7: 0 | L7: 0 | M7: 0 | N7: 0 | O7: 0 | P7: 0
D9: PRODUCTION DETAILS
E11: Total Sales | G11: =SUMIF(PigMovements!$G$10:$AT$10,Report!G$7,PigMovements!$G86:$AT86) -> 328 | H11: =SUMIF(PigMovements!$G$10:$AT$10,Report!H$7,PigMovements!$G86:$AT86) -> 0 | I11: =SUMIF(PigMovements!$G$10:$AT$10,Report!I$7,PigMovements!$G86:$AT86) -> 18315 | J11: =SUMIF(PigMovements!$G$10:$AT$10,Report!J$7,PigMovements!$G86:$AT86) -> 0 | K11: =SUMIF(PigMovements!$G$10:$AT$10,Report!K$7,PigMovements!$G86:$AT86) -> 0 | L11: =SUMIF(PigMovements!$G$10:$AT$10,Report!L$7,PigMovements!$G86:$AT86) -> 0 | M11: =SUMIF(PigMovements!$G$10:$AT$10,Report!M$7,PigMovements!$G86:$AT86) -> 0 | N11: =SUMIF(PigMovements!$G$10:$AT$10,Report!N$7,PigMovements!$G86:$AT86) -> 0 | O11: =SUMIF(PigMovements!$G$10:$AT$10,Report!O$7,PigMovements!$G86:$AT86) -> 0 | P11: =SUMIF(PigMovements!$G$10:$AT$10,Report!P$7,PigMovements!$G86:$AT86) -> 0 | R11: =SUM(G11:P11) -> 18643
F12: Sales Live Wt. kg | G12: =SUMIF(PigMovements!$G$10:$AT$10,Report!G$7,PigMovements!$G87:$AT87) -> 74430 | H12: =SUMIF(PigMovements!$G$10:$AT$10,Report!H$7,PigMovements!$G87:$AT87) -> 0 | I12: =SUMIF(PigMovements!$G$10:$AT$10,Report!I$7,PigMovements!$G87:$AT87) -> 1739925 | J12: =SUMIF(PigMovements!$G$10:$AT$10,Report!J$7,PigMovements!$G87:$AT87) -> 0 | K12: =SUMIF(PigMovements!$G$10:$AT$10,Report!K$7,PigMovements!$G87:$AT87) -> 0 | L12: =SUMIF(PigMovements!$G$10:$AT$10,Report!L$7,PigMovements!$G87:$AT87) -> 0 | M12: =SUMIF(PigMovements!$G$10:$AT$10,Report!M$7,PigMovements!$G87:$AT87) -> 0 | N12: =SUMIF(PigMovements!$G$10:$AT$10,Report!N$7,PigMovements!$G87:$AT87) -> 0 | O12: =SUMIF(PigMovements!$G$10:$AT$10,Report!O$7,PigMovements!$G87:$AT87) -> 0 | P12: =SUMIF(PigMovements!$G$10:$AT$10,Report!P$7,PigMovements!$G87:$AT87) -> 0 | R12: =SUM(G12:P12) -> 1814355
F13: Sales Dress Wt. kg | G13: =SUMIF(PigMovements!$G$10:$AT$10,Report!G$7,PigMovements!$G88:$AT88) -> 56566.8 | H13: =SUMIF(PigMovements!$G$10:$AT$10,Report!H$7,PigMovements!$G88:$AT88) -> 0 | I13: =SUMIF(PigMovements!$G$10:$AT$10,Report!I$7,PigMovements!$G88:$AT88) -> 1322343 | J13: =SUMIF(PigMovements!$G$10:$AT$10,Report!J$7,PigMovements!$G88:$AT88) -> 0 | K13: =SUMIF(PigMovements!$G$10:$AT$10,Report!K$7,PigMovements!$G88:$AT88) -> 0 | L13: =SUMIF(PigMovements!$G$10:$AT$10,Report!L$7,PigMovements!$G88:$AT88) -> 0 | M13: =SUMIF(PigMovements!$G$10:$AT$10,Report!M$7,PigMovements!$G88:$AT88) -> 0 | N13: =SUMIF(PigMovements!$G$10:$AT$10,Report!N$7,PigMovements!$G88:$AT88) -> 0 | O13: =SUMIF(PigMovements!$G$10:$AT$10,Report!O$7,PigMovements!$G88:$AT88) -> 0 | P13: =SUMIF(PigMovements!$G$10:$AT$10,Report!P$7,PigMovements!$G88:$AT88) -> 0 | R13: =SUM(G13:P13) -> 1378909.8
F14: Average Dress Wt. kg | G14: =IF(G11<>0,G13/G11,"") -> 172.4597561 | H14: =IF(H11<>0,H13/H11,"") ->  | I14: 72.2 | R14: =R13/R11 -> 73.96394357
F15: Dress % | G15: =IF(G12<>0,G13/G12,0) -> 0.76 | H15: =IF(H12<>0,H13/H12,0) -> 0 | I15: 0.76 | J15: 0 | K15: 0 | L15: 0 | M15: 0 | N15: 0 | O15: 0 | P15: 0 | R15: 0.76
A17: =IF(SUM(G17:P23)=0,"*","") ->  | E17: Transfer Out | G17: =SUMIF(PigMovements!$G$10:$AT$10,Report!G$7,PigMovements!$G171:$AT171) -> 19500 | H17: =SUMIF(PigMovements!$G$10:$AT$10,Report!H$7,PigMovements!$G171:$AT171) -> 18993 | I17: =SUMIF(PigMovements!$G$10:$AT$10,Report!I$7,PigMovements!$G171:$AT171) -> 0 | J17: =SUMIF(PigMovements!$G$10:$AT$10,Report!J$7,PigMovements!$G171:$AT171) -> 0 | K17: =SUMIF(PigMovements!$G$10:$AT$10,Report!K$7,PigMovements!$G171:$AT171) -> 0 | L17: =SUMIF(PigMovements!$G$10:$AT$10,Report!L$7,PigMovements!$G171:$AT171) -> 0 | M17: =SUMIF(PigMovements!$G$10:$AT$10,Report!M$7,PigMovements!$G171:$AT171) -> 0 | N17: =SUMIF(PigMovements!$G$10:$AT$10,Report!N$7,PigMovements!$G171:$AT171) -> 0 | O17: =SUMIF(PigMovements!$G$10:$AT$10,Report!O$7,PigMovements!$G171:$AT171) -> 0 | P17: =SUMIF(PigMovements!$G$10:$AT$10,Report!P$7,PigMovements!$G171:$AT171) -> 0 | R17: =SUM(G17:P17) -> 38493
A18: =A17 ->  | F18: Transfer Live Wt. kg | G18: =SUMIF(PigMovements!$G$10:$AT$10,Report!G$7,PigMovements!$G172:$AT172) -> 156000 | H18: =SUMIF(PigMovements!$G$10:$AT$10,Report!H$7,PigMovements!$G172:$AT172) -> 474825 | I18: =SUMIF(PigMovements!$G$10:$AT$10,Report!I$7,PigMovements!$G172:$AT172) -> 0 | J18: =SUMIF(PigMovements!$G$10:$AT$10,Report!J$7,PigMovements!$G172:$AT172) -> 0 | K18: =SUMIF(PigMovements!$G$10:$AT$10,Report!K$7,PigMovements!$G172:$AT172) -> 0 | L18: =SUMIF(PigMovements!$G$10:$AT$10,Report!L$7,PigMovements!$G172:$AT172) -> 0 | M18: =SUMIF(PigMovements!$G$10:$AT$10,Report!M$7,PigMovements!$G172:$AT172) -> 0 | N18: =SUMIF(PigMovements!$G$10:$AT$10,Report!N$7,PigMovements!$G172:$AT172) -> 0 | O18: =SUMIF(PigMovements!$G$10:$AT$10,Report!O$7,PigMovements!$G172:$AT172) -> 0 | P18: =SUMIF(PigMovements!$G$10:$AT$10,Report!P$7,PigMovements!$G172:$AT172) -> 0 | R18: =SUM(G18:P18) -> 630825
A19: =A18 ->  | F19: Transfer Dress Wt. kg | G19: =SUMIF(PigMovements!$G$10:$AT$10,Report!G$7,PigMovements!$G173:$AT173) -> 118248 | H19: =SUMIF(PigMovements!$G$10:$AT$10,Report!H$7,PigMovements!$G173:$AT173) -> 359917.35 | I19: =SUMIF(PigMovements!$G$10:$AT$10,Report!I$7,PigMovements!$G173:$AT173) -> 0 | J19: =SUMIF(PigMovements!$G$10:$AT$10,Report!J$7,PigMovements!$G173:$AT173) -> 0 | K19: =SUMIF(PigMovements!$G$10:$AT$10,Report!K$7,PigMovements!$G173:$AT173) -> 0 | L19: =SUMIF(PigMovements!$G$10:$AT$10,Report!L$7,PigMovements!$G173:$AT173) -> 0 | M19: =SUMIF(PigMovements!$G$10:$AT$10,Report!M$7,PigMovements!$G173:$AT173) -> 0 | N19: =SUMIF(PigMovements!$G$10:$AT$10,Report!N$7,PigMovements!$G173:$AT173) -> 0 | O19: =SUMIF(PigMovements!$G$10:$AT$10,Report!O$7,PigMovements!$G173:$AT173) -> 0 | P19: =SUMIF(PigMovements!$G$10:$AT$10,Report!P$7,PigMovements!$G173:$AT173) -> 0 | R19: =SUM(G19:P19) -> 478165.35
E21: Transfer In | G21: =SUMIF(PigMovements!$G$96:$AT$96,Report!G$7,PigMovements!$G171:$AT171) -> 0 | H21: =SUMIF(PigMovements!$G$96:$AT$96,Report!H$7,PigMovements!$G171:$AT171) -> 19500 | I21: =SUMIF(PigMovements!$G$96:$AT$96,Report!I$7,PigMovements!$G171:$AT171) -> 18993 | J21: =SUMIF(PigMovements!$G$96:$AT$96,Report!J$7,PigMovements!$G171:$AT171) -> 0 | K21: =SUMIF(PigMovements!$G$96:$AT$96,Report!K$7,PigMovements!$G171:$AT171) -> 0 | L21: =SUMIF(PigMovements!$G$96:$AT$96,Report!L$7,PigMovements!$G171:$AT171) -> 0 | M21: =SUMIF(PigMovements!$G$96:$AT$96,Report!M$7,PigMovements!$G171:$AT171) -> 0 | N21: =SUMIF(PigMovements!$G$96:$AT$96,Report!N$7,PigMovements!$G171:$AT171) -> 0 | O21: =SUMIF(PigMovements!$G$96:$AT$96,Report!O$7,PigMovements!$G171:$AT171) -> 0 | P21: =SUMIF(PigMovements!$G$96:$AT$96,Report!P$7,PigMovements!$G171:$AT171) -> 0 | R21: =SUM(G21:P21) -> 38493
F22: Transfer Live Wt. kg | G22: =SUMIF(PigMovements!$G$96:$AT$96,Report!G$7,PigMovements!$G172:$AT172) -> 0 | H22: =SUMIF(PigMovements!$G$96:$AT$96,Report!H$7,PigMovements!$G172:$AT172) -> 156000 | I22: =SUMIF(PigMovements!$G$96:$AT$96,Report!I$7,PigMovements!$G172:$AT172) -> 474825 | J22: =SUMIF(PigMovements!$G$96:$AT$96,Report!J$7,PigMovements!$G172:$AT172) -> 0 | K22: =SUMIF(PigMovements!$G$96:$AT$96,Report!K$7,PigMovements!$G172:$AT172) -> 0 | L22: =SUMIF(PigMovements!$G$96:$AT$96,Report!L$7,PigMovements!$G172:$AT172) -> 0 | M22: =SUMIF(PigMovements!$G$96:$AT$96,Report!M$7,PigMovements!$G172:$AT172) -> 0 | N22: =SUMIF(PigMovements!$G$96:$AT$96,Report!N$7,PigMovements!$G172:$AT172) -> 0 | O22: =SUMIF(PigMovements!$G$96:$AT$96,Report!O$7,PigMovements!$G172:$AT172) -> 0 | P22: =SUMIF(PigMovements!$G$96:$AT$96,Report!P$7,PigMovements!$G172:$AT172) -> 0 | R22: =SUM(G22:P22) -> 630825
F23: Transfer Dress Wt. kg | G23: =SUMIF(PigMovements!$G$96:$AT$96,Report!G$7,PigMovements!$G173:$AT173) -> 0 | H23: =SUMIF(PigMovements!$G$96:$AT$96,Report!H$7,PigMovements!$G173:$AT173) -> 118248 | I23: =SUMIF(PigMovements!$G$96:$AT$96,Report!I$7,PigMovements!$G173:$AT173) -> 359917.35 | J23: =SUMIF(PigMovements!$G$96:$AT$96,Report!J$7,PigMovements!$G173:$AT173) -> 0 | K23: =SUMIF(PigMovements!$G$96:$AT$96,Report!K$7,PigMovements!$G173:$AT173) -> 0 | L23: =SUMIF(PigMovements!$G$96:$AT$96,Report!L$7,PigMovements!$G173:$AT173) -> 0 | M23: =SUMIF(PigMovements!$G$96:$AT$96,Report!M$7,PigMovements!$G173:$AT173) -> 0 | N23: =SUMIF(PigMovements!$G$96:$AT$96,Report!N$7,PigMovements!$G173:$AT173) -> 0 | O23: =SUMIF(PigMovements!$G$96:$AT$96,Report!O$7,PigMovements!$G173:$AT173) -> 0 | P23: =SUMIF(PigMovements!$G$96:$AT$96,Report!P$7,PigMovements!$G173:$AT173) -> 0 | R23: =SUM(G23:P23) -> 478165.35
E25: Purchases | G25: =SUMIF(PigMovements!$G$10:$AT$10,Report!G$7,PigMovements!$G256:$AT256) -> 0 | H25: =SUMIF(PigMovements!$G$10:$AT$10,Report!H$7,PigMovements!$G256:$AT256) -> 0 | I25: =SUMIF(PigMovements!$G$10:$AT$10,Report!I$7,PigMovements!$G256:$AT256) -> 0 | J25: =SUMIF(PigMovements!$G$10:$AT$10,Report!J$7,PigMovements!$G256:$AT256) -> 0 | K25: =SUMIF(PigMovements!$G$10:$AT$10,Report!K$7,PigMovements!$G256:$AT256) -> 0 | L25: =SUMIF(PigMovements!$G$10:$AT$10,Report!L$7,PigMovements!$G256:$AT256) -> 0 | M25: =SUMIF(PigMovements!$G$10:$AT$10,Report!M$7,PigMovements!$G256:$AT256) -> 0 | N25: =SUMIF(PigMovements!$G$10:$AT$10,Report!N$7,PigMovements!$G256:$AT256) -> 0 | O25: =SUMIF(PigMovements!$G$10:$AT$10,Report!O$7,PigMovements!$G256:$AT256) -> 0 | P25: =SUMIF(PigMovements!$G$10:$AT$10,Report!P$7,PigMovements!$G256:$AT256) -> 0 | R25: =SUM(G25:P25) -> 0
F26: Purchase Live Wt. kg | G26: =SUMIF(PigMovements!$G$10:$AT$10,Report!G$7,PigMovements!$G257:$AT257) -> 0 | H26: =SUMIF(PigMovements!$G$10:$AT$10,Report!H$7,PigMovements!$G257:$AT257) -> 0 | I26: =SUMIF(PigMovements!$G$10:$AT$10,Report!I$7,PigMovements!$G257:$AT257) -> 0 | J26: =SUMIF(PigMovements!$G$10:$AT$10,Report!J$7,PigMovements!$G257:$AT257) -> 0 | K26: =SUMIF(PigMovements!$G$10:$AT$10,Report!K$7,PigMovements!$G257:$AT257) -> 0 | L26: =SUMIF(PigMovements!$G$10:$AT$10,Report!L$7,PigMovements!$G257:$AT257) -> 0 | M26: =SUMIF(PigMovements!$G$10:$AT$10,Report!M$7,PigMovements!$G257:$AT257) -> 0 | N26: =SUMIF(PigMovements!$G$10:$AT$10,Report!N$7,PigMovements!$G257:$AT257) -> 0 | O26: =SUMIF(PigMovements!$G$10:$AT$10,Report!O$7,PigMovements!$G257:$AT257) -> 0 | P26: =SUMIF(PigMovements!$G$10:$AT$10,Report!P$7,PigMovements!$G257:$AT257) -> 0 | R26: =SUM(G26:P26) -> 0
F27: Purchase Dressed Wt. kg | G27: =SUMIF(PigMovements!$G$10:$AT$10,Report!G$7,PigMovements!$G258:$AT258) -> 0 | H27: =SUMIF(PigMovements!$G$10:$AT$10,Report!H$7,PigMovements!$G258:$AT258) -> 0 | I27: =SUMIF(PigMovements!$G$10:$AT$10,Report!I$7,PigMovements!$G258:$AT258) -> 0 | J27: =SUMIF(PigMovements!$G$10:$AT$10,Report!J$7,PigMovements!$G258:$AT258) -> 0 | K27: =SUMIF(PigMovements!$G$10:$AT$10,Report!K$7,PigMovements!$G258:$AT258) -> 0 | L27: =SUMIF(PigMovements!$G$10:$AT$10,Report!L$7,PigMovements!$G258:$AT258) -> 0 | M27: =SUMIF(PigMovements!$G$10:$AT$10,Report!M$7,PigMovements!$G258:$AT258) -> 0 | N27: =SUMIF(PigMovements!$G$10:$AT$10,Report!N$7,PigMovements!$G258:$AT258) -> 0 | O27: =SUMIF(PigMovements!$G$10:$AT$10,Report!O$7,PigMovements!$G258:$AT258) -> 0 | P27: =SUMIF(PigMovements!$G$10:$AT$10,Report!P$7,PigMovements!$G258:$AT258) -> 0 | R27: =SUM(G27:P27) -> 0
E29: Net Pig Movements | G29: =G11+G17-G25-G21 -> 19828 | H29: =H11+H17-H25-H21 -> -507 | I29: -678 | J29: 0 | K29: 0 | L29: 0 | M29: 0 | N29: 0 | O29: 0 | P29: 0 | R29: =SUM(G29:P29) -> 18643
F30: Sales Live Wt. kg | G30: =G12+G18-G26-G22 -> 230430 | H30: 318825 | I30: 1265100 | J30: 0 | K30: 0 | L30: 0 | M30: 0 | N30: 0 | O30: 0 | P30: 0 | R30: =SUM(G30:P30) -> 1814355
F31: Sales Dress Wt. kg | G31: 174814.8 | H31: 241669.35 | I31: 962425.65 | J31: 0 | K31: 0 | L31: 0 | M31: 0 | N31: 0 | O31: 0 | P31: 0 | R31: =SUM(G31:P31) -> 1378909.8
F32: Dress % | G32: =IF(G30<>0,G31/G30,"") -> 0.7586460096 | H32: =IF(H30<>0,H31/H30,"") -> 0.758 | I32: 0.7607506521 | R32: 0.76
E34: Feed Consumption (kg) | G34: =SUMIF(PigDetails!$H$15:$BE$15,Report!G$7,PigDetails!$H$95:$BE$95)*1000 -> 1176557.91 | H34: =SUMIF(PigDetails!$H$15:$BE$15,Report!H$7,PigDetails!$H$95:$BE$95)*1000 -> 737658.9 | I34: =SUMIF(PigDetails!$H$15:$BE$15,Report!I$7,PigDetails!$H$95:$BE$95)*1000 -> 3367166.7 | J34: =SUMIF(PigDetails!$H$15:$BE$15,Report!J$7,PigDetails!$H$95:$BE$95)*1000 -> 0 | K34: =SUMIF(PigDetails!$H$15:$BE$15,Report!K$7,PigDetails!$H$95:$BE$95)*1000 -> 0 | L34: =SUMIF(PigDetails!$H$15:$BE$15,Report!L$7,PigDetails!$H$95:$BE$95)*1000 -> 0 | M34: =SUMIF(PigDetails!$H$15:$BE$15,Report!M$7,PigDetails!$H$95:$BE$95)*1000 -> 0 | N34: =SUMIF(PigDetails!$H$15:$BE$15,Report!N$7,PigDetails!$H$95:$BE$95)*1000 -> 0 | O34: =SUMIF(PigDetails!$H$15:$BE$15,Report!O$7,PigDetails!$H$95:$BE$95)*1000 -> 0 | P34: =SUMIF(PigDetails!$H$15:$BE$15,Report!P$7,PigDetails!$H$95:$BE$95)*1000 -> 0 | R34: =SUM(G34:P34) -> 5281383.51
F36: FCR L.Wt | G36: =IF(G30<>0,G34/G30,0) -> 5.105923317 | H36: 2.313679605 | I36: 2.661581456 | J36: 0 | K36: 0 | L36: 0 | M36: 0 | N36: 0 | O36: 0 | P36: 0 | R36: =IF(R30<>0,R34/R30,0) -> 2.910887621
F37: FCR D.Wt | G37: =IF(G31<>0,G34/G31,0) -> 6.730310649 | H37: 3.052347764 | I37: 3.49862527 | J37: 0 | K37: 0 | L37: 0 | M37: 0 | N37: 0 | O37: 0 | P37: 0 | R37: =IF(R31<>0,R34/R31,0) -> 3.830115291
D39: EMISSIONS PROFILE
E41: Pre-Farm Estimate (kg CO2-e)
F43: Grain | G43: =G34*GrainCO2/1000 -> 294139.4775 | H43: 184414.725 | I43: 841791.675 | J43: 0 | K43: 0 | L43: 0 | M43: 0 | N43: 0 | O43: 0 | P43: 0 | R43: =R34*GrainCO2/1000 -> 1320345.877
F44: Milling & Delivery | G44: =G34*MIllingCO2/1000 -> 56474.77968 | H44: 35407.6272 | I44: 161624.0016 | J44: 0 | K44: 0 | L44: 0 | M44: 0 | N44: 0 | O44: 0 | P44: 0 | R44: =R34*MIllingCO2/1000 -> 253506.4085
F45: Pig Freight | G45: =G25*UserAssumotions!$H$25 -> 0 | H45: =H25*UserAssumotions!$H$25 -> 0 | I45: =I25*UserAssumotions!$H$25 -> 0 | J45: =J25*UserAssumotions!$H$25 -> 0 | K45: =K25*UserAssumotions!$H$25 -> 0 | L45: =L25*UserAssumotions!$H$25 -> 0 | M45: =M25*UserAssumotions!$H$25 -> 0 | N45: =N25*UserAssumotions!$H$25 -> 0 | O45: =O25*UserAssumotions!$H$25 -> 0 | P45: =P25*UserAssumotions!$H$25 -> 0 | R45: =R25*UserAssumotions!$H$25 -> 0
F46: Straw & Bedding | G46: =SUMIF(PigDetails!$H$15:$BE$15,Report!G$7,PigDetails!$H$29:$BE$29) -> 0 | H46: =SUMIF(PigDetails!$H$15:$BE$15,Report!H$7,PigDetails!$H$29:$BE$29) -> 10500 | I46: =SUMIF(PigDetails!$H$15:$BE$15,Report!I$7,PigDetails!$H$29:$BE$29) -> 0 | J46: =SUMIF(PigDetails!$H$15:$BE$15,Report!J$7,PigDetails!$H$29:$BE$29) -> 0 | K46: =SUMIF(PigDetails!$H$15:$BE$15,Report!K$7,PigDetails!$H$29:$BE$29) -> 0 | L46: =SUMIF(PigDetails!$H$15:$BE$15,Report!L$7,PigDetails!$H$29:$BE$29) -> 0 | M46: =SUMIF(PigDetails!$H$15:$BE$15,Report!M$7,PigDetails!$H$29:$BE$29) -> 0 | N46: =SUMIF(PigDetails!$H$15:$BE$15,Report!N$7,PigDetails!$H$29:$BE$29) -> 0 | O46: =SUMIF(PigDetails!$H$15:$BE$15,Report!O$7,PigDetails!$H$29:$BE$29) -> 0 | P46: =SUMIF(PigDetails!$H$15:$BE$15,Report!P$7,PigDetails!$H$29:$BE$29) -> 0 | R46: =SUM(G46:P46) -> 10500
F48: Total Pre-Farm | G48: =SUM(G43:G46) -> 350614.2572 | H48: =SUM(H43:H46) -> 230322.3522 | I48: 1003415.677 | J48: 0 | K48: 0 | L48: 0 | M48: 0 | N48: 0 | O48: 0 | P48: 0 | R48: =SUM(R43:R46) -> 1584352.286
E50: On-Farm Estimate (kg CO2-e)
F52: Fuels & Energy
F53: Purchased Electricity | G53: =SUMIF('Energy Entry'!$E$8:$E$57,"E"&Report!G$7,'Energy Entry'!$K$8:$K$57) -> 280350 | H53: =SUMIF('Energy Entry'!$E$8:$E$57,"E"&Report!H$7,'Energy Entry'!$K$8:$K$57) -> 4272 | I53: =SUMIF('Energy Entry'!$E$8:$E$57,"E"&Report!I$7,'Energy Entry'!$K$8:$K$57) -> 12905 | J53: =SUMIF('Energy Entry'!$E$8:$E$57,"E"&Report!J$7,'Energy Entry'!$K$8:$K$57) -> 0 | K53: =SUMIF('Energy Entry'!$E$8:$E$57,"E"&Report!K$7,'Energy Entry'!$K$8:$K$57) -> 0 | L53: =SUMIF('Energy Entry'!$E$8:$E$57,"E"&Report!L$7,'Energy Entry'!$K$8:$K$57) -> 0 | M53: =SUMIF('Energy Entry'!$E$8:$E$57,"E"&Report!M$7,'Energy Entry'!$K$8:$K$57) -> 0 | N53: =SUMIF('Energy Entry'!$E$8:$E$57,"E"&Report!N$7,'Energy Entry'!$K$8:$K$57) -> 0 | O53: =SUMIF('Energy Entry'!$E$8:$E$57,"E"&Report!O$7,'Energy Entry'!$K$8:$K$57) -> 0 | P53: =SUMIF('Energy Entry'!$E$8:$E$57,"E"&Report!P$7,'Energy Entry'!$K$8:$K$57) -> 0 | R53: =SUM(G53:P53) -> 297527
F54: Fuel Stationary | G54: =SUMIF('Energy Entry'!$E$8:$E$57,"S"&Report!G$7,'Energy Entry'!$K$8:$K$57) -> 54649.765 | H54: =SUMIF('Energy Entry'!$E$8:$E$57,"S"&Report!H$7,'Energy Entry'!$K$8:$K$57) -> 13085.155 | I54: =SUMIF('Energy Entry'!$E$8:$E$57,"S"&Report!I$7,'Energy Entry'!$K$8:$K$57) -> 0 | J54: =SUMIF('Energy Entry'!$E$8:$E$57,"S"&Report!J$7,'Energy Entry'!$K$8:$K$57) -> 0 | K54: =SUMIF('Energy Entry'!$E$8:$E$57,"S"&Report!K$7,'Energy Entry'!$K$8:$K$57) -> 0 | L54: =SUMIF('Energy Entry'!$E$8:$E$57,"S"&Report!L$7,'Energy Entry'!$K$8:$K$57) -> 0 | M54: =SUMIF('Energy Entry'!$E$8:$E$57,"S"&Report!M$7,'Energy Entry'!$K$8:$K$57) -> 0 | N54: =SUMIF('Energy Entry'!$E$8:$E$57,"S"&Report!N$7,'Energy Entry'!$K$8:$K$57) -> 0 | O54: =SUMIF('Energy Entry'!$E$8:$E$57,"S"&Report!O$7,'Energy Entry'!$K$8:$K$57) -> 0 | P54: =SUMIF('Energy Entry'!$E$8:$E$57,"S"&Report!P$7,'Energy Entry'!$K$8:$K$57) -> 0 | R54: =SUM(G54:P54) -> 67734.92
F55: Fuel Transport | G55: =SUMIF('Energy Entry'!$E$8:$E$57,"T"&Report!G$7,'Energy Entry'!$K$8:$K$57) -> 5237.37 | H55: =SUMIF('Energy Entry'!$E$8:$E$57,"T"&Report!H$7,'Energy Entry'!$K$8:$K$57) -> 2364.762 | I55: =SUMIF('Energy Entry'!$E$8:$E$57,"T"&Report!I$7,'Energy Entry'!$K$8:$K$57) -> 972.075 | J55: =SUMIF('Energy Entry'!$E$8:$E$57,"T"&Report!J$7,'Energy Entry'!$K$8:$K$57) -> 0 | K55: =SUMIF('Energy Entry'!$E$8:$E$57,"T"&Report!K$7,'Energy Entry'!$K$8:$K$57) -> 0 | L55: =SUMIF('Energy Entry'!$E$8:$E$57,"T"&Report!L$7,'Energy Entry'!$K$8:$K$57) -> 0 | M55: =SUMIF('Energy Entry'!$E$8:$E$57,"T"&Report!M$7,'Energy Entry'!$K$8:$K$57) -> 0 | N55: =SUMIF('Energy Entry'!$E$8:$E$57,"T"&Report!N$7,'Energy Entry'!$K$8:$K$57) -> 0 | O55: =SUMIF('Energy Entry'!$E$8:$E$57,"T"&Report!O$7,'Energy Entry'!$K$8:$K$57) -> 0 | P55: =SUMIF('Energy Entry'!$E$8:$E$57,"T"&Report!P$7,'Energy Entry'!$K$8:$K$57) -> 0 | R55: =SUM(G55:P55) -> 8574.207
F57: Total Fuels & Energy | G57: =SUM(G53:G55) -> 340237.135 | H57: =SUM(H53:H55) -> 19721.917 | I57: 13877.075 | J57: 0 | K57: 0 | L57: 0 | M57: 0 | N57: 0 | O57: 0 | P57: 0 | R57: 373836.127
F59: Manure Management Systems (MMS)
F60: Enteric CH4 | G60: =SUMIF(PigDetails!$H$15:$BE$15,Report!G$7,PigDetails!$H$80:$BE$80) -> 42629.10765 | H60: =SUMIF(PigDetails!$H$15:$BE$15,Report!H$7,PigDetails!$H$80:$BE$80) -> 26523.16715 | I60: =SUMIF(PigDetails!$H$15:$BE$15,Report!I$7,PigDetails!$H$80:$BE$80) -> 116498.0231 | J60: =SUMIF(PigDetails!$H$15:$BE$15,Report!J$7,PigDetails!$H$80:$BE$80) -> 0 | K60: =SUMIF(PigDetails!$H$15:$BE$15,Report!K$7,PigDetails!$H$80:$BE$80) -> 0 | L60: =SUMIF(PigDetails!$H$15:$BE$15,Report!L$7,PigDetails!$H$80:$BE$80) -> 0 | M60: =SUMIF(PigDetails!$H$15:$BE$15,Report!M$7,PigDetails!$H$80:$BE$80) -> 0 | N60: =SUMIF(PigDetails!$H$15:$BE$15,Report!N$7,PigDetails!$H$80:$BE$80) -> 0 | O60: =SUMIF(PigDetails!$H$15:$BE$15,Report!O$7,PigDetails!$H$80:$BE$80) -> 0 | P60: =SUMIF(PigDetails!$H$15:$BE$15,Report!P$7,PigDetails!$H$80:$BE$80) -> 0 | R60: =SUM(G60:P60) -> 185650.298
F61: MMS-CH4 | G61: =SUMIF(PigDetails!$H$15:$BE$15,Report!G$7,PigDetails!$H$65:$BE$65) -> 922948.0844 | H61: =SUMIF(PigDetails!$H$15:$BE$15,Report!H$7,PigDetails!$H$65:$BE$65) -> 11399.10673 | I61: =SUMIF(PigDetails!$H$15:$BE$15,Report!I$7,PigDetails!$H$65:$BE$65) -> 2788009.575 | J61: =SUMIF(PigDetails!$H$15:$BE$15,Report!J$7,PigDetails!$H$65:$BE$65) -> 0 | K61: =SUMIF(PigDetails!$H$15:$BE$15,Report!K$7,PigDetails!$H$65:$BE$65) -> 0 | L61: =SUMIF(PigDetails!$H$15:$BE$15,Report!L$7,PigDetails!$H$65:$BE$65) -> 0 | M61: =SUMIF(PigDetails!$H$15:$BE$15,Report!M$7,PigDetails!$H$65:$BE$65) -> 0 | N61: =SUMIF(PigDetails!$H$15:$BE$15,Report!N$7,PigDetails!$H$65:$BE$65) -> 0 | O61: =SUMIF(PigDetails!$H$15:$BE$15,Report!O$7,PigDetails!$H$65:$BE$65) -> 0 | P61: =SUMIF(PigDetails!$H$15:$BE$15,Report!P$7,PigDetails!$H$65:$BE$65) -> 0 | R61: 3722356.767
F62: MMS- Direct N2O | G62: =SUMIF(PigDetails!$H$15:$BE$15,Report!G$7,PigDetails!$H$67:$BE$67) -> 23456.19909 | H62: =SUMIF(PigDetails!$H$15:$BE$15,Report!H$7,PigDetails!$H$67:$BE$67) -> 130881.5989 | I62: =SUMIF(PigDetails!$H$15:$BE$15,Report!I$7,PigDetails!$H$67:$BE$67) -> 64092.39835 | J62: =SUMIF(PigDetails!$H$15:$BE$15,Report!J$7,PigDetails!$H$67:$BE$67) -> 0 | K62: =SUMIF(PigDetails!$H$15:$BE$15,Report!K$7,PigDetails!$H$67:$BE$67) -> 0 | L62: =SUMIF(PigDetails!$H$15:$BE$15,Report!L$7,PigDetails!$H$67:$BE$67) -> 0 | M62: =SUMIF(PigDetails!$H$15:$BE$15,Report!M$7,PigDetails!$H$67:$BE$67) -> 0 | N62: =SUMIF(PigDetails!$H$15:$BE$15,Report!N$7,PigDetails!$H$67:$BE$67) -> 0 | O62: =SUMIF(PigDetails!$H$15:$BE$15,Report!O$7,PigDetails!$H$67:$BE$67) -> 0 | P62: =SUMIF(PigDetails!$H$15:$BE$15,Report!P$7,PigDetails!$H$67:$BE$67) -> 0 | R62: 218430.1964
F63: MMS - Volatilisation N2O | G63: =SUMIF(PigDetails!$H$15:$BE$15,Report!G$7,PigDetails!$H$69:$BE$69) -> 48416.00069 | H63: =SUMIF(PigDetails!$H$15:$BE$15,Report!H$7,PigDetails!$H$69:$BE$69) -> 29448.35975 | I63: =SUMIF(PigDetails!$H$15:$BE$15,Report!I$7,PigDetails!$H$69:$BE$69) -> 132293.2838 | J63: =SUMIF(PigDetails!$H$15:$BE$15,Report!J$7,PigDetails!$H$69:$BE$69) -> 0 | K63: =SUMIF(PigDetails!$H$15:$BE$15,Report!K$7,PigDetails!$H$69:$BE$69) -> 0 | L63: =SUMIF(PigDetails!$H$15:$BE$15,Report!L$7,PigDetails!$H$69:$BE$69) -> 0 | M63: =SUMIF(PigDetails!$H$15:$BE$15,Report!M$7,PigDetails!$H$69:$BE$69) -> 0 | N63: =SUMIF(PigDetails!$H$15:$BE$15,Report!N$7,PigDetails!$H$69:$BE$69) -> 0 | O63: =SUMIF(PigDetails!$H$15:$BE$15,Report!O$7,PigDetails!$H$69:$BE$69) -> 0 | P63: =SUMIF(PigDetails!$H$15:$BE$15,Report!P$7,PigDetails!$H$69:$BE$69) -> 0 | R63: 210157.6442
F64: Soil - Leach & Runoff N2O & Vol | G64: =SUMIF(PigDetails!$H$15:$BE$15,Report!G$7,PigDetails!$H$71:$BE$71) -> 8999.478247 | H64: =SUMIF(PigDetails!$H$15:$BE$15,Report!H$7,PigDetails!$H$71:$BE$71) -> 4357.130229 | I64: =SUMIF(PigDetails!$H$15:$BE$15,Report!I$7,PigDetails!$H$71:$BE$71) -> 24590.43524 | J64: =SUMIF(PigDetails!$H$15:$BE$15,Report!J$7,PigDetails!$H$71:$BE$71) -> 0 | K64: =SUMIF(PigDetails!$H$15:$BE$15,Report!K$7,PigDetails!$H$71:$BE$71) -> 0 | L64: =SUMIF(PigDetails!$H$15:$BE$15,Report!L$7,PigDetails!$H$71:$BE$71) -> 0 | M64: =SUMIF(PigDetails!$H$15:$BE$15,Report!M$7,PigDetails!$H$71:$BE$71) -> 0 | N64: =SUMIF(PigDetails!$H$15:$BE$15,Report!N$7,PigDetails!$H$71:$BE$71) -> 0 | O64: =SUMIF(PigDetails!$H$15:$BE$15,Report!O$7,PigDetails!$H$71:$BE$71) -> 0 | P64: =SUMIF(PigDetails!$H$15:$BE$15,Report!P$7,PigDetails!$H$71:$BE$71) -> 0 | R64: 37947.04372
F65: Soil - N20 | G65: =SUMIF(PigDetails!$H$15:$BE$15,Report!G$7,PigDetails!$H$73:$BE$73) -> 71637.63779 | H65: =SUMIF(PigDetails!$H$15:$BE$15,Report!H$7,PigDetails!$H$73:$BE$73) -> 34683.62371 | I65: =SUMIF(PigDetails!$H$15:$BE$15,Report!I$7,PigDetails!$H$73:$BE$73) -> 195744.7581 | J65: =SUMIF(PigDetails!$H$15:$BE$15,Report!J$7,PigDetails!$H$73:$BE$73) -> 0 | K65: =SUMIF(PigDetails!$H$15:$BE$15,Report!K$7,PigDetails!$H$73:$BE$73) -> 0 | L65: =SUMIF(PigDetails!$H$15:$BE$15,Report!L$7,PigDetails!$H$73:$BE$73) -> 0 | M65: =SUMIF(PigDetails!$H$15:$BE$15,Report!M$7,PigDetails!$H$73:$BE$73) -> 0 | N65: =SUMIF(PigDetails!$H$15:$BE$15,Report!N$7,PigDetails!$H$73:$BE$73) -> 0 | O65: =SUMIF(PigDetails!$H$15:$BE$15,Report!O$7,PigDetails!$H$73:$BE$73) -> 0 | P65: =SUMIF(PigDetails!$H$15:$BE$15,Report!P$7,PigDetails!$H$73:$BE$73) -> 0 | R65: 302066.0196
F67: Total MMS | G67: =SUM(G60:G66) -> 1118086.508 | H67: =SUM(H60:H66) -> 237292.9865 | I67: 3321228.474 | J67: 0 | K67: 0 | L67: 0 | M67: 0 | N67: 0 | O67: 0 | P67: 0 | R67: =SUM(R60:R66) -> 4676607.968
F69: Offsets
F70: Offsets | G70: =-OffSets!F31 -> 0 | H70: =-OffSets!G31 -> 0 | I70: =-OffSets!H31 -> 0 | J70: =-OffSets!I31 -> 0 | K70: =-OffSets!J31 -> 0 | L70: =-OffSets!K31 -> 0 | M70: =-OffSets!L31 -> 0 | N70: =-OffSets!M31 -> 0 | O70: =-OffSets!N31 -> 0 | P70: =-OffSets!O31 -> 0 | R70: =SUM(G70:P70) -> 0
E72: Total On Farm | G72: =G57+G67+G70 -> 1458323.643 | H72: =H57+H67+H70 -> 257014.9035 | I72: 3335105.549 | J72: 0 | K72: 0 | L72: 0 | M72: 0 | N72: 0 | O72: 0 | P72: 0 | R72: 5050444.095
D74: Post-Farm Estimate (kg CO2-e)
F76: Pig Freight | G76: =G11*UserAssumotions!$H$39 -> 1556.926711 | H76: =H11*UserAssumotions!$H$39 -> 0 | I76: =I11*UserAssumotions!$H$39 -> 86936.31925 | J76: =J11*UserAssumotions!$H$39 -> 0 | K76: =K11*UserAssumotions!$H$39 -> 0 | L76: =L11*UserAssumotions!$H$39 -> 0 | M76: =M11*UserAssumotions!$H$39 -> 0 | N76: =N11*UserAssumotions!$H$39 -> 0 | O76: =O11*UserAssumotions!$H$39 -> 0 | P76: =P11*UserAssumotions!$H$39 -> 0 | R76: =R11*UserAssumotions!$H$39 -> 88493.24596
F77: Meat Processing | G77: =G13*UserAssumotions!$H$41 -> 22626.72 | H77: =H13*UserAssumotions!$H$41 -> 0 | I77: =I13*UserAssumotions!$H$41 -> 528937.2 | J77: =J13*UserAssumotions!$H$41 -> 0 | K77: =K13*UserAssumotions!$H$41 -> 0 | L77: =L13*UserAssumotions!$H$41 -> 0 | M77: =M13*UserAssumotions!$H$41 -> 0 | N77: =N13*UserAssumotions!$H$41 -> 0 | O77: =O13*UserAssumotions!$H$41 -> 0 | P77: =P13*UserAssumotions!$H$41 -> 0 | R77: =R13*UserAssumotions!$H$41 -> 551563.92
F78: Exported Manure | G78: =-SUMIF(PigDetails!$H$15:$BE$15,Report!G$7,PigDetails!$H$92:$BE$92) -> 0 | H78: =-SUMIF(PigDetails!$H$15:$BE$15,Report!H$7,PigDetails!$H$92:$BE$92) -> 0 | I78: =-SUMIF(PigDetails!$H$15:$BE$15,Report!I$7,PigDetails!$H$92:$BE$92) -> 0 | J78: =-SUMIF(PigDetails!$H$15:$BE$15,Report!J$7,PigDetails!$H$92:$BE$92) -> 0 | K78: =-SUMIF(PigDetails!$H$15:$BE$15,Report!K$7,PigDetails!$H$92:$BE$92) -> 0 | L78: =-SUMIF(PigDetails!$H$15:$BE$15,Report!L$7,PigDetails!$H$92:$BE$92) -> 0 | M78: =-SUMIF(PigDetails!$H$15:$BE$15,Report!M$7,PigDetails!$H$92:$BE$92) -> 0 | N78: =-SUMIF(PigDetails!$H$15:$BE$15,Report!N$7,PigDetails!$H$92:$BE$92) -> 0 | O78: =-SUMIF(PigDetails!$H$15:$BE$15,Report!O$7,PigDetails!$H$92:$BE$92) -> 0 | P78: =-SUMIF(PigDetails!$H$15:$BE$15,Report!P$7,PigDetails!$H$92:$BE$92) -> 0 | R78: =SUM(G78:P78) -> 0
E80: Total Post Farm | G80: =SUM(G76:G79) -> 24183.64671 | H80: =SUM(H76:H79) -> 0 | I80: 615873.5193 | J80: 0 | K80: 0 | L80: 0 | M80: 0 | N80: 0 | O80: 0 | P80: 0 | R80: 640057.166
D82: kg CO2-e / kg HSCW
F84: Pre-Farm | G84: =IF(G31<>0,G48/G31,"") -> 2.005632573 | H84: 0.953047427 | I84: 1.042590331 | R84: =IF(R31<>0,R48/R31,"") -> 1.148989068
F86: On-Farm | G86: =IF(G31<>0,G72/G31,"") -> 8.342106291 | H86: 1.063498137 | I86: 3.46531241 | R86: =IF(R31<>0,R72/R31,"") -> 3.66263558
F88: Post-Farm | G88: =IF(G31<>0,G80/G31,"") -> 0.1383386688 | H88: 0 | I88: 0.639918023 | R88: =IF(R31<>0,R80/R31,"") -> 0.4641762398
F90: kg CO2-e / kg HSCW | G90: =SUM(G84:G88) -> 10.48607753 | H90: =SUM(H84:H88) -> 2.016545564 | I90: 5.147820764 | J90: 0 | K90: 0 | L90: 0 | M90: 0 | N90: 0 | O90: 0 | P90: 0 | R90: 5.275800888
D92: =TEXT(NOW(),"d mmmm yyyy")& " - "&Menu!$A$1 -> 13 May 2014 - Pork Industry Greenhouse Gas Calculator Version 1.02.04

Sheet PigMovements
A1: Calc | B1: FALSE
A2: Monthly | B2: FALSE
A3: Year | B3: TRUE | K3: Pig Movements
F8: SALES
G9: 1 | H9: 2 | I9: 3 | J9: 4 | K9: 5 | L9: 6 | M9: 7 | N9: 8 | O9: 9 | P9: 10 | Q9: 11 | R9: 12 | S9: 13 | T9: 14 | U9: 15 | V9: 16 | W9: 17 | X9: 18 | Y9: 19 | Z9: 20 | AA9: 21 | AB9: 22 | AC9: 23 | AD9: 24 | AE9: 25 | AF9: 26 | AG9: 27 | AH9: 28 | AI9: 29 | AJ9: 30 | AK9: 31 | AL9: 32 | AM9: 33 | AN9: 34 | AO9: 35 | AP9: 36 | AQ9: 37 | AR9: 38 | AS9: 39 | AT9: 40
F10: Unit | G10: Breeder | H10: Breeder | I10: GrowOut | J10: Breeder | K10: Weaner
F11: Pig Type | G11: Gest Sows | H11: Boars | I11: Finishers | J11: Suckers | K11: Growers
A12: =IF($B$1=TRUE,"","*") -> * | F12: No per week
A13: =A12 -> * | F13: Live Wt. kg/hd
A14: =A13 -> * | F14: Dress% (Trim 1)
A15: * | F15: Dress Wt. kg/hd | G15: =G13*G14 -> 0 | H15: 0 | I15: 0 | J15: =J13*J14 -> 0 | K15: 0 | L15: =L13*L14 -> 0 | M15: =M13*M14 -> 0 | N15: =N13*N14 -> 0 | O15: =O13*O14 -> 0 | P15: 0 | Q15: 0 | R15: 0 | S15: 0 | T15: 0 | U15: 0 | V15: 0 | W15: 0 | X15: 0 | Y15: 0 | Z15: 0 | AA15: 0 | AB15: 0 | AC15: 0 | AD15: 0 | AE15: 0 | AF15: 0 | AG15: 0 | AH15: 0 | AI15: 0 | AJ15: 0 | AK15: 0 | AL15: 0 | AM15: 0 | AN15: 0 | AO15: 0 | AP15: 0 | AQ15: 0 | AR15: 0 | AS15: 0 | AT15: 0
A16: * | F16: Live Wt./week | G16: =G12*G13 -> 0 | H16: 0 | I16: 0 | J16: =J12*J13 -> 0 | K16: 0 | L16: =L12*L13 -> 0 | M16: =M12*M13 -> 0 | N16: =N12*N13 -> 0 | O16: =O12*O13 -> 0 | P16: 0 | Q16: 0 | R16: 0 | S16: 0 | T16: 0 | U16: 0 | V16: 0 | W16: 0 | X16: 0 | Y16: 0 | Z16: 0 | AA16: 0 | AB16: 0 | AC16: 0 | AD16: 0 | AE16: 0 | AF16: 0 | AG16: 0 | AH16: 0 | AI16: 0 | AJ16: 0 | AK16: 0 | AL16: 0 | AM16: 0 | AN16: 0 | AO16: 0 | AP16: 0 | AQ16: 0 | AR16: 0 | AS16: 0 | AT16: 0
A17: * | F17: D. Wt/week | G17: =G15*G12 -> 0 | H17: 0 | I17: 0 | J17: =J15*J12 -> 0 | K17: 0 | L17: =L15*L12 -> 0 | M17: =M15*M12 -> 0 | N17: =N15*N12 -> 0 | O17: =O15*O12 -> 0 | P17: 0 | Q17: 0 | R17: 0 | S17: 0 | T17: 0 | U17: 0 | V17: 0 | W17: 0 | X17: 0 | Y17: 0 | Z17: 0 | AA17: 0 | AB17: 0 | AC17: 0 | AD17: 0 | AE17: 0 | AF17: 0 | AG17: 0 | AH17: 0 | AI17: 0 | AJ17: 0 | AK17: 0 | AL17: 0 | AM17: 0 | AN17: 0 | AO17: 0 | AP17: 0 | AQ17: 0 | AR17: 0 | AS17: 0 | AT17: 0
A18: * | F18: Sales/yr | G18: =G12/7*365.25 -> 0 | H18: 0 | I18: 0 | J18: =J12/7*365.25 -> 0 | K18: 0 | L18: =L12/7*365.25 -> 0 | M18: =M12/7*365.25 -> 0 | N18: =N12/7*365.25 -> 0 | O18: =O12/7*365.25 -> 0 | P18: 0 | Q18: 0 | R18: 0 | S18: 0 | T18: 0 | U18: 0 | V18: 0 | W18: 0 | X18: 0 | Y18: 0 | Z18: 0 | AA18: 0 | AB18: 0 | AC18: 0 | AD18: 0 | AE18: 0 | AF18: 0 | AG18: 0 | AH18: 0 | AI18: 0 | AJ18: 0 | AK18: 0 | AL18: 0 | AM18: 0 | AN18: 0 | AO18: 0 | AP18: 0 | AQ18: 0 | AR18: 0 | AS18: 0 | AT18: 0
A19: * | F19: Live Wt./yr | G19: =G18*G13 -> 0 | H19: 0 | I19: 0 | J19: =J18*J13 -> 0 | K19: 0 | L19: =L18*L13 -> 0 | M19: =M18*M13 -> 0 | N19: =N18*N13 -> 0 | O19: =O18*O13 -> 0 | P19: 0 | Q19: 0 | R19: 0 | S19: 0 | T19: 0 | U19: 0 | V19: 0 | W19: 0 | X19: 0 | Y19: 0 | Z19: 0 | AA19: 0 | AB19: 0 | AC19: 0 | AD19: 0 | AE19: 0 | AF19: 0 | AG19: 0 | AH19: 0 | AI19: 0 | AJ19: 0 | AK19: 0 | AL19: 0 | AM19: 0 | AN19: 0 | AO19: 0 | AP19: 0 | AQ19: 0 | AR19: 0 | AS19: 0 | AT19: 0
A20: * | F20: D. Wt/yr | G20: =G18*G15 -> 0 | H20: 0 | I20: 0 | J20: =J18*J15 -> 0 | K20: 0 | L20: =L18*L15 -> 0 | M20: =M18*M15 -> 0 | N20: =N18*N15 -> 0 | O20: =O18*O15 -> 0 | P20: 0 | Q20: 0 | R20: 0 | S20: 0 | T20: 0 | U20: 0 | V20: 0 | W20: 0 | X20: 0 | Y20: 0 | Z20: 0 | AA20: 0 | AB20: 0 | AC20: 0 | AD20: 0 | AE20: 0 | AF20: 0 | AG20: 0 | AH20: 0 | AI20: 0 | AJ20: 0 | AK20: 0 | AL20: 0 | AM20: 0 | AN20: 0 | AO20: 0 | AP20: 0 | AQ20: 0 | AR20: 0 | AS20: 0 | AT20: 0
A21: *
A22: *
A23: =IF($B$2=TRUE,"","*") -> * | F23: January
A24: =A23 -> * | F24: Number Sold
A25: =A24 -> * | F25: Total Live Wt. kg
A26: * | F26: Total Dress Wt. kg
A27: * | F27: February
A28: * | F28: Number Sold
A29: * | F29: Total Live Wt. kg
A30: * | F30: Total Dress Wt. kg
A31: * | F31: March
A32: * | F32: Number Sold
A33: * | F33: Total Live Wt. kg
A34: * | F34: Total Dress Wt. kg
A35: * | F35: April
A36: * | F36: Number Sold
A37: * | F37: Total Live Wt. kg
A38: * | F38: Total Dress Wt. kg
A39: * | F39: May
A40: * | F40: Number Sold
A41: * | F41: Total Live Wt. kg
A42: * | F42: Total Dress Wt. kg
A43: * | F43: June
A44: * | F44: Number Sold
A45: * | F45: Total Live Wt. kg
A46: * | F46: Total Dress Wt. kg
A47: * | F47: July
A48: * | F48: Number Sold
A49: * | F49: Total Live Wt. kg
A50: * | F50: Total Dress Wt. kg
A51: * | F51: August
A52: * | F52: Number Sold
A53: * | F53: Total Live Wt. kg
A54: * | F54: Total Dress Wt. kg
A55: * | F55: September
A56: * | F56: Number Sold
A57: * | F57: Total Live Wt. kg
A58: * | F58: Total Dress Wt. kg
A59: * | F59: October
A60: * | F60: Number Sold
A61: * | F61: Total Live Wt. kg
A62: * | F62: Total Dress Wt. kg
A63: * | F63: November
A64: * | F64: Number Sold
A65: * | F65: Total Live Wt. kg
A66: * | F66: Total Dress Wt. kg
A67: * | F67: December
A68: * | F68: Number Sold
A69: * | F69: Total Live Wt. kg
A70: * | F70: Total Dress Wt. kg
A71: *
A72: * | F72: Annual Sales | G72: =G24+G28+G32+G36+G40+G44+G48+G52+G56+G60+G64+G68 -> 0 | H72: 0 | I72: 0 | J72: 0 | K72: 0 | L72: =L24+L28+L32+L36+L40+L44+L48+L52+L56+L60+L64+L68 -> 0 | M72: =M24+M28+M32+M36+M40+M44+M48+M52+M56+M60+M64+M68 -> 0 | N72: =N24+N28+N32+N36+N40+N44+N48+N52+N56+N60+N64+N68 -> 0 | O72: =O24+O28+O32+O36+O40+O44+O48+O52+O56+O60+O64+O68 -> 0 | P72: 0 | Q72: 0 | R72: 0 | S72: 0 | T72: 0 | U72: 0 | V72: 0 | W72: 0 | X72: 0 | Y72: 0 | Z72: 0 | AA72: 0 | AB72: 0 | AC72: 0 | AD72: 0 | AE72: 0 | AF72: 0 | AG72: 0 | AH72: 0 | AI72: 0 | AJ72: 0 | AK72: 0 | AL72: 0 | AM72: 0 | AN72: 0 | AO72: 0 | AP72: 0 | AQ72: 0 | AR72: 0 | AS72: 0 | AT72: 0
A73: * | F73: Annual L.WT | G73: =G25+G29+G33+G37+G41+G45+G49+G53+G57+G61+G65+G69 -> 0 | H73: 0 | I73: 0 | J73: 0 | K73: 0 | L73: =L25+L29+L33+L37+L41+L45+L49+L53+L57+L61+L65+L69 -> 0 | M73: 0 | N73: 0 | O73: =O25+O29+O33+O37+O41+O45+O49+O53+O57+O61+O65+O69 -> 0 | P73: 0 | Q73: 0 | R73: 0 | S73: 0 | T73: 0 | U73: 0 | V73: 0 | W73: 0 | X73: 0 | Y73: 0 | Z73: 0 | AA73: 0 | AB73: 0 | AC73: 0 | AD73: 0 | AE73: 0 | AF73: 0 | AG73: 0 | AH73: 0 | AI73: 0 | AJ73: 0 | AK73: 0 | AL73: 0 | AM73: 0 | AN73: 0 | AO73: 0 | AP73: 0 | AQ73: 0 | AR73: 0 | AS73: 0 | AT73: 0
A74: * | F74: Annual D.WT | G74: =G26+G30+G34+G38+G42+G46+G50+G54+G58+G62+G66+G70 -> 0 | H74: 0 | I74: 0 | J74: 0 | K74: 0 | L74: 0 | M74: 0 | N74: 0 | O74: =O26+O30+O34+O38+O42+O46+O50+O54+O58+O62+O66+O70 -> 0 | P74: 0 | Q74: 0 | R74: 0 | S74: 0 | T74: 0 | U74: 0 | V74: 0 | W74: 0 | X74: 0 | Y74: 0 | Z74: 0 | AA74: 0 | AB74: 0 | AC74: 0 | AD74: 0 | AE74: 0 | AF74: 0 | AG74: 0 | AH74: 0 | AI74: 0 | AJ74: 0 | AK74: 0 | AL74: 0 | AM74: 0 | AN74: 0 | AO74: 0 | AP74: 0 | AQ74: 0 | AR74: 0 | AS74: 0 | AT74: 0
A75: * | F75: Dress % (Trim 1) | G75: =IF(G73<>0,G74/G73,"") ->  | L75: =IF(L73<>0,L74/L73,"") -> 
A76: *
A77: *
A78: *
A79: =IF($B$3=TRUE,"","*") ->  | F79: Total Sales | G79: 310 | H79: 18 | I79: 18315
A80: =A79 ->  | F80: Live Wt./yr kg | G80: =G79*225 -> 69750 | H80: 4680 | I80: =I79*95 -> 1739925
A81: =A80 ->  | F81: D. Wt/yr kg | G81: =G80*0.76 -> 53010 | H81: =H80*0.76 -> 3556.8 | I81: =I80*0.76 -> 1322343
A82: =A81 ->  | F82: Dress % (Trim 1) | G82: =IF(G80<>0,G81/G80,"") -> 0.76 | H82: =IF(H80<>0,H81/H80,"") -> 0.76 | I82: 0.76 | O82: =IF(O80<>0,O81/O80,"") -> 
A84: *
A85: *
A86: * | F86: Annual Sales | G86: =IF($B$1=TRUE,G18,IF($B$2=TRUE,G72,G79)) -> 310 | H86: =IF($B$1=TRUE,H18,IF($B$2=TRUE,H72,H79)) -> 18 | I86: 18315 | J86: 0 | K86: 0 | L86: 0 | M86: 0 | N86: 0 | O86: =IF($B$1=TRUE,O18,IF($B$2=TRUE,O72,O79)) -> 0 | P86: 0 | Q86: 0 | R86: 0 | S86: 0 | T86: 0 | U86: 0 | V86: 0 | W86: 0 | X86: 0 | Y86: 0 | Z86: 0 | AA86: 0 | AB86: 0 | AC86: 0 | AD86: 0 | AE86: 0 | AF86: 0 | AG86: 0 | AH86: 0 | AI86: 0 | AJ86: 0 | AK86: 0 | AL86: 0 | AM86: 0 | AN86: 0 | AO86: 0 | AP86: 0 | AQ86: 0 | AR86: 0 | AS86: 0 | AT86: 0
A87: * | F87: Annual L.WT | G87: =IF($B$1=TRUE,G19,IF($B$2=TRUE,G73,G80)) -> 69750 | H87: 4680 | I87: 1739925 | J87: 0 | K87: 0 | L87: 0 | M87: 0 | N87: 0 | O87: =IF($B$1=TRUE,O19,IF($B$2=TRUE,O73,O80)) -> 0 | P87: 0 | Q87: 0 | R87: 0 | S87: 0 | T87: 0 | U87: 0 | V87: 0 | W87: 0 | X87: 0 | Y87: 0 | Z87: 0 | AA87: 0 | AB87: 0 | AC87: 0 | AD87: 0 | AE87: 0 | AF87: 0 | AG87: 0 | AH87: 0 | AI87: 0 | AJ87: 0 | AK87: 0 | AL87: 0 | AM87: 0 | AN87: 0 | AO87: 0 | AP87: 0 | AQ87: 0 | AR87: 0 | AS87: 0 | AT87: 0
A88: * | F88: Annual D.WT | G88: 53010 | H88: 3556.8 | I88: 1322343 | J88: 0 | K88: 0 | L88: 0 | M88: 0 | N88: 0 | O88: =IF($B$1=TRUE,O20,IF($B$2=TRUE,O74,O81)) -> 0 | P88: 0 | Q88: 0 | R88: 0 | S88: 0 | T88: 0 | U88: 0 | V88: 0 | W88: 0 | X88: 0 | Y88: 0 | Z88: 0 | AA88: 0 | AB88: 0 | AC88: 0 | AD88: 0 | AE88: 0 | AF88: 0 | AG88: 0 | AH88: 0 | AI88: 0 | AJ88: 0 | AK88: 0 | AL88: 0 | AM88: 0 | AN88: 0 | AO88: 0 | AP88: 0 | AQ88: 0 | AR88: 0 | AS88: 0 | AT88: 0
A89: * | F89: Weekly Sales | G89: =G86/365.25*7 -> 5.941136208 | H89: =H86/365.25*7 -> 0.3449691992 | I89: 351.0061602 | J89: 0 | K89: 0 | L89: 0 | M89: 0 | N89: 0 | O89: =O86/365.25*7 -> 0 | P89: 0 | Q89: 0 | R89: 0 | S89: 0 | T89: 0 | U89: 0 | V89: 0 | W89: 0 | X89: 0 | Y89: 0 | Z89: 0 | AA89: 0 | AB89: 0 | AC89: 0 | AD89: 0 | AE89: 0 | AF89: 0 | AG89: 0 | AH89: 0 | AI89: 0 | AJ89: 0 | AK89: 0 | AL89: 0 | AM89: 0 | AN89: 0 | AO89: 0 | AP89: 0 | AQ89: 0 | AR89: 0 | AS89: 0 | AT89: 0
A90: * | F90: Dress % (Trim 1) | G90: =IF(G87<>0,G88/G87,"") -> 0.76 | H90: =IF(H87<>0,H88/H87,"") -> 0.76 | I90: 0.76 | O90: =IF(O87<>0,O88/O87,"") -> 
A91: * | F91: Av. L.wt | G91: =IF(G86<>0,G87/G86,"") -> 225 | H91: =IF(H86<>0,H87/H86,"") -> 260 | I91: 95
A92: * | F92: Av. D. Wt | G92: =IF(G86<>0,G88/G86,"") -> 171 | H92: =IF(H86<>0,H88/H86,"") -> 197.6 | I92: 72.2
F94: TRANSFERS
F96: Transfer to | J96: Weaner | K96: GrowOut
A97: =IF($B$1=TRUE,"","*") -> * | F97: No Transfers/week
A98: =A97 -> * | F98: Live Wt. kg/hd
A99: =A98 -> * | F99: Dress% (Trim 1) | G99: =IF(G98<>0,DrPercent,0) -> 0 | H99: 0 | I99: 0 | J99: 0 | K99: 0 | L99: 0 | M99: 0 | N99: 0 | O99: 0 | P99: 0 | Q99: 0 | R99: 0 | S99: 0 | T99: 0 | U99: 0 | V99: 0 | W99: 0 | X99: 0 | Y99: 0 | Z99: 0 | AA99: 0 | AB99: 0 | AC99: 0 | AD99: 0 | AE99: 0 | AF99: 0 | AG99: 0 | AH99: 0 | AI99: 0 | AJ99: 0 | AK99: 0 | AL99: 0 | AM99: 0 | AN99: 0 | AO99: 0 | AP99: 0 | AQ99: 0 | AR99: 0 | AS99: 0 | AT99: 0
A100: * | F100: Dress Wt. kg/hd | G100: =IF(G98<>"",G98*G99,0) -> 0 | H100: =IF(H98<>"",H98*H99,0) -> 0 | I100: =IF(I98<>"",I98*I99,0) -> 0 | J100: =IF(J98<>"",J98*J99,0) -> 0 | K100: =IF(K98<>"",K98*K99,0) -> 0 | L100: =IF(L98<>"",L98*L99,0) -> 0 | M100: =IF(M98<>"",M98*M99,0) -> 0 | N100: =IF(N98<>"",N98*N99,0) -> 0 | O100: =IF(O98<>"",O98*O99,0) -> 0 | P100: =IF(P98<>"",P98*P99,0) -> 0 | Q100: =IF(Q98<>"",Q98*Q99,0) -> 0 | R100: =IF(R98<>"",R98*R99,0) -> 0 | S100: =IF(S98<>"",S98*S99,0) -> 0 | T100: =IF(T98<>"",T98*T99,0) -> 0 | U100: =IF(U98<>"",U98*U99,0) -> 0 | V100: =IF(V98<>"",V98*V99,0) -> 0 | W100: =IF(W98<>"",W98*W99,0) -> 0 | X100: =IF(X98<>"",X98*X99,0) -> 0 | Y100: =IF(Y98<>"",Y98*Y99,0) -> 0 | Z100: =IF(Z98<>"",Z98*Z99,0) -> 0 | AA100: =IF(AA98<>"",AA98*AA99,0) -> 0 | AB100: =IF(AB98<>"",AB98*AB99,0) -> 0 | AC100: =IF(AC98<>"",AC98*AC99,0) -> 0 | AD100: =IF(AD98<>"",AD98*AD99,0) -> 0 | AE100: =IF(AE98<>"",AE98*AE99,0) -> 0 | AF100: =IF(AF98<>"",AF98*AF99,0) -> 0 | AG100: =IF(AG98<>"",AG98*AG99,0) -> 0 | AH100: =IF(AH98<>"",AH98*AH99,0) -> 0 | AI100: =IF(AI98<>"",AI98*AI99,0) -> 0 | AJ100: =IF(AJ98<>"",AJ98*AJ99,0) -> 0 | AK100: =IF(AK98<>"",AK98*AK99,0) -> 0 | AL100: =IF(AL98<>"",AL98*AL99,0) -> 0 | AM100: =IF(AM98<>"",AM98*AM99,0) -> 0 | AN100: =IF(AN98<>"",AN98*AN99,0) -> 0 | AO100: =IF(AO98<>"",AO98*AO99,0) -> 0 | AP100: =IF(AP98<>"",AP98*AP99,0) -> 0 | AQ100: =IF(AQ98<>"",AQ98*AQ99,0) -> 0 | AR100: =IF(AR98<>"",AR98*AR99,0) -> 0 | AS100: =IF(AS98<>"",AS98*AS99,0) -> 0 | AT100: =IF(AT98<>"",AT98*AT99,0) -> 0
A101: * | F101: Live Wt./week | G101: =G98*G97 -> 0 | H101: =H98*H97 -> 0 | I101: 0 | J101: 0 | K101: 0 | L101: 0 | M101: 0 | N101: 0 | O101: 0 | P101: 0 | Q101: 0 | R101: 0 | S101: 0 | T101: 0 | U101: 0 | V101: 0 | W101: 0 | X101: 0 | Y101: 0 | Z101: 0 | AA101: 0 | AB101: 0 | AC101: 0 | AD101: 0 | AE101: 0 | AF101: 0 | AG101: 0 | AH101: 0 | AI101: 0 | AJ101: 0 | AK101: 0 | AL101: 0 | AM101: 0 | AN101: 0 | AO101: 0 | AP101: 0 | AQ101: 0 | AR101: 0 | AS101: 0 | AT101: 0
A102: * | F102: D. Wt/week | G102: =G100*G97 -> 0 | H102: =H100*H97 -> 0 | I102: 0 | J102: 0 | K102: 0 | L102: 0 | M102: 0 | N102: 0 | O102: 0 | P102: 0 | Q102: 0 | R102: 0 | S102: 0 | T102: 0 | U102: 0 | V102: 0 | W102: 0 | X102: 0 | Y102: 0 | Z102: 0 | AA102: 0 | AB102: 0 | AC102: 0 | AD102: 0 | AE102: 0 | AF102: 0 | AG102: 0 | AH102: 0 | AI102: 0 | AJ102: 0 | AK102: 0 | AL102: 0 | AM102: 0 | AN102: 0 | AO102: 0 | AP102: 0 | AQ102: 0 | AR102: 0 | AS102: 0 | AT102: 0
A103: * | F103: Transfer pigs/yr | G103: =G97/7*365.25 -> 0 | H103: =H97/7*365.25 -> 0 | I103: 0 | J103: 0 | K103: 0 | L103: 0 | M103: 0 | N103: 0 | O103: 0 | P103: 0 | Q103: 0 | R103: 0 | S103: 0 | T103: 0 | U103: 0 | V103: 0 | W103: 0 | X103: 0 | Y103: 0 | Z103: 0 | AA103: 0 | AB103: 0 | AC103: 0 | AD103: 0 | AE103: 0 | AF103: 0 | AG103: 0 | AH103: 0 | AI103: 0 | AJ103: 0 | AK103: 0 | AL103: 0 | AM103: 0 | AN103: 0 | AO103: 0 | AP103: 0 | AQ103: 0 | AR103: 0 | AS103: 0 | AT103: 0
A104: * | F104: Live Wt./yr | G104: =G103*G98 -> 0 | H104: =H103*H98 -> 0 | I104: 0 | J104: 0 | K104: 0 | L104: 0 | M104: 0 | N104: 0 | O104: 0 | P104: 0 | Q104: 0 | R104: 0 | S104: 0 | T104: 0 | U104: 0 | V104: 0 | W104: 0 | X104: 0 | Y104: 0 | Z104: 0 | AA104: 0 | AB104: 0 | AC104: 0 | AD104: 0 | AE104: 0 | AF104: 0 | AG104: 0 | AH104: 0 | AI104: 0 | AJ104: 0 | AK104: 0 | AL104: 0 | AM104: 0 | AN104: 0 | AO104: 0 | AP104: 0 | AQ104: 0 | AR104: 0 | AS104: 0 | AT104: 0
A105: * | F105: D. Wt/yr | G105: =G103*G100 -> 0 | H105: =H103*H100 -> 0 | I105: 0 | J105: 0 | K105: 0 | L105: 0 | M105: 0 | N105: 0 | O105: 0 | P105: 0 | Q105: 0 | R105: 0 | S105: 0 | T105: 0 | U105: 0 | V105: 0 | W105: 0 | X105: 0 | Y105: 0 | Z105: 0 | AA105: 0 | AB105: 0 | AC105: 0 | AD105: 0 | AE105: 0 | AF105: 0 | AG105: 0 | AH105: 0 | AI105: 0 | AJ105: 0 | AK105: 0 | AL105: 0 | AM105: 0 | AN105: 0 | AO105: 0 | AP105: 0 | AQ105: 0 | AR105: 0 | AS105: 0 | AT105: 0
A106: *
A107: *
A108: =IF($B$2=TRUE,"","*") -> * | F108: January
A109: =A108 -> * | F109: Number Transferred
A110: =A109 -> * | F110: Total Live Wt. kg
A111: * | F111: Total Dress Wt. kg | G111: =G110*DrPercent -> 0 | H111: 0 | I111: 0 | J111: 0 | K111: 0 | L111: 0 | M111: 0 | N111: 0 | O111: 0 | P111: 0 | Q111: 0 | R111: 0 | S111: 0 | T111: 0 | U111: 0 | V111: 0 | W111: 0 | X111: 0 | Y111: 0 | Z111: 0 | AA111: 0 | AB111: 0 | AC111: 0 | AD111: 0 | AE111: 0 | AF111: 0 | AG111: 0 | AH111: 0 | AI111: 0 | AJ111: 0 | AK111: 0 | AL111: 0 | AM111: 0 | AN111: 0 | AO111: 0 | AP111: 0 | AQ111: 0 | AR111: 0 | AS111: 0 | AT111: 0
A112: * | F112: February
A113: * | F113: Number Transferred
A114: * | F114: Total Live Wt. kg
A115: * | F115: Total Dress Wt. kg | G115: =G114*DrPercent -> 0 | H115: 0 | I115: 0 | J115: 0 | K115: 0 | L115: 0 | M115: 0 | N115: 0 | O115: 0 | P115: 0 | Q115: 0 | R115: 0 | S115: 0 | T115: 0 | U115: 0 | V115: 0 | W115: 0 | X115: 0 | Y115: 0 | Z115: 0 | AA115: 0 | AB115: 0 | AC115: 0 | AD115: 0 | AE115: 0 | AF115: 0 | AG115: 0 | AH115: 0 | AI115: 0 | AJ115: 0 | AK115: 0 | AL115: 0 | AM115: 0 | AN115: 0 | AO115: 0 | AP115: 0 | AQ115: 0 | AR115: 0 | AS115: 0 | AT115: 0
A116: * | F116: March
A117: * | F117: Number Transferred
A118: * | F118: Total Live Wt. kg
A119: * | F119: Total Dress Wt. kg | G119: =G118*DrPercent -> 0 | H119: 0 | I119: 0 | J119: 0 | K119: 0 | L119: 0 | M119: 0 | N119: 0 | O119: 0 | P119: 0 | Q119: 0 | R119: 0 | S119: 0 | T119: 0 | U119: 0 | V119: 0 | W119: 0 | X119: 0 | Y119: 0 | Z119: 0 | AA119: 0 | AB119: 0 | AC119: 0 | AD119: 0 | AE119: 0 | AF119: 0 | AG119: 0 | AH119: 0 | AI119: 0 | AJ119: 0 | AK119: 0 | AL119: 0 | AM119: 0 | AN119: 0 | AO119: 0 | AP119: 0 | AQ119: 0 | AR119: 0 | AS119: 0 | AT119: 0
A120: * | F120: April
A121: * | F121: Number Transferred
A122: * | F122: Total Live Wt. kg
A123: * | F123: Total Dress Wt. kg | G123: =G122*DrPercent -> 0 | H123: 0 | I123: 0 | J123: 0 | K123: 0 | L123: 0 | M123: 0 | N123: 0 | O123: 0 | P123: 0 | Q123: 0 | R123: 0 | S123: 0 | T123: 0 | U123: 0 | V123: 0 | W123: 0 | X123: 0 | Y123: 0 | Z123: 0 | AA123: 0 | AB123: 0 | AC123: 0 | AD123: 0 | AE123: 0 | AF123: 0 | AG123: 0 | AH123: 0 | AI123: 0 | AJ123: 0 | AK123: 0 | AL123: 0 | AM123: 0 | AN123: 0 | AO123: 0 | AP123: 0 | AQ123: 0 | AR123: 0 | AS123: 0 | AT123: 0
A124: * | F124: May
A125: * | F125: Number Transferred
A126: * | F126: Total Live Wt. kg
A127: * | F127: Total Dress Wt. kg | G127: =G126*DrPercent -> 0 | H127: 0 | I127: 0 | J127: 0 | K127: 0 | L127: 0 | M127: 0 | N127: 0 | O127: 0 | P127: 0 | Q127: 0 | R127: 0 | S127: 0 | T127: 0 | U127: 0 | V127: 0 | W127: 0 | X127: 0 | Y127: 0 | Z127: 0 | AA127: 0 | AB127: 0 | AC127: 0 | AD127: 0 | AE127: 0 | AF127: 0 | AG127: 0 | AH127: 0 | AI127: 0 | AJ127: 0 | AK127: 0 | AL127: 0 | AM127: 0 | AN127: 0 | AO127: 0 | AP127: 0 | AQ127: 0 | AR127: 0 | AS127: 0 | AT127: 0
A128: * | F128: June
A129: * | F129: Number Transferred
A130: * | F130: Total Live Wt. kg
A131: * | F131: Total Dress Wt. kg | G131: =G130*DrPercent -> 0 | H131: 0 | I131: 0 | J131: 0 | K131: 0 | L131: 0 | M131: 0 | N131: 0 | O131: 0 | P131: 0 | Q131: 0 | R131: 0 | S131: 0 | T131: 0 | U131: 0 | V131: 0 | W131: 0 | X131: 0 | Y131: 0 | Z131: 0 | AA131: 0 | AB131: 0 | AC131: 0 | AD131: 0 | AE131: 0 | AF131: 0 | AG131: 0 | AH131: 0 | AI131: 0 | AJ131: 0 | AK131: 0 | AL131: 0 | AM131: 0 | AN131: 0 | AO131: 0 | AP131: 0 | AQ131: 0 | AR131: 0 | AS131: 0 | AT131: 0
A132: * | F132: July
A133: * | F133: Number Transferred
A134: * | F134: Total Live Wt. kg
A135: * | F135: Total Dress Wt. kg | G135: =G134*DrPercent -> 0 | H135: 0 | I135: 0 | J135: 0 | K135: 0 | L135: 0 | M135: 0 | N135: 0 | O135: 0 | P135: 0 | Q135: 0 | R135: 0 | S135: 0 | T135: 0 | U135: 0 | V135: 0 | W135: 0 | X135: 0 | Y135: 0 | Z135: 0 | AA135: 0 | AB135: 0 | AC135: 0 | AD135: 0 | AE135: 0 | AF135: 0 | AG135: 0 | AH135: 0 | AI135: 0 | AJ135: 0 | AK135: 0 | AL135: 0 | AM135: 0 | AN135: 0 | AO135: 0 | AP135: 0 | AQ135: 0 | AR135: 0 | AS135: 0 | AT135: 0
A136: * | F136: August
A137: * | F137: Number Transferred
A138: * | F138: Total Live Wt. kg
A139: * | F139: Total Dress Wt. kg | G139: =G138*DrPercent -> 0 | H139: 0 | I139: 0 | J139: 0 | K139: 0 | L139: 0 | M139: 0 | N139: 0 | O139: 0 | P139: 0 | Q139: 0 | R139: 0 | S139: 0 | T139: 0 | U139: 0 | V139: 0 | W139: 0 | X139: 0 | Y139: 0 | Z139: 0 | AA139: 0 | AB139: 0 | AC139: 0 | AD139: 0 | AE139: 0 | AF139: 0 | AG139: 0 | AH139: 0 | AI139: 0 | AJ139: 0 | AK139: 0 | AL139: 0 | AM139: 0 | AN139: 0 | AO139: 0 | AP139: 0 | AQ139: 0 | AR139: 0 | AS139: 0 | AT139: 0
A140: * | F140: September
A141: * | F141: Number Transferred
A142: * | F142: Total Live Wt. kg
A143: * | F143: Total Dress Wt. kg | G143: =G142*DrPercent -> 0 | H143: 0 | I143: 0 | J143: 0 | K143: 0 | L143: 0 | M143: 0 | N143: 0 | O143: 0 | P143: 0 | Q143: 0 | R143: 0 | S143: 0 | T143: 0 | U143: 0 | V143: 0 | W143: 0 | X143: 0 | Y143: 0 | Z143: 0 | AA143: 0 | AB143: 0 | AC143: 0 | AD143: 0 | AE143: 0 | AF143: 0 | AG143: 0 | AH143: 0 | AI143: 0 | AJ143: 0 | AK143: 0 | AL143: 0 | AM143: 0 | AN143: 0 | AO143: 0 | AP143: 0 | AQ143: 0 | AR143: 0 | AS143: 0 | AT143: 0
A144: * | F144: October
A145: * | F145: Number Transferred
A146: * | F146: Total Live Wt. kg
A147: * | F147: Total Dress Wt. kg | G147: =G146*DrPercent -> 0 | H147: 0 | I147: 0 | J147: 0 | K147: 0 | L147: 0 | M147: 0 | N147: 0 | O147: 0 | P147: 0 | Q147: 0 | R147: 0 | S147: 0 | T147: 0 | U147: 0 | V147: 0 | W147: 0 | X147: 0 | Y147: 0 | Z147: 0 | AA147: 0 | AB147: 0 | AC147: 0 | AD147: 0 | AE147: 0 | AF147: 0 | AG147: 0 | AH147: 0 | AI147: 0 | AJ147: 0 | AK147: 0 | AL147: 0 | AM147: 0 | AN147: 0 | AO147: 0 | AP147: 0 | AQ147: 0 | AR147: 0 | AS147: 0 | AT147: 0
A148: * | F148: November
A149: * | F149: Number Transferred
A150: * | F150: Total Live Wt. kg
A151: * | F151: Total Dress Wt. kg | G151: =G150*DrPercent -> 0 | H151: 0 | I151: 0 | J151: 0 | K151: 0 | L151: 0 | M151: 0 | N151: 0 | O151: 0 | P151: 0 | Q151: 0 | R151: 0 | S151: 0 | T151: 0 | U151: 0 | V151: 0 | W151: 0 | X151: 0 | Y151: 0 | Z151: 0 | AA151: 0 | AB151: 0 | AC151: 0 | AD151: 0 | AE151: 0 | AF151: 0 | AG151: 0 | AH151: 0 | AI151: 0 | AJ151: 0 | AK151: 0 | AL151: 0 | AM151: 0 | AN151: 0 | AO151: 0 | AP151: 0 | AQ151: 0 | AR151: 0 | AS151: 0 | AT151: 0
A152: * | F152: December
A153: * | F153: Number Transferred
A154: * | F154: Total Live Wt. kg
A155: * | F155: Total Dress Wt. kg | G155: =G154*DrPercent -> 0 | H155: 0 | I155: 0 | J155: 0 | K155: 0 | L155: 0 | M155: 0 | N155: 0 | O155: 0 | P155: 0 | Q155: 0 | R155: 0 | S155: 0 | T155: 0 | U155: 0 | V155: 0 | W155: 0 | X155: 0 | Y155: 0 | Z155: 0 | AA155: 0 | AB155: 0 | AC155: 0 | AD155: 0 | AE155: 0 | AF155: 0 | AG155: 0 | AH155: 0 | AI155: 0 | AJ155: 0 | AK155: 0 | AL155: 0 | AM155: 0 | AN155: 0 | AO155: 0 | AP155: 0 | AQ155: 0 | AR155: 0 | AS155: 0 | AT155: 0
A156: *
A157: * | F157: Annual Transfers | G157: =G109+G113+G117+G121+G125+G129+G133+G137+G141+G145+G149+G153 -> 0 | H157: =H109+H113+H117+H121+H125+H129+H133+H137+H141+H145+H149+H153 -> 0 | I157: 0 | J157: 0 | K157: 0 | L157: 0 | M157: 0 | N157: 0 | O157: 0 | P157: 0 | Q157: 0 | R157: 0 | S157: 0 | T157: 0 | U157: 0 | V157: 0 | W157: 0 | X157: 0 | Y157: 0 | Z157: 0 | AA157: 0 | AB157: 0 | AC157: 0 | AD157: 0 | AE157: 0 | AF157: 0 | AG157: 0 | AH157: 0 | AI157: 0 | AJ157: 0 | AK157: 0 | AL157: 0 | AM157: 0 | AN157: 0 | AO157: 0 | AP157: 0 | AQ157: 0 | AR157: 0 | AS157: 0 | AT157: 0
A158: * | F158: Annual L.WT | G158: =G110+G114+G118+G122+G126+G130+G134+G138+G142+G146+G150+G154 -> 0 | H158: 0 | I158: 0 | J158: 0 | K158: 0 | L158: 0 | M158: 0 | N158: 0 | O158: 0 | P158: 0 | Q158: 0 | R158: 0 | S158: 0 | T158: 0 | U158: 0 | V158: 0 | W158: 0 | X158: 0 | Y158: 0 | Z158: 0 | AA158: 0 | AB158: 0 | AC158: 0 | AD158: 0 | AE158: 0 | AF158: 0 | AG158: 0 | AH158: 0 | AI158: 0 | AJ158: 0 | AK158: 0 | AL158: 0 | AM158: 0 | AN158: 0 | AO158: 0 | AP158: 0 | AQ158: 0 | AR158: 0 | AS158: 0 | AT158: 0
A159: * | F159: Annual D.WT | G159: 0 | H159: 0 | I159: 0 | J159: 0 | K159: 0 | L159: 0 | M159: 0 | N159: 0 | O159: 0 | P159: 0 | Q159: 0 | R159: 0 | S159: 0 | T159: 0 | U159: 0 | V159: 0 | W159: 0 | X159: 0 | Y159: 0 | Z159: 0 | AA159: 0 | AB159: 0 | AC159: 0 | AD159: 0 | AE159: 0 | AF159: 0 | AG159: 0 | AH159: 0 | AI159: 0 | AJ159: 0 | AK159: 0 | AL159: 0 | AM159: 0 | AN159: 0 | AO159: 0 | AP159: 0 | AQ159: 0 | AR159: 0 | AS159: 0 | AT159: 0
A160: * | F160: Dress % (Trim 1) | G160: =IF(G158<>0,G159/G158,"") ->  | H160: =IF(H158<>0,H159/H158,"") -> 
A161: *
A162: *
A163: *
A164: =IF($B$3=TRUE,"","*") ->  | F164: Total Transfers | J164: =K164+507 -> 19500 | K164: =18315+336+342 -> 18993
A165: =A164 ->  | F165: Live Wt./yr kg | J165: =J164*8 -> 156000 | K165: =K164*25 -> 474825
A166: =A165 ->  | F166: D. Wt/yr kg | G166: =IF(G165<>0,G165*G167,"") ->  | J166: 118248 | K166: 359917.35 | M166: =IF(M165<>0,M165*M167,"") ->  | N166: =IF(N165<>0,N165*N167,"") -> 
A167: =A166 ->  | F167: Dress % (Trim 1) | G167: =IF(G165<>0,DrPercent,0) -> 0 | H167: 0 | I167: 0 | J167: 0.758 | K167: 0.758 | L167: 0 | M167: 0 | N167: 0 | O167: 0 | P167: 0 | Q167: 0 | R167: 0 | S167: 0 | T167: 0 | U167: 0 | V167: 0 | W167: 0 | X167: 0 | Y167: 0 | Z167: 0 | AA167: 0 | AB167: 0 | AC167: 0 | AD167: 0 | AE167: 0 | AF167: 0 | AG167: 0 | AH167: 0 | AI167: 0 | AJ167: 0 | AK167: 0 | AL167: 0 | AM167: 0 | AN167: 0 | AO167: 0 | AP167: 0 | AQ167: 0 | AR167: 0 | AS167: 0 | AT167: 0
A169: *
A170: *
A171: * | F171: Annual Transfers | G171: =IF($B$1=TRUE,G103,IF($B$2=TRUE,G157,G164)) -> 0 | H171: =IF($B$1=TRUE,H103,IF($B$2=TRUE,H157,H164)) -> 0 | I171: 0 | J171: 19500 | K171: 18993 | L171: 0 | M171: 0 | N171: 0 | O171: 0 | P171: 0 | Q171: 0 | R171: 0 | S171: 0 | T171: 0 | U171: 0 | V171: 0 | W171: 0 | X171: 0 | Y171: 0 | Z171: 0 | AA171: 0 | AB171: 0 | AC171: 0 | AD171: 0 | AE171: 0 | AF171: 0 | AG171: 0 | AH171: 0 | AI171: 0 | AJ171: 0 | AK171: 0 | AL171: 0 | AM171: 0 | AN171: 0 | AO171: 0 | AP171: 0 | AQ171: 0 | AR171: 0 | AS171: 0 | AT171: 0
A172: * | F172: Annual L.WT | G172: =IF($B$1=TRUE,G104,IF($B$2=TRUE,G158,G165)) -> 0 | H172: 0 | I172: 0 | J172: 156000 | K172: 474825 | L172: 0 | M172: 0 | N172: 0 | O172: 0 | P172: 0 | Q172: 0 | R172: 0 | S172: 0 | T172: 0 | U172: 0 | V172: 0 | W172: 0 | X172: 0 | Y172: 0 | Z172: 0 | AA172: 0 | AB172: 0 | AC172: 0 | AD172: 0 | AE172: 0 | AF172: 0 | AG172: 0 | AH172: 0 | AI172: 0 | AJ172: 0 | AK172: 0 | AL172: 0 | AM172: 0 | AN172: 0 | AO172: 0 | AP172: 0 | AQ172: 0 | AR172: 0 | AS172: 0 | AT172: 0
A173: * | F173: Annual D.WT | G173: =IF($B$1=TRUE,G105,IF($B$2=TRUE,G159,G166)) ->  | J173: 118248 | K173: 359917.35
A174: * | F174: Weekly Transfers | G174: =G171/365.25*7 -> 0 | H174: =H171/365.25*7 -> 0 | I174: 0 | J174: 373.7166324 | K174: 364 | L174: 0 | M174: 0 | N174: 0 | O174: 0 | P174: 0 | Q174: 0 | R174: 0 | S174: 0 | T174: 0 | U174: 0 | V174: 0 | W174: 0 | X174: 0 | Y174: 0 | Z174: 0 | AA174: 0 | AB174: 0 | AC174: 0 | AD174: 0 | AE174: 0 | AF174: 0 | AG174: 0 | AH174: 0 | AI174: 0 | AJ174: 0 | AK174: 0 | AL174: 0 | AM174: 0 | AN174: 0 | AO174: 0 | AP174: 0 | AQ174: 0 | AR174: 0 | AS174: 0 | AT174: 0
A175: * | F175: Dress % (Trim 1) | G175: =IF(G172<>0,G173/G172,"") ->  | H175: =IF(H172<>0,H173/H172,"") ->  | J175: 0.758 | K175: 0.758
A176: * | F176: Av. L.wt | G176: =IF(G171<>0,G172/G171,"") ->  | H176: =IF(H171<>0,H172/H171,"") ->  | J176: 8 | K176: 25
A177: * | F177: Av. D. Wt | G177: =IF(G171<>0,G173/G171,"") ->  | H177: =IF(H171<>0,H173/H171,"") ->  | J177: 6.064 | K177: 18.95
A178: *
A179: *
F180: PURCHASES
A182: =IF($B$1=TRUE,"","*") -> * | F182: No Purchases/week
A183: =A182 -> * | F183: Live Wt. kg/hd
A184: =A183 -> * | F184: Dress% (Trim 1) | G184: =IF(G183<>0,DrPercent,"") -> 
A185: * | F185: Dress Wt. kg/hd | G185: =IF(G184<>"",G183*G184,0) -> 0 | H185: =IF(H184<>"",H183*H184,0) -> 0 | I185: 0 | J185: 0 | K185: 0 | L185: 0 | M185: 0 | N185: 0 | O185: 0 | P185: 0 | Q185: 0 | R185: 0 | S185: 0 | T185: 0 | U185: 0 | V185: 0 | W185: 0 | X185: 0 | Y185: 0 | Z185: 0 | AA185: 0 | AB185: 0 | AC185: 0 | AD185: 0 | AE185: 0 | AF185: 0 | AG185: 0 | AH185: 0 | AI185: 0 | AJ185: 0 | AK185: 0 | AL185: 0 | AM185: 0 | AN185: 0 | AO185: 0 | AP185: 0 | AQ185: 0 | AR185: 0 | AS185: 0 | AT185: 0
A186: * | F186: Live Wt./week | G186: =G182*G183 -> 0 | H186: =H182*H183 -> 0 | I186: 0 | J186: 0 | K186: 0 | L186: 0 | M186: 0 | N186: 0 | O186: 0 | P186: 0 | Q186: 0 | R186: 0 | S186: 0 | T186: 0 | U186: 0 | V186: 0 | W186: 0 | X186: 0 | Y186: 0 | Z186: 0 | AA186: 0 | AB186: 0 | AC186: 0 | AD186: 0 | AE186: 0 | AF186: 0 | AG186: 0 | AH186: 0 | AI186: 0 | AJ186: 0 | AK186: 0 | AL186: 0 | AM186: 0 | AN186: 0 | AO186: 0 | AP186: 0 | AQ186: 0 | AR186: 0 | AS186: 0 | AT186: 0
A187: * | F187: D. Wt/week | G187: =G185*G182 -> 0 | H187: =H185*H182 -> 0 | I187: 0 | J187: 0 | K187: 0 | L187: 0 | M187: 0 | N187: 0 | O187: 0 | P187: 0 | Q187: 0 | R187: 0 | S187: 0 | T187: 0 | U187: 0 | V187: 0 | W187: 0 | X187: 0 | Y187: 0 | Z187: 0 | AA187: 0 | AB187: 0 | AC187: 0 | AD187: 0 | AE187: 0 | AF187: 0 | AG187: 0 | AH187: 0 | AI187: 0 | AJ187: 0 | AK187: 0 | AL187: 0 | AM187: 0 | AN187: 0 | AO187: 0 | AP187: 0 | AQ187: 0 | AR187: 0 | AS187: 0 | AT187: 0
A188: * | F188: Purchase pigs/yr | G188: =G182/7*365.25 -> 0 | H188: =H182/7*365.25 -> 0 | I188: 0 | J188: 0 | K188: 0 | L188: 0 | M188: 0 | N188: 0 | O188: 0 | P188: 0 | Q188: 0 | R188: 0 | S188: 0 | T188: 0 | U188: 0 | V188: 0 | W188: 0 | X188: 0 | Y188: 0 | Z188: 0 | AA188: 0 | AB188: 0 | AC188: 0 | AD188: 0 | AE188: 0 | AF188: 0 | AG188: 0 | AH188: 0 | AI188: 0 | AJ188: 0 | AK188: 0 | AL188: 0 | AM188: 0 | AN188: 0 | AO188: 0 | AP188: 0 | AQ188: 0 | AR188: 0 | AS188: 0 | AT188: 0
A189: * | F189: Live Wt./yr | G189: =G188*G183 -> 0 | H189: =H188*H183 -> 0 | I189: 0 | J189: 0 | K189: 0 | L189: 0 | M189: 0 | N189: 0 | O189: 0 | P189: 0 | Q189: 0 | R189: 0 | S189: 0 | T189: 0 | U189: 0 | V189: 0 | W189: 0 | X189: 0 | Y189: 0 | Z189: 0 | AA189: 0 | AB189: 0 | AC189: 0 | AD189: 0 | AE189: 0 | AF189: 0 | AG189: 0 | AH189: 0 | AI189: 0 | AJ189: 0 | AK189: 0 | AL189: 0 | AM189: 0 | AN189: 0 | AO189: 0 | AP189: 0 | AQ189: 0 | AR189: 0 | AS189: 0 | AT189: 0
A190: * | F190: D. Wt/yr | G190: =G188*G185 -> 0 | H190: =H188*H185 -> 0 | I190: 0 | J190: 0 | K190: 0 | L190: 0 | M190: 0 | N190: 0 | O190: 0 | P190: 0 | Q190: 0 | R190: 0 | S190: 0 | T190: 0 | U190: 0 | V190: 0 | W190: 0 | X190: 0 | Y190: 0 | Z190: 0 | AA190: 0 | AB190: 0 | AC190: 0 | AD190: 0 | AE190: 0 | AF190: 0 | AG190: 0 | AH190: 0 | AI190: 0 | AJ190: 0 | AK190: 0 | AL190: 0 | AM190: 0 | AN190: 0 | AO190: 0 | AP190: 0 | AQ190: 0 | AR190: 0 | AS190: 0 | AT190: 0
A191: *
A192: *
A193: =IF($B$2=TRUE,"","*") -> * | F193: January
A194: =A193 -> * | F194: Number Purchased
A195: =A194 -> * | F195: Total Live Wt. kg
A196: * | F196: Total Dress Wt. kg | G196: =IF(G195<>0,G195*DrPercent,0) -> 0 | H196: 0 | I196: 0 | J196: 0 | K196: 0 | L196: 0 | M196: 0 | N196: 0 | O196: 0 | P196: 0 | Q196: 0 | R196: 0 | S196: 0 | T196: 0 | U196: 0 | V196: 0 | W196: 0 | X196: 0 | Y196: 0 | Z196: 0 | AA196: 0 | AB196: 0 | AC196: 0 | AD196: 0 | AE196: 0 | AF196: 0 | AG196: 0 | AH196: 0 | AI196: 0 | AJ196: 0 | AK196: 0 | AL196: 0 | AM196: 0 | AN196: 0 | AO196: 0 | AP196: 0 | AQ196: 0 | AR196: 0 | AS196: 0 | AT196: 0
A197: * | F197: February
A198: * | F198: Number Purchased
A199: * | F199: Total Live Wt. kg
A200: * | F200: Total Dress Wt. kg | G200: =IF(G199<>0,G199*DrPercent,0) -> 0 | H200: 0 | I200: 0 | J200: 0 | K200: 0 | L200: 0 | M200: 0 | N200: 0 | O200: 0 | P200: 0 | Q200: 0 | R200: 0 | S200: 0 | T200: 0 | U200: 0 | V200: 0 | W200: 0 | X200: 0 | Y200: 0 | Z200: 0 | AA200: 0 | AB200: 0 | AC200: 0 | AD200: 0 | AE200: 0 | AF200: 0 | AG200: 0 | AH200: 0 | AI200: 0 | AJ200: 0 | AK200: 0 | AL200: 0 | AM200: 0 | AN200: 0 | AO200: 0 | AP200: 0 | AQ200: 0 | AR200: 0 | AS200: 0 | AT200: 0
A201: * | F201: March
A202: * | F202: Number Purchased
A203: * | F203: Total Live Wt. kg
A204: * | F204: Total Dress Wt. kg | G204: =IF(G203<>0,G203*DrPercent,0) -> 0 | H204: 0 | I204: 0 | J204: 0 | K204: 0 | L204: 0 | M204: 0 | N204: 0 | O204: 0 | P204: 0 | Q204: 0 | R204: 0 | S204: 0 | T204: 0 | U204: 0 | V204: 0 | W204: 0 | X204: 0 | Y204: 0 | Z204: 0 | AA204: 0 | AB204: 0 | AC204: 0 | AD204: 0 | AE204: 0 | AF204: 0 | AG204: 0 | AH204: 0 | AI204: 0 | AJ204: 0 | AK204: 0 | AL204: 0 | AM204: 0 | AN204: 0 | AO204: 0 | AP204: 0 | AQ204: 0 | AR204: 0 | AS204: 0 | AT204: 0
A205: * | F205: April
A206: * | F206: Number Purchased
A207: * | F207: Total Live Wt. kg
A208: * | F208: Total Dress Wt. kg | G208: =IF(G207<>0,G207*DrPercent,0) -> 0 | H208: 0 | I208: 0 | J208: 0 | K208: 0 | L208: 0 | M208: 0 | N208: 0 | O208: 0 | P208: 0 | Q208: 0 | R208: 0 | S208: 0 | T208: 0 | U208: 0 | V208: 0 | W208: 0 | X208: 0 | Y208: 0 | Z208: 0 | AA208: 0 | AB208: 0 | AC208: 0 | AD208: 0 | AE208: 0 | AF208: 0 | AG208: 0 | AH208: 0 | AI208: 0 | AJ208: 0 | AK208: 0 | AL208: 0 | AM208: 0 | AN208: 0 | AO208: 0 | AP208: 0 | AQ208: 0 | AR208: 0 | AS208: 0 | AT208: 0
A209: * | F209: May
... 52 more rows

Sheet FarmDesign
G3: Farm Details
E7: Select State | H7: NSW
E9: Business Name | H9: Harry's Happy Hogs
E11: Project Title | H11: 1000 sow multisite
D13: Unit Name | I13: Pig Categories | M13: Diet Names
D14: 1 | E14: Breeder | I14: 1 | J14: Gilts | K14: Breeder | M14: 1 | N14: Sucker
D15: 2 | E15: Weaner | I15: 2 | J15: Boars | K15: Breeder | M15: 2 | N15: Weaner
D16: 3 | E16: GrowOut | I16: 3 | J16: Gest Sows | K16: Breeder | M16: 3 | N16: Grower
D17: 4 | I17: 4 | J17: Lac Sows | K17: Lac Sow | M17: 4 | N17: Finisher
D18: 5 | I18: 5 | J18: Suckers | K18: Grower | M18: 5 | N18: LacSow
D19: 6 | I19: 6 | J19: Weaners | K19: Grower | M19: 6 | N19: DrySow
D20: 7 | I20: 7 | J20: Growers | K20: Grower | M20: 7
D21: 8 | I21: 8 | J21: Finishers | K21: Grower | M21: 8
D22: 9 | I22: 9 | M22: 9
D23: 10 | I23: 10 | M23: 10

Sheet Energy Entry
D3: ON FARM ENERGY USE
O4: * | P4: * | Q4: * | R4: * | S4: * | T4: * | U4: *
D7: # | E7: Code | F7: Unit | G7: Type | H7: Units | J7: Notes | K7: kg CO2-e | S7: Unit | T7: Code
D8: 1 | E8: =IF(ISBLANK(G8),"",VLOOKUP(G8,$P$7:$T$17,5,FALSE)&F8) -> EBreeder | F8: Breeder | G8: Purchased Electricity | H8: 315000 | I8: =IF(G8<>"",VLOOKUP(G8,$P$8:$S$17,4,FALSE),"") -> kWh | K8: =IF(ISBLANK(G8),"",VLOOKUP(G8,$P$8:$Q$17,2,FALSE)*H8) -> 280350 | P8: Purchased Electricity | Q8: =VLOOKUP(HomeState,Electricity,2,FALSE) -> 0.89 | R8: kgCOe2/kWh | S8: kWh | T8: E
D9: 2 | E9: EWeaner | F9: Weaner | G9: Purchased Electricity | H9: 4800 | I9: kWh | K9: 4272 | P9: =Assumption!B116 -> Petrol (Stationary) | Q9: =Assumption!I116 -> 2.29482 | R9: kg CO2-e/l | S9: l | T9: S
D10: 3 | E10: EGrowOut | F10: GrowOut | G10: Purchased Electricity | H10: 14500 | I10: kWh | K10: 12905 | P10: =Assumption!B117 -> Heating Oil (Stationary) | Q10: =Assumption!I117 -> 2.574446 | R10: =R9 -> kg CO2-e/l | S10: l | T10: S
D11: 4 | E11: TBreeder | F11: Breeder | G11: Diesel(Transport) | H11: 1500 | I11: l | K11: 4047.21 | P11: =Assumption!B118 -> Diesel (Stationary) | Q11: =Assumption!I118 -> 2.6827 | R11: =R10 -> kg CO2-e/l | S11: l | T11: S
D12: 5 | E12: TWeaner | F12: Weaner | G12: Diesel(Transport) | H12: 700 | I12: l | K12: 1888.698 | P12: =Assumption!B119 -> Biodiesel (Stationary) | Q12: =Assumption!I119 -> 0.008996 | R12: kg CO2-e/l | S12: l | T12: S
D13: 6 | E13: TGrowOut | F13: GrowOut | G13: Diesel(Transport) | H13: 250 | I13: l | K13: 674.535 | P13: =Assumption!B120 -> LPG (Stationary) | Q13: =Assumption!I120 -> 1.53943 | R13: kg CO2-e/l | S13: l | T13: S
D14: 7 | E14: TBreeder | F14: Breeder | G14: Petrol (Transport | H14: 500 | I14: l | K14: 1190.16 | P14: =Assumption!B121 -> Petrol (Transport | Q14: =Assumption!I121 -> 2.38032 | R14: kg CO2-e/l | S14: l | T14: T
D15: 8 | E15: TWeaner | F15: Weaner | G15: Petrol (Transport | H15: 200 | I15: l | K15: 476.064 | P15: =Assumption!B122 -> Diesel(Transport) | Q15: =Assumption!I122 -> 2.69814 | R15: kg CO2-e/l | S15: l | T15: T
D16: 9 | E16: TGrowOut | F16: GrowOut | G16: Petrol (Transport | H16: 125 | I16: l | K16: 297.54 | P16: =Assumption!B123 -> Biodiesel (Transport) | Q16: =Assumption!I123 -> 0.11764 | R16: kg CO2-e/l | S16: l | T16: T
D17: 10 | E17: SBreeder | F17: Breeder | G17: LPG (Stationary) | H17: 35500 | I17: l | K17: 54649.765 | P17: =Assumption!B124 -> LPG (Transport) | Q17: =Assumption!I124 -> 1.59296 | R17: kg CO2-e/l | S17: l | T17: T
D18: 11 | E18: SWeaner | F18: Weaner | G18: LPG (Stationary) | H18: 8500 | I18: l | K18: 13085.155
D19: 12
D20: 13
D21: 14
D22: 15
D23: 16
D24: 17
D25: 18
D26: 19
D27: 20
D28: 21
D29: 22
D30: 23
D31: 24
D32: 25
D33: 26
D34: 27
D35: 28
D36: 29
D37: 30
D38: 31
D39: 32
D40: 33 | E40: =IF(ISBLANK(G40),"",VLOOKUP(G40,$P$7:$T$17,5,FALSE)&F40) ->  | I40: =IF(G40<>"",VLOOKUP(G40,$P$8:$S$17,4,FALSE),"") ->  | K40: =IF(ISBLANK(G40),"",VLOOKUP(G40,$P$8:$Q$17,2,FALSE)*H40) -> 
D41: 34
D42: 35
D43: 36
D44: 37
D45: 38
D46: 39
D47: 40
D48: 41
D49: 42
D50: 43
D51: 44
D52: 45
D53: 46
D54: 47
D55: 48
D56: 49
D57: 50

Sheet GrowthCurve
J3: Pig Feed kg & Growth Curves
D4: Selected Geonotype | F4: =MATCH(Genetics!F6,Genetics!L7:L16,0) -> 10
D8: Age (d) In | E8: 120
D9: Age (d) Out | E9: 170
E11: Wt | F11: Feed kg | G11: Days
D12: In | E12: =VLOOKUP(E8,$D$20:$F$71,2,TRUE) -> 77.4 | F12: =VLOOKUP(E8,$D$20:$F$71,3,TRUE) -> 215.035776 | G12: =INDEX($D$20:$D$71,MATCH(F12,$F$20:$F$71)) -> 119 | H12: 1 | I12: =H12+1 -> 2 | J12: =I12+1 -> 3 | K12: 4 | L12: 5 | M12: 6 | N12: 7 | O12: 8 | P12: 9 | Q12: 10 | R12: 11 | S12: 12 | T12: 13 | U12: 14 | V12: 15 | W12: 16 | X12: 17 | Y12: 18 | Z12: 19 | AA12: 20 | AB12: 21 | AC12: 22 | AD12: 23 | AE12: 24 | AF12: 25 | AG12: 26 | AH12: 27 | AI12: 28 | AJ12: 29 | AK12: 30
D13: Out | E13: =VLOOKUP(E9,$D$20:$F$71,2,TRUE) -> 119.1 | F13: =VLOOKUP(E9,$D$20:$F$71,3,TRUE) -> 381.31056 | G13: =INDEX($D$20:$D$71,MATCH(F13,$F$20:$F$71)) -> 168
E14: Net Kg | F14: =F13-F12 -> 166.274784 | G14: =G13-G12 -> 49
E15: Net Kg/Day | F15: =F14/G14 -> 3.393362939
D18: =1+F4*3-3 -> 28 | E18: =D18+1 -> 29 | F18: =E18+1 -> 30 | H18: GenoType 1 | K18: GenoType 2 | N18: GenoType 3 | Q18: GenoType 4 | T18: GenoType 5 | W18: GenoType 6 | Z18: GenoType 7 | AC18: GenoType 8 | AF18: GenoType 9 | AI18: GenoType 10
D19: Age (d) | E19: kg | F19: Feed kg | H19: Age (d) | I19: Wt kg | J19: Feed kg | K19: Age (d) | L19: Wt kg | M19: Feed kg | N19: Age (d) | O19: Wt kg | P19: Feed kg | Q19: Age (d) | R19: Wt kg | S19: Feed kg | T19: Age (d) | U19: Wt kg | V19: Feed kg | W19: Age (d) | X19: Wt kg | Y19: Feed kg | Z19: Age (d) | AA19: Wt kg | AB19: Feed kg | AC19: Age (d) | AD19: Wt kg | AE19: Feed kg | AF19: Age (d) | AG19: Wt kg | AH19: Feed kg | AI19: Age (d) | AJ19: Wt kg | AK19: Feed kg
D20: =INDEX($H20:$AK20,D$18) -> 0 | E20: 1.4 | F20: 2.450112 | N20: 0 | O20: 1.4 | P20: =(0.0027*N20+0.5469)*3*O20 -> 2.29698 | Q20: 0 | R20: 1.4 | S20: =(0.0027*Q20+0.5469)*3.1*R20 -> 2.373546 | T20: =Q20 -> 0 | U20: 1.4 | V20: =(0.0027*T20+0.5469)*2.89*U20 -> 2.2127574 | W20: =T20 -> 0 | X20: 1.4 | Y20: =(0.0027*W20+0.5469)*3.15*X20 -> 2.411829 | Z20: =Q20 -> 0 | AA20: 1.4 | AB20: =(0.0027*Z20+0.5469)*2.8*AA20 -> 2.143848 | AC20: =Q20 -> 0 | AD20: 1.4 | AE20: =(0.0027*AC20+0.5469)*3.22*AD20 -> 2.4654252 | AF20: =AC20 -> 0 | AG20: 1.4 | AH20: =(0.0027*AF20+0.5469)*3*AG20 -> 2.29698 | AI20: 0 | AJ20: 1.4 | AK20: =(0.0027*AI20+0.5469)*3.2*AJ20 -> 2.450112
D21: 7 | E21: 3.1 | F21: 5.612736 | N21: 7 | O21: 3.2 | P21: =(0.0027*N21+0.5469)*3*O21 -> 5.43168 | Q21: 7 | R21: 2.8 | S21: =(0.0027*Q21+0.5469)*3.1*R21 -> 4.911144 | T21: =Q21 -> 7 | U21: 2.9 | V21: =(0.0027*T21+0.5469)*2.89*U21 -> 4.7419698 | W21: =T21 -> 7 | X21: 3 | Y21: =(0.0027*W21+0.5469)*3.15*X21 -> 5.34681 | Z21: =Q21 -> 7 | AA21: 3.1 | AB21: =(0.0027*Z21+0.5469)*2.8*AA21 -> 4.911144 | AC21: =Q21 -> 7 | AD21: 3.2 | AE21: =(0.0027*AC21+0.5469)*3.22*AD21 -> 5.8300032 | AF21: =AC21 -> 7 | AG21: 3.2 | AH21: =(0.0027*AF21+0.5469)*3*AG21 -> 5.43168 | AI21: 7 | AJ21: 3.1 | AK21: 5.612736
D22: 14 | E22: 4.5 | F22: 8.41968 | N22: 14 | O22: 4.7 | P22: 8.24427 | Q22: 14 | R22: 3.8 | S22: 6.887766 | T22: 14 | U22: 4 | V22: 6.759132 | W22: 14 | X22: 4.2 | Y22: 7.735581 | Z22: 14 | AA22: 4.5 | AB22: 7.36722 | AC22: 14 | AD22: 4.7 | AE22: 8.8488498 | AF22: 14 | AG22: 5 | AH22: 8.7705 | AI22: 14 | AJ22: 4.5 | AK22: 8.41968
D23: 21 | E23: 6.3 | F23: 12.168576 | N23: 21 | O23: 6.8 | P23: 12.31344 | Q23: 21 | R23: 5.1 | S23: 9.542916 | T23: 21 | U23: 5.5 | V23: 9.594222 | W23: 21 | X23: 5.9 | Y23: 11.217906 | Z23: 21 | AA23: 6.3 | AB23: 10.647504 | AC23: 21 | AD23: 6.8 | AE23: 13.2164256 | AF23: 21 | AG23: 7.2 | AH23: 13.03776 | AI23: 21 | AJ23: 6.3 | AK23: 12.168576
D24: 28 | E24: 8.6 | F24: 17.1312 | N24: 28 | O24: 9.3 | P24: 17.36775 | Q24: 28 | R24: 6.6 | S24: 12.73635 | T24: 28 | U24: 7.2 | V24: 12.95298 | W24: 28 | X24: 7.9 | Y24: 15.4909125 | Z24: 28 | AA24: 8.6 | AB24: 14.9898 | AC24: 28 | AD24: 9.3 | AE24: 18.641385 | AF24: 28 | AG24: 10.1 | AH24: 18.86175 | AI24: 28 | AJ24: 8.6 | AK24: 17.1312
D25: 35 | E25: 11.4 | F25: 23.398272 | N25: 35 | O25: 12.5 | P25: 24.0525 | Q25: 35 | R25: 8.5 | S25: 16.90089 | T25: 35 | U25: 9.3 | V25: 17.2389078 | W25: 35 | X25: 10.3 | Y25: 20.810223 | Z25: 35 | AA25: 11.4 | AB25: 20.473488 | AC25: 35 | AD25: 12.5 | AE25: 25.81635 | AF25: 35 | AG25: 13.7 | AH25: 26.36154 | AI25: 35 | AJ25: 11.4 | AK25: 23.398272
D26: 42 | E26: 14.7 | F26: 31.060512 | N26: 42 | O26: 16.3 | P26: 32.28867 | Q26: 42 | R26: 10.6 | S26: 21.697458 | T26: 42 | U26: 11.9 | V26: 22.7083773 | W26: 42 | X26: 13.2 | Y26: 27.455274 | Z26: 42 | AA26: 14.7 | AB26: 27.177948 | AC26: 42 | AD26: 16.3 | AE26: 34.6565058 | AF26: 42 | AG26: 18 | AH26: 35.6562 | AI26: 42 | AJ26: 14.7 | AK26: 31.060512
D27: 49 | E27: 18.6 | F27: 40.425984 | N27: 49 | O27: 20.7 | P27: 42.17832 | Q27: 49 | R27: 13.1 | S27: 27.582312 | T27: 49 | U27: 14.7 | V27: 28.8544536 | W27: 49 | X27: 16.5 | Y27: 35.30142 | Z27: 49 | AA27: 18.6 | AB27: 35.372736 | AC27: 49 | AD27: 20.7 | AE27: 45.2713968 | AF27: 49 | AG27: 23 | AH27: 46.8648 | AI27: 49 | AJ27: 18.6 | AK27: 40.425984
D28: 56 | E28: 23 | F28: 51.38016 | N28: 56 | O28: 25.7 | P28: 53.82351 | Q28: 56 | R28: 15.9 | S28: 34.409349 | T28: 56 | U28: 18 | V28: 36.315162 | W28: 56 | X28: 20.3 | Y28: 44.6400045 | Z28: 56 | AA28: 23 | AB28: 44.95764 | AC28: 56 | AD28: 25.7 | AE28: 57.7705674 | AF28: 56 | AG28: 28.6 | AH28: 59.89698 | AI28: 56 | AJ28: 23 | AK28: 51.38016
D29: 63 | E29: 27.9 | F29: 64.01376 | N29: 63 | O29: 31.2 | P29: 67.1112 | Q29: 63 | R29: 19 | S29: 42.2313 | T29: 63 | U29: 21.7 | V29: 44.965221 | W29: 63 | X29: 24.6 | Y29: 55.56033 | Z29: 63 | AA29: 27.9 | AB29: 56.01204 | AC29: 63 | AD29: 31.2 | AE29: 72.032688 | AF29: 63 | AG29: 34.8 | AH29: 74.8548 | AI29: 63 | AJ29: 27.9 | AK29: 64.01376
D30: 70 | E30: 33.2 | F30: 78.182016 | N30: 70 | O30: 37.2 | P30: 82.12644 | Q30: 70 | R30: 22.5 | S30: 51.329025 | T30: 70 | U30: 25.7 | V30: 54.6575007 | W30: 70 | X30: 29.2 | Y30: 67.688082 | Z30: 70 | AA30: 33.2 | AB30: 68.409264 | AC30: 70 | AD30: 37.2 | AE30: 88.1490456 | AF30: 70 | AG30: 41.4 | AH30: 91.39878 | AI30: 70 | AJ30: 33.2 | AK30: 78.182016
D31: 77 | E31: 38.9 | F31: 93.957504 | N31: 77 | O31: 43.6 | P31: 98.72784 | Q31: 77 | R31: 26.3 | S31: 61.538844 | T31: 77 | U31: 30.1 | V31: 65.6592972 | W31: 77 | X31: 34.2 | Y31: 81.314604 | Z31: 77 | AA31: 38.9 | AB31: 82.212816 | AC31: 77 | AD31: 43.6 | AE31: 105.9678816 | AF31: 77 | AG31: 48.5 | AH31: 109.8234 | AI31: 77 | AJ31: 38.9 | AK31: 93.957504
D32: 84 | E32: 44.9 | F32: 111.165216 | N32: 84 | O32: 50.3 | P32: 116.75133 | Q32: 84 | R32: 30.3 | S32: 72.673641 | T32: 84 | U32: 34.8 | V32: 77.8125564 | W32: 84 | X32: 39.5 | Y32: 96.2676225 | Z32: 84 | AA32: 44.9 | AB32: 97.269564 | AC32: 84 | AD32: 50.3 | AE32: 125.3130942 | AF32: 84 | AG32: 55.8 | AH32: 129.51738 | AI32: 84 | AJ32: 44.9 | AK32: 111.165216
D33: 91 | E33: 51.2 | F33: 129.859584 | N33: 91 | O33: 57.2 | P33: 136.01016 | Q33: 91 | R33: 34.7 | S33: 85.259982 | T33: 91 | U33: 39.7 | V33: 90.9373758 | W33: 91 | X33: 45.1 | Y33: 112.600719 | Z33: 91 | AA33: 51.2 | AB33: 113.627136 | AC33: 91 | AD33: 57.2 | AE33: 145.9842384 | AF33: 91 | AG33: 63.2 | AH33: 150.27696 | AI33: 91 | AJ33: 51.2 | AK33: 129.859584
D34: 98 | E34: 57.6 | F34: 149.57568 | N34: 98 | O34: 64.2 | P34: 156.2949 | Q34: 98 | R34: 39.2 | S34: 98.61348 | T34: 98 | U34: 44.9 | V34: 105.3010515 | W34: 98 | X34: 50.9 | Y34: 130.1118525 | Z34: 98 | AA34: 57.6 | AB34: 130.87872 | AC34: 98 | AD34: 64.2 | AE34: 167.756526 | AF34: 98 | AG34: 70.8 | AH34: 172.3626 | AI34: 98 | AJ34: 57.6 | AK34: 149.57568
D35: 105 | E35: 64.2 | F35: 170.597376 | N35: 105 | O35: 71.3 | P35: 177.62256 | Q35: 105 | R35: 43.9 | S35: 113.009136 | T35: 105 | U35: 50.3 | V35: 120.7127568 | W35: 105 | X35: 56.9 | Y35: 148.836744 | Z35: 105 | AA35: 64.2 | AB35: 149.272704 | AC35: 105 | AD35: 71.3 | AE35: 190.6482144 | AF35: 105 | AG35: 78.3 | AH35: 195.06096 | AI35: 105 | AJ35: 64.2 | AK35: 170.597376
D36: 112 | E36: 70.8 | F36: 192.417408 | N36: 112 | O36: 78.3 | P36: 199.50057 | Q36: 112 | R36: 48.8 | S36: 128.482104 | T36: 112 | U36: 55.8 | V36: 136.9598166 | W36: 112 | X36: 63 | Y36: 168.543585 | Z36: 112 | AA36: 70.8 | AB36: 168.365232 | AC36: 112 | AD36: 78.3 | AE36: 214.1306118 | AF36: 112 | AG36: 85.7 | AH36: 218.35503 | AI36: 112 | AJ36: 70.8 | AK36: 192.417408
D37: 119 | E37: 77.4 | F37: 215.035776 | N37: 119 | O37: 85.3 | P37: 222.17238 | Q37: 119 | R37: 53.9 | S37: 145.067538 | T37: 119 | U37: 61.4 | V37: 154.0586172 | W37: 119 | X37: 69.1 | Y37: 188.976753 | Z37: 119 | AA37: 77.4 | AB37: 188.156304 | AC37: 119 | AD37: 85.3 | AE37: 238.4650212 | AF37: 119 | AG37: 92.9 | AH37: 241.96734 | AI37: 119 | AJ37: 77.4 | AK37: 215.035776
D38: 126 | E38: 83.9 | F38: 238.168608 | N38: 126 | O38: 92.1 | P38: 245.10573 | Q38: 126 | R38: 59 | S38: 162.25059 | T38: 126 | U38: 67 | V38: 171.769173 | W38: 126 | X38: 75.2 | Y38: 210.136248 | Z38: 126 | AA38: 83.9 | AB38: 208.397532 | AC38: 126 | AD38: 92.1 | AE38: 263.0801502 | AF38: 126 | AG38: 99.9 | AH38: 265.86387 | AI38: 126 | AJ38: 83.9 | AK38: 238.168608
D39: 133 | E39: 90.3 | F39: 261.79776 | N39: 133 | O39: 98.6 | P39: 267.9948 | Q39: 133 | R39: 64.2 | S39: 180.31212 | T39: 133 | U39: 72.7 | V39: 190.353318 | W39: 133 | X39: 81.2 | Y39: 231.73668 | Z39: 133 | AA39: 90.3 | AB39: 229.07304 | AC39: 133 | AD39: 98.6 | AE39: 287.647752 | AF39: 133 | AG39: 106.6 | AH39: 289.7388 | AI39: 133 | AJ39: 90.3 | AK39: 261.79776
D40: 140 | E40: 96.5 | F40: 285.60912 | N40: 140 | O40: 105 | P40: 291.3435 | Q40: 140 | R40: 69.4 | S40: 198.982986 | T40: 140 | U40: 78.3 | V40: 209.2928463 | W40: 140 | X40: 87.2 | Y40: 254.051532 | Z40: 140 | AA40: 96.5 | AB40: 249.90798 | AC40: 140 | AD40: 105 | AE40: 312.70869 | AF40: 140 | AG40: 113 | AH40: 313.5411 | AI40: 140 | AJ40: 96.5 | AK40: 285.60912
D41: 147 | E41: 102.5 | F41: 309.5664 | N41: 147 | O41: 111.1 | P41: 314.56854 | Q41: 147 | R41: 74.6 | S41: 218.263188 | T41: 147 | U41: 83.9 | V41: 228.8441298 | W41: 147 | X41: 93 | Y41: 276.48621 | Z41: 147 | AA41: 102.5 | AB41: 270.8706 | AC41: 147 | AD41: 111.1 | AE41: 337.6368996 | AF41: 147 | AG41: 119.1 | AH41: 337.21974 | AI41: 147 | AJ41: 102.5 | AK41: 309.5664
D42: 154 | E42: 108.3 | F42: 333.633312 | N42: 154 | O42: 116.9 | P42: 337.61889 | Q42: 154 | R42: 79.8 | S42: 238.152726 | T42: 154 | U42: 89.4 | V42: 248.7289482 | W42: 154 | X42: 98.7 | Y42: 299.3082435 | Z42: 154 | AA42: 108.3 | AB42: 291.929148 | AC42: 154 | AD42: 116.9 | AE42: 362.3776086 | AF42: 154 | AG42: 124.8 | AH42: 360.43488 | AI42: 154 | AJ42: 108.3 | AK42: 333.633312
D43: 161 | E43: 113.8 | F43: 357.459456 | N43: 161 | O43: 122.3 | P43: 360.14904 | Q43: 161 | R43: 84.9 | S43: 258.347304 | T43: 161 | U43: 94.7 | V43: 268.6472328 | W43: 161 | X43: 104.2 | Y43: 322.190568 | Z43: 161 | AA43: 113.8 | AB43: 312.777024 | AC43: 161 | AD43: 122.3 | AE43: 386.5599696 | AF43: 161 | AG43: 130.1 | AH43: 383.11848 | AI43: 161 | AJ43: 113.8 | AK43: 357.459456
D44: 168 | E44: 119.1 | F44: 381.31056 | N44: 168 | O44: 127.5 | P44: 382.69125 | Q44: 168 | R44: 89.9 | S44: 278.829345 | T44: 168 | U44: 99.9 | V44: 288.8553555 | W44: 168 | X44: 109.5 | Y44: 345.0974625 | Z44: 168 | AA44: 119.1 | AB44: 333.64674 | AC44: 168 | AD44: 127.5 | AE44: 410.755275 | AF44: 168 | AG44: 135.1 | AH44: 405.50265 | AI44: 168 | AJ44: 119.1 | AK44: 381.31056
D45: 175 | E45: 124.1 | F45: 404.824128 | N45: 175 | O45: 132.3 | P45: 404.59986 | Q45: 175 | R45: 94.9 | S45: 299.897286 | T45: 175 | U45: 105 | V45: 309.33693 | W45: 175 | X45: 114.6 | Y45: 367.993206 | Z45: 175 | AA45: 124.1 | AB45: 354.221112 | AC45: 175 | AD45: 132.3 | AE45: 434.2705164 | AF45: 175 | AG45: 139.7 | AH45: 427.23054 | AI45: 175 | AJ45: 124.1 | AK45: 404.824128
D46: 182 | E46: 128.8 | F46: 427.945728 | N46: 182 | O46: 136.9 | P46: 426.42981 | Q46: 182 | R46: 99.7 | S46: 320.907381 | T46: 182 | U46: 109.9 | V46: 329.7755013 | W46: 182 | X46: 119.5 | Y46: 390.8420775 | Z46: 182 | AA46: 128.8 | AB46: 374.452512 | AC46: 182 | AD46: 136.9 | AE46: 457.7013294 | AF46: 182 | AG46: 144 | AH46: 448.5456 | AI46: 182 | AJ46: 128.8 | AK46: 427.945728
D47: 189 | E47: 133.3 | F47: 450.959232 | N47: 189 | O47: 141.1 | P47: 447.51276 | Q47: 189 | R47: 104.3 | S47: 341.824476 | T47: 189 | U47: 114.6 | V47: 350.1382968 | W47: 189 | X47: 124.1 | Y47: 413.275338 | Z47: 189 | AA47: 133.3 | AB47: 394.589328 | AC47: 189 | AD47: 141.1 | AE47: 480.3303624 | AF47: 189 | AG47: 147.9 | AH47: 469.07964 | AI47: 189 | AJ47: 133.3 | AK47: 450.959232
D48: =INDEX($H48:$AK48,D$18) -> 0 | E48: 0 | F48: 0
D49: 0 | E49: 0 | F49: 0
D50: 0 | E50: 0 | F50: 0
D51: 0 | E51: 0 | F51: 0
D52: 0 | E52: 0 | F52: 0
D53: =INDEX($H53:$AK53,D$18) -> 0 | E53: 0 | F53: 0
D54: 0 | E54: 0 | F54: 0
D55: 0 | E55: 0 | F55: 0
D56: 0 | E56: 0 | F56: 0
D57: 0 | E57: 0 | F57: 0
D58: 0 | E58: 0 | F58: 0
D59: 0 | E59: 0 | F59: 0
D60: 0 | E60: 0 | F60: 0
D61: 0 | E61: 0 | F61: 0
D62: 0 | E62: 0 | F62: 0
D63: 0 | E63: 0 | F63: 0
D64: 0 | E64: 0 | F64: 0
D65: 0 | E65: 0 | F65: 0
D66: 0 | E66: 0 | F66: 0
D67: 0 | E67: 0 | F67: 0
D68: 0 | E68: 0 | F68: 0
D69: 0 | E69: 0 | F69: 0
D70: 0 | E70: 0 | F70: 0
D71: 0 | E71: 0 | F71: 0

Sheet Genetics
BK1: 0
F4: Select Pig Performance | N4: Wt (kg) @ days | R4: Growth Rate
F6: GenoType 10 | M6: Age in days => | N6: 80 | P6: 161 | R6: =N6 -> 80 | T6: =P6 -> 161
L7: =GrowthCurve!$H$18 -> GenoType 1 | N7: =VLOOKUP(N$6,GrowthCurve!$H$20:$J$71,2,TRUE) ->  | P7: =VLOOKUP(P$6,GrowthCurve!$H$20:$J$71,2,TRUE) ->  | R7: =N7/N$6*1000 ->  | T7: =P7/P$6*1000 -> 
L8: =GrowthCurve!$K$18 -> GenoType 2 | N8: =VLOOKUP(N$6,GrowthCurve!$K$20:$M$71,2,TRUE) ->  | P8: =VLOOKUP(P$6,GrowthCurve!$K$20:$M$71,2,TRUE) ->  | R8: =N8/N$6*1000 ->  | T8: =P8/P$6*1000 -> 
L9: =GrowthCurve!$N$18 -> GenoType 3 | N9: =VLOOKUP(N$6,GrowthCurve!$N$20:$P$71,2,TRUE) -> 43.6 | P9: =VLOOKUP(P$6,GrowthCurve!$N$20:$P$71,2,TRUE) -> 122.3 | R9: 545 | T9: 759.6273292
L10: =GrowthCurve!$Q$18 -> GenoType 4 | N10: =VLOOKUP(N$6,GrowthCurve!$Q$20:$S$71,2,TRUE) -> 26.3 | P10: =VLOOKUP(P$6,GrowthCurve!$Q$20:$S$71,2,TRUE) -> 84.9 | R10: 328.75 | T10: 527.3291925
L11: =GrowthCurve!$T$18 -> GenoType 5 | N11: =VLOOKUP(N$6,GrowthCurve!$T$20:$V$71,2,TRUE) -> 30.1 | P11: =VLOOKUP(P$6,GrowthCurve!$T$20:$V$71,2,TRUE) -> 94.7 | R11: 376.25 | T11: 588.1987578
L12: =GrowthCurve!$W$18 -> GenoType 6 | N12: =VLOOKUP(N$6,GrowthCurve!$W$20:$Y$71,2,TRUE) -> 34.2 | P12: =VLOOKUP(P$6,GrowthCurve!$W$20:$Y$71,2,TRUE) -> 104.2 | R12: 427.5 | T12: 647.2049689
L13: =GrowthCurve!$Z$18 -> GenoType 7 | N13: =VLOOKUP(N$6,GrowthCurve!$Z$20:$AB$71,2,TRUE) -> 38.9 | P13: =VLOOKUP(P$6,GrowthCurve!$Z$20:$AB$71,2,TRUE) -> 113.8 | R13: 486.25 | T13: 706.8322981
L14: =GrowthCurve!$AC$18 -> GenoType 8 | N14: =VLOOKUP(N$6,GrowthCurve!$AC$20:$AE$71,2,TRUE) -> 43.6 | P14: =VLOOKUP(P$6,GrowthCurve!$AC$20:$AE$71,2,TRUE) -> 122.3 | R14: 545 | T14: 759.6273292
L15: =GrowthCurve!$AF$18 -> GenoType 9 | N15: =VLOOKUP(N$6,GrowthCurve!$AF$20:$AH$71,2,TRUE) -> 48.5 | P15: =VLOOKUP(P$6,GrowthCurve!$AF$20:$AH$71,2,TRUE) -> 130.1 | R15: 606.25 | T15: 808.0745342
L16: =GrowthCurve!$AI$18 -> GenoType 10 | N16: =VLOOKUP(N$6,GrowthCurve!$AI$20:$AK$71,2,TRUE) -> 38.9 | P16: =VLOOKUP(P$6,GrowthCurve!$AI$20:$AK$71,2,TRUE) -> 113.8 | R16: 486.25 | T16: 706.8322981
N18: Feed kg @ days | R18: FCR
N20: =N6 -> 80 | P20: =P6 -> 161 | R20: =R6 -> 80 | T20: =P20 -> 161
L21: =GrowthCurve!$H$18 -> GenoType 1 | N21: =VLOOKUP(N$6,GrowthCurve!$H$20:$J$71,3,TRUE) ->  | P21: =VLOOKUP(P$6,GrowthCurve!$H$20:$J$71,3,TRUE) ->  | R21: =N21/N7 ->  | T21: =P21/P7 -> 
L22: =GrowthCurve!$K$18 -> GenoType 2 | N22: =VLOOKUP(N$6,GrowthCurve!$K$20:$M$71,3,TRUE) ->  | P22: =VLOOKUP(P$6,GrowthCurve!$K$20:$M$71,3,TRUE) ->  | R22: =N22/N8 ->  | T22: =P22/P8 -> 
L23: =GrowthCurve!$N$18 -> GenoType 3 | N23: =VLOOKUP(N$6,GrowthCurve!$N$20:$P$71,3,TRUE) -> 98.72784 | P23: =VLOOKUP(P$6,GrowthCurve!$N$20:$P$71,3,TRUE) -> 360.14904 | R23: 2.2644 | T23: 2.9448
L24: =GrowthCurve!$Q$18 -> GenoType 4 | N24: =VLOOKUP(N$6,GrowthCurve!$Q$20:$S$71,3,TRUE) -> 61.538844 | P24: =VLOOKUP(P$6,GrowthCurve!$Q$20:$S$71,3,TRUE) -> 258.347304 | R24: 2.33988 | T24: 3.04296
L25: =GrowthCurve!$T$18 -> GenoType 5 | N25: =VLOOKUP(N$6,GrowthCurve!$T$20:$V$71,3,TRUE) -> 65.6592972 | P25: =VLOOKUP(P$6,GrowthCurve!$T$20:$V$71,3,TRUE) -> 268.6472328 | R25: 2.181372 | T25: 2.836824
L26: =GrowthCurve!$W$18 -> GenoType 6 | N26: =VLOOKUP(N$6,GrowthCurve!$W$20:$Y$71,3,TRUE) -> 81.314604 | P26: =VLOOKUP(P$6,GrowthCurve!$W$20:$Y$71,3,TRUE) -> 322.190568 | R26: 2.37762 | T26: 3.09204
L27: =GrowthCurve!$Z$18 -> GenoType 7 | N27: =VLOOKUP(N$6,GrowthCurve!$Z$20:$AB$71,3,TRUE) -> 82.212816 | P27: =VLOOKUP(P$6,GrowthCurve!$Z$20:$AB$71,3,TRUE) -> 312.777024 | R27: 2.11344 | T27: 2.74848
L28: =GrowthCurve!$AC$18 -> GenoType 8 | N28: =VLOOKUP(N$6,GrowthCurve!$AC$20:$AE$71,3,TRUE) -> 105.9678816 | P28: =VLOOKUP(P$6,GrowthCurve!$AC$20:$AE$71,3,TRUE) -> 386.5599696 | R28: 2.430456 | T28: 3.160752
L29: =GrowthCurve!$AF$18 -> GenoType 9 | N29: =VLOOKUP(N$6,GrowthCurve!$AF$20:$AH$71,3,TRUE) -> 109.8234 | P29: =VLOOKUP(P$6,GrowthCurve!$AF$20:$AH$71,3,TRUE) -> 383.11848 | R29: 2.2644 | T29: 2.9448
L30: =GrowthCurve!$AI$18 -> GenoType 10 | N30: =VLOOKUP(N$6,GrowthCurve!$AI$20:$AK$71,3,TRUE) -> 93.957504 | P30: =VLOOKUP(P$6,GrowthCurve!$AI$20:$AK$71,3,TRUE) -> 357.459456 | R30: 2.41536 | T30: 3.14112

Sheet UserAssumotions
D3: Assumptions
D7: Pre Farm
E9: Grain & Raw Materials | H9: 250 | J9: kg CO2-e/t
E11: Feed Milling & Delivery | H11: 48 | J11: kg CO2-e/t
E13: Straw & Bedding | H13: 25 | J13: kg CO2-e/t
E15: Pig Purchased Transport
F17: Pigs per load | J17: Pigs
F19: Distance | J19: km
H20: 240
F21: Fuel Consumption | J21: l/100km
F23: CO2-e | H23: =IF(H17<>0,H19/100*H21/H17,0) -> 0 | J23: l/pig
H24: =Assumption!$I$122 -> 2.69814 | J24: kg CO2-e/l
H25: =H23*H24 -> 0 | J25: kg CO2-e/Pig
D27: Post Farm
E29: Pig Sales Transport
F31: Pigs per load | H31: 324 | I31: Hd | J31: Pigs
F33: Distance | H33: 950 | J33: km
H34: 12
F35: Fuel Consumption | H35: 60 | J35: l/100km
F37: CO2-e | H37: =IF(H31<>0,H33/100*H35/H31,0) -> 1.759259259 | J37: l/pig
H38: =Assumption!$I$122 -> 2.69814 | J38: kg CO2-e/L
H39: =H37*H38 -> 4.746727778 | J39: kg CO2-e/Pig
F41: Meat Processing | H41: 0.4 | J41: kg CO2-e/kg HSCW
D44: Dressing % for Transfers & Purchases | J44: 0.758
D47: Manure Management System Parameters
H49: VS | J49: N
F50: Solid Extraction | H50: % VS sep | J50: % N Sep
F52: No Solids Separated | H52: 0 | J52: 0
F53: Run Down Screen | H53: 0.15 | J53: =5% -> 0.05
F54: Screw Press | H54: 0.2 | J54: 0.075
F55: Centrifuge | H55: 0.25 | J55: 0.1
F56: Sedimentation | H56: 0.5 | J56: 0.2
F57: Effluent Daily Spread | H57: 0.2 | J57: 0.2

Sheet Const
B2: FracLEACH | C2: 0.3 | D2: Eq 4D3_5 (DCCEE 2012)
B3: EFLRO | C3: 0.0125 | D3: Eq 4D3_7 (DCCEE 2012)
B6: EmmPot | C6: 0.45 | D6: Emmissions Potential | G6: Eq 4B.8_1 (DCCEE 2012) - IPCC
B7: DensCH4 | C7: 0.662 | D7: Density of Methane | G7: Eq 4B.8_1 (DCCEE 2012)

Sheet Assumption
D1: Table 26 (DCCEE 2011a) Global warming potentials
B2: State | D2: Global Warming Conversion Factors | G2: Range names
D3: Carbon Dioxide | E3: CO2 | F3: 1 | G3: CFCO2
B4: ACT | D4: Methane | E4: CH4 | F4: 21 | G4: CFCH4
B5: NSW | D5: Nitrous Oxide | E5: N2O | F5: 310 | G5: CFN20
B6: Tasmania
B7: Western Australia
B8: South Australia | E8: References
B9: Victoria | E9: DCCEE (2011a) National Greenhouse Accounts Factors. Department of Climate Change and Energy Efficiency, Commonwealth of Australia, Canberra ACT, July 2011. ISBN: 978-1-921299-86-5
B10: Queensland | E10: DCCEE (2012) Australian National Greenhouse Accounts - National Inventory Report 2010 Volume 1. The Australian Government Submission to the UN Framework Convention on Climate Change April 2012. Department of Climate Change and Energy Efficiency, Commonwealth of Australia, Canberra ACT, April 2012. ISBN: 978-1-922003-28-7.
B11: Northern Territory
B21: Table 6.J.2 (DCCEE 2012) Fraction of animal waste available for leaching and runoff (FracWET)
B22: 1 | C22: 2 | D22: 7
B23: State | C23: Region | D23: All other categories
B24: ACT | C24: 1 | D24: 0.665
B25: NSW | C25: 2 | D25: 0.335
B26: Northern Territory | C26: 3 | D26: 0.773
B27: Queensland | C27: 4 | D27: 0.107
B28: South Australia | C28: 5 | D28: 0.415
B29: Tasmania | C29: 6 | D29: 0.995
B30: Victoria | C30: 7 | D30: 0.768
B31: Western Australia | C31: 8 | D31: 0.668
B35: CARCASS COMPOSITION (based on ARC 1981)
D38: Growing & Grown Pigs
D39: Nitrogen | E39: Phosphorus | F39: Potassium | G39: Salt | H39: Ash
D40: g/kg | E40: g/kg | F40: g/kg | G40: g/kg | H40: g/kg
D41: 25.6 | E41: 4.5 | F41: 2.4 | G41: 2 | H41: 29
D44: Infant Pigs
D45: Nitrogen | E45: Phosphorus | F45: Potassium | G45: Salt | H45: Ash
B46: NB: (These values only | D46: g/kg | E46: g/kg | F46: g/kg | G46: g/kg | H46: g/kg
B47: used for a reference). | D47: 24 | E47: 5.5 | F47: 2.1 | G47: 2 | H47: 29
B51: Methane Conversion of Gross Energy | C51: 0.007 | D51: Eq 4A.8_1
B52: F Factor | C52: 55.22 | D52: Eq 4A.8_1
B54: IPCC Default Emissions Factor (AtmosDep) | C54: 0.01 | D54: Eq 4D3_4
B58: NITROGEN VOLATILISATION
B59: 1 | C59: 2 | D59: 3 | E59: 4 | F59: 5
B60: Table 6.31 (DCCEE 2012) Fraction of N volatilised in each manure management system (FracGASM)
C61: N Vol
C62: Swine
A63: MMS1 | B63: =B89 -> Anaerobic Lagoon | C63: 0.4 | F63: =B63&","&B64&","&B66&","&B67 -> Anaerobic Lagoon,Liquid/slurry systems,Daily Spread,Digester
A64: MMS2 | B64: =B90 -> Liquid/slurry systems | C64: 0.48 | F64: Anaerobic Lagoon,Liquid/slurry systems,Daily Spread,Digester
A65: MMS3 | B65: =B91 -> Solid storage & drylot | C65: 0.45
A66: MMS4 | B66: =B92 -> Daily Spread | C66: 0.07
A67: MMS5 | B67: =B93 -> Digester | C67: 0
B73: Table 6.E.4 (DCCEE 2012) Pigs - Methane Conversion Factor (MCF)
B74: State | C74: Manure Management Systems | H74: Integrated MCF ((%)
C75: Lagoon (%) | D75: Liquid/slurry (%) | E75: Drylot (%) | F75: Daily Spread (%) | G75: Digester (%)
B76: ACT | C76: 90 | D76: 35 | E76: 1.5 | F76: 0.5 | G76: 10 | H76: 65.84
B77: NSW | C77: 90 | D77: 35 | E77: 1.5 | F77: 0.5 | G77: 10 | H77: 65.84
B78: Tasmania | C78: 90 | D78: 35 | E78: 1.5 | F78: 0.5 | G78: 10 | H78: 0.5
B79: Western Australia | C79: 90 | D79: 35 | E79: 1.5 | F79: 0.5 | G79: 10 | H79: 58.98
B80: South Australia | C80: 90 | D80: 35 | E80: 1.5 | F80: 0.5 | G80: 10 | H80: 65.84
B81: Victoria | C81: 90 | D81: 35 | E81: 1.5 | F81: 0.5 | G81: 10 | H81: 64.24
B82: Queensland | C82: 90 | D82: 65 | E82: 5 | F82: 1 | G82: 10 | H82: 84.04
B83: Northern Territory | C83: 90 | D83: 65 | E83: 5 | F83: 1 | G83: 10 | H83: 90
B87: Table 6.12 (DCCEE 2012) Emissions factors for nitrous oxide Emissions factors - Manure Management Systems - N2O calculations
C88: Lookup Code | D88: Emission Factor (kgs N2O - N/kg excreted)
B89: Anaerobic Lagoon | C89: 1 | D89: 0.001
B90: Liquid/slurry systems | C90: 2 | D90: 0.001
B91: Solid storage & drylot | C91: 3 | D91: 0.02
B92: Daily Spread | C92: 4 | D92: 0
B93: Digester | C93: 5 | D93: 0.001
B97: NITROGEN VOLATILISATION
B101: Table 5 (DCCEE 2011a) Indirect (scope 2) emission factors for consumption of purchased electricity from the grid
B102: State | C102: Emission factor kg CO2-e/kWh
B103: ACT | C103: 0.89
B104: NSW | C104: 0.89
B105: Tasmania | C105: 0.3
B106: Western Australia | C106: 0.8
B107: South Australia | C107: 0.68
B108: Victoria | C108: 1.21
B109: Queensland | C109: 0.88
B110: Northern Territory | C110: 0.67
B113: Tables 3 & 4 (DCCEE 2011a) Combined data - fuel consumption emission factors for stationary & transport energy purpose
E114: Emission Factors kgCO2-e/GJ
B115: Fuel Combusted | C115: Energy | E115: CO2 | F115: CH4 | G115: N20 | H115: Total | I115: kg CO2-e/l
B116: Petrol (Stationary) | C116: GJ/Kl | D116: 34.2 | E116: 66.7 | F116: 0.2 | G116: 0.2 | H116: =SUM(E116:G116) -> 67.1 | I116: =D116*H116/1000 -> 2.29482
B117: Heating Oil (Stationary) | C117: GJ/Kl | D117: 37.3 | E117: 68.8 | F117: 0.02 | G117: 0.2 | H117: =SUM(E117:G117) -> 69.02 | I117: =D117*H117/1000 -> 2.574446
B118: Diesel (Stationary) | C118: GJ/Kl | D118: 38.6 | E118: 69.2 | F118: 0.1 | G118: 0.2 | H118: 69.5 | I118: 2.6827
B119: Biodiesel (Stationary) | C119: GJ/Kl | D119: 34.6 | E119: 0 | F119: 0.06 | G119: 0.2 | H119: 0.26 | I119: 0.008996
B120: LPG (Stationary) | C120: GJ/Kl | D120: 25.7 | E120: 59.6 | F120: 0.1 | G120: 0.2 | H120: 59.9 | I120: 1.53943
B121: Petrol (Transport | C121: GJ/Kl | D121: 34.2 | E121: 66.7 | F121: 0.6 | G121: 2.3 | H121: 69.6 | I121: 2.38032
B122: Diesel(Transport) | C122: GJ/Kl | D122: 38.6 | E122: 69.2 | F122: 0.2 | G122: 0.5 | H122: 69.9 | I122: 2.69814
B123: Biodiesel (Transport) | C123: GJ/Kl | D123: 34.6 | E123: 0 | F123: 1.2 | G123: 2.2 | H123: 3.4 | I123: 0.11764
B124: LPG (Transport) | C124: GJ/Kl | D124: 26.2 | E124: 59.6 | F124: 0.6 | G124: 0.6 | H124: 60.8 | I124: =D124*H124/1000 -> 1.59296

Sheet PigDetails
H4: PIG DETAILS
D9: Ctrl+g = Get Growth Curve data
D10: (Must Be in Feed Delvrd Row)
F11: TOTAL | H11: 1 | I11: 2 | J11: 3 | K11: 4 | L11: 5 | M11: 6 | N11: 7 | O11: 8 | P11: 9 | Q11: 10 | R11: 11 | S11: 12 | T11: 13 | U11: 14 | V11: 15 | W11: 16 | X11: 17 | Y11: 18 | Z11: 19 | AA11: 20 | AB11: 21 | AC11: 22 | AD11: 23 | AE11: 24 | AF11: 25 | AG11: 26 | AH11: 27 | AI11: 28 | AJ11: 29 | AK11: 30 | AL11: 31 | AM11: 32 | AN11: 33 | AO11: 34 | AP11: 35 | AQ11: 36 | AR11: 37 | AS11: 38 | AT11: 39 | AU11: 40 | AV11: 41 | AW11: 42 | AX11: 43 | AY11: 44 | AZ11: 45 | BA11: 46 | BB11: 47 | BC11: 48 | BD11: 49 | BE11: 50
D13: Group Details
E14: Goup ID | H14: Gilts | I14: Boars | J14: Gest Sows | K14: LacSow | L14: Piglets | M14: Weaners | N14: Growers | O14: Finisher
E15: Unit | H15: Breeder | I15: Breeder | J15: Breeder | K15: Breeder | L15: Breeder | M15: Weaner | N15: GrowOut | O15: GrowOut
E16: Pig Category | H16: Gilts | I16: Boars | J16: Gest Sows | K16: Lac Sows | L16: Suckers | M16: Weaners | N16: Growers | O16: Finishers
E17: Pig Type | H17: =IF(H16<>"",VLOOKUP(H16,FarmDesign!$J$14:$K$23,2,FALSE),"") -> Breeder | I17: =IF(I16<>"",VLOOKUP(I16,FarmDesign!$J$14:$K$23,2,FALSE),"") -> Breeder | J17: =IF(J16<>"",VLOOKUP(J16,FarmDesign!$J$14:$K$23,2,FALSE),"") -> Breeder | K17: =IF(K16<>"",VLOOKUP(K16,FarmDesign!$J$14:$K$23,2,FALSE),"") -> Lac Sow | L17: =IF(L16<>"",VLOOKUP(L16,FarmDesign!$J$14:$K$23,2,FALSE),"") -> Grower | M17: =IF(M16<>"",VLOOKUP(M16,FarmDesign!$J$14:$K$23,2,FALSE),"") -> Grower | N17: =IF(N16<>"",VLOOKUP(N16,FarmDesign!$J$14:$K$23,2,FALSE),"") -> Grower | O17: =IF(O16<>"",VLOOKUP(O16,FarmDesign!$J$14:$K$23,2,FALSE),"") -> Grower | P17: =IF(P16<>"",VLOOKUP(P16,FarmDesign!$J$14:$K$23,2,FALSE),"") ->  | Q17: =IF(Q16<>"",VLOOKUP(Q16,FarmDesign!$J$14:$K$23,2,FALSE),"") ->  | R17: =IF(R16<>"",VLOOKUP(R16,FarmDesign!$J$14:$K$23,2,FALSE),"") ->  | S17: =IF(S16<>"",VLOOKUP(S16,FarmDesign!$J$14:$K$23,2,FALSE),"") ->  | T17: =IF(T16<>"",VLOOKUP(T16,FarmDesign!$J$14:$K$23,2,FALSE),"") ->  | U17: =IF(U16<>"",VLOOKUP(U16,FarmDesign!$J$14:$K$23,2,FALSE),"") ->  | V17: =IF(V16<>"",VLOOKUP(V16,FarmDesign!$J$14:$K$23,2,FALSE),"") ->  | W17: =IF(W16<>"",VLOOKUP(W16,FarmDesign!$J$14:$K$23,2,FALSE),"") ->  | X17: =IF(X16<>"",VLOOKUP(X16,FarmDesign!$J$14:$K$23,2,FALSE),"") ->  | Y17: =IF(Y16<>"",VLOOKUP(Y16,FarmDesign!$J$14:$K$23,2,FALSE),"") ->  | Z17: =IF(Z16<>"",VLOOKUP(Z16,FarmDesign!$J$14:$K$23,2,FALSE),"") ->  | AA17: =IF(AA16<>"",VLOOKUP(AA16,FarmDesign!$J$14:$K$23,2,FALSE),"") ->  | AB17: =IF(AB16<>"",VLOOKUP(AB16,FarmDesign!$J$14:$K$23,2,FALSE),"") ->  | AC17: =IF(AC16<>"",VLOOKUP(AC16,FarmDesign!$J$14:$K$23,2,FALSE),"") ->  | AD17: =IF(AD16<>"",VLOOKUP(AD16,FarmDesign!$J$14:$K$23,2,FALSE),"") ->  | AE17: =IF(AE16<>"",VLOOKUP(AE16,FarmDesign!$J$14:$K$23,2,FALSE),"") ->  | AF17: =IF(AF16<>"",VLOOKUP(AF16,FarmDesign!$J$14:$K$23,2,FALSE),"") ->  | AG17: =IF(AG16<>"",VLOOKUP(AG16,FarmDesign!$J$14:$K$23,2,FALSE),"") ->  | AH17: =IF(AH16<>"",VLOOKUP(AH16,FarmDesign!$J$14:$K$23,2,FALSE),"") ->  | AI17: =IF(AI16<>"",VLOOKUP(AI16,FarmDesign!$J$14:$K$23,2,FALSE),"") ->  | AJ17: =IF(AJ16<>"",VLOOKUP(AJ16,FarmDesign!$J$14:$K$23,2,FALSE),"") ->  | AK17: =IF(AK16<>"",VLOOKUP(AK16,FarmDesign!$J$14:$K$23,2,FALSE),"") ->  | AL17: =IF(AL16<>"",VLOOKUP(AL16,FarmDesign!$J$14:$K$23,2,FALSE),"") ->  | AM17: =IF(AM16<>"",VLOOKUP(AM16,FarmDesign!$J$14:$K$23,2,FALSE),"") ->  | AN17: =IF(AN16<>"",VLOOKUP(AN16,FarmDesign!$J$14:$K$23,2,FALSE),"") ->  | AO17: =IF(AO16<>"",VLOOKUP(AO16,FarmDesign!$J$14:$K$23,2,FALSE),"") ->  | AP17: =IF(AP16<>"",VLOOKUP(AP16,FarmDesign!$J$14:$K$23,2,FALSE),"") ->  | AQ17: =IF(AQ16<>"",VLOOKUP(AQ16,FarmDesign!$J$14:$K$23,2,FALSE),"") ->  | AR17: =IF(AR16<>"",VLOOKUP(AR16,FarmDesign!$J$14:$K$23,2,FALSE),"") ->  | AS17: =IF(AS16<>"",VLOOKUP(AS16,FarmDesign!$J$14:$K$23,2,FALSE),"") ->  | AT17: =IF(AT16<>"",VLOOKUP(AT16,FarmDesign!$J$14:$K$23,2,FALSE),"") ->  | AU17: =IF(AU16<>"",VLOOKUP(AU16,FarmDesign!$J$14:$K$23,2,FALSE),"") ->  | AV17: =IF(AV16<>"",VLOOKUP(AV16,FarmDesign!$J$14:$K$23,2,FALSE),"") ->  | AW17: =IF(AW16<>"",VLOOKUP(AW16,FarmDesign!$J$14:$K$23,2,FALSE),"") ->  | AX17: =IF(AX16<>"",VLOOKUP(AX16,FarmDesign!$J$14:$K$23,2,FALSE),"") ->  | AY17: =IF(AY16<>"",VLOOKUP(AY16,FarmDesign!$J$14:$K$23,2,FALSE),"") ->  | AZ17: =IF(AZ16<>"",VLOOKUP(AZ16,FarmDesign!$J$14:$K$23,2,FALSE),"") ->  | BA17: =IF(BA16<>"",VLOOKUP(BA16,FarmDesign!$J$14:$K$23,2,FALSE),"") ->  | BB17: =IF(BB16<>"",VLOOKUP(BB16,FarmDesign!$J$14:$K$23,2,FALSE),"") ->  | BC17: =IF(BC16<>"",VLOOKUP(BC16,FarmDesign!$J$14:$K$23,2,FALSE),"") ->  | BD17: =IF(BD16<>"",VLOOKUP(BD16,FarmDesign!$J$14:$K$23,2,FALSE),"") ->  | BE17: =IF(BE16<>"",VLOOKUP(BE16,FarmDesign!$J$14:$K$23,2,FALSE),"") -> 
H18: =H15&H16 -> BreederGilts | I18: =I15&I16 -> BreederBoars | J18: BreederGest Sows | K18: BreederLac Sows | L18: BreederSuckers | M18: WeanerWeaners | N18: GrowOutGrowers | O18: GrowOutFinishers
E19: Average Number | F19: =SUM(H19:BE19) -> 9176 | H19: 50 | I19: 42 | J19: 843 | K19: 157 | L19: 1497 | M19: 2295 | N19: 2152 | O19: 2140
E20: Maure Mangement System | H20: Ponds I | I20: Ponds I | J20: Ponds I | K20: Ponds I | L20: Ponds I | M20: Straw Igloo | N20: Ponds I | O20: Ponds I
D21: Growth Details
E22: Age (days) In | H22: 168 | I22: 168 | J22: 211 | L22: 0 | M22: 27 | N22: 71 | O22: 113
E23: Age (days) Out | H23: =210 -> 210 | I23: 870 | J23: 930 | L23: 26 | M23: 70 | N23: =16*7 -> 112 | O23: 154
E24: Wt In (kg) | H24: 100 | I24: 119.1 | J24: 130 | L24: 1.4 | M24: 8 | N24: 28 | O24: 52
E25: Wt Out (kg) / Average Wt (kg) | H25: 130 | I25: 195 | J25: 170 | L25: 8 | M25: 28 | N25: 52 | O25: 95
D26: Straw & Bedding
E27: kg/head/day | M27: 0.5010445885
E28: Total t/yr | H28: 0 | M28: 420
E29: CO2-e / yr | H29: =H28*UserAssumotions!$H$13 -> 0 | I29: =I28*UserAssumotions!$H$13 -> 0 | J29: =J28*UserAssumotions!$H$13 -> 0 | K29: =K28*UserAssumotions!$H$13 -> 0 | L29: =L28*UserAssumotions!$H$13 -> 0 | M29: =M28*UserAssumotions!$H$13 -> 10500 | N29: =N28*UserAssumotions!$H$13 -> 0 | O29: =O28*UserAssumotions!$H$13 -> 0 | P29: =P28*UserAssumotions!$H$13 -> 0 | Q29: =Q28*UserAssumotions!$H$13 -> 0 | R29: =R28*UserAssumotions!$H$13 -> 0 | S29: =S28*UserAssumotions!$H$13 -> 0 | T29: =T28*UserAssumotions!$H$13 -> 0 | U29: =U28*UserAssumotions!$H$13 -> 0 | V29: =V28*UserAssumotions!$H$13 -> 0 | W29: =W28*UserAssumotions!$H$13 -> 0 | X29: =X28*UserAssumotions!$H$13 -> 0 | Y29: =Y28*UserAssumotions!$H$13 -> 0 | Z29: =Z28*UserAssumotions!$H$13 -> 0 | AA29: =AA28*UserAssumotions!$H$13 -> 0 | AB29: =AB28*UserAssumotions!$H$13 -> 0 | AC29: =AC28*UserAssumotions!$H$13 -> 0 | AD29: =AD28*UserAssumotions!$H$13 -> 0 | AE29: =AE28*UserAssumotions!$H$13 -> 0 | AF29: =AF28*UserAssumotions!$H$13 -> 0 | AG29: =AG28*UserAssumotions!$H$13 -> 0 | AH29: =AH28*UserAssumotions!$H$13 -> 0 | AI29: =AI28*UserAssumotions!$H$13 -> 0 | AJ29: =AJ28*UserAssumotions!$H$13 -> 0 | AK29: =AK28*UserAssumotions!$H$13 -> 0 | AL29: =AL28*UserAssumotions!$H$13 -> 0 | AM29: =AM28*UserAssumotions!$H$13 -> 0 | AN29: =AN28*UserAssumotions!$H$13 -> 0 | AO29: =AO28*UserAssumotions!$H$13 -> 0 | AP29: =AP28*UserAssumotions!$H$13 -> 0 | AQ29: =AQ28*UserAssumotions!$H$13 -> 0 | AR29: =AR28*UserAssumotions!$H$13 -> 0 | AS29: =AS28*UserAssumotions!$H$13 -> 0 | AT29: =AT28*UserAssumotions!$H$13 -> 0 | AU29: =AU28*UserAssumotions!$H$13 -> 0 | AV29: =AV28*UserAssumotions!$H$13 -> 0 | AW29: =AW28*UserAssumotions!$H$13 -> 0 | AX29: =AX28*UserAssumotions!$H$13 -> 0 | AY29: =AY28*UserAssumotions!$H$13 -> 0 | AZ29: =AZ28*UserAssumotions!$H$13 -> 0 | BA29: =BA28*UserAssumotions!$H$13 -> 0 | BB29: =BB28*UserAssumotions!$H$13 -> 0 | BC29: =BC28*UserAssumotions!$H$13 -> 0 | BD29: =BD28*UserAssumotions!$H$13 -> 0 | BE29: =BE28*UserAssumotions!$H$13 -> 0
D30: Feed Details
E31: Feed Type | H31: DrySow | I31: DrySow | J31: DrySow | K31: LacSow | L31: Sucker | M31: Weaner | N31: Grower | O31: Finisher
E32: Wastage % | H32: 0.1 | I32: 0.05 | J32: 0.05 | K32: 0.05 | L32: 0.2 | M32: 0.1 | N32: 0.1 | O32: 0.1
E33: Feed Delvrd (kg/day) | H33: 2.78 | I33: 2.42 | J33: 2.42 | K33: 5.8 | L33: 0.02 | M33: 0.88 | N33: 1.4 | O33: 2.9
E34: Feed Ingested (kg/day As fed) | G34: =G33*(1-G32) -> 0 | H34: 2.502 | I34: =I33*(1-I32) -> 2.299 | J34: =J33*(1-J32) -> 2.299 | K34: 5.51 | L34: 0.016 | M34: 0.792 | N34: 1.26 | O34: 2.61 | P34: 0 | Q34: 0 | R34: 0 | S34: 0 | T34: 0 | U34: 0 | V34: 0 | W34: 0 | X34: 0 | Y34: 0 | Z34: 0 | AA34: 0 | AB34: 0 | AC34: 0 | AD34: 0 | AE34: 0 | AF34: 0 | AG34: 0 | AH34: 0 | AI34: 0 | AJ34: 0 | AK34: 0 | AL34: 0 | AM34: 0 | AN34: 0 | AO34: 0 | AP34: 0 | AQ34: 0 | AR34: 0 | AS34: 0 | AT34: 0 | AU34: 0 | AV34: 0 | AW34: 0 | AX34: 0 | AY34: 0 | AZ34: 0 | BA34: 0 | BB34: 0 | BC34: 0 | BD34: 0 | BE34: 0
D35: Diet Specifications
E36: Dry Matter % | F36: =SUMPRODUCT(H36:O36,$H$95:$O$95)/SUM($H$95:$O$95) -> 88.47224657 | G36: =HLOOKUP(G31,Feeds!$F$224:$AS$234,8,FALSE) -> 0 | H36: =HLOOKUP(H31,Feeds!$F$224:$AS$234,8,FALSE) -> 88.38035 | I36: =HLOOKUP(I31,Feeds!$F$224:$AS$234,8,FALSE) -> 88.38035 | J36: =HLOOKUP(J31,Feeds!$F$224:$AS$234,8,FALSE) -> 88.38035 | K36: =HLOOKUP(K31,Feeds!$F$224:$AS$234,8,FALSE) -> 88.6864 | L36: =HLOOKUP(L31,Feeds!$F$224:$AS$234,8,FALSE) -> 89.27225 | M36: =HLOOKUP(M31,Feeds!$F$224:$AS$234,8,FALSE) -> 88.62975 | N36: =HLOOKUP(N31,Feeds!$F$224:$AS$234,8,FALSE) -> 88.4651 | O36: =HLOOKUP(O31,Feeds!$F$224:$AS$234,8,FALSE) -> 88.42295 | P36: =HLOOKUP(P31,Feeds!$F$224:$AS$234,8,FALSE) -> 0 | Q36: =HLOOKUP(Q31,Feeds!$F$224:$AS$234,8,FALSE) -> 0 | R36: =HLOOKUP(R31,Feeds!$F$224:$AS$234,8,FALSE) -> 0 | S36: =HLOOKUP(S31,Feeds!$F$224:$AS$234,8,FALSE) -> 0 | T36: =HLOOKUP(T31,Feeds!$F$224:$AS$234,8,FALSE) -> 0 | U36: =HLOOKUP(U31,Feeds!$F$224:$AS$234,8,FALSE) -> 0 | V36: =HLOOKUP(V31,Feeds!$F$224:$AS$234,8,FALSE) -> 0 | W36: =HLOOKUP(W31,Feeds!$F$224:$AS$234,8,FALSE) -> 0 | X36: =HLOOKUP(X31,Feeds!$F$224:$AS$234,8,FALSE) -> 0 | Y36: =HLOOKUP(Y31,Feeds!$F$224:$AS$234,8,FALSE) -> 0 | Z36: =HLOOKUP(Z31,Feeds!$F$224:$AS$234,8,FALSE) -> 0 | AA36: =HLOOKUP(AA31,Feeds!$F$224:$AS$234,8,FALSE) -> 0 | AB36: =HLOOKUP(AB31,Feeds!$F$224:$AS$234,8,FALSE) -> 0 | AC36: =HLOOKUP(AC31,Feeds!$F$224:$AS$234,8,FALSE) -> 0 | AD36: =HLOOKUP(AD31,Feeds!$F$224:$AS$234,8,FALSE) -> 0 | AE36: =HLOOKUP(AE31,Feeds!$F$224:$AS$234,8,FALSE) -> 0 | AF36: =HLOOKUP(AF31,Feeds!$F$224:$AS$234,8,FALSE) -> 0 | AG36: =HLOOKUP(AG31,Feeds!$F$224:$AS$234,8,FALSE) -> 0 | AH36: =HLOOKUP(AH31,Feeds!$F$224:$AS$234,8,FALSE) -> 0 | AI36: =HLOOKUP(AI31,Feeds!$F$224:$AS$234,8,FALSE) -> 0 | AJ36: =HLOOKUP(AJ31,Feeds!$F$224:$AS$234,8,FALSE) -> 0 | AK36: =HLOOKUP(AK31,Feeds!$F$224:$AS$234,8,FALSE) -> 0 | AL36: =HLOOKUP(AL31,Feeds!$F$224:$AS$234,8,FALSE) -> 0 | AM36: =HLOOKUP(AM31,Feeds!$F$224:$AS$234,8,FALSE) -> 0 | AN36: =HLOOKUP(AN31,Feeds!$F$224:$AS$234,8,FALSE) -> 0 | AO36: =HLOOKUP(AO31,Feeds!$F$224:$AS$234,8,FALSE) -> 0 | AP36: =HLOOKUP(AP31,Feeds!$F$224:$AS$234,8,FALSE) -> 0 | AQ36: =HLOOKUP(AQ31,Feeds!$F$224:$AS$234,8,FALSE) -> 0 | AR36: =HLOOKUP(AR31,Feeds!$F$224:$AS$234,8,FALSE) -> 0 | AS36: =HLOOKUP(AS31,Feeds!$F$224:$AS$234,8,FALSE) -> 0 | AT36: =HLOOKUP(AT31,Feeds!$F$224:$AS$234,8,FALSE) -> 0 | AU36: =HLOOKUP(AU31,Feeds!$F$224:$AS$234,8,FALSE) -> 0 | AV36: =HLOOKUP(AV31,Feeds!$F$224:$AS$234,8,FALSE) -> 0 | AW36: =HLOOKUP(AW31,Feeds!$F$224:$AS$234,8,FALSE) -> 0 | AX36: =HLOOKUP(AX31,Feeds!$F$224:$AS$234,8,FALSE) -> 0 | AY36: =HLOOKUP(AY31,Feeds!$F$224:$AS$234,8,FALSE) -> 0 | AZ36: =HLOOKUP(AZ31,Feeds!$F$224:$AS$234,8,FALSE) -> 0 | BA36: =HLOOKUP(BA31,Feeds!$F$224:$AS$234,8,FALSE) -> 0 | BB36: =HLOOKUP(BB31,Feeds!$F$224:$AS$234,8,FALSE) -> 0 | BC36: =HLOOKUP(BC31,Feeds!$F$224:$AS$234,8,FALSE) -> 0 | BD36: =HLOOKUP(BD31,Feeds!$F$224:$AS$234,8,FALSE) -> 0 | BE36: =HLOOKUP(BE31,Feeds!$F$224:$AS$234,8,FALSE) -> 0
E37: Protien % | F37: =SUMPRODUCT(H37:O37,$H$95:$O$95)/SUM($H$95:$O$95) -> 18.07182859 | G37: =HLOOKUP(G31,Feeds!$F$224:$AS$234,10,FALSE) -> 0 | H37: =HLOOKUP(H31,Feeds!$F$224:$AS$234,10,FALSE) -> 14.60977 | I37: =HLOOKUP(I31,Feeds!$F$224:$AS$234,10,FALSE) -> 14.60977 | J37: =HLOOKUP(J31,Feeds!$F$224:$AS$234,10,FALSE) -> 14.60977 | K37: =HLOOKUP(K31,Feeds!$F$224:$AS$234,10,FALSE) -> 17.271066 | L37: =HLOOKUP(L31,Feeds!$F$224:$AS$234,10,FALSE) -> 22.710238 | M37: =HLOOKUP(M31,Feeds!$F$224:$AS$234,10,FALSE) -> 19.83861 | N37: =HLOOKUP(N31,Feeds!$F$224:$AS$234,10,FALSE) -> 19.190943 | O37: =HLOOKUP(O31,Feeds!$F$224:$AS$234,10,FALSE) -> 18.321 | P37: =HLOOKUP(P31,Feeds!$F$224:$AS$234,10,FALSE) -> 0 | Q37: =HLOOKUP(Q31,Feeds!$F$224:$AS$234,10,FALSE) -> 0 | R37: =HLOOKUP(R31,Feeds!$F$224:$AS$234,10,FALSE) -> 0 | S37: =HLOOKUP(S31,Feeds!$F$224:$AS$234,10,FALSE) -> 0 | T37: =HLOOKUP(T31,Feeds!$F$224:$AS$234,10,FALSE) -> 0 | U37: =HLOOKUP(U31,Feeds!$F$224:$AS$234,10,FALSE) -> 0 | V37: =HLOOKUP(V31,Feeds!$F$224:$AS$234,10,FALSE) -> 0 | W37: =HLOOKUP(W31,Feeds!$F$224:$AS$234,10,FALSE) -> 0 | X37: =HLOOKUP(X31,Feeds!$F$224:$AS$234,10,FALSE) -> 0 | Y37: =HLOOKUP(Y31,Feeds!$F$224:$AS$234,10,FALSE) -> 0 | Z37: =HLOOKUP(Z31,Feeds!$F$224:$AS$234,10,FALSE) -> 0 | AA37: =HLOOKUP(AA31,Feeds!$F$224:$AS$234,10,FALSE) -> 0 | AB37: =HLOOKUP(AB31,Feeds!$F$224:$AS$234,10,FALSE) -> 0 | AC37: =HLOOKUP(AC31,Feeds!$F$224:$AS$234,10,FALSE) -> 0 | AD37: =HLOOKUP(AD31,Feeds!$F$224:$AS$234,10,FALSE) -> 0 | AE37: =HLOOKUP(AE31,Feeds!$F$224:$AS$234,10,FALSE) -> 0 | AF37: =HLOOKUP(AF31,Feeds!$F$224:$AS$234,10,FALSE) -> 0 | AG37: =HLOOKUP(AG31,Feeds!$F$224:$AS$234,10,FALSE) -> 0 | AH37: =HLOOKUP(AH31,Feeds!$F$224:$AS$234,10,FALSE) -> 0 | AI37: =HLOOKUP(AI31,Feeds!$F$224:$AS$234,10,FALSE) -> 0 | AJ37: =HLOOKUP(AJ31,Feeds!$F$224:$AS$234,10,FALSE) -> 0 | AK37: =HLOOKUP(AK31,Feeds!$F$224:$AS$234,10,FALSE) -> 0 | AL37: =HLOOKUP(AL31,Feeds!$F$224:$AS$234,10,FALSE) -> 0 | AM37: =HLOOKUP(AM31,Feeds!$F$224:$AS$234,10,FALSE) -> 0 | AN37: =HLOOKUP(AN31,Feeds!$F$224:$AS$234,10,FALSE) -> 0 | AO37: =HLOOKUP(AO31,Feeds!$F$224:$AS$234,10,FALSE) -> 0 | AP37: =HLOOKUP(AP31,Feeds!$F$224:$AS$234,10,FALSE) -> 0 | AQ37: =HLOOKUP(AQ31,Feeds!$F$224:$AS$234,10,FALSE) -> 0 | AR37: =HLOOKUP(AR31,Feeds!$F$224:$AS$234,10,FALSE) -> 0 | AS37: =HLOOKUP(AS31,Feeds!$F$224:$AS$234,10,FALSE) -> 0 | AT37: =HLOOKUP(AT31,Feeds!$F$224:$AS$234,10,FALSE) -> 0 | AU37: =HLOOKUP(AU31,Feeds!$F$224:$AS$234,10,FALSE) -> 0 | AV37: =HLOOKUP(AV31,Feeds!$F$224:$AS$234,10,FALSE) -> 0 | AW37: =HLOOKUP(AW31,Feeds!$F$224:$AS$234,10,FALSE) -> 0 | AX37: =HLOOKUP(AX31,Feeds!$F$224:$AS$234,10,FALSE) -> 0 | AY37: =HLOOKUP(AY31,Feeds!$F$224:$AS$234,10,FALSE) -> 0 | AZ37: =HLOOKUP(AZ31,Feeds!$F$224:$AS$234,10,FALSE) -> 0 | BA37: =HLOOKUP(BA31,Feeds!$F$224:$AS$234,10,FALSE) -> 0 | BB37: =HLOOKUP(BB31,Feeds!$F$224:$AS$234,10,FALSE) -> 0 | BC37: =HLOOKUP(BC31,Feeds!$F$224:$AS$234,10,FALSE) -> 0 | BD37: =HLOOKUP(BD31,Feeds!$F$224:$AS$234,10,FALSE) -> 0 | BE37: =HLOOKUP(BE31,Feeds!$F$224:$AS$234,10,FALSE) -> 0
E38: Gross Energy MJ | F38: =SUMPRODUCT(H38:O38,$H$95:$O$95)/SUM($H$95:$O$95) -> 16.39647025 | G38: =HLOOKUP(G31,Feeds!$F$224:$AS$234,9,FALSE) -> 0 | H38: =HLOOKUP(H31,Feeds!$F$224:$AS$234,9,FALSE) -> 15.995855 | I38: =HLOOKUP(I31,Feeds!$F$224:$AS$234,9,FALSE) -> 15.995855 | J38: =HLOOKUP(J31,Feeds!$F$224:$AS$234,9,FALSE) -> 15.995855 | K38: =HLOOKUP(K31,Feeds!$F$224:$AS$234,9,FALSE) -> 16.8790285 | L38: =HLOOKUP(L31,Feeds!$F$224:$AS$234,9,FALSE) -> 16.863751 | M38: =HLOOKUP(M31,Feeds!$F$224:$AS$234,9,FALSE) -> 16.932724 | N38: =HLOOKUP(N31,Feeds!$F$224:$AS$234,9,FALSE) -> 16.4288185 | O38: =HLOOKUP(O31,Feeds!$F$224:$AS$234,9,FALSE) -> 16.280421 | P38: =HLOOKUP(P31,Feeds!$F$224:$AS$234,9,FALSE) -> 0 | Q38: =HLOOKUP(Q31,Feeds!$F$224:$AS$234,9,FALSE) -> 0 | R38: =HLOOKUP(R31,Feeds!$F$224:$AS$234,9,FALSE) -> 0 | S38: =HLOOKUP(S31,Feeds!$F$224:$AS$234,9,FALSE) -> 0 | T38: =HLOOKUP(T31,Feeds!$F$224:$AS$234,9,FALSE) -> 0 | U38: =HLOOKUP(U31,Feeds!$F$224:$AS$234,9,FALSE) -> 0 | V38: =HLOOKUP(V31,Feeds!$F$224:$AS$234,9,FALSE) -> 0 | W38: =HLOOKUP(W31,Feeds!$F$224:$AS$234,9,FALSE) -> 0 | X38: =HLOOKUP(X31,Feeds!$F$224:$AS$234,9,FALSE) -> 0 | Y38: =HLOOKUP(Y31,Feeds!$F$224:$AS$234,9,FALSE) -> 0 | Z38: =HLOOKUP(Z31,Feeds!$F$224:$AS$234,9,FALSE) -> 0 | AA38: =HLOOKUP(AA31,Feeds!$F$224:$AS$234,9,FALSE) -> 0 | AB38: =HLOOKUP(AB31,Feeds!$F$224:$AS$234,9,FALSE) -> 0 | AC38: =HLOOKUP(AC31,Feeds!$F$224:$AS$234,9,FALSE) -> 0 | AD38: =HLOOKUP(AD31,Feeds!$F$224:$AS$234,9,FALSE) -> 0 | AE38: =HLOOKUP(AE31,Feeds!$F$224:$AS$234,9,FALSE) -> 0 | AF38: =HLOOKUP(AF31,Feeds!$F$224:$AS$234,9,FALSE) -> 0 | AG38: =HLOOKUP(AG31,Feeds!$F$224:$AS$234,9,FALSE) -> 0 | AH38: =HLOOKUP(AH31,Feeds!$F$224:$AS$234,9,FALSE) -> 0 | AI38: =HLOOKUP(AI31,Feeds!$F$224:$AS$234,9,FALSE) -> 0 | AJ38: =HLOOKUP(AJ31,Feeds!$F$224:$AS$234,9,FALSE) -> 0 | AK38: =HLOOKUP(AK31,Feeds!$F$224:$AS$234,9,FALSE) -> 0 | AL38: =HLOOKUP(AL31,Feeds!$F$224:$AS$234,9,FALSE) -> 0 | AM38: =HLOOKUP(AM31,Feeds!$F$224:$AS$234,9,FALSE) -> 0 | AN38: =HLOOKUP(AN31,Feeds!$F$224:$AS$234,9,FALSE) -> 0 | AO38: =HLOOKUP(AO31,Feeds!$F$224:$AS$234,9,FALSE) -> 0 | AP38: =HLOOKUP(AP31,Feeds!$F$224:$AS$234,9,FALSE) -> 0 | AQ38: =HLOOKUP(AQ31,Feeds!$F$224:$AS$234,9,FALSE) -> 0 | AR38: =HLOOKUP(AR31,Feeds!$F$224:$AS$234,9,FALSE) -> 0 | AS38: =HLOOKUP(AS31,Feeds!$F$224:$AS$234,9,FALSE) -> 0 | AT38: =HLOOKUP(AT31,Feeds!$F$224:$AS$234,9,FALSE) -> 0 | AU38: =HLOOKUP(AU31,Feeds!$F$224:$AS$234,9,FALSE) -> 0 | AV38: =HLOOKUP(AV31,Feeds!$F$224:$AS$234,9,FALSE) -> 0 | AW38: =HLOOKUP(AW31,Feeds!$F$224:$AS$234,9,FALSE) -> 0 | AX38: =HLOOKUP(AX31,Feeds!$F$224:$AS$234,9,FALSE) -> 0 | AY38: =HLOOKUP(AY31,Feeds!$F$224:$AS$234,9,FALSE) -> 0 | AZ38: =HLOOKUP(AZ31,Feeds!$F$224:$AS$234,9,FALSE) -> 0 | BA38: =HLOOKUP(BA31,Feeds!$F$224:$AS$234,9,FALSE) -> 0 | BB38: =HLOOKUP(BB31,Feeds!$F$224:$AS$234,9,FALSE) -> 0 | BC38: =HLOOKUP(BC31,Feeds!$F$224:$AS$234,9,FALSE) -> 0 | BD38: =HLOOKUP(BD31,Feeds!$F$224:$AS$234,9,FALSE) -> 0 | BE38: =HLOOKUP(BE31,Feeds!$F$224:$AS$234,9,FALSE) -> 0
D39: Manure
E40: Fixed Solids % | G40: =HLOOKUP(G31,Feeds!$F$224:$AS$234,3,FALSE) -> 0 | H40: =HLOOKUP(H31,Feeds!$F$224:$AS$234,3,FALSE) -> 4.5741725 | I40: =HLOOKUP(I31,Feeds!$F$224:$AS$234,3,FALSE) -> 4.5741725 | J40: =HLOOKUP(J31,Feeds!$F$224:$AS$234,3,FALSE) -> 4.5741725 | K40: =HLOOKUP(K31,Feeds!$F$224:$AS$234,3,FALSE) -> 4.3483875 | L40: =HLOOKUP(L31,Feeds!$F$224:$AS$234,3,FALSE) -> 5.36974 | M40: =HLOOKUP(M31,Feeds!$F$224:$AS$234,3,FALSE) -> 4.54754 | N40: =HLOOKUP(N31,Feeds!$F$224:$AS$234,3,FALSE) -> 4.5855565 | O40: =HLOOKUP(O31,Feeds!$F$224:$AS$234,3,FALSE) -> 4.747395 | P40: =HLOOKUP(P31,Feeds!$F$224:$AS$234,3,FALSE) -> 0 | Q40: =HLOOKUP(Q31,Feeds!$F$224:$AS$234,3,FALSE) -> 0 | R40: =HLOOKUP(R31,Feeds!$F$224:$AS$234,3,FALSE) -> 0 | S40: =HLOOKUP(S31,Feeds!$F$224:$AS$234,3,FALSE) -> 0 | T40: =HLOOKUP(T31,Feeds!$F$224:$AS$234,3,FALSE) -> 0 | U40: =HLOOKUP(U31,Feeds!$F$224:$AS$234,3,FALSE) -> 0 | V40: =HLOOKUP(V31,Feeds!$F$224:$AS$234,3,FALSE) -> 0 | W40: =HLOOKUP(W31,Feeds!$F$224:$AS$234,3,FALSE) -> 0 | X40: =HLOOKUP(X31,Feeds!$F$224:$AS$234,3,FALSE) -> 0 | Y40: =HLOOKUP(Y31,Feeds!$F$224:$AS$234,3,FALSE) -> 0 | Z40: =HLOOKUP(Z31,Feeds!$F$224:$AS$234,3,FALSE) -> 0 | AA40: =HLOOKUP(AA31,Feeds!$F$224:$AS$234,3,FALSE) -> 0 | AB40: =HLOOKUP(AB31,Feeds!$F$224:$AS$234,3,FALSE) -> 0 | AC40: =HLOOKUP(AC31,Feeds!$F$224:$AS$234,3,FALSE) -> 0 | AD40: =HLOOKUP(AD31,Feeds!$F$224:$AS$234,3,FALSE) -> 0 | AE40: =HLOOKUP(AE31,Feeds!$F$224:$AS$234,3,FALSE) -> 0 | AF40: =HLOOKUP(AF31,Feeds!$F$224:$AS$234,3,FALSE) -> 0 | AG40: =HLOOKUP(AG31,Feeds!$F$224:$AS$234,3,FALSE) -> 0 | AH40: =HLOOKUP(AH31,Feeds!$F$224:$AS$234,3,FALSE) -> 0 | AI40: =HLOOKUP(AI31,Feeds!$F$224:$AS$234,3,FALSE) -> 0 | AJ40: =HLOOKUP(AJ31,Feeds!$F$224:$AS$234,3,FALSE) -> 0 | AK40: =HLOOKUP(AK31,Feeds!$F$224:$AS$234,3,FALSE) -> 0 | AL40: =HLOOKUP(AL31,Feeds!$F$224:$AS$234,3,FALSE) -> 0 | AM40: =HLOOKUP(AM31,Feeds!$F$224:$AS$234,3,FALSE) -> 0 | AN40: =HLOOKUP(AN31,Feeds!$F$224:$AS$234,3,FALSE) -> 0 | AO40: =HLOOKUP(AO31,Feeds!$F$224:$AS$234,3,FALSE) -> 0 | AP40: =HLOOKUP(AP31,Feeds!$F$224:$AS$234,3,FALSE) -> 0 | AQ40: =HLOOKUP(AQ31,Feeds!$F$224:$AS$234,3,FALSE) -> 0 | AR40: =HLOOKUP(AR31,Feeds!$F$224:$AS$234,3,FALSE) -> 0 | AS40: =HLOOKUP(AS31,Feeds!$F$224:$AS$234,3,FALSE) -> 0 | AT40: =HLOOKUP(AT31,Feeds!$F$224:$AS$234,3,FALSE) -> 0 | AU40: =HLOOKUP(AU31,Feeds!$F$224:$AS$234,3,FALSE) -> 0 | AV40: =HLOOKUP(AV31,Feeds!$F$224:$AS$234,3,FALSE) -> 0 | AW40: =HLOOKUP(AW31,Feeds!$F$224:$AS$234,3,FALSE) -> 0 | AX40: =HLOOKUP(AX31,Feeds!$F$224:$AS$234,3,FALSE) -> 0 | AY40: =HLOOKUP(AY31,Feeds!$F$224:$AS$234,3,FALSE) -> 0 | AZ40: =HLOOKUP(AZ31,Feeds!$F$224:$AS$234,3,FALSE) -> 0 | BA40: =HLOOKUP(BA31,Feeds!$F$224:$AS$234,3,FALSE) -> 0 | BB40: =HLOOKUP(BB31,Feeds!$F$224:$AS$234,3,FALSE) -> 0 | BC40: =HLOOKUP(BC31,Feeds!$F$224:$AS$234,3,FALSE) -> 0 | BD40: =HLOOKUP(BD31,Feeds!$F$224:$AS$234,3,FALSE) -> 0 | BE40: =HLOOKUP(BE31,Feeds!$F$224:$AS$234,3,FALSE) -> 0
E41: Fixed Solids Fed kg/day/pig | G41: =G40*G34/100 -> 0 | H41: 0.1144457959 | I41: =I40*I34/100 -> 0.1051602258 | J41: 0.1051602258 | K41: 0.2395961513 | L41: 0.0008591584 | M41: 0.0360165168 | N41: 0.0577780119 | O41: 0.1239070095 | P41: 0 | Q41: 0 | R41: 0 | S41: 0 | T41: 0 | U41: 0 | V41: 0 | W41: 0 | X41: 0 | Y41: 0 | Z41: 0 | AA41: 0 | AB41: 0 | AC41: 0 | AD41: 0 | AE41: 0 | AF41: 0 | AG41: 0 | AH41: 0 | AI41: 0 | AJ41: 0 | AK41: 0 | AL41: 0 | AM41: 0 | AN41: =AN40*AN34/100 -> 0 | AO41: 0 | AP41: 0 | AQ41: 0 | AR41: 0 | AS41: 0 | AT41: 0 | AU41: 0 | AV41: 0 | AW41: 0 | AX41: 0 | AY41: 0 | AZ41: 0 | BA41: 0 | BB41: 0 | BC41: 0 | BD41: 0 | BE41: 0
E42: Fixed Solids Retained kg/day/pig | G42: =IF((G23-G22)<>0,((G25-G24)/(G23-G22))*Assumption!$H$41/1000,0) -> 0 | H42: =IF((H23-H22)<>0,((H25-H24)/(H23-H22))*Assumption!$H$41/1000,0) -> 0.02071428571 | I42: =IF((I23-I22)<>0,((I25-I24)/(I23-I22))*Assumption!$H$41/1000,0) -> 0.003135470085 | J42: =IF((J23-J22)<>0,((J25-J24)/(J23-J22))*Assumption!$H$41/1000,0) -> 0.001613351878 | K42: =IF((K23-K22)<>0,((K25-K24)/(K23-K22))*Assumption!$H$41/1000,0) -> 0 | L42: =IF((L23-L22)<>0,((L25-L24)/(L23-L22))*Assumption!$H$41/1000,0) -> 0.007361538462 | M42: =IF((M23-M22)<>0,((M25-M24)/(M23-M22))*Assumption!$H$41/1000,0) -> 0.01348837209 | N42: =IF((N23-N22)<>0,((N25-N24)/(N23-N22))*Assumption!$H$41/1000,0) -> 0.01697560976 | O42: =IF((O23-O22)<>0,((O25-O24)/(O23-O22))*Assumption!$H$41/1000,0) -> 0.03041463415 | P42: =IF((P23-P22)<>0,((P25-P24)/(P23-P22))*Assumption!$H$41/1000,0) -> 0 | Q42: =IF((Q23-Q22)<>0,((Q25-Q24)/(Q23-Q22))*Assumption!$H$41/1000,0) -> 0 | R42: =IF((R23-R22)<>0,((R25-R24)/(R23-R22))*Assumption!$H$41/1000,0) -> 0 | S42: =IF((S23-S22)<>0,((S25-S24)/(S23-S22))*Assumption!$H$41/1000,0) -> 0 | T42: =IF((T23-T22)<>0,((T25-T24)/(T23-T22))*Assumption!$H$41/1000,0) -> 0 | U42: =IF((U23-U22)<>0,((U25-U24)/(U23-U22))*Assumption!$H$41/1000,0) -> 0 | V42: =IF((V23-V22)<>0,((V25-V24)/(V23-V22))*Assumption!$H$41/1000,0) -> 0 | W42: =IF((W23-W22)<>0,((W25-W24)/(W23-W22))*Assumption!$H$41/1000,0) -> 0 | X42: =IF((X23-X22)<>0,((X25-X24)/(X23-X22))*Assumption!$H$41/1000,0) -> 0 | Y42: =IF((Y23-Y22)<>0,((Y25-Y24)/(Y23-Y22))*Assumption!$H$41/1000,0) -> 0 | Z42: =IF((Z23-Z22)<>0,((Z25-Z24)/(Z23-Z22))*Assumption!$H$41/1000,0) -> 0 | AA42: =IF((AA23-AA22)<>0,((AA25-AA24)/(AA23-AA22))*Assumption!$H$41/1000,0) -> 0 | AB42: =IF((AB23-AB22)<>0,((AB25-AB24)/(AB23-AB22))*Assumption!$H$41/1000,0) -> 0 | AC42: =IF((AC23-AC22)<>0,((AC25-AC24)/(AC23-AC22))*Assumption!$H$41/1000,0) -> 0 | AD42: =IF((AD23-AD22)<>0,((AD25-AD24)/(AD23-AD22))*Assumption!$H$41/1000,0) -> 0 | AE42: =IF((AE23-AE22)<>0,((AE25-AE24)/(AE23-AE22))*Assumption!$H$41/1000,0) -> 0 | AF42: =IF((AF23-AF22)<>0,((AF25-AF24)/(AF23-AF22))*Assumption!$H$41/1000,0) -> 0 | AG42: =IF((AG23-AG22)<>0,((AG25-AG24)/(AG23-AG22))*Assumption!$H$41/1000,0) -> 0 | AH42: =IF((AH23-AH22)<>0,((AH25-AH24)/(AH23-AH22))*Assumption!$H$41/1000,0) -> 0 | AI42: =IF((AI23-AI22)<>0,((AI25-AI24)/(AI23-AI22))*Assumption!$H$41/1000,0) -> 0 | AJ42: =IF((AJ23-AJ22)<>0,((AJ25-AJ24)/(AJ23-AJ22))*Assumption!$H$41/1000,0) -> 0 | AK42: =IF((AK23-AK22)<>0,((AK25-AK24)/(AK23-AK22))*Assumption!$H$41/1000,0) -> 0 | AL42: =IF((AL23-AL22)<>0,((AL25-AL24)/(AL23-AL22))*Assumption!$H$41/1000,0) -> 0 | AM42: =IF((AM23-AM22)<>0,((AM25-AM24)/(AM23-AM22))*Assumption!$H$41/1000,0) -> 0 | AN42: =IF((AN23-AN22)<>0,((AN25-AN24)/(AN23-AN22))*Assumption!$H$41/1000,0) -> 0 | AO42: =IF((AO23-AO22)<>0,((AO25-AO24)/(AO23-AO22))*Assumption!$H$41/1000,0) -> 0 | AP42: =IF((AP23-AP22)<>0,((AP25-AP24)/(AP23-AP22))*Assumption!$H$41/1000,0) -> 0 | AQ42: =IF((AQ23-AQ22)<>0,((AQ25-AQ24)/(AQ23-AQ22))*Assumption!$H$41/1000,0) -> 0 | AR42: =IF((AR23-AR22)<>0,((AR25-AR24)/(AR23-AR22))*Assumption!$H$41/1000,0) -> 0 | AS42: =IF((AS23-AS22)<>0,((AS25-AS24)/(AS23-AS22))*Assumption!$H$41/1000,0) -> 0 | AT42: =IF((AT23-AT22)<>0,((AT25-AT24)/(AT23-AT22))*Assumption!$H$41/1000,0) -> 0 | AU42: =IF((AU23-AU22)<>0,((AU25-AU24)/(AU23-AU22))*Assumption!$H$41/1000,0) -> 0 | AV42: =IF((AV23-AV22)<>0,((AV25-AV24)/(AV23-AV22))*Assumption!$H$41/1000,0) -> 0 | AW42: =IF((AW23-AW22)<>0,((AW25-AW24)/(AW23-AW22))*Assumption!$H$41/1000,0) -> 0 | AX42: =IF((AX23-AX22)<>0,((AX25-AX24)/(AX23-AX22))*Assumption!$H$41/1000,0) -> 0 | AY42: =IF((AY23-AY22)<>0,((AY25-AY24)/(AY23-AY22))*Assumption!$H$41/1000,0) -> 0 | AZ42: =IF((AZ23-AZ22)<>0,((AZ25-AZ24)/(AZ23-AZ22))*Assumption!$H$41/1000,0) -> 0 | BA42: =IF((BA23-BA22)<>0,((BA25-BA24)/(BA23-BA22))*Assumption!$H$41/1000,0) -> 0 | BB42: =IF((BB23-BB22)<>0,((BB25-BB24)/(BB23-BB22))*Assumption!$H$41/1000,0) -> 0 | BC42: =IF((BC23-BC22)<>0,((BC25-BC24)/(BC23-BC22))*Assumption!$H$41/1000,0) -> 0 | BD42: =IF((BD23-BD22)<>0,((BD25-BD24)/(BD23-BD22))*Assumption!$H$41/1000,0) -> 0 | BE42: =IF((BE23-BE22)<>0,((BE25-BE24)/(BE23-BE22))*Assumption!$H$41/1000,0) -> 0
E43: Fixed Solids Manure kg/day/pig | G43: =G41-G42 -> 0 | H43: 0.09373151024 | I43: =I41-I42 -> 0.1020247557 | J43: =J41-J42 -> 0.1035468739 | K43: 0.2395961513 | L43: -0.006502380062 | M43: 0.02252814471 | N43: 0.04080240214 | O43: 0.09349237535 | P43: 0 | Q43: 0 | R43: 0 | S43: 0 | T43: 0 | U43: 0 | V43: 0 | W43: 0 | X43: 0 | Y43: 0 | Z43: 0 | AA43: 0 | AB43: 0 | AC43: 0 | AD43: 0 | AE43: 0 | AF43: 0 | AG43: 0 | AH43: 0 | AI43: 0 | AJ43: 0 | AK43: 0 | AL43: 0 | AM43: 0 | AN43: 0 | AO43: 0 | AP43: 0 | AQ43: 0 | AR43: 0 | AS43: 0 | AT43: 0 | AU43: 0 | AV43: 0 | AW43: 0 | AX43: 0 | AY43: 0 | AZ43: 0 | BA43: 0 | BB43: 0 | BC43: 0 | BD43: 0 | BE43: 0
E44: Total Solids Manure % | G44: =HLOOKUP(G31,Feeds!$F$224:$AS$234,11,FALSE) -> 0 | H44: =HLOOKUP(H31,Feeds!$F$224:$AS$234,11,FALSE) -> 17.41710541 | I44: =HLOOKUP(I31,Feeds!$F$224:$AS$234,11,FALSE) -> 17.41710541 | J44: =HLOOKUP(J31,Feeds!$F$224:$AS$234,11,FALSE) -> 17.41710541 | K44: =HLOOKUP(K31,Feeds!$F$224:$AS$234,11,FALSE) -> 14.69864106 | L44: =HLOOKUP(L31,Feeds!$F$224:$AS$234,11,FALSE) -> 10.30650552 | M44: =HLOOKUP(M31,Feeds!$F$224:$AS$234,11,FALSE) -> 11.79949118 | N44: =HLOOKUP(N31,Feeds!$F$224:$AS$234,11,FALSE) -> 12.43191844 | O44: =HLOOKUP(O31,Feeds!$F$224:$AS$234,11,FALSE) -> 13.76942431 | P44: =HLOOKUP(P31,Feeds!$F$224:$AS$234,11,FALSE) -> 0 | Q44: =HLOOKUP(Q31,Feeds!$F$224:$AS$234,11,FALSE) -> 0 | R44: =HLOOKUP(R31,Feeds!$F$224:$AS$234,11,FALSE) -> 0 | S44: =HLOOKUP(S31,Feeds!$F$224:$AS$234,11,FALSE) -> 0 | T44: =HLOOKUP(T31,Feeds!$F$224:$AS$234,11,FALSE) -> 0 | U44: =HLOOKUP(U31,Feeds!$F$224:$AS$234,11,FALSE) -> 0 | V44: =HLOOKUP(V31,Feeds!$F$224:$AS$234,11,FALSE) -> 0 | W44: =HLOOKUP(W31,Feeds!$F$224:$AS$234,11,FALSE) -> 0 | X44: =HLOOKUP(X31,Feeds!$F$224:$AS$234,11,FALSE) -> 0 | Y44: =HLOOKUP(Y31,Feeds!$F$224:$AS$234,11,FALSE) -> 0 | Z44: =HLOOKUP(Z31,Feeds!$F$224:$AS$234,11,FALSE) -> 0 | AA44: =HLOOKUP(AA31,Feeds!$F$224:$AS$234,11,FALSE) -> 0 | AB44: =HLOOKUP(AB31,Feeds!$F$224:$AS$234,11,FALSE) -> 0 | AC44: =HLOOKUP(AC31,Feeds!$F$224:$AS$234,11,FALSE) -> 0 | AD44: =HLOOKUP(AD31,Feeds!$F$224:$AS$234,11,FALSE) -> 0 | AE44: =HLOOKUP(AE31,Feeds!$F$224:$AS$234,11,FALSE) -> 0 | AF44: =HLOOKUP(AF31,Feeds!$F$224:$AS$234,11,FALSE) -> 0 | AG44: =HLOOKUP(AG31,Feeds!$F$224:$AS$234,11,FALSE) -> 0 | AH44: =HLOOKUP(AH31,Feeds!$F$224:$AS$234,11,FALSE) -> 0 | AI44: =HLOOKUP(AI31,Feeds!$F$224:$AS$234,11,FALSE) -> 0 | AJ44: =HLOOKUP(AJ31,Feeds!$F$224:$AS$234,11,FALSE) -> 0 | AK44: =HLOOKUP(AK31,Feeds!$F$224:$AS$234,11,FALSE) -> 0 | AL44: =HLOOKUP(AL31,Feeds!$F$224:$AS$234,11,FALSE) -> 0 | AM44: =HLOOKUP(AM31,Feeds!$F$224:$AS$234,11,FALSE) -> 0 | AN44: =HLOOKUP(AN31,Feeds!$F$224:$AS$234,11,FALSE) -> 0 | AO44: =HLOOKUP(AO31,Feeds!$F$224:$AS$234,11,FALSE) -> 0 | AP44: =HLOOKUP(AP31,Feeds!$F$224:$AS$234,11,FALSE) -> 0 | AQ44: =HLOOKUP(AQ31,Feeds!$F$224:$AS$234,11,FALSE) -> 0 | AR44: =HLOOKUP(AR31,Feeds!$F$224:$AS$234,11,FALSE) -> 0 | AS44: =HLOOKUP(AS31,Feeds!$F$224:$AS$234,11,FALSE) -> 0 | AT44: =HLOOKUP(AT31,Feeds!$F$224:$AS$234,11,FALSE) -> 0 | AU44: =HLOOKUP(AU31,Feeds!$F$224:$AS$234,11,FALSE) -> 0 | AV44: =HLOOKUP(AV31,Feeds!$F$224:$AS$234,11,FALSE) -> 0 | AW44: =HLOOKUP(AW31,Feeds!$F$224:$AS$234,11,FALSE) -> 0 | AX44: =HLOOKUP(AX31,Feeds!$F$224:$AS$234,11,FALSE) -> 0 | AY44: =HLOOKUP(AY31,Feeds!$F$224:$AS$234,11,FALSE) -> 0 | AZ44: =HLOOKUP(AZ31,Feeds!$F$224:$AS$234,11,FALSE) -> 0 | BA44: =HLOOKUP(BA31,Feeds!$F$224:$AS$234,11,FALSE) -> 0 | BB44: =HLOOKUP(BB31,Feeds!$F$224:$AS$234,11,FALSE) -> 0 | BC44: =HLOOKUP(BC31,Feeds!$F$224:$AS$234,11,FALSE) -> 0 | BD44: =HLOOKUP(BD31,Feeds!$F$224:$AS$234,11,FALSE) -> 0 | BE44: =HLOOKUP(BE31,Feeds!$F$224:$AS$234,11,FALSE) -> 0
E45: Total Solids kg/day/pig | G45: =G44*G34/100 -> 0 | H45: 0.4357759774 | I45: =I44*I34/100 -> 0.4004192534 | J45: 0.4004192534 | K45: 0.8098951223 | L45: 0.001649040883 | M45: 0.09345197018 | N45: 0.1566421723 | O45: 0.3593819745 | P45: 0 | Q45: 0 | R45: 0 | S45: 0 | T45: 0 | U45: 0 | V45: 0 | W45: 0 | X45: 0 | Y45: 0 | Z45: 0 | AA45: 0 | AB45: 0 | AC45: 0 | AD45: 0 | AE45: 0 | AF45: 0 | AG45: 0 | AH45: 0 | AI45: 0 | AJ45: 0 | AK45: 0 | AL45: 0 | AM45: 0 | AN45: =AN44*AN34/100 -> 0 | AO45: 0 | AP45: 0 | AQ45: 0 | AR45: 0 | AS45: 0 | AT45: 0 | AU45: 0 | AV45: 0 | AW45: 0 | AX45: 0 | AY45: 0 | AZ45: 0 | BA45: 0 | BB45: 0 | BC45: 0 | BD45: 0 | BE45: 0
E46: Volatile Solids Manure kg/day/pig | G46: =G45-G43 -> 0 | H46: 0.3420444671 | I46: =I45-I43 -> 0.2983944977 | J46: =J45-J43 -> 0.2968723795 | K46: 0.570298971 | L46: 0.008151420945 | M46: 0.07092382548 | N46: 0.1158397702 | O46: 0.2658895991 | P46: 0 | Q46: 0 | R46: 0 | S46: 0 | T46: 0 | U46: 0 | V46: 0 | W46: 0 | X46: 0 | Y46: 0 | Z46: 0 | AA46: 0 | AB46: 0 | AC46: 0 | AD46: 0 | AE46: 0 | AF46: 0 | AG46: 0 | AH46: 0 | AI46: 0 | AJ46: 0 | AK46: 0 | AL46: 0 | AM46: 0 | AN46: 0 | AO46: 0 | AP46: 0 | AQ46: 0 | AR46: 0 | AS46: 0 | AT46: 0 | AU46: 0 | AV46: 0 | AW46: 0 | AX46: 0 | AY46: 0 | AZ46: 0 | BA46: 0 | BB46: 0 | BC46: 0 | BD46: 0 | BE46: 0
E47: % N in Feed | G47: =HLOOKUP(G31,Feeds!$F$224:$AS$234,5,FALSE) -> 0 | H47: =HLOOKUP(H31,Feeds!$F$224:$AS$234,5,FALSE) -> 2.3375632 | I47: =HLOOKUP(I31,Feeds!$F$224:$AS$234,5,FALSE) -> 2.3375632 | J47: =HLOOKUP(J31,Feeds!$F$224:$AS$234,5,FALSE) -> 2.3375632 | K47: =HLOOKUP(K31,Feeds!$F$224:$AS$234,5,FALSE) -> 2.76337056 | L47: =HLOOKUP(L31,Feeds!$F$224:$AS$234,5,FALSE) -> 3.63363808 | M47: =HLOOKUP(M31,Feeds!$F$224:$AS$234,5,FALSE) -> 3.1741776 | N47: =HLOOKUP(N31,Feeds!$F$224:$AS$234,5,FALSE) -> 3.07055088 | O47: =HLOOKUP(O31,Feeds!$F$224:$AS$234,5,FALSE) -> 2.93136 | P47: =HLOOKUP(P31,Feeds!$F$224:$AS$234,5,FALSE) -> 0 | Q47: =HLOOKUP(Q31,Feeds!$F$224:$AS$234,5,FALSE) -> 0 | R47: =HLOOKUP(R31,Feeds!$F$224:$AS$234,5,FALSE) -> 0 | S47: =HLOOKUP(S31,Feeds!$F$224:$AS$234,5,FALSE) -> 0 | T47: =HLOOKUP(T31,Feeds!$F$224:$AS$234,5,FALSE) -> 0 | U47: =HLOOKUP(U31,Feeds!$F$224:$AS$234,5,FALSE) -> 0 | V47: =HLOOKUP(V31,Feeds!$F$224:$AS$234,5,FALSE) -> 0 | W47: =HLOOKUP(W31,Feeds!$F$224:$AS$234,5,FALSE) -> 0 | X47: =HLOOKUP(X31,Feeds!$F$224:$AS$234,5,FALSE) -> 0 | Y47: =HLOOKUP(Y31,Feeds!$F$224:$AS$234,5,FALSE) -> 0 | Z47: =HLOOKUP(Z31,Feeds!$F$224:$AS$234,5,FALSE) -> 0 | AA47: =HLOOKUP(AA31,Feeds!$F$224:$AS$234,5,FALSE) -> 0 | AB47: =HLOOKUP(AB31,Feeds!$F$224:$AS$234,5,FALSE) -> 0 | AC47: =HLOOKUP(AC31,Feeds!$F$224:$AS$234,5,FALSE) -> 0 | AD47: =HLOOKUP(AD31,Feeds!$F$224:$AS$234,5,FALSE) -> 0 | AE47: =HLOOKUP(AE31,Feeds!$F$224:$AS$234,5,FALSE) -> 0 | AF47: =HLOOKUP(AF31,Feeds!$F$224:$AS$234,5,FALSE) -> 0 | AG47: =HLOOKUP(AG31,Feeds!$F$224:$AS$234,5,FALSE) -> 0 | AH47: =HLOOKUP(AH31,Feeds!$F$224:$AS$234,5,FALSE) -> 0 | AI47: =HLOOKUP(AI31,Feeds!$F$224:$AS$234,5,FALSE) -> 0 | AJ47: =HLOOKUP(AJ31,Feeds!$F$224:$AS$234,5,FALSE) -> 0 | AK47: =HLOOKUP(AK31,Feeds!$F$224:$AS$234,5,FALSE) -> 0 | AL47: =HLOOKUP(AL31,Feeds!$F$224:$AS$234,5,FALSE) -> 0 | AM47: =HLOOKUP(AM31,Feeds!$F$224:$AS$234,5,FALSE) -> 0 | AN47: =HLOOKUP(AN31,Feeds!$F$224:$AS$234,5,FALSE) -> 0 | AO47: =HLOOKUP(AO31,Feeds!$F$224:$AS$234,5,FALSE) -> 0 | AP47: =HLOOKUP(AP31,Feeds!$F$224:$AS$234,5,FALSE) -> 0 | AQ47: =HLOOKUP(AQ31,Feeds!$F$224:$AS$234,5,FALSE) -> 0 | AR47: =HLOOKUP(AR31,Feeds!$F$224:$AS$234,5,FALSE) -> 0 | AS47: =HLOOKUP(AS31,Feeds!$F$224:$AS$234,5,FALSE) -> 0 | AT47: =HLOOKUP(AT31,Feeds!$F$224:$AS$234,5,FALSE) -> 0 | AU47: =HLOOKUP(AU31,Feeds!$F$224:$AS$234,5,FALSE) -> 0 | AV47: =HLOOKUP(AV31,Feeds!$F$224:$AS$234,5,FALSE) -> 0 | AW47: =HLOOKUP(AW31,Feeds!$F$224:$AS$234,5,FALSE) -> 0 | AX47: =HLOOKUP(AX31,Feeds!$F$224:$AS$234,5,FALSE) -> 0 | AY47: =HLOOKUP(AY31,Feeds!$F$224:$AS$234,5,FALSE) -> 0 | AZ47: =HLOOKUP(AZ31,Feeds!$F$224:$AS$234,5,FALSE) -> 0 | BA47: =HLOOKUP(BA31,Feeds!$F$224:$AS$234,5,FALSE) -> 0 | BB47: =HLOOKUP(BB31,Feeds!$F$224:$AS$234,5,FALSE) -> 0 | BC47: =HLOOKUP(BC31,Feeds!$F$224:$AS$234,5,FALSE) -> 0 | BD47: =HLOOKUP(BD31,Feeds!$F$224:$AS$234,5,FALSE) -> 0 | BE47: =HLOOKUP(BE31,Feeds!$F$224:$AS$234,5,FALSE) -> 0
E48: N Fed kg/day/pig | G48: =G47/100*G34 -> 0 | H48: 0.05848583126 | I48: =I47/100*I34 -> 0.05374057797 | J48: 0.05374057797 | K48: 0.1522617179 | L48: 0.0005813820928 | M48: 0.02513948659 | N48: 0.03868894109 | O48: 0.076508496 | P48: 0 | Q48: 0 | R48: 0 | S48: 0 | T48: 0 | U48: 0 | V48: 0 | W48: 0 | X48: 0 | Y48: 0 | Z48: 0 | AA48: 0 | AB48: 0 | AC48: 0 | AD48: 0 | AE48: 0 | AF48: 0 | AG48: 0 | AH48: 0 | AI48: 0 | AJ48: 0 | AK48: 0 | AL48: 0 | AM48: 0 | AN48: =AN47/100*AN34 -> 0 | AO48: 0 | AP48: 0 | AQ48: 0 | AR48: 0 | AS48: 0 | AT48: 0 | AU48: 0 | AV48: 0 | AW48: 0 | AX48: 0 | AY48: 0 | AZ48: 0 | BA48: 0 | BB48: 0 | BC48: 0 | BD48: 0 | BE48: 0
E49: N Retained kg/day/pig | G49: =IF((G23-G22)<>0,((G25-G24)/(G23-G22))*Assumption!$D$41/1000,0) -> 0 | H49: =IF((H23-H22)<>0,((H25-H24)/(H23-H22))*Assumption!$D$41/1000,0) -> 0.01828571429 | I49: =IF((I23-I22)<>0,((I25-I24)/(I23-I22))*Assumption!$D$41/1000,0) -> 0.002767863248 | J49: =IF((J23-J22)<>0,((J25-J24)/(J23-J22))*Assumption!$D$41/1000,0) -> 0.001424200278 | K49: =IF((K23-K22)<>0,((K25-K24)/(K23-K22))*Assumption!$D$41/1000,0) -> 0 | L49: =IF((L23-L22)<>0,((L25-L24)/(L23-L22))*Assumption!$D$41/1000,0) -> 0.006498461538 | M49: =IF((M23-M22)<>0,((M25-M24)/(M23-M22))*Assumption!$D$41/1000,0) -> 0.01190697674 | N49: =IF((N23-N22)<>0,((N25-N24)/(N23-N22))*Assumption!$D$41/1000,0) -> 0.01498536585 | O49: =IF((O23-O22)<>0,((O25-O24)/(O23-O22))*Assumption!$D$41/1000,0) -> 0.02684878049 | P49: =IF((P23-P22)<>0,((P25-P24)/(P23-P22))*Assumption!$D$41/1000,0) -> 0 | Q49: =IF((Q23-Q22)<>0,((Q25-Q24)/(Q23-Q22))*Assumption!$D$41/1000,0) -> 0 | R49: =IF((R23-R22)<>0,((R25-R24)/(R23-R22))*Assumption!$D$41/1000,0) -> 0 | S49: =IF((S23-S22)<>0,((S25-S24)/(S23-S22))*Assumption!$D$41/1000,0) -> 0 | T49: =IF((T23-T22)<>0,((T25-T24)/(T23-T22))*Assumption!$D$41/1000,0) -> 0 | U49: =IF((U23-U22)<>0,((U25-U24)/(U23-U22))*Assumption!$D$41/1000,0) -> 0 | V49: =IF((V23-V22)<>0,((V25-V24)/(V23-V22))*Assumption!$D$41/1000,0) -> 0 | W49: =IF((W23-W22)<>0,((W25-W24)/(W23-W22))*Assumption!$D$41/1000,0) -> 0 | X49: =IF((X23-X22)<>0,((X25-X24)/(X23-X22))*Assumption!$D$41/1000,0) -> 0 | Y49: =IF((Y23-Y22)<>0,((Y25-Y24)/(Y23-Y22))*Assumption!$D$41/1000,0) -> 0 | Z49: =IF((Z23-Z22)<>0,((Z25-Z24)/(Z23-Z22))*Assumption!$D$41/1000,0) -> 0 | AA49: =IF((AA23-AA22)<>0,((AA25-AA24)/(AA23-AA22))*Assumption!$D$41/1000,0) -> 0 | AB49: =IF((AB23-AB22)<>0,((AB25-AB24)/(AB23-AB22))*Assumption!$D$41/1000,0) -> 0 | AC49: =IF((AC23-AC22)<>0,((AC25-AC24)/(AC23-AC22))*Assumption!$D$41/1000,0) -> 0 | AD49: =IF((AD23-AD22)<>0,((AD25-AD24)/(AD23-AD22))*Assumption!$D$41/1000,0) -> 0 | AE49: =IF((AE23-AE22)<>0,((AE25-AE24)/(AE23-AE22))*Assumption!$D$41/1000,0) -> 0 | AF49: =IF((AF23-AF22)<>0,((AF25-AF24)/(AF23-AF22))*Assumption!$D$41/1000,0) -> 0 | AG49: =IF((AG23-AG22)<>0,((AG25-AG24)/(AG23-AG22))*Assumption!$D$41/1000,0) -> 0 | AH49: =IF((AH23-AH22)<>0,((AH25-AH24)/(AH23-AH22))*Assumption!$D$41/1000,0) -> 0 | AI49: =IF((AI23-AI22)<>0,((AI25-AI24)/(AI23-AI22))*Assumption!$D$41/1000,0) -> 0 | AJ49: =IF((AJ23-AJ22)<>0,((AJ25-AJ24)/(AJ23-AJ22))*Assumption!$D$41/1000,0) -> 0 | AK49: =IF((AK23-AK22)<>0,((AK25-AK24)/(AK23-AK22))*Assumption!$D$41/1000,0) -> 0 | AL49: =IF((AL23-AL22)<>0,((AL25-AL24)/(AL23-AL22))*Assumption!$D$41/1000,0) -> 0 | AM49: =IF((AM23-AM22)<>0,((AM25-AM24)/(AM23-AM22))*Assumption!$D$41/1000,0) -> 0 | AN49: =IF((AN23-AN22)<>0,((AN25-AN24)/(AN23-AN22))*Assumption!$D$41/1000,0) -> 0 | AO49: =IF((AO23-AO22)<>0,((AO25-AO24)/(AO23-AO22))*Assumption!$D$41/1000,0) -> 0 | AP49: =IF((AP23-AP22)<>0,((AP25-AP24)/(AP23-AP22))*Assumption!$D$41/1000,0) -> 0 | AQ49: =IF((AQ23-AQ22)<>0,((AQ25-AQ24)/(AQ23-AQ22))*Assumption!$D$41/1000,0) -> 0 | AR49: =IF((AR23-AR22)<>0,((AR25-AR24)/(AR23-AR22))*Assumption!$D$41/1000,0) -> 0 | AS49: =IF((AS23-AS22)<>0,((AS25-AS24)/(AS23-AS22))*Assumption!$D$41/1000,0) -> 0 | AT49: =IF((AT23-AT22)<>0,((AT25-AT24)/(AT23-AT22))*Assumption!$D$41/1000,0) -> 0 | AU49: =IF((AU23-AU22)<>0,((AU25-AU24)/(AU23-AU22))*Assumption!$D$41/1000,0) -> 0 | AV49: =IF((AV23-AV22)<>0,((AV25-AV24)/(AV23-AV22))*Assumption!$D$41/1000,0) -> 0 | AW49: =IF((AW23-AW22)<>0,((AW25-AW24)/(AW23-AW22))*Assumption!$D$41/1000,0) -> 0 | AX49: =IF((AX23-AX22)<>0,((AX25-AX24)/(AX23-AX22))*Assumption!$D$41/1000,0) -> 0 | AY49: =IF((AY23-AY22)<>0,((AY25-AY24)/(AY23-AY22))*Assumption!$D$41/1000,0) -> 0 | AZ49: =IF((AZ23-AZ22)<>0,((AZ25-AZ24)/(AZ23-AZ22))*Assumption!$D$41/1000,0) -> 0 | BA49: =IF((BA23-BA22)<>0,((BA25-BA24)/(BA23-BA22))*Assumption!$D$41/1000,0) -> 0 | BB49: =IF((BB23-BB22)<>0,((BB25-BB24)/(BB23-BB22))*Assumption!$D$41/1000,0) -> 0 | BC49: =IF((BC23-BC22)<>0,((BC25-BC24)/(BC23-BC22))*Assumption!$D$41/1000,0) -> 0 | BD49: =IF((BD23-BD22)<>0,((BD25-BD24)/(BD23-BD22))*Assumption!$D$41/1000,0) -> 0 | BE49: =IF((BE23-BE22)<>0,((BE25-BE24)/(BE23-BE22))*Assumption!$D$41/1000,0) -> 0
E50: N Manure kg/day/pig | G50: =G48-G49 -> 0 | H50: 0.04020011698 | I50: =I48-I49 -> 0.05097271472 | J50: =J48-J49 -> 0.05231637769 | K50: 0.1522617179 | L50: -0.005917079446 | M50: 0.01323250985 | N50: 0.02370357523 | O50: 0.04965971551 | P50: 0 | Q50: 0 | R50: 0 | S50: 0 | T50: 0 | U50: 0 | V50: 0 | W50: 0 | X50: 0 | Y50: 0 | Z50: 0 | AA50: 0 | AB50: 0 | AC50: 0 | AD50: 0 | AE50: 0 | AF50: 0 | AG50: 0 | AH50: 0 | AI50: 0 | AJ50: 0 | AK50: 0 | AL50: 0 | AM50: 0 | AN50: 0 | AO50: 0 | AP50: 0 | AQ50: 0 | AR50: 0 | AS50: 0 | AT50: 0 | AU50: 0 | AV50: 0 | AW50: 0 | AX50: 0 | AY50: 0 | AZ50: 0 | BA50: 0 | BB50: 0 | BC50: 0 | BD50: 0 | BE50: 0
D51: Watse Feed
E52: kg/day/pig | G52: =G33-G34 -> 0 | H52: 0.278 | I52: =I33-I34 -> 0.121 | J52: 0.121 | K52: 0.29 | L52: 0.004 | M52: 0.088 | N52: 0.14 | O52: 0.29 | P52: 0 | Q52: 0 | R52: 0 | S52: 0 | T52: 0 | U52: 0 | V52: 0 | W52: 0 | X52: 0 | Y52: 0 | Z52: 0 | AA52: 0 | AB52: 0 | AC52: 0 | AD52: 0 | AE52: 0 | AF52: 0 | AG52: 0 | AH52: 0 | AI52: 0 | AJ52: 0 | AK52: 0 | AL52: 0 | AM52: 0 | AN52: =AN33-AN34 -> 0 | AO52: 0 | AP52: 0 | AQ52: 0 | AR52: 0 | AS52: 0 | AT52: 0 | AU52: 0 | AV52: 0 | AW52: 0 | AX52: 0 | AY52: 0 | AZ52: 0 | BA52: 0 | BB52: 0 | BC52: 0 | BD52: 0 | BE52: 0
E53: Volatile Solids % | G53: =HLOOKUP(G31,Feeds!$F$224:$AS$234,4,FALSE) -> 0 | H53: =HLOOKUP(H31,Feeds!$F$224:$AS$234,4,FALSE) -> 83.8061775 | I53: =HLOOKUP(I31,Feeds!$F$224:$AS$234,4,FALSE) -> 83.8061775 | J53: =HLOOKUP(J31,Feeds!$F$224:$AS$234,4,FALSE) -> 83.8061775 | K53: =HLOOKUP(K31,Feeds!$F$224:$AS$234,4,FALSE) -> 84.3380125 | L53: =HLOOKUP(L31,Feeds!$F$224:$AS$234,4,FALSE) -> 83.90251 | M53: =HLOOKUP(M31,Feeds!$F$224:$AS$234,4,FALSE) -> 84.08221 | N53: =HLOOKUP(N31,Feeds!$F$224:$AS$234,4,FALSE) -> 83.8795435 | O53: =HLOOKUP(O31,Feeds!$F$224:$AS$234,4,FALSE) -> 83.675555 | P53: =HLOOKUP(P31,Feeds!$F$224:$AS$234,4,FALSE) -> 0 | Q53: =HLOOKUP(Q31,Feeds!$F$224:$AS$234,4,FALSE) -> 0 | R53: =HLOOKUP(R31,Feeds!$F$224:$AS$234,4,FALSE) -> 0 | S53: =HLOOKUP(S31,Feeds!$F$224:$AS$234,4,FALSE) -> 0 | T53: =HLOOKUP(T31,Feeds!$F$224:$AS$234,4,FALSE) -> 0 | U53: =HLOOKUP(U31,Feeds!$F$224:$AS$234,4,FALSE) -> 0 | V53: =HLOOKUP(V31,Feeds!$F$224:$AS$234,4,FALSE) -> 0 | W53: =HLOOKUP(W31,Feeds!$F$224:$AS$234,4,FALSE) -> 0 | X53: =HLOOKUP(X31,Feeds!$F$224:$AS$234,4,FALSE) -> 0 | Y53: =HLOOKUP(Y31,Feeds!$F$224:$AS$234,4,FALSE) -> 0 | Z53: =HLOOKUP(Z31,Feeds!$F$224:$AS$234,4,FALSE) -> 0 | AA53: =HLOOKUP(AA31,Feeds!$F$224:$AS$234,4,FALSE) -> 0 | AB53: =HLOOKUP(AB31,Feeds!$F$224:$AS$234,4,FALSE) -> 0 | AC53: =HLOOKUP(AC31,Feeds!$F$224:$AS$234,4,FALSE) -> 0 | AD53: =HLOOKUP(AD31,Feeds!$F$224:$AS$234,4,FALSE) -> 0 | AE53: =HLOOKUP(AE31,Feeds!$F$224:$AS$234,4,FALSE) -> 0 | AF53: =HLOOKUP(AF31,Feeds!$F$224:$AS$234,4,FALSE) -> 0 | AG53: =HLOOKUP(AG31,Feeds!$F$224:$AS$234,4,FALSE) -> 0 | AH53: =HLOOKUP(AH31,Feeds!$F$224:$AS$234,4,FALSE) -> 0 | AI53: =HLOOKUP(AI31,Feeds!$F$224:$AS$234,4,FALSE) -> 0 | AJ53: =HLOOKUP(AJ31,Feeds!$F$224:$AS$234,4,FALSE) -> 0 | AK53: =HLOOKUP(AK31,Feeds!$F$224:$AS$234,4,FALSE) -> 0 | AL53: =HLOOKUP(AL31,Feeds!$F$224:$AS$234,4,FALSE) -> 0 | AM53: =HLOOKUP(AM31,Feeds!$F$224:$AS$234,4,FALSE) -> 0 | AN53: =HLOOKUP(AN31,Feeds!$F$224:$AS$234,4,FALSE) -> 0 | AO53: =HLOOKUP(AO31,Feeds!$F$224:$AS$234,4,FALSE) -> 0 | AP53: =HLOOKUP(AP31,Feeds!$F$224:$AS$234,4,FALSE) -> 0 | AQ53: =HLOOKUP(AQ31,Feeds!$F$224:$AS$234,4,FALSE) -> 0 | AR53: =HLOOKUP(AR31,Feeds!$F$224:$AS$234,4,FALSE) -> 0 | AS53: =HLOOKUP(AS31,Feeds!$F$224:$AS$234,4,FALSE) -> 0 | AT53: =HLOOKUP(AT31,Feeds!$F$224:$AS$234,4,FALSE) -> 0 | AU53: =HLOOKUP(AU31,Feeds!$F$224:$AS$234,4,FALSE) -> 0 | AV53: =HLOOKUP(AV31,Feeds!$F$224:$AS$234,4,FALSE) -> 0 | AW53: =HLOOKUP(AW31,Feeds!$F$224:$AS$234,4,FALSE) -> 0 | AX53: =HLOOKUP(AX31,Feeds!$F$224:$AS$234,4,FALSE) -> 0 | AY53: =HLOOKUP(AY31,Feeds!$F$224:$AS$234,4,FALSE) -> 0 | AZ53: =HLOOKUP(AZ31,Feeds!$F$224:$AS$234,4,FALSE) -> 0 | BA53: =HLOOKUP(BA31,Feeds!$F$224:$AS$234,4,FALSE) -> 0 | BB53: =HLOOKUP(BB31,Feeds!$F$224:$AS$234,4,FALSE) -> 0 | BC53: =HLOOKUP(BC31,Feeds!$F$224:$AS$234,4,FALSE) -> 0 | BD53: =HLOOKUP(BD31,Feeds!$F$224:$AS$234,4,FALSE) -> 0 | BE53: =HLOOKUP(BE31,Feeds!$F$224:$AS$234,4,FALSE) -> 0
E54: Volatile solids kg/day/pi | G54: =G53/100*G52 -> 0 | H54: 0.2329811734 | I54: =I53/100*I52 -> 0.1014054748 | J54: =J53/100*J52 -> 0.1014054748 | K54: 0.2445802362 | L54: 0.0033561004 | M54: 0.0739923448 | N54: 0.1174313609 | O54: 0.2426591095 | P54: 0 | Q54: 0 | R54: 0 | S54: 0 | T54: 0 | U54: 0 | V54: 0 | W54: 0 | X54: 0 | Y54: 0 | Z54: 0 | AA54: 0 | AB54: 0 | AC54: 0 | AD54: 0 | AE54: 0 | AF54: 0 | AG54: 0 | AH54: 0 | AI54: 0 | AJ54: 0 | AK54: 0 | AL54: 0 | AM54: 0 | AN54: 0 | AO54: 0 | AP54: 0 | AQ54: 0 | AR54: 0 | AS54: 0 | AT54: 0 | AU54: 0 | AV54: 0 | AW54: 0 | AX54: 0 | AY54: 0 | AZ54: 0 | BA54: 0 | BB54: 0 | BC54: 0 | BD54: 0 | BE54: 0
E55: % N in feed | G55: =G47 -> 0 | H55: 2.3375632 | I55: =I47 -> 2.3375632 | J55: =J47 -> 2.3375632 | K55: 2.76337056 | L55: 3.63363808 | M55: 3.1741776 | N55: 3.07055088 | O55: 2.93136 | P55: 0 | Q55: 0 | R55: 0 | S55: 0 | T55: 0 | U55: 0 | V55: 0 | W55: 0 | X55: 0 | Y55: 0 | Z55: 0 | AA55: 0 | AB55: 0 | AC55: 0 | AD55: 0 | AE55: 0 | AF55: 0 | AG55: 0 | AH55: 0 | AI55: 0 | AJ55: 0 | AK55: 0 | AL55: 0 | AM55: 0 | AN55: 0 | AO55: 0 | AP55: 0 | AQ55: 0 | AR55: 0 | AS55: 0 | AT55: 0 | AU55: 0 | AV55: 0 | AW55: 0 | AX55: 0 | AY55: 0 | AZ55: 0 | BA55: 0 | BB55: 0 | BC55: 0 | BD55: 0 | BE55: 0
E56: N kg/day/pig | G56: =G55/100*G52 -> 0 | H56: 0.006498425696 | I56: =I55/100*I52 -> 0.002828451472 | J56: =J55/100*J52 -> 0.002828451472 | K56: 0.008013774624 | L56: 0.0001453455232 | M56: 0.002793276288 | N56: 0.004298771232 | O56: 0.008500944 | P56: 0 | Q56: 0 | R56: 0 | S56: 0 | T56: 0 | U56: 0 | V56: 0 | W56: 0 | X56: 0 | Y56: 0 | Z56: 0 | AA56: 0 | AB56: 0 | AC56: 0 | AD56: 0 | AE56: 0 | AF56: 0 | AG56: 0 | AH56: 0 | AI56: 0 | AJ56: 0 | AK56: 0 | AL56: 0 | AM56: 0 | AN56: 0 | AO56: 0 | AP56: 0 | AQ56: 0 | AR56: 0 | AS56: 0 | AT56: 0 | AU56: 0 | AV56: 0 | AW56: 0 | AX56: 0 | AY56: 0 | AZ56: 0 | BA56: 0 | BB56: 0 | BC56: 0 | BD56: 0 | BE56: 0
D57: Total Waste
E58: Volatile Solids kg/day/pig | G58: =G46+G54 -> 0 | H58: 0.5750256406 | I58: =I46+I54 -> 0.3997999725 | J58: =J46+J54 -> 0.3982778543 | K58: 0.8148792073 | L58: 0.01150752134 | M58: 0.1449161703 | N58: 0.2332711311 | O58: 0.5085487086 | P58: =P46+P54 -> 0 | Q58: 0 | R58: 0 | S58: 0 | T58: 0 | U58: 0 | V58: 0 | W58: 0 | X58: 0 | Y58: 0 | Z58: 0 | AA58: 0 | AB58: 0 | AC58: 0 | AD58: 0 | AE58: 0 | AF58: 0 | AG58: 0 | AH58: 0 | AI58: 0 | AJ58: 0 | AK58: 0 | AL58: 0 | AM58: 0 | AN58: 0 | AO58: 0 | AP58: 0 | AQ58: 0 | AR58: 0 | AS58: 0 | AT58: 0 | AU58: 0 | AV58: 0 | AW58: 0 | AX58: 0 | AY58: 0 | AZ58: 0 | BA58: 0 | BB58: 0 | BC58: 0 | BD58: 0 | BE58: 0
E59: Volatile Solids kg/year | G59: =G58*365.25*G19 -> 0 | H59: 10501.40576 | I59: =I58*365.25*I19 -> 6133.131478 | J59: 122632.0414 | K59: 46728.63698 | L59: 6292.07389 | M59: 121475.7986 | N59: 183355.3079 | O59: 397499.4699 | P59: =P58*365.25*P19 -> 0 | Q59: 0 | R59: 0 | S59: 0 | T59: 0 | U59: 0 | V59: 0 | W59: 0 | X59: 0 | Y59: 0 | Z59: 0 | AA59: 0 | AB59: 0 | AC59: 0 | AD59: 0 | AE59: 0 | AF59: 0 | AG59: 0 | AH59: 0 | AI59: 0 | AJ59: 0 | AK59: 0 | AL59: 0 | AM59: 0 | AN59: =AN58*365.25*AN19 -> 0 | AO59: 0 | AP59: 0 | AQ59: 0 | AR59: 0 | AS59: 0 | AT59: 0 | AU59: 0 | AV59: 0 | AW59: 0 | AX59: 0 | AY59: 0 | AZ59: 0 | BA59: 0 | BB59: 0 | BC59: 0 | BD59: 0 | BE59: 0
E60: N kg/day/pig | G60: =G50+G56 -> 0 | H60: 0.04669854267 | I60: =I50+I56 -> 0.05380116619 | J60: =J50+J56 -> 0.05514482916 | K60: 0.1602754925 | L60: -0.005771733922 | M60: 0.01602578614 | N60: 0.02800234647 | O60: 0.05816065951 | P60: =P50+P56 -> 0 | Q60: 0 | R60: 0 | S60: 0 | T60: 0 | U60: 0 | V60: 0 | W60: 0 | X60: 0 | Y60: 0 | Z60: 0 | AA60: 0 | AB60: 0 | AC60: 0 | AD60: 0 | AE60: 0 | AF60: 0 | AG60: 0 | AH60: 0 | AI60: 0 | AJ60: 0 | AK60: 0 | AL60: 0 | AM60: 0 | AN60: 0 | AO60: 0 | AP60: 0 | AQ60: 0 | AR60: 0 | AS60: 0 | AT60: 0 | AU60: 0 | AV60: 0 | AW60: 0 | AX60: 0 | AY60: 0 | AZ60: 0 | BA60: 0 | BB60: 0 | BC60: 0 | BD60: 0 | BE60: 0
E61: N kg/year | G61: =G60*365.25*G19 -> 0 | H61: 852.8321356 | I61: =I60*365.25*I19 -> 825.33679 | J61: 16979.40998 | K61: 9190.87791 | L61: -3155.864345 | M61: 13433.5952 | N61: 22010.34836 | O61: 45460.4071 | P61: =P60*365.25*P19 -> 0 | Q61: 0 | R61: 0 | S61: 0 | T61: 0 | U61: 0 | V61: 0 | W61: 0 | X61: 0 | Y61: 0 | Z61: 0 | AA61: 0 | AB61: 0 | AC61: 0 | AD61: 0 | AE61: 0 | AF61: 0 | AG61: 0 | AH61: 0 | AI61: 0 | AJ61: 0 | AK61: 0 | AL61: 0 | AM61: 0 | AN61: =AN60*365.25*AN19 -> 0 | AO61: 0 | AP61: 0 | AQ61: 0 | AR61: 0 | AS61: 0 | AT61: 0 | AU61: 0 | AV61: 0 | AW61: 0 | AX61: 0 | AY61: 0 | AZ61: 0 | BA61: 0 | BB61: 0 | BC61: 0 | BD61: 0 | BE61: 0
D62: Waste Mangement
E63: Maure Mangement System | G63: =G20 -> 0 | H63: Ponds I | I63: =I20 -> Ponds I | J63: Ponds I | K63: Ponds I | L63: Ponds I | M63: Straw Igloo | N63: Ponds I | O63: Ponds I | P63: 0 | Q63: 0 | R63: 0 | S63: 0 | T63: 0 | U63: 0 | V63: 0 | W63: 0 | X63: 0 | Y63: 0 | Z63: 0 | AA63: 0 | AB63: 0 | AC63: 0 | AD63: 0 | AE63: 0 | AF63: 0 | AG63: 0 | AH63: 0 | AI63: 0 | AJ63: 0 | AK63: 0 | AL63: 0 | AM63: 0 | AN63: =AN20 -> 0 | AO63: 0 | AP63: 0 | AQ63: 0 | AR63: 0 | AS63: 0 | AT63: 0 | AU63: 0 | AV63: 0 | AW63: 0 | AX63: 0 | AY63: 0 | AZ63: 0 | BA63: 0 | BB63: 0 | BC63: 0 | BD63: 0 | BE63: 0
E64: CO2-e/kg VS | G64: =IF(G20<>0,VLOOKUP(G20,MMSSum!$S$8:$V$12,3,FALSE),0) -> 0 | H64: =IF(H20<>0,VLOOKUP(H20,MMSSum!$S$8:$V$12,3,FALSE),0) -> 4.799839275 | I64: =IF(I20<>0,VLOOKUP(I20,MMSSum!$S$8:$V$12,3,FALSE),0) -> 4.799839275 | J64: =IF(J20<>0,VLOOKUP(J20,MMSSum!$S$8:$V$12,3,FALSE),0) -> 4.799839275 | K64: =IF(K20<>0,VLOOKUP(K20,MMSSum!$S$8:$V$12,3,FALSE),0) -> 4.799839275 | L64: =IF(L20<>0,VLOOKUP(L20,MMSSum!$S$8:$V$12,3,FALSE),0) -> 4.799839275 | M64: =IF(M20<>0,VLOOKUP(M20,MMSSum!$S$8:$V$12,3,FALSE),0) -> 0.0938385 | N64: =IF(N20<>0,VLOOKUP(N20,MMSSum!$S$8:$V$12,3,FALSE),0) -> 4.799839275 | O64: =IF(O20<>0,VLOOKUP(O20,MMSSum!$S$8:$V$12,3,FALSE),0) -> 4.799839275 | P64: =IF(P20<>0,VLOOKUP(P20,MMSSum!$S$8:$V$12,3,FALSE),0) -> 0 | Q64: =IF(Q20<>0,VLOOKUP(Q20,MMSSum!$S$8:$V$12,3,FALSE),0) -> 0 | R64: =IF(R20<>0,VLOOKUP(R20,MMSSum!$S$8:$V$12,3,FALSE),0) -> 0 | S64: =IF(S20<>0,VLOOKUP(S20,MMSSum!$S$8:$V$12,3,FALSE),0) -> 0 | T64: =IF(T20<>0,VLOOKUP(T20,MMSSum!$S$8:$V$12,3,FALSE),0) -> 0 | U64: =IF(U20<>0,VLOOKUP(U20,MMSSum!$S$8:$V$12,3,FALSE),0) -> 0 | V64: =IF(V20<>0,VLOOKUP(V20,MMSSum!$S$8:$V$12,3,FALSE),0) -> 0 | W64: =IF(W20<>0,VLOOKUP(W20,MMSSum!$S$8:$V$12,3,FALSE),0) -> 0 | X64: =IF(X20<>0,VLOOKUP(X20,MMSSum!$S$8:$V$12,3,FALSE),0) -> 0 | Y64: =IF(Y20<>0,VLOOKUP(Y20,MMSSum!$S$8:$V$12,3,FALSE),0) -> 0 | Z64: =IF(Z20<>0,VLOOKUP(Z20,MMSSum!$S$8:$V$12,3,FALSE),0) -> 0 | AA64: =IF(AA20<>0,VLOOKUP(AA20,MMSSum!$S$8:$V$12,3,FALSE),0) -> 0 | AB64: =IF(AB20<>0,VLOOKUP(AB20,MMSSum!$S$8:$V$12,3,FALSE),0) -> 0 | AC64: =IF(AC20<>0,VLOOKUP(AC20,MMSSum!$S$8:$V$12,3,FALSE),0) -> 0 | AD64: =IF(AD20<>0,VLOOKUP(AD20,MMSSum!$S$8:$V$12,3,FALSE),0) -> 0 | AE64: =IF(AE20<>0,VLOOKUP(AE20,MMSSum!$S$8:$V$12,3,FALSE),0) -> 0 | AF64: =IF(AF20<>0,VLOOKUP(AF20,MMSSum!$S$8:$V$12,3,FALSE),0) -> 0 | AG64: =IF(AG20<>0,VLOOKUP(AG20,MMSSum!$S$8:$V$12,3,FALSE),0) -> 0 | AH64: =IF(AH20<>0,VLOOKUP(AH20,MMSSum!$S$8:$V$12,3,FALSE),0) -> 0 | AI64: =IF(AI20<>0,VLOOKUP(AI20,MMSSum!$S$8:$V$12,3,FALSE),0) -> 0 | AJ64: =IF(AJ20<>0,VLOOKUP(AJ20,MMSSum!$S$8:$V$12,3,FALSE),0) -> 0 | AK64: =IF(AK20<>0,VLOOKUP(AK20,MMSSum!$S$8:$V$12,3,FALSE),0) -> 0 | AL64: =IF(AL20<>0,VLOOKUP(AL20,MMSSum!$S$8:$V$12,3,FALSE),0) -> 0 | AM64: =IF(AM20<>0,VLOOKUP(AM20,MMSSum!$S$8:$V$12,3,FALSE),0) -> 0 | AN64: =IF(AN20<>0,VLOOKUP(AN20,MMSSum!$S$8:$V$12,3,FALSE),0) -> 0 | AO64: =IF(AO20<>0,VLOOKUP(AO20,MMSSum!$S$8:$V$12,3,FALSE),0) -> 0 | AP64: =IF(AP20<>0,VLOOKUP(AP20,MMSSum!$S$8:$V$12,3,FALSE),0) -> 0 | AQ64: =IF(AQ20<>0,VLOOKUP(AQ20,MMSSum!$S$8:$V$12,3,FALSE),0) -> 0 | AR64: =IF(AR20<>0,VLOOKUP(AR20,MMSSum!$S$8:$V$12,3,FALSE),0) -> 0 | AS64: =IF(AS20<>0,VLOOKUP(AS20,MMSSum!$S$8:$V$12,3,FALSE),0) -> 0 | AT64: =IF(AT20<>0,VLOOKUP(AT20,MMSSum!$S$8:$V$12,3,FALSE),0) -> 0 | AU64: =IF(AU20<>0,VLOOKUP(AU20,MMSSum!$S$8:$V$12,3,FALSE),0) -> 0 | AV64: =IF(AV20<>0,VLOOKUP(AV20,MMSSum!$S$8:$V$12,3,FALSE),0) -> 0 | AW64: =IF(AW20<>0,VLOOKUP(AW20,MMSSum!$S$8:$V$12,3,FALSE),0) -> 0 | AX64: =IF(AX20<>0,VLOOKUP(AX20,MMSSum!$S$8:$V$12,3,FALSE),0) -> 0 | AY64: =IF(AY20<>0,VLOOKUP(AY20,MMSSum!$S$8:$V$12,3,FALSE),0) -> 0 | AZ64: =IF(AZ20<>0,VLOOKUP(AZ20,MMSSum!$S$8:$V$12,3,FALSE),0) -> 0 | BA64: =IF(BA20<>0,VLOOKUP(BA20,MMSSum!$S$8:$V$12,3,FALSE),0) -> 0 | BB64: =IF(BB20<>0,VLOOKUP(BB20,MMSSum!$S$8:$V$12,3,FALSE),0) -> 0 | BC64: =IF(BC20<>0,VLOOKUP(BC20,MMSSum!$S$8:$V$12,3,FALSE),0) -> 0 | BD64: =IF(BD20<>0,VLOOKUP(BD20,MMSSum!$S$8:$V$12,3,FALSE),0) -> 0 | BE64: =IF(BE20<>0,VLOOKUP(BE20,MMSSum!$S$8:$V$12,3,FALSE),0) -> 0
E65: Total CO2-e kg from VS | F65: =SUM(H65:BE65) -> 3722356.767 | G65: =G64*G59 -> 0 | H65: 50405.05981 | I65: =I64*I59 -> 29438.04534 | J65: 588614.0888 | K65: 224289.9471 | L65: 30200.94338 | M65: 11399.10673 | N65: 880076.0082 | O65: 1907933.567 | P65: =P64*P59 -> 0 | Q65: 0 | R65: 0 | S65: 0 | T65: 0 | U65: 0 | V65: 0 | W65: 0 | X65: 0 | Y65: 0 | Z65: 0 | AA65: 0 | AB65: 0 | AC65: 0 | AD65: 0 | AE65: 0 | AF65: 0 | AG65: 0 | AH65: 0 | AI65: 0 | AJ65: 0 | AK65: 0 | AL65: 0 | AM65: 0 | AN65: 0 | AO65: 0 | AP65: 0 | AQ65: 0 | AR65: 0 | AS65: 0 | AT65: 0 | AU65: 0 | AV65: 0 | AW65: 0 | AX65: 0 | AY65: 0 | AZ65: 0 | BA65: 0 | BB65: 0 | BC65: 0 | BD65: 0 | BE65: 0
E66: N2O Direct CO2-e/kg N | G66: =IF(G20<>0,VLOOKUP(G20,MMSSum!$S$8:$X$12,4,FALSE),0) -> 0 | H66: =IF(H20<>0,VLOOKUP(H20,MMSSum!$S$8:$X$12,4,FALSE),0) -> 0.9499285714 | I66: =IF(I20<>0,VLOOKUP(I20,MMSSum!$S$8:$X$12,4,FALSE),0) -> 0.9499285714 | J66: =IF(J20<>0,VLOOKUP(J20,MMSSum!$S$8:$X$12,4,FALSE),0) -> 0.9499285714 | K66: =IF(K20<>0,VLOOKUP(K20,MMSSum!$S$8:$X$12,4,FALSE),0) -> 0.9499285714 | L66: =IF(L20<>0,VLOOKUP(L20,MMSSum!$S$8:$X$12,4,FALSE),0) -> 0.9499285714 | M66: =IF(M20<>0,VLOOKUP(M20,MMSSum!$S$8:$X$12,4,FALSE),0) -> 9.742857143 | N66: =IF(N20<>0,VLOOKUP(N20,MMSSum!$S$8:$X$12,4,FALSE),0) -> 0.9499285714 | O66: =IF(O20<>0,VLOOKUP(O20,MMSSum!$S$8:$X$12,4,FALSE),0) -> 0.9499285714 | P66: =IF(P20<>0,VLOOKUP(P20,MMSSum!$S$8:$X$12,4,FALSE),0) -> 0 | Q66: =IF(Q20<>0,VLOOKUP(Q20,MMSSum!$S$8:$X$12,4,FALSE),0) -> 0 | R66: =IF(R20<>0,VLOOKUP(R20,MMSSum!$S$8:$X$12,4,FALSE),0) -> 0 | S66: =IF(S20<>0,VLOOKUP(S20,MMSSum!$S$8:$X$12,4,FALSE),0) -> 0 | T66: =IF(T20<>0,VLOOKUP(T20,MMSSum!$S$8:$X$12,4,FALSE),0) -> 0 | U66: =IF(U20<>0,VLOOKUP(U20,MMSSum!$S$8:$X$12,4,FALSE),0) -> 0 | V66: =IF(V20<>0,VLOOKUP(V20,MMSSum!$S$8:$X$12,4,FALSE),0) -> 0 | W66: =IF(W20<>0,VLOOKUP(W20,MMSSum!$S$8:$X$12,4,FALSE),0) -> 0 | X66: =IF(X20<>0,VLOOKUP(X20,MMSSum!$S$8:$X$12,4,FALSE),0) -> 0 | Y66: =IF(Y20<>0,VLOOKUP(Y20,MMSSum!$S$8:$X$12,4,FALSE),0) -> 0 | Z66: =IF(Z20<>0,VLOOKUP(Z20,MMSSum!$S$8:$X$12,4,FALSE),0) -> 0 | AA66: =IF(AA20<>0,VLOOKUP(AA20,MMSSum!$S$8:$X$12,4,FALSE),0) -> 0 | AB66: =IF(AB20<>0,VLOOKUP(AB20,MMSSum!$S$8:$X$12,4,FALSE),0) -> 0 | AC66: =IF(AC20<>0,VLOOKUP(AC20,MMSSum!$S$8:$X$12,4,FALSE),0) -> 0 | AD66: =IF(AD20<>0,VLOOKUP(AD20,MMSSum!$S$8:$X$12,4,FALSE),0) -> 0 | AE66: =IF(AE20<>0,VLOOKUP(AE20,MMSSum!$S$8:$X$12,4,FALSE),0) -> 0 | AF66: =IF(AF20<>0,VLOOKUP(AF20,MMSSum!$S$8:$X$12,4,FALSE),0) -> 0 | AG66: =IF(AG20<>0,VLOOKUP(AG20,MMSSum!$S$8:$X$12,4,FALSE),0) -> 0 | AH66: =IF(AH20<>0,VLOOKUP(AH20,MMSSum!$S$8:$X$12,4,FALSE),0) -> 0 | AI66: =IF(AI20<>0,VLOOKUP(AI20,MMSSum!$S$8:$X$12,4,FALSE),0) -> 0 | AJ66: =IF(AJ20<>0,VLOOKUP(AJ20,MMSSum!$S$8:$X$12,4,FALSE),0) -> 0 | AK66: =IF(AK20<>0,VLOOKUP(AK20,MMSSum!$S$8:$X$12,4,FALSE),0) -> 0 | AL66: =IF(AL20<>0,VLOOKUP(AL20,MMSSum!$S$8:$X$12,4,FALSE),0) -> 0 | AM66: =IF(AM20<>0,VLOOKUP(AM20,MMSSum!$S$8:$X$12,4,FALSE),0) -> 0 | AN66: =IF(AN20<>0,VLOOKUP(AN20,MMSSum!$S$8:$X$12,4,FALSE),0) -> 0 | AO66: =IF(AO20<>0,VLOOKUP(AO20,MMSSum!$S$8:$X$12,4,FALSE),0) -> 0 | AP66: =IF(AP20<>0,VLOOKUP(AP20,MMSSum!$S$8:$X$12,4,FALSE),0) -> 0 | AQ66: =IF(AQ20<>0,VLOOKUP(AQ20,MMSSum!$S$8:$X$12,4,FALSE),0) -> 0 | AR66: =IF(AR20<>0,VLOOKUP(AR20,MMSSum!$S$8:$X$12,4,FALSE),0) -> 0 | AS66: =IF(AS20<>0,VLOOKUP(AS20,MMSSum!$S$8:$X$12,4,FALSE),0) -> 0 | AT66: =IF(AT20<>0,VLOOKUP(AT20,MMSSum!$S$8:$X$12,4,FALSE),0) -> 0 | AU66: =IF(AU20<>0,VLOOKUP(AU20,MMSSum!$S$8:$X$12,4,FALSE),0) -> 0 | AV66: =IF(AV20<>0,VLOOKUP(AV20,MMSSum!$S$8:$X$12,4,FALSE),0) -> 0 | AW66: =IF(AW20<>0,VLOOKUP(AW20,MMSSum!$S$8:$X$12,4,FALSE),0) -> 0 | AX66: =IF(AX20<>0,VLOOKUP(AX20,MMSSum!$S$8:$X$12,4,FALSE),0) -> 0 | AY66: =IF(AY20<>0,VLOOKUP(AY20,MMSSum!$S$8:$X$12,4,FALSE),0) -> 0 | AZ66: =IF(AZ20<>0,VLOOKUP(AZ20,MMSSum!$S$8:$X$12,4,FALSE),0) -> 0 | BA66: =IF(BA20<>0,VLOOKUP(BA20,MMSSum!$S$8:$X$12,4,FALSE),0) -> 0 | BB66: =IF(BB20<>0,VLOOKUP(BB20,MMSSum!$S$8:$X$12,4,FALSE),0) -> 0 | BC66: =IF(BC20<>0,VLOOKUP(BC20,MMSSum!$S$8:$X$12,4,FALSE),0) -> 0 | BD66: =IF(BD20<>0,VLOOKUP(BD20,MMSSum!$S$8:$X$12,4,FALSE),0) -> 0 | BE66: =IF(BE20<>0,VLOOKUP(BE20,MMSSum!$S$8:$X$12,4,FALSE),0) -> 0
E67: CO2-e/kg N from N2O Direct | F67: =SUM(H67:BE67) -> 218430.1964 | G67: =G66*G$61 -> 0 | H67: 810.1296122 | I67: =I66*I$61 -> 784.0109978 | J67: 16129.22667 | K67: 8730.677523 | L67: -2997.845709 | M67: 130881.5989 | N67: 20908.25878 | O67: 43184.13957 | P67: =P66*P$61 -> 0 | Q67: 0 | R67: 0 | S67: 0 | T67: 0 | U67: 0 | V67: 0 | W67: 0 | X67: 0 | Y67: 0 | Z67: 0 | AA67: 0 | AB67: 0 | AC67: 0 | AD67: 0 | AE67: 0 | AF67: 0 | AG67: 0 | AH67: 0 | AI67: 0 | AJ67: 0 | AK67: 0 | AL67: 0 | AM67: 0 | AN67: 0 | AO67: 0 | AP67: 0 | AQ67: 0 | AR67: 0 | AS67: 0 | AT67: 0 | AU67: 0 | AV67: 0 | AW67: 0 | AX67: 0 | AY67: 0 | AZ67: 0 | BA67: 0 | BB67: 0 | BC67: 0 | BD67: 0 | BE67: 0
E68: N2O Vol. CO2-e/kg N | G68: =IF(G20<>0,VLOOKUP(G20,MMSSum!$S$8:$X$12,5,FALSE),0) -> 0 | H68: =IF(H20<>0,VLOOKUP(H20,MMSSum!$S$8:$X$12,5,FALSE),0) -> 1.96075 | I68: =IF(I20<>0,VLOOKUP(I20,MMSSum!$S$8:$X$12,5,FALSE),0) -> 1.96075 | J68: =IF(J20<>0,VLOOKUP(J20,MMSSum!$S$8:$X$12,5,FALSE),0) -> 1.96075 | K68: =IF(K20<>0,VLOOKUP(K20,MMSSum!$S$8:$X$12,5,FALSE),0) -> 1.96075 | L68: =IF(L20<>0,VLOOKUP(L20,MMSSum!$S$8:$X$12,5,FALSE),0) -> 1.96075 | M68: =IF(M20<>0,VLOOKUP(M20,MMSSum!$S$8:$X$12,5,FALSE),0) -> 2.192142857 | N68: =IF(N20<>0,VLOOKUP(N20,MMSSum!$S$8:$X$12,5,FALSE),0) -> 1.96075 | O68: =IF(O20<>0,VLOOKUP(O20,MMSSum!$S$8:$X$12,5,FALSE),0) -> 1.96075 | P68: =IF(P20<>0,VLOOKUP(P20,MMSSum!$S$8:$X$12,5,FALSE),0) -> 0 | Q68: =IF(Q20<>0,VLOOKUP(Q20,MMSSum!$S$8:$X$12,5,FALSE),0) -> 0 | R68: =IF(R20<>0,VLOOKUP(R20,MMSSum!$S$8:$X$12,5,FALSE),0) -> 0 | S68: =IF(S20<>0,VLOOKUP(S20,MMSSum!$S$8:$X$12,5,FALSE),0) -> 0 | T68: =IF(T20<>0,VLOOKUP(T20,MMSSum!$S$8:$X$12,5,FALSE),0) -> 0 | U68: =IF(U20<>0,VLOOKUP(U20,MMSSum!$S$8:$X$12,5,FALSE),0) -> 0 | V68: =IF(V20<>0,VLOOKUP(V20,MMSSum!$S$8:$X$12,5,FALSE),0) -> 0 | W68: =IF(W20<>0,VLOOKUP(W20,MMSSum!$S$8:$X$12,5,FALSE),0) -> 0 | X68: =IF(X20<>0,VLOOKUP(X20,MMSSum!$S$8:$X$12,5,FALSE),0) -> 0 | Y68: =IF(Y20<>0,VLOOKUP(Y20,MMSSum!$S$8:$X$12,5,FALSE),0) -> 0 | Z68: =IF(Z20<>0,VLOOKUP(Z20,MMSSum!$S$8:$X$12,5,FALSE),0) -> 0 | AA68: =IF(AA20<>0,VLOOKUP(AA20,MMSSum!$S$8:$X$12,5,FALSE),0) -> 0 | AB68: =IF(AB20<>0,VLOOKUP(AB20,MMSSum!$S$8:$X$12,5,FALSE),0) -> 0 | AC68: =IF(AC20<>0,VLOOKUP(AC20,MMSSum!$S$8:$X$12,5,FALSE),0) -> 0 | AD68: =IF(AD20<>0,VLOOKUP(AD20,MMSSum!$S$8:$X$12,5,FALSE),0) -> 0 | AE68: =IF(AE20<>0,VLOOKUP(AE20,MMSSum!$S$8:$X$12,5,FALSE),0) -> 0 | AF68: =IF(AF20<>0,VLOOKUP(AF20,MMSSum!$S$8:$X$12,5,FALSE),0) -> 0 | AG68: =IF(AG20<>0,VLOOKUP(AG20,MMSSum!$S$8:$X$12,5,FALSE),0) -> 0 | AH68: =IF(AH20<>0,VLOOKUP(AH20,MMSSum!$S$8:$X$12,5,FALSE),0) -> 0 | AI68: =IF(AI20<>0,VLOOKUP(AI20,MMSSum!$S$8:$X$12,5,FALSE),0) -> 0 | AJ68: =IF(AJ20<>0,VLOOKUP(AJ20,MMSSum!$S$8:$X$12,5,FALSE),0) -> 0 | AK68: =IF(AK20<>0,VLOOKUP(AK20,MMSSum!$S$8:$X$12,5,FALSE),0) -> 0 | AL68: =IF(AL20<>0,VLOOKUP(AL20,MMSSum!$S$8:$X$12,5,FALSE),0) -> 0 | AM68: =IF(AM20<>0,VLOOKUP(AM20,MMSSum!$S$8:$X$12,5,FALSE),0) -> 0 | AN68: =IF(AN20<>0,VLOOKUP(AN20,MMSSum!$S$8:$X$12,5,FALSE),0) -> 0 | AO68: =IF(AO20<>0,VLOOKUP(AO20,MMSSum!$S$8:$X$12,5,FALSE),0) -> 0 | AP68: =IF(AP20<>0,VLOOKUP(AP20,MMSSum!$S$8:$X$12,5,FALSE),0) -> 0 | AQ68: =IF(AQ20<>0,VLOOKUP(AQ20,MMSSum!$S$8:$X$12,5,FALSE),0) -> 0 | AR68: =IF(AR20<>0,VLOOKUP(AR20,MMSSum!$S$8:$X$12,5,FALSE),0) -> 0 | AS68: =IF(AS20<>0,VLOOKUP(AS20,MMSSum!$S$8:$X$12,5,FALSE),0) -> 0 | AT68: =IF(AT20<>0,VLOOKUP(AT20,MMSSum!$S$8:$X$12,5,FALSE),0) -> 0 | AU68: =IF(AU20<>0,VLOOKUP(AU20,MMSSum!$S$8:$X$12,5,FALSE),0) -> 0 | AV68: =IF(AV20<>0,VLOOKUP(AV20,MMSSum!$S$8:$X$12,5,FALSE),0) -> 0 | AW68: =IF(AW20<>0,VLOOKUP(AW20,MMSSum!$S$8:$X$12,5,FALSE),0) -> 0 | AX68: =IF(AX20<>0,VLOOKUP(AX20,MMSSum!$S$8:$X$12,5,FALSE),0) -> 0 | AY68: =IF(AY20<>0,VLOOKUP(AY20,MMSSum!$S$8:$X$12,5,FALSE),0) -> 0 | AZ68: =IF(AZ20<>0,VLOOKUP(AZ20,MMSSum!$S$8:$X$12,5,FALSE),0) -> 0 | BA68: =IF(BA20<>0,VLOOKUP(BA20,MMSSum!$S$8:$X$12,5,FALSE),0) -> 0 | BB68: =IF(BB20<>0,VLOOKUP(BB20,MMSSum!$S$8:$X$12,5,FALSE),0) -> 0 | BC68: =IF(BC20<>0,VLOOKUP(BC20,MMSSum!$S$8:$X$12,5,FALSE),0) -> 0 | BD68: =IF(BD20<>0,VLOOKUP(BD20,MMSSum!$S$8:$X$12,5,FALSE),0) -> 0 | BE68: =IF(BE20<>0,VLOOKUP(BE20,MMSSum!$S$8:$X$12,5,FALSE),0) -> 0
E69: CO2-e From N2O Volatilisation | F69: =SUM(H69:BE69) -> 210157.6442 | G69: =G68*G$61 -> 0 | H69: 1672.19061 | I69: =I68*I$61 -> 1618.279111 | J69: 33292.37812 | K69: 18021.01386 | L69: -6187.861015 | M69: 29448.35975 | N69: 43156.79056 | O69: 89136.49322 | P69: =P68*P$61 -> 0 | Q69: 0 | R69: 0 | S69: 0 | T69: 0 | U69: 0 | V69: 0 | W69: 0 | X69: 0 | Y69: 0 | Z69: 0 | AA69: 0 | AB69: 0 | AC69: 0 | AD69: 0 | AE69: 0 | AF69: 0 | AG69: 0 | AH69: 0 | AI69: 0 | AJ69: 0 | AK69: 0 | AL69: 0 | AM69: 0 | AN69: 0 | AO69: 0 | AP69: 0 | AQ69: 0 | AR69: 0 | AS69: 0 | AT69: 0 | AU69: 0 | AV69: 0 | AW69: 0 | AX69: 0 | AY69: 0 | AZ69: 0 | BA69: 0 | BB69: 0 | BC69: 0 | BD69: 0 | BE69: 0
E70: N2O LRO CO2-e/kg N | G70: =IF(G20<>0,VLOOKUP(G20,MMSSum!$S$8:$X$12,6,FALSE),0) -> 0 | H70: =IF(H20<>0,VLOOKUP(H20,MMSSum!$S$8:$X$12,6,FALSE),0) -> 0.3644606478 | I70: =IF(I20<>0,VLOOKUP(I20,MMSSum!$S$8:$X$12,6,FALSE),0) -> 0.3644606478 | J70: =IF(J20<>0,VLOOKUP(J20,MMSSum!$S$8:$X$12,6,FALSE),0) -> 0.3644606478 | K70: =IF(K20<>0,VLOOKUP(K20,MMSSum!$S$8:$X$12,6,FALSE),0) -> 0.3644606478 | L70: =IF(L20<>0,VLOOKUP(L20,MMSSum!$S$8:$X$12,6,FALSE),0) -> 0.3644606478 | M70: =IF(M20<>0,VLOOKUP(M20,MMSSum!$S$8:$X$12,6,FALSE),0) -> 0.3243458036 | N70: =IF(N20<>0,VLOOKUP(N20,MMSSum!$S$8:$X$12,6,FALSE),0) -> 0.3644606478 | O70: =IF(O20<>0,VLOOKUP(O20,MMSSum!$S$8:$X$12,6,FALSE),0) -> 0.3644606478 | P70: =IF(P20<>0,VLOOKUP(P20,MMSSum!$S$8:$X$12,6,FALSE),0) -> 0 | Q70: =IF(Q20<>0,VLOOKUP(Q20,MMSSum!$S$8:$X$12,6,FALSE),0) -> 0 | R70: =IF(R20<>0,VLOOKUP(R20,MMSSum!$S$8:$X$12,6,FALSE),0) -> 0 | S70: =IF(S20<>0,VLOOKUP(S20,MMSSum!$S$8:$X$12,6,FALSE),0) -> 0 | T70: =IF(T20<>0,VLOOKUP(T20,MMSSum!$S$8:$X$12,6,FALSE),0) -> 0 | U70: =IF(U20<>0,VLOOKUP(U20,MMSSum!$S$8:$X$12,6,FALSE),0) -> 0 | V70: =IF(V20<>0,VLOOKUP(V20,MMSSum!$S$8:$X$12,6,FALSE),0) -> 0 | W70: =IF(W20<>0,VLOOKUP(W20,MMSSum!$S$8:$X$12,6,FALSE),0) -> 0 | X70: =IF(X20<>0,VLOOKUP(X20,MMSSum!$S$8:$X$12,6,FALSE),0) -> 0 | Y70: =IF(Y20<>0,VLOOKUP(Y20,MMSSum!$S$8:$X$12,6,FALSE),0) -> 0 | Z70: =IF(Z20<>0,VLOOKUP(Z20,MMSSum!$S$8:$X$12,6,FALSE),0) -> 0 | AA70: =IF(AA20<>0,VLOOKUP(AA20,MMSSum!$S$8:$X$12,6,FALSE),0) -> 0 | AB70: =IF(AB20<>0,VLOOKUP(AB20,MMSSum!$S$8:$X$12,6,FALSE),0) -> 0 | AC70: =IF(AC20<>0,VLOOKUP(AC20,MMSSum!$S$8:$X$12,6,FALSE),0) -> 0 | AD70: =IF(AD20<>0,VLOOKUP(AD20,MMSSum!$S$8:$X$12,6,FALSE),0) -> 0 | AE70: =IF(AE20<>0,VLOOKUP(AE20,MMSSum!$S$8:$X$12,6,FALSE),0) -> 0 | AF70: =IF(AF20<>0,VLOOKUP(AF20,MMSSum!$S$8:$X$12,6,FALSE),0) -> 0 | AG70: =IF(AG20<>0,VLOOKUP(AG20,MMSSum!$S$8:$X$12,6,FALSE),0) -> 0 | AH70: =IF(AH20<>0,VLOOKUP(AH20,MMSSum!$S$8:$X$12,6,FALSE),0) -> 0 | AI70: =IF(AI20<>0,VLOOKUP(AI20,MMSSum!$S$8:$X$12,6,FALSE),0) -> 0 | AJ70: =IF(AJ20<>0,VLOOKUP(AJ20,MMSSum!$S$8:$X$12,6,FALSE),0) -> 0 | AK70: =IF(AK20<>0,VLOOKUP(AK20,MMSSum!$S$8:$X$12,6,FALSE),0) -> 0 | AL70: =IF(AL20<>0,VLOOKUP(AL20,MMSSum!$S$8:$X$12,6,FALSE),0) -> 0 | AM70: =IF(AM20<>0,VLOOKUP(AM20,MMSSum!$S$8:$X$12,6,FALSE),0) -> 0 | AN70: =IF(AN20<>0,VLOOKUP(AN20,MMSSum!$S$8:$X$12,6,FALSE),0) -> 0 | AO70: =IF(AO20<>0,VLOOKUP(AO20,MMSSum!$S$8:$X$12,6,FALSE),0) -> 0 | AP70: =IF(AP20<>0,VLOOKUP(AP20,MMSSum!$S$8:$X$12,6,FALSE),0) -> 0 | AQ70: =IF(AQ20<>0,VLOOKUP(AQ20,MMSSum!$S$8:$X$12,6,FALSE),0) -> 0 | AR70: =IF(AR20<>0,VLOOKUP(AR20,MMSSum!$S$8:$X$12,6,FALSE),0) -> 0 | AS70: =IF(AS20<>0,VLOOKUP(AS20,MMSSum!$S$8:$X$12,6,FALSE),0) -> 0 | AT70: =IF(AT20<>0,VLOOKUP(AT20,MMSSum!$S$8:$X$12,6,FALSE),0) -> 0 | AU70: =IF(AU20<>0,VLOOKUP(AU20,MMSSum!$S$8:$X$12,6,FALSE),0) -> 0 | AV70: =IF(AV20<>0,VLOOKUP(AV20,MMSSum!$S$8:$X$12,6,FALSE),0) -> 0 | AW70: =IF(AW20<>0,VLOOKUP(AW20,MMSSum!$S$8:$X$12,6,FALSE),0) -> 0 | AX70: =IF(AX20<>0,VLOOKUP(AX20,MMSSum!$S$8:$X$12,6,FALSE),0) -> 0 | AY70: =IF(AY20<>0,VLOOKUP(AY20,MMSSum!$S$8:$X$12,6,FALSE),0) -> 0 | AZ70: =IF(AZ20<>0,VLOOKUP(AZ20,MMSSum!$S$8:$X$12,6,FALSE),0) -> 0 | BA70: =IF(BA20<>0,VLOOKUP(BA20,MMSSum!$S$8:$X$12,6,FALSE),0) -> 0 | BB70: =IF(BB20<>0,VLOOKUP(BB20,MMSSum!$S$8:$X$12,6,FALSE),0) -> 0 | BC70: =IF(BC20<>0,VLOOKUP(BC20,MMSSum!$S$8:$X$12,6,FALSE),0) -> 0 | BD70: =IF(BD20<>0,VLOOKUP(BD20,MMSSum!$S$8:$X$12,6,FALSE),0) -> 0 | BE70: =IF(BE20<>0,VLOOKUP(BE20,MMSSum!$S$8:$X$12,6,FALSE),0) -> 0
E71: CO2-e From Leach & Runoff N2O | F71: =SUM(H71:BE71) -> 37947.04372 | G71: =G70*G$61 -> 0 | H71: 310.8237526 | I71: =I70*I$61 -> 300.8027811 | J71: 6188.326761 | K71: 3349.713317 | L71: -1150.188364 | M71: 4357.130229 | N71: 8021.905823 | O71: 16568.52942 | P71: =P70*P$61 -> 0 | Q71: 0 | R71: 0 | S71: 0 | T71: 0 | U71: 0 | V71: 0 | W71: 0 | X71: 0 | Y71: 0 | Z71: 0 | AA71: 0 | AB71: 0 | AC71: 0 | AD71: 0 | AE71: 0 | AF71: 0 | AG71: 0 | AH71: 0 | AI71: 0 | AJ71: 0 | AK71: 0 | AL71: 0 | AM71: 0 | AN71: 0 | AO71: 0 | AP71: 0 | AQ71: 0 | AR71: 0 | AS71: 0 | AT71: 0 | AU71: 0 | AV71: 0 | AW71: 0 | AX71: 0 | AY71: 0 | AZ71: 0 | BA71: 0 | BB71: 0 | BC71: 0 | BD71: 0 | BE71: 0
E72: Soil - Vol N20 CO2-e/kg N | G72: =IF(G20<>0,VLOOKUP(G20,MMSSum!$S$8:$Y$12,7,FALSE),0) -> 0 | H72: =IF(H20<>0,VLOOKUP(H20,MMSSum!$S$8:$Y$12,7,FALSE),0) -> 2.901179286 | I72: =IF(I20<>0,VLOOKUP(I20,MMSSum!$S$8:$Y$12,7,FALSE),0) -> 2.901179286 | J72: =IF(J20<>0,VLOOKUP(J20,MMSSum!$S$8:$Y$12,7,FALSE),0) -> 2.901179286 | K72: =IF(K20<>0,VLOOKUP(K20,MMSSum!$S$8:$Y$12,7,FALSE),0) -> 2.901179286 | L72: =IF(L20<>0,VLOOKUP(L20,MMSSum!$S$8:$Y$12,7,FALSE),0) -> 2.901179286 | M72: =IF(M20<>0,VLOOKUP(M20,MMSSum!$S$8:$Y$12,7,FALSE),0) -> 2.581857143 | N72: =IF(N20<>0,VLOOKUP(N20,MMSSum!$S$8:$Y$12,7,FALSE),0) -> 2.901179286 | O72: =IF(O20<>0,VLOOKUP(O20,MMSSum!$S$8:$Y$12,7,FALSE),0) -> 2.901179286 | P72: =IF(P20<>0,VLOOKUP(P20,MMSSum!$S$8:$Y$12,7,FALSE),0) -> 0 | Q72: =IF(Q20<>0,VLOOKUP(Q20,MMSSum!$S$8:$Y$12,7,FALSE),0) -> 0 | R72: =IF(R20<>0,VLOOKUP(R20,MMSSum!$S$8:$Y$12,7,FALSE),0) -> 0 | S72: =IF(S20<>0,VLOOKUP(S20,MMSSum!$S$8:$Y$12,7,FALSE),0) -> 0 | T72: =IF(T20<>0,VLOOKUP(T20,MMSSum!$S$8:$Y$12,7,FALSE),0) -> 0 | U72: =IF(U20<>0,VLOOKUP(U20,MMSSum!$S$8:$Y$12,7,FALSE),0) -> 0 | V72: =IF(V20<>0,VLOOKUP(V20,MMSSum!$S$8:$Y$12,7,FALSE),0) -> 0 | W72: =IF(W20<>0,VLOOKUP(W20,MMSSum!$S$8:$Y$12,7,FALSE),0) -> 0 | X72: =IF(X20<>0,VLOOKUP(X20,MMSSum!$S$8:$Y$12,7,FALSE),0) -> 0 | Y72: =IF(Y20<>0,VLOOKUP(Y20,MMSSum!$S$8:$Y$12,7,FALSE),0) -> 0 | Z72: =IF(Z20<>0,VLOOKUP(Z20,MMSSum!$S$8:$Y$12,7,FALSE),0) -> 0 | AA72: =IF(AA20<>0,VLOOKUP(AA20,MMSSum!$S$8:$Y$12,7,FALSE),0) -> 0 | AB72: =IF(AB20<>0,VLOOKUP(AB20,MMSSum!$S$8:$Y$12,7,FALSE),0) -> 0 | AC72: =IF(AC20<>0,VLOOKUP(AC20,MMSSum!$S$8:$Y$12,7,FALSE),0) -> 0 | AD72: =IF(AD20<>0,VLOOKUP(AD20,MMSSum!$S$8:$Y$12,7,FALSE),0) -> 0 | AE72: =IF(AE20<>0,VLOOKUP(AE20,MMSSum!$S$8:$Y$12,7,FALSE),0) -> 0 | AF72: =IF(AF20<>0,VLOOKUP(AF20,MMSSum!$S$8:$Y$12,7,FALSE),0) -> 0 | AG72: =IF(AG20<>0,VLOOKUP(AG20,MMSSum!$S$8:$Y$12,7,FALSE),0) -> 0 | AH72: =IF(AH20<>0,VLOOKUP(AH20,MMSSum!$S$8:$Y$12,7,FALSE),0) -> 0 | AI72: =IF(AI20<>0,VLOOKUP(AI20,MMSSum!$S$8:$Y$12,7,FALSE),0) -> 0 | AJ72: =IF(AJ20<>0,VLOOKUP(AJ20,MMSSum!$S$8:$Y$12,7,FALSE),0) -> 0 | AK72: =IF(AK20<>0,VLOOKUP(AK20,MMSSum!$S$8:$Y$12,7,FALSE),0) -> 0 | AL72: =IF(AL20<>0,VLOOKUP(AL20,MMSSum!$S$8:$Y$12,7,FALSE),0) -> 0 | AM72: =IF(AM20<>0,VLOOKUP(AM20,MMSSum!$S$8:$Y$12,7,FALSE),0) -> 0 | AN72: =IF(AN20<>0,VLOOKUP(AN20,MMSSum!$S$8:$Y$12,7,FALSE),0) -> 0 | AO72: =IF(AO20<>0,VLOOKUP(AO20,MMSSum!$S$8:$Y$12,7,FALSE),0) -> 0 | AP72: =IF(AP20<>0,VLOOKUP(AP20,MMSSum!$S$8:$Y$12,7,FALSE),0) -> 0 | AQ72: =IF(AQ20<>0,VLOOKUP(AQ20,MMSSum!$S$8:$Y$12,7,FALSE),0) -> 0 | AR72: =IF(AR20<>0,VLOOKUP(AR20,MMSSum!$S$8:$Y$12,7,FALSE),0) -> 0 | AS72: =IF(AS20<>0,VLOOKUP(AS20,MMSSum!$S$8:$Y$12,7,FALSE),0) -> 0 | AT72: =IF(AT20<>0,VLOOKUP(AT20,MMSSum!$S$8:$Y$12,7,FALSE),0) -> 0 | AU72: =IF(AU20<>0,VLOOKUP(AU20,MMSSum!$S$8:$Y$12,7,FALSE),0) -> 0 | AV72: =IF(AV20<>0,VLOOKUP(AV20,MMSSum!$S$8:$Y$12,7,FALSE),0) -> 0 | AW72: =IF(AW20<>0,VLOOKUP(AW20,MMSSum!$S$8:$Y$12,7,FALSE),0) -> 0 | AX72: =IF(AX20<>0,VLOOKUP(AX20,MMSSum!$S$8:$Y$12,7,FALSE),0) -> 0 | AY72: =IF(AY20<>0,VLOOKUP(AY20,MMSSum!$S$8:$Y$12,7,FALSE),0) -> 0 | AZ72: =IF(AZ20<>0,VLOOKUP(AZ20,MMSSum!$S$8:$Y$12,7,FALSE),0) -> 0 | BA72: =IF(BA20<>0,VLOOKUP(BA20,MMSSum!$S$8:$Y$12,7,FALSE),0) -> 0 | BB72: =IF(BB20<>0,VLOOKUP(BB20,MMSSum!$S$8:$Y$12,7,FALSE),0) -> 0 | BC72: =IF(BC20<>0,VLOOKUP(BC20,MMSSum!$S$8:$Y$12,7,FALSE),0) -> 0 | BD72: =IF(BD20<>0,VLOOKUP(BD20,MMSSum!$S$8:$Y$12,7,FALSE),0) -> 0 | BE72: =IF(BE20<>0,VLOOKUP(BE20,MMSSum!$S$8:$Y$12,7,FALSE),0) -> 0
E73: CO2-e from Soil - Vol N20 | G73: =G72*G$61 -> 0 | H73: 2474.218926 | I73: =I72*I$61 -> 2394.449999 | J73: =J72*J$61 -> 49260.31252 | K73: 26664.38461 | L73: -9155.728267 | M73: 34683.62371 | N73: 63855.96675 | O73: 131888.7914 | P73: 0 | Q73: 0 | R73: 0 | S73: 0 | T73: 0 | U73: 0 | V73: 0 | W73: 0 | X73: 0 | Y73: 0 | Z73: 0 | AA73: 0 | AB73: 0 | AC73: 0 | AD73: 0 | AE73: 0 | AF73: 0 | AG73: 0 | AH73: 0 | AI73: 0 | AJ73: 0 | AK73: 0 | AL73: 0 | AM73: 0 | AN73: 0 | AO73: 0 | AP73: 0 | AQ73: 0 | AR73: 0 | AS73: 0 | AT73: 0 | AU73: 0 | AV73: 0 | AW73: 0 | AX73: 0 | AY73: 0 | AZ73: 0 | BA73: 0 | BB73: 0 | BC73: 0 | BD73: 0 | BE73: 0
E74: CO2-e/kg N | G74: =G66+G68+G70 -> 0 | H74: 3.275139219 | I74: =I66+I68+I70 -> 3.275139219 | J74: 3.275139219 | K74: 3.275139219 | L74: 3.275139219 | M74: 12.2593458 | N74: 3.275139219 | O74: 3.275139219 | P74: =P66+P68+P70 -> 0 | Q74: 0 | R74: 0 | S74: 0 | T74: 0 | U74: 0 | V74: 0 | W74: 0 | X74: 0 | Y74: 0 | Z74: 0 | AA74: 0 | AB74: 0 | AC74: 0 | AD74: 0 | AE74: 0 | AF74: 0 | AG74: 0 | AH74: 0 | AI74: 0 | AJ74: 0 | AK74: 0 | AL74: 0 | AM74: 0 | AN74: 0 | AO74: 0 | AP74: 0 | AQ74: 0 | AR74: 0 | AS74: 0 | AT74: 0 | AU74: 0 | AV74: 0 | AW74: 0 | AX74: 0 | AY74: 0 | AZ74: 0 | BA74: 0 | BB74: 0 | BC74: 0 | BD74: 0 | BE74: 0
E75: Total CO2-e kg from N | F75: =SUM(H75:BE75) -> 466534.8843 | G75: =G74*G61 -> 0 | H75: 2793.143975 | I75: =I74*I61 -> 2703.09289 | J75: 55609.93155 | K75: 30101.4047 | L75: -10335.89509 | M75: 164687.0889 | N75: 72086.95516 | O75: 148889.1622 | P75: 0 | Q75: 0 | R75: 0 | S75: 0 | T75: 0 | U75: 0 | V75: 0 | W75: 0 | X75: 0 | Y75: 0 | Z75: 0 | AA75: 0 | AB75: 0 | AC75: 0 | AD75: 0 | AE75: 0 | AF75: 0 | AG75: 0 | AH75: 0 | AI75: 0 | AJ75: 0 | AK75: 0 | AL75: 0 | AM75: 0 | AN75: =AN74*AN61 -> 0 | AO75: 0 | AP75: 0 | AQ75: 0 | AR75: 0 | AS75: 0 | AT75: 0 | AU75: 0 | AV75: 0 | AW75: 0 | AX75: 0 | AY75: 0 | AZ75: 0 | BA75: 0 | BB75: 0 | BC75: 0 | BD75: 0 | BE75: 0
E76: Total CO2-e kg/year | F76: =SUM(H76:BE76) -> 4188891.651 | G76: =G65+G75 -> 0 | H76: 53198.20379 | I76: =I65+I75 -> 32141.13823 | J76: 644224.0203 | K76: 254391.3518 | L76: 19865.04829 | M76: 176086.1956 | N76: 952162.9634 | O76: 2056822.729 | P76: 0 | Q76: 0 | R76: 0 | S76: 0 | T76: 0 | U76: 0 | V76: 0 | W76: 0 | X76: 0 | Y76: 0 | Z76: 0 | AA76: 0 | AB76: 0 | AC76: 0 | AD76: 0 | AE76: 0 | AF76: 0 | AG76: 0 | AH76: 0 | AI76: 0 | AJ76: 0 | AK76: 0 | AL76: 0 | AM76: 0 | AN76: =AN65+AN75 -> 0 | AO76: 0 | AP76: 0 | AQ76: 0 | AR76: 0 | AS76: 0 | AT76: 0 | AU76: 0 | AV76: 0 | AW76: 0 | AX76: 0 | AY76: 0 | AZ76: 0 | BA76: 0 | BB76: 0 | BC76: 0 | BD76: 0 | BE76: 0
D78: Enteric kg CH4/year | G78: =(G34*G36/100*G38*CH4GE/FFactor)*G19*365.25 -> 0 | H78: 81.88650734 | I78: =(I34*I36/100*I38*CH4GE/FFactor)*I19*365.25 -> 63.20381595 | J78: 1268.590877 | K78: 599.5806191 | L78: 16.6956875 | M78: 1263.00796 | N78: 1824.664316 | O78: 3722.860596 | P78: 0 | Q78: 0 | R78: 0 | S78: 0 | T78: 0 | U78: 0 | V78: 0 | W78: 0 | X78: 0 | Y78: 0 | Z78: 0 | AA78: 0 | AB78: 0 | AC78: 0 | AD78: 0 | AE78: 0 | AF78: 0 | AG78: 0 | AH78: 0 | AI78: 0 | AJ78: 0 | AK78: 0 | AL78: 0 | AM78: 0 | AN78: =(AN34*AN36/100*AN38*CH4GE/FFactor)*AN19*365.25 -> 0 | AO78: 0 | AP78: 0 | AQ78: 0 | AR78: 0 | AS78: 0 | AT78: 0 | AU78: 0 | AV78: 0 | AW78: 0 | AX78: 0 | AY78: 0 | AZ78: 0 | BA78: 0 | BB78: 0 | BC78: 0 | BD78: 0 | BE78: 0
E79: CH4 to CO2-e Conversion | G79: =IF(G78<>0,CFCH4,0) -> 0 | H79: 21 | I79: =IF(I78<>0,CFCH4,0) -> 21 | J79: 21 | K79: 21 | L79: 21 | M79: 21 | N79: 21 | O79: 21 | P79: 0 | Q79: 0 | R79: 0 | S79: 0 | T79: 0 | U79: 0 | V79: 0 | W79: 0 | X79: 0 | Y79: 0 | Z79: 0 | AA79: 0 | AB79: 0 | AC79: 0 | AD79: 0 | AE79: 0 | AF79: 0 | AG79: 0 | AH79: 0 | AI79: 0 | AJ79: 0 | AK79: 0 | AL79: 0 | AM79: 0 | AN79: =IF(AN78<>0,CFCH4,0) -> 0 | AO79: 0 | AP79: 0 | AQ79: 0 | AR79: 0 | AS79: 0 | AT79: 0 | AU79: 0 | AV79: 0 | AW79: 0 | AX79: 0 | AY79: 0 | AZ79: 0 | BA79: 0 | BB79: 0 | BC79: 0 | BD79: 0 | BE79: 0
E80: Enteric CO2-e kg /year | F80: =SUM(H80:BE80) -> 185650.298 | G80: =G79*G78 -> 0 | H80: 1719.616654 | I80: =I79*I78 -> 1327.280135 | J80: =J79*J78 -> 26640.40842 | K80: 12591.193 | L80: 350.6094374 | M80: 26523.16715 | N80: 38317.95064 | O80: 78180.07251 | P80: 0 | Q80: 0 | R80: 0 | S80: 0 | T80: 0 | U80: 0 | V80: 0 | W80: 0 | X80: 0 | Y80: 0 | Z80: 0 | AA80: 0 | AB80: 0 | AC80: 0 | AD80: 0 | AE80: 0 | AF80: 0 | AG80: 0 | AH80: 0 | AI80: 0 | AJ80: 0 | AK80: 0 | AL80: 0 | AM80: 0 | AN80: 0 | AO80: 0 | AP80: 0 | AQ80: 0 | AR80: 0 | AS80: 0 | AT80: 0 | AU80: 0 | AV80: 0 | AW80: 0 | AX80: 0 | AY80: 0 | AZ80: 0 | BA80: 0 | BB80: 0 | BC80: 0 | BD80: 0 | BE80: 0
D82: MMS + Enteric CO2-e kg/year | F82: =SUM(H82:BE82) -> 4374541.949 | G82: =G80+G76 -> 0 | H82: 54917.82044 | I82: =I80+I76 -> 33468.41837 | J82: =J80+J76 -> 670864.4288 | K82: 266982.5448 | L82: 20215.65773 | M82: 202609.3628 | N82: 990480.914 | O82: 2135002.802 | P82: 0 | Q82: 0 | R82: 0 | S82: 0 | T82: 0 | U82: 0 | V82: 0 | W82: 0 | X82: 0 | Y82: 0 | Z82: 0 | AA82: 0 | AB82: 0 | AC82: 0 | AD82: 0 | AE82: 0 | AF82: 0 | AG82: 0 | AH82: 0 | AI82: 0 | AJ82: 0 | AK82: 0 | AL82: 0 | AM82: 0 | AN82: 0 | AO82: 0 | AP82: 0 | AQ82: 0 | AR82: 0 | AS82: 0 | AT82: 0 | AU82: 0 | AV82: 0 | AW82: 0 | AX82: 0 | AY82: 0 | AZ82: 0 | BA82: 0 | BB82: 0 | BC82: 0 | BD82: 0 | BE82: 0
E83: CO2-e t/year | F83: =SUM(H83:BE83) -> 4374.541949 | G83: =G82/1000 -> 0 | H83: 54.91782044 | I83: =I82/1000 -> 33.46841837 | J83: =J82/1000 -> 670.8644288 | K83: 266.9825448 | L83: 20.21565773 | M83: 202.6093628 | N83: 990.480914 | O83: 2135.002802 | P83: 0 | Q83: 0 | R83: 0 | S83: 0 | T83: 0 | U83: 0 | V83: 0 | W83: 0 | X83: 0 | Y83: 0 | Z83: 0 | AA83: 0 | AB83: 0 | AC83: 0 | AD83: 0 | AE83: 0 | AF83: 0 | AG83: 0 | AH83: 0 | AI83: 0 | AJ83: 0 | AK83: 0 | AL83: 0 | AM83: 0 | AN83: 0 | AO83: 0 | AP83: 0 | AQ83: 0 | AR83: 0 | AS83: 0 | AT83: 0 | AU83: 0 | AV83: 0 | AW83: 0 | AX83: 0 | AY83: 0 | AZ83: 0 | BA83: 0 | BB83: 0 | BC83: 0 | BD83: 0 | BE83: 0
D85: kg CO2-e : kg Gain | G85: =IF(AND((G23-G22)<>0,(G25-G24)<>0),G82/(((G25-G24)/(G23-G22))*365.25*G19),0) -> 0 | H85: 4.209990342 | I85: =IF(AND((I23-I22)<>0,(I25-I24)<>0),I82/(((I25-I24)/(I23-I22))*365.25*I19),0) -> 20.17859903 | J85: 39.16389384 | K85: 0 | L85: 0.1456482475 | M85: 0.5196669007 | N85: 2.152713502 | O85: 2.604412988 | P85: 0 | Q85: 0 | R85: 0 | S85: 0 | T85: 0 | U85: 0 | V85: 0 | W85: 0 | X85: 0 | Y85: 0 | Z85: 0 | AA85: 0 | AB85: 0 | AC85: 0 | AD85: 0 | AE85: 0 | AF85: 0 | AG85: 0 | AH85: 0 | AI85: 0 | AJ85: 0 | AK85: 0 | AL85: 0 | AM85: 0 | AN85: =IF(AND((AN23-AN22)<>0,(AN25-AN24)<>0),AN82/(((AN25-AN24)/(AN23-AN22))*365.25*AN19),0) -> 0 | AO85: 0 | AP85: 0 | AQ85: 0 | AR85: 0 | AS85: 0 | AT85: 0 | AU85: 0 | AV85: 0 | AW85: 0 | AX85: 0 | AY85: 0 | AZ85: 0 | BA85: 0 | BB85: 0 | BC85: 0 | BD85: 0 | BE85: 0
D87: Exported Manure kg CO2-e
E88: CO2-e/kg N | G88: =IF(G20<>0,VLOOKUP(G20,MMSSum!$S$8:$AA$12,9,FALSE),0) -> 0 | H88: =IF(H20<>0,VLOOKUP(H20,MMSSum!$S$8:$AA$12,9,FALSE),0) -> 0 | I88: =IF(I20<>0,VLOOKUP(I20,MMSSum!$S$8:$AA$12,9,FALSE),0) -> 0 | J88: =IF(J20<>0,VLOOKUP(J20,MMSSum!$S$8:$AA$12,9,FALSE),0) -> 0 | K88: =IF(K20<>0,VLOOKUP(K20,MMSSum!$S$8:$AA$12,9,FALSE),0) -> 0 | L88: =IF(L20<>0,VLOOKUP(L20,MMSSum!$S$8:$AA$12,9,FALSE),0) -> 0 | M88: =IF(M20<>0,VLOOKUP(M20,MMSSum!$S$8:$AA$12,9,FALSE),0) -> 0 | N88: =IF(N20<>0,VLOOKUP(N20,MMSSum!$S$8:$AA$12,9,FALSE),0) -> 0 | O88: =IF(O20<>0,VLOOKUP(O20,MMSSum!$S$8:$AA$12,9,FALSE),0) -> 0 | P88: =IF(P20<>0,VLOOKUP(P20,MMSSum!$S$8:$AA$12,9,FALSE),0) -> 0 | Q88: =IF(Q20<>0,VLOOKUP(Q20,MMSSum!$S$8:$AA$12,9,FALSE),0) -> 0 | R88: =IF(R20<>0,VLOOKUP(R20,MMSSum!$S$8:$AA$12,9,FALSE),0) -> 0 | S88: =IF(S20<>0,VLOOKUP(S20,MMSSum!$S$8:$AA$12,9,FALSE),0) -> 0 | T88: =IF(T20<>0,VLOOKUP(T20,MMSSum!$S$8:$AA$12,9,FALSE),0) -> 0 | U88: =IF(U20<>0,VLOOKUP(U20,MMSSum!$S$8:$AA$12,9,FALSE),0) -> 0 | V88: =IF(V20<>0,VLOOKUP(V20,MMSSum!$S$8:$AA$12,9,FALSE),0) -> 0 | W88: =IF(W20<>0,VLOOKUP(W20,MMSSum!$S$8:$AA$12,9,FALSE),0) -> 0 | X88: =IF(X20<>0,VLOOKUP(X20,MMSSum!$S$8:$AA$12,9,FALSE),0) -> 0 | Y88: =IF(Y20<>0,VLOOKUP(Y20,MMSSum!$S$8:$AA$12,9,FALSE),0) -> 0 | Z88: =IF(Z20<>0,VLOOKUP(Z20,MMSSum!$S$8:$AA$12,9,FALSE),0) -> 0 | AA88: =IF(AA20<>0,VLOOKUP(AA20,MMSSum!$S$8:$AA$12,9,FALSE),0) -> 0 | AB88: =IF(AB20<>0,VLOOKUP(AB20,MMSSum!$S$8:$AA$12,9,FALSE),0) -> 0 | AC88: =IF(AC20<>0,VLOOKUP(AC20,MMSSum!$S$8:$AA$12,9,FALSE),0) -> 0 | AD88: =IF(AD20<>0,VLOOKUP(AD20,MMSSum!$S$8:$AA$12,9,FALSE),0) -> 0 | AE88: =IF(AE20<>0,VLOOKUP(AE20,MMSSum!$S$8:$AA$12,9,FALSE),0) -> 0 | AF88: =IF(AF20<>0,VLOOKUP(AF20,MMSSum!$S$8:$AA$12,9,FALSE),0) -> 0 | AG88: =IF(AG20<>0,VLOOKUP(AG20,MMSSum!$S$8:$AA$12,9,FALSE),0) -> 0 | AH88: =IF(AH20<>0,VLOOKUP(AH20,MMSSum!$S$8:$AA$12,9,FALSE),0) -> 0 | AI88: =IF(AI20<>0,VLOOKUP(AI20,MMSSum!$S$8:$AA$12,9,FALSE),0) -> 0 | AJ88: =IF(AJ20<>0,VLOOKUP(AJ20,MMSSum!$S$8:$AA$12,9,FALSE),0) -> 0 | AK88: =IF(AK20<>0,VLOOKUP(AK20,MMSSum!$S$8:$AA$12,9,FALSE),0) -> 0 | AL88: =IF(AL20<>0,VLOOKUP(AL20,MMSSum!$S$8:$AA$12,9,FALSE),0) -> 0 | AM88: =IF(AM20<>0,VLOOKUP(AM20,MMSSum!$S$8:$AA$12,9,FALSE),0) -> 0 | AN88: =IF(AN20<>0,VLOOKUP(AN20,MMSSum!$S$8:$AA$12,9,FALSE),0) -> 0 | AO88: =IF(AO20<>0,VLOOKUP(AO20,MMSSum!$S$8:$AA$12,9,FALSE),0) -> 0 | AP88: =IF(AP20<>0,VLOOKUP(AP20,MMSSum!$S$8:$AA$12,9,FALSE),0) -> 0 | AQ88: =IF(AQ20<>0,VLOOKUP(AQ20,MMSSum!$S$8:$AA$12,9,FALSE),0) -> 0 | AR88: =IF(AR20<>0,VLOOKUP(AR20,MMSSum!$S$8:$AA$12,9,FALSE),0) -> 0 | AS88: =IF(AS20<>0,VLOOKUP(AS20,MMSSum!$S$8:$AA$12,9,FALSE),0) -> 0 | AT88: =IF(AT20<>0,VLOOKUP(AT20,MMSSum!$S$8:$AA$12,9,FALSE),0) -> 0 | AU88: =IF(AU20<>0,VLOOKUP(AU20,MMSSum!$S$8:$AA$12,9,FALSE),0) -> 0 | AV88: =IF(AV20<>0,VLOOKUP(AV20,MMSSum!$S$8:$AA$12,9,FALSE),0) -> 0 | AW88: =IF(AW20<>0,VLOOKUP(AW20,MMSSum!$S$8:$AA$12,9,FALSE),0) -> 0 | AX88: =IF(AX20<>0,VLOOKUP(AX20,MMSSum!$S$8:$AA$12,9,FALSE),0) -> 0 | AY88: =IF(AY20<>0,VLOOKUP(AY20,MMSSum!$S$8:$AA$12,9,FALSE),0) -> 0 | AZ88: =IF(AZ20<>0,VLOOKUP(AZ20,MMSSum!$S$8:$AA$12,9,FALSE),0) -> 0 | BA88: =IF(BA20<>0,VLOOKUP(BA20,MMSSum!$S$8:$AA$12,9,FALSE),0) -> 0 | BB88: =IF(BB20<>0,VLOOKUP(BB20,MMSSum!$S$8:$AA$12,9,FALSE),0) -> 0 | BC88: =IF(BC20<>0,VLOOKUP(BC20,MMSSum!$S$8:$AA$12,9,FALSE),0) -> 0 | BD88: =IF(BD20<>0,VLOOKUP(BD20,MMSSum!$S$8:$AA$12,9,FALSE),0) -> 0 | BE88: =IF(BE20<>0,VLOOKUP(BE20,MMSSum!$S$8:$AA$12,9,FALSE),0) -> 0
E89: CO2-e | G89: =G88*G61 -> 0 | H89: 0 | I89: =I88*I61 -> 0 | J89: 0 | K89: 0 | L89: 0 | M89: 0 | N89: 0 | O89: 0 | P89: 0 | Q89: 0 | R89: 0 | S89: 0 | T89: 0 | U89: 0 | V89: 0 | W89: 0 | X89: 0 | Y89: 0 | Z89: 0 | AA89: 0 | AB89: 0 | AC89: 0 | AD89: 0 | AE89: 0 | AF89: 0 | AG89: 0 | AH89: 0 | AI89: 0 | AJ89: 0 | AK89: 0 | AL89: 0 | AM89: 0 | AN89: 0 | AO89: 0 | AP89: 0 | AQ89: 0 | AR89: 0 | AS89: 0 | AT89: 0 | AU89: 0 | AV89: 0 | AW89: 0 | AX89: 0 | AY89: 0 | AZ89: 0 | BA89: 0 | BB89: 0 | BC89: 0 | BD89: 0 | BE89: 0
E90: CO2-e/kg VS | G90: =IF(G20<>0,VLOOKUP(G20,MMSSum!$S$8:$AA$12,8,FALSE),0) -> 0 | H90: =IF(H20<>0,VLOOKUP(H20,MMSSum!$S$8:$AA$12,8,FALSE),0) -> 0 | I90: =IF(I20<>0,VLOOKUP(I20,MMSSum!$S$8:$AA$12,8,FALSE),0) -> 0 | J90: =IF(J20<>0,VLOOKUP(J20,MMSSum!$S$8:$AA$12,8,FALSE),0) -> 0 | K90: =IF(K20<>0,VLOOKUP(K20,MMSSum!$S$8:$AA$12,8,FALSE),0) -> 0 | L90: =IF(L20<>0,VLOOKUP(L20,MMSSum!$S$8:$AA$12,8,FALSE),0) -> 0 | M90: =IF(M20<>0,VLOOKUP(M20,MMSSum!$S$8:$AA$12,8,FALSE),0) -> 0 | N90: =IF(N20<>0,VLOOKUP(N20,MMSSum!$S$8:$AA$12,8,FALSE),0) -> 0 | O90: =IF(O20<>0,VLOOKUP(O20,MMSSum!$S$8:$AA$12,8,FALSE),0) -> 0 | P90: =IF(P20<>0,VLOOKUP(P20,MMSSum!$S$8:$AA$12,8,FALSE),0) -> 0 | Q90: =IF(Q20<>0,VLOOKUP(Q20,MMSSum!$S$8:$AA$12,8,FALSE),0) -> 0 | R90: =IF(R20<>0,VLOOKUP(R20,MMSSum!$S$8:$AA$12,8,FALSE),0) -> 0 | S90: =IF(S20<>0,VLOOKUP(S20,MMSSum!$S$8:$AA$12,8,FALSE),0) -> 0 | T90: =IF(T20<>0,VLOOKUP(T20,MMSSum!$S$8:$AA$12,8,FALSE),0) -> 0 | U90: =IF(U20<>0,VLOOKUP(U20,MMSSum!$S$8:$AA$12,8,FALSE),0) -> 0 | V90: =IF(V20<>0,VLOOKUP(V20,MMSSum!$S$8:$AA$12,8,FALSE),0) -> 0 | W90: =IF(W20<>0,VLOOKUP(W20,MMSSum!$S$8:$AA$12,8,FALSE),0) -> 0 | X90: =IF(X20<>0,VLOOKUP(X20,MMSSum!$S$8:$AA$12,8,FALSE),0) -> 0 | Y90: =IF(Y20<>0,VLOOKUP(Y20,MMSSum!$S$8:$AA$12,8,FALSE),0) -> 0 | Z90: =IF(Z20<>0,VLOOKUP(Z20,MMSSum!$S$8:$AA$12,8,FALSE),0) -> 0 | AA90: =IF(AA20<>0,VLOOKUP(AA20,MMSSum!$S$8:$AA$12,8,FALSE),0) -> 0 | AB90: =IF(AB20<>0,VLOOKUP(AB20,MMSSum!$S$8:$AA$12,8,FALSE),0) -> 0 | AC90: =IF(AC20<>0,VLOOKUP(AC20,MMSSum!$S$8:$AA$12,8,FALSE),0) -> 0 | AD90: =IF(AD20<>0,VLOOKUP(AD20,MMSSum!$S$8:$AA$12,8,FALSE),0) -> 0 | AE90: =IF(AE20<>0,VLOOKUP(AE20,MMSSum!$S$8:$AA$12,8,FALSE),0) -> 0 | AF90: =IF(AF20<>0,VLOOKUP(AF20,MMSSum!$S$8:$AA$12,8,FALSE),0) -> 0 | AG90: =IF(AG20<>0,VLOOKUP(AG20,MMSSum!$S$8:$AA$12,8,FALSE),0) -> 0 | AH90: =IF(AH20<>0,VLOOKUP(AH20,MMSSum!$S$8:$AA$12,8,FALSE),0) -> 0 | AI90: =IF(AI20<>0,VLOOKUP(AI20,MMSSum!$S$8:$AA$12,8,FALSE),0) -> 0 | AJ90: =IF(AJ20<>0,VLOOKUP(AJ20,MMSSum!$S$8:$AA$12,8,FALSE),0) -> 0 | AK90: =IF(AK20<>0,VLOOKUP(AK20,MMSSum!$S$8:$AA$12,8,FALSE),0) -> 0 | AL90: =IF(AL20<>0,VLOOKUP(AL20,MMSSum!$S$8:$AA$12,8,FALSE),0) -> 0 | AM90: =IF(AM20<>0,VLOOKUP(AM20,MMSSum!$S$8:$AA$12,8,FALSE),0) -> 0 | AN90: =IF(AN20<>0,VLOOKUP(AN20,MMSSum!$S$8:$AA$12,8,FALSE),0) -> 0 | AO90: =IF(AO20<>0,VLOOKUP(AO20,MMSSum!$S$8:$AA$12,8,FALSE),0) -> 0 | AP90: =IF(AP20<>0,VLOOKUP(AP20,MMSSum!$S$8:$AA$12,8,FALSE),0) -> 0 | AQ90: =IF(AQ20<>0,VLOOKUP(AQ20,MMSSum!$S$8:$AA$12,8,FALSE),0) -> 0 | AR90: =IF(AR20<>0,VLOOKUP(AR20,MMSSum!$S$8:$AA$12,8,FALSE),0) -> 0 | AS90: =IF(AS20<>0,VLOOKUP(AS20,MMSSum!$S$8:$AA$12,8,FALSE),0) -> 0 | AT90: =IF(AT20<>0,VLOOKUP(AT20,MMSSum!$S$8:$AA$12,8,FALSE),0) -> 0 | AU90: =IF(AU20<>0,VLOOKUP(AU20,MMSSum!$S$8:$AA$12,8,FALSE),0) -> 0 | AV90: =IF(AV20<>0,VLOOKUP(AV20,MMSSum!$S$8:$AA$12,8,FALSE),0) -> 0 | AW90: =IF(AW20<>0,VLOOKUP(AW20,MMSSum!$S$8:$AA$12,8,FALSE),0) -> 0 | AX90: =IF(AX20<>0,VLOOKUP(AX20,MMSSum!$S$8:$AA$12,8,FALSE),0) -> 0 | AY90: =IF(AY20<>0,VLOOKUP(AY20,MMSSum!$S$8:$AA$12,8,FALSE),0) -> 0 | AZ90: =IF(AZ20<>0,VLOOKUP(AZ20,MMSSum!$S$8:$AA$12,8,FALSE),0) -> 0 | BA90: =IF(BA20<>0,VLOOKUP(BA20,MMSSum!$S$8:$AA$12,8,FALSE),0) -> 0 | BB90: =IF(BB20<>0,VLOOKUP(BB20,MMSSum!$S$8:$AA$12,8,FALSE),0) -> 0 | BC90: =IF(BC20<>0,VLOOKUP(BC20,MMSSum!$S$8:$AA$12,8,FALSE),0) -> 0 | BD90: =IF(BD20<>0,VLOOKUP(BD20,MMSSum!$S$8:$AA$12,8,FALSE),0) -> 0 | BE90: =IF(BE20<>0,VLOOKUP(BE20,MMSSum!$S$8:$AA$12,8,FALSE),0) -> 0
E91: CO2-e | G91: =G90*G59 -> 0 | H91: 0 | I91: =I90*I59 -> 0 | J91: 0 | K91: 0 | L91: 0 | M91: 0 | N91: 0 | O91: 0 | P91: 0 | Q91: 0 | R91: 0 | S91: 0 | T91: 0 | U91: 0 | V91: 0 | W91: 0 | X91: 0 | Y91: 0 | Z91: 0 | AA91: 0 | AB91: 0 | AC91: 0 | AD91: 0 | AE91: 0 | AF91: 0 | AG91: 0 | AH91: 0 | AI91: 0 | AJ91: 0 | AK91: 0 | AL91: 0 | AM91: 0 | AN91: 0 | AO91: 0 | AP91: 0 | AQ91: 0 | AR91: 0 | AS91: 0 | AT91: 0 | AU91: 0 | AV91: 0 | AW91: 0 | AX91: 0 | AY91: 0 | AZ91: 0 | BA91: 0 | BB91: 0 | BC91: 0 | BD91: 0 | BE91: 0
E92: Total Export | G92: =G89+G91 -> 0 | H92: 0 | I92: =I89+I91 -> 0 | J92: 0 | K92: 0 | L92: 0 | M92: 0 | N92: 0 | O92: 0 | P92: 0 | Q92: 0 | R92: 0 | S92: 0 | T92: 0 | U92: 0 | V92: 0 | W92: 0 | X92: 0 | Y92: 0 | Z92: 0 | AA92: 0 | AB92: 0 | AC92: 0 | AD92: 0 | AE92: 0 | AF92: 0 | AG92: 0 | AH92: 0 | AI92: 0 | AJ92: 0 | AK92: 0 | AL92: 0 | AM92: 0 | AN92: 0 | AO92: 0 | AP92: 0 | AQ92: 0 | AR92: 0 | AS92: 0 | AT92: 0 | AU92: 0 | AV92: 0 | AW92: 0 | AX92: 0 | AY92: 0 | AZ92: 0 | BA92: 0 | BB92: 0 | BC92: 0 | BD92: 0 | BE92: 0
D94: Production Data
E95: Feed Delived t/year | F95: =SUM(H95:BE95) -> 5281.38351 | G95: =(G33*G19*365.25)/1000 -> 0 | H95: 50.76975 | I95: =(I33*I19*365.25)/1000 -> 37.12401 | J95: 745.131915 | K95: 332.59665 | L95: 10.935585 | M95: 737.6589 | N95: 1100.4252 | O95: 2266.7415 | P95: 0 | Q95: 0 | R95: 0 | S95: 0 | T95: 0 | U95: 0 | V95: 0 | W95: 0 | X95: 0 | Y95: 0 | Z95: 0 | AA95: 0 | AB95: 0 | AC95: 0 | AD95: 0 | AE95: 0 | AF95: 0 | AG95: 0 | AH95: 0 | AI95: 0 | AJ95: 0 | AK95: 0 | AL95: 0 | AM95: 0 | AN95: =(AN33*AN19*365.25)/1000 -> 0 | AO95: 0 | AP95: 0 | AQ95: 0 | AR95: 0 | AS95: 0 | AT95: 0 | AU95: 0 | AV95: 0 | AW95: 0 | AX95: 0 | AY95: 0 | AZ95: 0 | BA95: 0 | BB95: 0 | BC95: 0 | BD95: 0 | BE95: 0
E96: Feed Ingested t/yr | F96: =SUM(H96:BE96) -> 4807.894229 | G96: =G34*G19*365.25/1000 -> 0 | H96: 45.692775 | I96: =I34*I19*365.25/1000 -> 35.2678095 | J96: 707.8753193 | K96: 315.9668175 | L96: 8.748468 | M96: 663.89301 | N96: 990.38268 | O96: 2040.06735 | P96: 0 | Q96: 0 | R96: 0 | S96: 0 | T96: 0 | U96: 0 | V96: 0 | W96: 0 | X96: 0 | Y96: 0 | Z96: 0 | AA96: 0 | AB96: 0 | AC96: 0 | AD96: 0 | AE96: 0 | AF96: 0 | AG96: 0 | AH96: 0 | AI96: 0 | AJ96: 0 | AK96: 0 | AL96: 0 | AM96: 0 | AN96: =AN34*AN19*365.25/1000 -> 0 | AO96: 0 | AP96: 0 | AQ96: 0 | AR96: 0 | AS96: 0 | AT96: 0 | AU96: 0 | AV96: 0 | AW96: 0 | AX96: 0 | AY96: 0 | AZ96: 0 | BA96: 0 | BB96: 0 | BC96: 0 | BD96: 0 | BE96: 0
E97: Gain t/year | G97: =IF((G23-G22)<>0,(((G25-G24)/(G23-G22))*365.25*G19)/1000,0) -> 0 | H97: 13.04464286 | I97: =IF((I23-I22)<>0,(((I25-I24)/(I23-I22))*365.25*I19)/1000,0) -> 1.658609615 | J97: 17.1296662 | K97: 0 | L97: 138.7978096 | M97: 389.8831395 | N97: 460.1080976 | O97: 819.7635366 | P97: 0 | Q97: 0 | R97: 0 | S97: 0 | T97: 0 | U97: 0 | V97: 0 | W97: 0 | X97: 0 | Y97: 0 | Z97: 0 | AA97: 0 | AB97: 0 | AC97: 0 | AD97: 0 | AE97: 0 | AF97: 0 | AG97: 0 | AH97: 0 | AI97: 0 | AJ97: 0 | AK97: 0 | AL97: 0 | AM97: 0 | AN97: =IF((AN23-AN22)<>0,(((AN25-AN24)/(AN23-AN22))*365.25*AN19)/1000,0) -> 0 | AO97: 0 | AP97: 0 | AQ97: 0 | AR97: 0 | AS97: 0 | AT97: 0 | AU97: 0 | AV97: 0 | AW97: 0 | AX97: 0 | AY97: 0 | AZ97: 0 | BA97: 0 | BB97: 0 | BC97: 0 | BD97: 0 | BE97: 0
E98: FCR Delivered | G98: =IF(G97<>0,G95/G97,0) -> 0 | H98: 3.892 | I98: =IF(I97<>0,I95/I97,0) -> 22.3826087 | J98: =IF(J97<>0,J95/J97,0) -> 43.4995 | K98: 0 | L98: 0.07878787879 | M98: 1.892 | N98: 2.391666667 | O98: 2.765116279 | P98: 0 | Q98: 0 | R98: 0 | S98: 0 | T98: 0 | U98: 0 | V98: 0 | W98: 0 | X98: 0 | Y98: 0 | Z98: 0 | AA98: 0 | AB98: 0 | AC98: 0 | AD98: 0 | AE98: 0 | AF98: 0 | AG98: 0 | AH98: 0 | AI98: 0 | AJ98: 0 | AK98: 0 | AL98: 0 | AM98: 0 | AN98: 0 | AO98: 0 | AP98: 0 | AQ98: 0 | AR98: 0 | AS98: 0 | AT98: 0 | AU98: 0 | AV98: 0 | AW98: 0 | AX98: 0 | AY98: 0 | AZ98: 0 | BA98: 0 | BB98: 0 | BC98: 0 | BD98: 0 | BE98: 0
E99: FCR Ingested | G99: =IF(G97<>0,G96/G97,0) -> 0 | H99: 3.5028 | I99: =IF(I97<>0,I96/I97,0) -> 21.26347826 | J99: =IF(J97<>0,J96/J97,0) -> 41.324525 | K99: 0 | L99: 0.06303030303 | M99: 1.7028 | N99: 2.1525 | O99: 2.488604651 | P99: 0 | Q99: 0 | R99: 0 | S99: 0 | T99: 0 | U99: 0 | V99: 0 | W99: 0 | X99: 0 | Y99: 0 | Z99: 0 | AA99: 0 | AB99: 0 | AC99: 0 | AD99: 0 | AE99: 0 | AF99: 0 | AG99: 0 | AH99: 0 | AI99: 0 | AJ99: 0 | AK99: 0 | AL99: 0 | AM99: 0 | AN99: 0 | AO99: 0 | AP99: 0 | AQ99: 0 | AR99: 0 | AS99: 0 | AT99: 0 | AU99: 0 | AV99: 0 | AW99: 0 | AX99: 0 | AY99: 0 | AZ99: 0 | BA99: 0 | BB99: 0 | BC99: 0 | BD99: 0 | BE99: 0
E100: days in group | G100: =G23-G22 -> 0 | H100: 42 | I100: =I23-I22 -> 702 | J100: 719 | K100: 0 | L100: 26 | M100: 43 | N100: 41 | O100: 41 | P100: 0 | Q100: 0 | R100: 0 | S100: 0 | T100: 0 | U100: 0 | V100: 0 | W100: 0 | X100: 0 | Y100: 0 | Z100: 0 | AA100: 0 | AB100: 0 | AC100: 0 | AD100: 0 | AE100: 0 | AF100: 0 | AG100: 0 | AH100: 0 | AI100: 0 | AJ100: 0 | AK100: 0 | AL100: 0 | AM100: 0 | AN100: =AN23-AN22 -> 0 | AO100: 0 | AP100: 0 | AQ100: 0 | AR100: 0 | AS100: 0 | AT100: 0 | AU100: 0 | AV100: 0 | AW100: 0 | AX100: 0 | AY100: 0 | AZ100: 0 | BA100: 0 | BB100: 0 | BC100: 0 | BD100: 0 | BE100: 0
E101: Wt gain in group kg/pig | G101: =IF(G17="Lac Sow",0,G25-G24) -> 0 | H101: 30 | I101: =IF(I17="Lac Sow",0,I25-I24) -> 75.9 | J101: 40 | K101: 0 | L101: 6.6 | M101: 20 | N101: 24 | O101: 43 | P101: 0 | Q101: 0 | R101: 0 | S101: 0 | T101: 0 | U101: 0 | V101: 0 | W101: 0 | X101: 0 | Y101: 0 | Z101: 0 | AA101: 0 | AB101: 0 | AC101: 0 | AD101: 0 | AE101: 0 | AF101: 0 | AG101: 0 | AH101: 0 | AI101: 0 | AJ101: 0 | AK101: 0 | AL101: 0 | AM101: 0 | AN101: 0 | AO101: 0 | AP101: 0 | AQ101: 0 | AR101: 0 | AS101: 0 | AT101: 0 | AU101: 0 | AV101: 0 | AW101: 0 | AX101: 0 | AY101: 0 | AZ101: 0 | BA101: 0 | BB101: 0 | BC101: 0 | BD101: 0 | BE101: 0
E102: ADG g/day | G102: =IF(G100<>0,G101/G100*1000,0) -> 0 | H102: 714.2857143 | I102: =IF(I100<>0,I101/I100*1000,0) -> 108.1196581 | J102: =IF(J100<>0,J101/J100*1000,0) -> 55.63282337 | K102: 0 | L102: 253.8461538 | M102: 465.1162791 | N102: 585.3658537 | O102: 1048.780488 | P102: 0 | Q102: 0 | R102: 0 | S102: 0 | T102: 0 | U102: 0 | V102: 0 | W102: 0 | X102: 0 | Y102: 0 | Z102: 0 | AA102: 0 | AB102: 0 | AC102: 0 | AD102: 0 | AE102: 0 | AF102: 0 | AG102: 0 | AH102: 0 | AI102: 0 | AJ102: 0 | AK102: 0 | AL102: 0 | AM102: 0 | AN102: 0 | AO102: 0 | AP102: 0 | AQ102: 0 | AR102: 0 | AS102: 0 | AT102: 0 | AU102: 0 | AV102: 0 | AW102: 0 | AX102: 0 | AY102: 0 | AZ102: 0 | BA102: 0 | BB102: 0 | BC102: 0 | BD102: 0 | BE102: 0
E103: SPU/pig/year | H103: =H46/0.09 -> 3.800494079 | I103: 3.315494419 | J103: 3.298581994 | K103: 6.336655234 | L103: 0.09057134383 | M103: 0.7880425053 | N103: 1.287108558 | O103: 2.954328879 | P103: 0 | Q103: 0 | R103: 0 | S103: 0 | T103: 0 | U103: 0 | V103: 0 | W103: 0 | X103: 0 | Y103: 0 | Z103: 0 | AA103: 0 | AB103: 0 | AC103: 0 | AD103: 0 | AE103: 0 | AF103: 0 | AG103: 0 | AH103: 0 | AI103: 0 | AJ103: 0 | AK103: 0 | AL103: 0 | AM103: 0 | AN103: =AN46/0.09 -> 0 | AO103: 0 | AP103: 0 | AQ103: 0 | AR103: 0 | AS103: 0 | AT103: 0 | AU103: 0 | AV103: 0 | AW103: 0 | AX103: 0 | AY103: 0 | AZ103: 0 | BA103: 0 | BB103: 0 | BC103: 0 | BD103: 0 | BE103: 0
E104: Total SPU | H104: =H103*H19 -> 190.024704 | I104: 139.2507656 | J104: 2780.704621 | K104: 994.8548717 | L104: 135.5853017 | M104: 1808.55755 | N104: 2769.857616 | O104: 6322.263801 | P104: 0 | Q104: 0 | R104: 0 | S104: 0 | T104: 0 | U104: 0 | V104: 0 | W104: 0 | X104: 0 | Y104: 0 | Z104: 0 | AA104: 0 | AB104: 0 | AC104: 0 | AD104: 0 | AE104: 0 | AF104: 0 | AG104: 0 | AH104: 0 | AI104: 0 | AJ104: 0 | AK104: 0 | AL104: 0 | AM104: 0 | AN104: =AN103*AN19 -> 0 | AO104: 0 | AP104: 0 | AQ104: 0 | AR104: 0 | AS104: 0 | AT104: 0 | AU104: 0 | AV104: 0 | AW104: 0 | AX104: 0 | AY104: 0 | AZ104: 0 | BA104: 0 | BB104: 0 | BC104: 0 | BD104: 0 | BE104: 0
E107: =SUM(H82:O82) -> 4374541.949 | H107: 1418326.563 | I107: =E107/H107 -> 3.084298118
H113: =H95+I95+M95 -> 825.55266 | I113: =H95+I95+M95 -> 825.55266
I116: =50*2.4*365 -> 43800
I120: =I19*I33 -> 101.64
I121: =I120*365 -> 37098.6

Sheet MMSSum
F4: Manure Management Systems
I6: CO2-e | K6: CH4 | M6: N2O | U6: CH4 | V6: N2O Dir. | W6: N2O Vol. | X6: N2O LRO | Y6: N20Soil | Z6: Export CH4 | AA6: Export N2O
E8: ='MMS1'!$I$7 -> Ponds I | K8: =IF(ISERROR(U8),"…….",U8) -> 4.799839275 | M8: =IF( ISERROR(SUM(V8:Y8)),"…….",SUM(V8:Y8)) -> 6.176318505 | S8: ='MMS1'!$I$7 -> Ponds I | T8: MMS1 | U8: ='MMS1'!$M$10 -> 4.799839275 | V8: ='MMS1'!$M$11 -> 0.9499285714 | W8: ='MMS1'!$M$12 -> 1.96075 | X8: ='MMS1'!$M$13 -> 0.3644606478 | Y8: ='MMS1'!$M$14 -> 2.901179286 | Z8: ='MMS1'!$M$18 -> 0 | AA8: ='MMS1'!$M$16 -> 0
S9: ='MMS2'!$I$7 -> Straw Igloo | T9: MMS2 | U9: ='MMS2'!$M$10 -> 0.0938385 | V9: ='MMS2'!$M$11 -> 9.742857143 | W9: ='MMS2'!$M$12 -> 2.192142857 | X9: ='MMS2'!$M$13 -> 0.3243458036 | Y9: ='MMS2'!$M$14 -> 2.581857143 | Z9: ='MMS2'!$M$18 -> 0 | AA9: ='MMS2'!$M$16 -> 0
E10: ='MMS2'!$I$7 -> Straw Igloo | K10: =IF(ISERROR(U9),"…….",U9) -> 0.0938385 | M10: =IF(ISERROR(SUM(V9:Y9)),"…….",SUM(V9:Y9)) -> 14.84120295 | S10: ='MMS3'!$I$7 -> Ponds II | T10: MMS3 | U10: ='MMS3'!$M$10 -> 0.62559 | V10: ='MMS3'!$M$11 -> 0.4871428571 | W10: ='MMS3'!$M$12 -> 0 | X10: ='MMS3'!$M$13 -> 0.6113612411 | Y10: ='MMS3'!$M$14 -> 4.866557143 | Z10: ='MMS3'!$M$18 -> 0 | AA10: ='MMS3'!$M$16 -> 0
S11: ='MMS4'!$I$7 -> Not Used | T11: MMS4 | U11: ='MMS4'!$M$10 -> 5.63031 | V11: ='MMS4'!$M$11 -> 0.4871428571 | W11: ='MMS4'!$M$12 -> 1.948571429 | X11: ='MMS4'!$M$13 -> 0.3665719554 | Y11: ='MMS4'!$M$14 -> 2.917985714 | Z11: ='MMS4'!$M$18 -> 0 | AA11: ='MMS4'!$M$16 -> 0
E12: ='MMS3'!$I$7 -> Ponds II | K12: =IF(ISERROR(U10),"…….",U10) -> 0.62559 | M12: =IF(ISERROR(SUM(V10:Y10)),"…….",SUM(V10:Y10)) -> 5.965061241 | S12: ='MMS5'!$I$7 -> Not Used | T12: MMS5 | U12: ='MMS5'!$M$10 -> 4.79702412 | V12: ='MMS5'!$M$11 -> 0.8525 | W12: ='MMS5'!$M$12 -> 1.938828571 | X12: ='MMS5'!$M$13 -> 0.2915685182 | Y12: ='MMS5'!$M$14 -> 2.320943429 | Z12: ='MMS5'!$M$18 -> -0.002815155 | AA12: ='MMS5'!$M$16 -> -0.7724779867
E14: ='MMS4'!$I$7 -> Not Used | K14: =IF(ISERROR(U11),"…….",U11) -> 5.63031 | M14: =IF(ISERROR(SUM(V11:Y11)),"…..",SUM(V11:Y11)) -> 5.720271955
E16: ='MMS5'!$I$7 -> Not Used | K16: =IF(ISERROR(U12),"…….",U12) -> 4.79702412 | M16: =IF(ISERROR(SUM(V12:Y12)),"…….",SUM(V12:Y12)) -> 5.403840518
D18: MMS SUMMARY | G18: MMS1 | H18: MMS2 | I18: MMS3 | K18: MMS4 | M18: MMS5
F20: CH4/kg VS | G20: ='MMS1'!$M$10 -> 4.799839275 | H20: =U9 -> 0.0938385 | I20: =U10 -> 0.62559 | K20: =U11 -> 5.63031 | M20: =U12 -> 4.79702412
F22: N2O Direct/kg N | G22: =V8 -> 0.9499285714 | H22: =V9 -> 9.742857143 | I22: =V10 -> 0.4871428571 | K22: =V11 -> 0.4871428571 | M22: =V12 -> 0.8525
F24: N2O Vol./kg N | G24: =W8 -> 1.96075 | H24: =W9 -> 2.192142857 | I24: =W10 -> 0 | K24: =W11 -> 1.948571429 | M24: =W12 -> 1.938828571
F26: N2O LRO/kg N | G26: =X8 -> 0.3644606478 | H26: =X9 -> 0.3243458036 | I26: =X10 -> 0.6113612411 | K26: =X11 -> 0.3665719554 | M26: =X12 -> 0.2915685182
F28: N2O Soil/kg N | G28: =Y8 -> 2.901179286 | H28: =Y9 -> 2.581857143 | I28: =Y10 -> 4.866557143 | K28: =Y11 -> 2.917985714 | M28: =Y12 -> 2.320943429
F31: Export CH4/kg VS | G31: ='MMS1'!$U$65 -> 0 | H31: =Z9 -> 0 | I31: =Z10 -> 0 | K31: =Z11 -> 0 | M31: =Z12 -> -0.002815155
F33: Export N20/kg N | G33: =SUM('MMS1'!V65:$AA$65) -> 0 | H33: =AA9 -> 0 | I33: =AA10 -> 0 | K33: =AA11 -> 0 | M33: =AA12 -> -0.7724779867
D35: ='MMS1'!F20 -> Production Type | G35: =IF('MMS1'!$A$20="*","",'MMS1'!$I$20) -> Indoor | H35: =IF('MMS2'!$A$13="*","",'MMS2'!$I$15) -> 0 | I35: =IF('MMS2'!$A$13="*","",'MMS2'!$I$15) -> 0 | K35: =IF('MMS4'!$A$13="*","",'MMS4'!$I$15) -> 0 | M35: =IF('MMS5'!$A$13="*","",'MMS5'!$I$15) -> 0
D37: ='MMS1'!F22 -> Production System | G37: =IF('MMS1'!$A$22="*","",'MMS1'!$I$22) ->  | H37: =IF('MMS2'!$A$15="*","",'MMS2'!$I$15) -> 0 | I37: =IF('MMS2'!$A$15="*","",'MMS2'!$I$15) -> 0 | K37: =IF('MMS4'!$A$15="*","",'MMS4'!$I$15) -> 0 | M37: =IF('MMS5'!$A$15="*","",'MMS5'!$I$15) -> 0
E39: ='MMS1'!G30 -> Manure Collected | G39: =IF('MMS1'!$A$30="*","",'MMS1'!$M$30) ->  | H39: =IF('MMS2'!$A$23="*","",'MMS2'!$M$23) ->  | I39: =IF('MMS2'!$A$23="*","",'MMS2'!$M$23) ->  | K39: =IF('MMS4'!$A$23="*","",'MMS4'!$M$23) ->  | M39: =IF('MMS5'!$A$23="*","",'MMS5'!$M$23) -> 
D41: ='MMS1'!F32 -> Solids Usage | G41: =IF('MMS1'!$A$32="*","",'MMS1'!$I$32) ->  | H41: =IF('MMS2'!$A$25="*","",'MMS2'!$I$25) ->  | I41: =IF('MMS2'!$A$25="*","",'MMS2'!$I$25) ->  | K41: =IF('MMS4'!$A$25="*","",'MMS4'!$I$25) ->  | M41: =IF('MMS5'!$A$25="*","",'MMS5'!$I$25) -> 
E43: ='MMS1'!I34 -> % Exported Off Site | G43: =IF('MMS1'!$A$32="*","",'MMS1'!$M$34) ->  | H43: =IF('MMS2'!$A$25="*","",'MMS2'!$M$27) ->  | I43: =IF('MMS2'!$A$25="*","",'MMS2'!$M$27) ->  | K43: =IF('MMS4'!$A$25="*","",'MMS4'!$M$27) ->  | M43: =IF('MMS5'!$A$25="*","",'MMS5'!$M$27) -> 
D45: ='MMS1'!F36 -> Collection System | G45: =IF('MMS1'!$A$36="*","",'MMS1'!$I$36) -> Liquid | H45: =IF('MMS2'!$A$29="*","",'MMS2'!$I$29) ->  | I45: =IF('MMS2'!$A$29="*","",'MMS2'!$I$29) ->  | K45: =IF('MMS4'!$A$29="*","",'MMS4'!$I$29) ->  | M45: =IF('MMS5'!$A$29="*","",'MMS5'!$I$29) -> 
D47: ='MMS1'!F38 -> Solids Usage | G47: =IF('MMS1'!$A$38="*","",'MMS1'!$I$38) ->  | H47: =IF('MMS2'!$A$31="*","",'MMS2'!$I$31) ->  | I47: =IF('MMS2'!$A$31="*","",'MMS2'!$I$31) ->  | K47: =IF('MMS4'!$A$31="*","",'MMS4'!$I$31) ->  | M47: =IF('MMS5'!$A$31="*","",'MMS5'!$I$31) -> 
E49: ='MMS1'!I40 -> % Exported Off Site | G49: =IF('MMS1'!$A$38="*","",'MMS1'!$M$40) ->  | H49: =IF('MMS2'!$A$31="*","",'MMS2'!$M$33) ->  | I49: =IF('MMS2'!$A$31="*","",'MMS2'!$M$33) ->  | K49: =IF('MMS4'!$A$31="*","",'MMS4'!$M$33) ->  | M49: =IF('MMS5'!$A$31="*","",'MMS5'!$M$33) -> 
D51: ='MMS1'!F42 -> Solid Extraction | G51: =IF(G53<>0,'MMS1'!$I$42,"") -> Run Down Screen | H51: =IF(H53<>0,'MMS2'!$I$35,"") ->  | I51: =IF(I53<>0,'MMS3'!$I$35,"") ->  | K51: =IF(K53<>0,'MMS4'!$I$35,"") ->  | M51: =IF(M53<>0,'MMS5'!$I$35,"") -> 
E53: ='MMS1'!I44 -> Extracted | F53: ='MMS1'!K44 -> VS | G53: ='MMS1'!$K$45 -> 0.15 | H53: ='MMS2'!$K$38 -> 0 | I53: ='MMS2'!$K$38 -> 0 | K53: ='MMS4'!$K$38 -> 0 | M53: ='MMS5'!$K$38 -> 0
F55: ='MMS1'!M44 -> N | G55: ='MMS1'!$M$45 -> 0.05 | H55: ='MMS2'!$M$38 -> 0 | I55: ='MMS2'!$M$38 -> 0 | K55: ='MMS4'!$M$38 -> 0 | M55: ='MMS5'!$M$38 -> 0
D57: ='MMS1'!F47 -> Solids Usage | G57: =IF('MMS1'!$A$47="*","",'MMS1'!$I$47) -> Soil Application | H57: =IF('MMS2'!$A$40="*","",'MMS2'!$I$40) ->  | I57: =IF('MMS2'!$A$40="*","",'MMS2'!$I$40) ->  | K57: =IF('MMS4'!$A$40="*","",'MMS4'!$I$40) ->  | M57: =IF('MMS5'!$A$40="*","",'MMS5'!$I$40) -> 
E59: ='MMS1'!I49 -> % Exported Off Site | G59: =IF('MMS1'!$A$47="*","",'MMS1'!$M$49) -> 0.2 | H59: =IF('MMS2'!$A$40="*","",'MMS2'!$M$42) ->  | I59: =IF('MMS2'!$A$40="*","",'MMS2'!$M$42) ->  | K59: =IF('MMS4'!$A$40="*","",'MMS4'!$M$42) ->  | M59: =IF('MMS5'!$A$40="*","",'MMS5'!$M$42) -> 
D61: ='MMS1'!F51 -> Liquid Treatment | G61: =IF('MMS1'!$A$51="*","",'MMS1'!$I$51) -> Anaerobic Lagoon | H61: =IF('MMS2'!$A$44="*","",'MMS2'!$I$44) ->  | I61: =IF('MMS2'!$A$44="*","",'MMS2'!$I$44) ->  | K61: =IF('MMS4'!$A$44="*","",'MMS4'!$I$44) ->  | M61: =IF('MMS5'!$A$44="*","",'MMS5'!$I$44) -> Extracted
E63: ='MMS1'!I53 -> Balance | F63: ='MMS1'!K53 -> VS | G63: ='MMS1'!$K$54 -> 0.85 | H63: ='MMS2'!$K$47 -> 0 | I63: ='MMS2'!$K$47 -> 0 | K63: ='MMS4'!$K$47 -> 0 | M63: ='MMS5'!$K$47 -> 0
F65: ='MMS1'!M53 -> N | G65: ='MMS1'!$M$54 -> 0.95 | H65: ='MMS2'!$M$47 -> 0 | I65: ='MMS2'!$M$47 -> 0 | K65: ='MMS4'!$M$47 -> 0 | M65: ='MMS5'!$M$47 -> 0
D67: ='MMS1'!F56 -> Treated Effluent Use | G67: =IF('MMS1'!$A$56="*","",'MMS1'!$I$56) -> Soil Application | H67: =IF('MMS2'!$A$49="*","",'MMS2'!$I$49) ->  | I67: =IF('MMS2'!$A$49="*","",'MMS2'!$I$49) ->  | K67: =IF('MMS4'!$A$49="*","",'MMS4'!$I$49) ->  | M67: =IF('MMS5'!$A$49="*","",'MMS5'!$I$49) -> % Exported Off Site
E69: ='MMS1'!I58 -> % Exported Off Site | G69: =IF('MMS1'!$A$56="*","",'MMS1'!$M$58) -> 0.2 | H69: =IF('MMS2'!$A$49="*","",'MMS2'!$M$51) ->  | I69: =IF('MMS2'!$A$49="*","",'MMS2'!$M$51) ->  | J69: =IF('MMS1'!$A$56="*","",'MMS1'!$M$58) -> 0.2 | K69: =IF('MMS4'!$A$49="*","",'MMS4'!$M$51) ->  | M69: =IF('MMS5'!$A$49="*","",'MMS5'!$M$51) -> 0

Sheet MMS1
A1: Hide
U2: 4B.8_1 | V2: 4B.8_4 | W2: 4B.1.a_10c | Y2: 4D3_6 | Z2: 4D3_6
W3: 4D3_4 | Z3: 4D3_7
F4: Manure Management System 1 | U4: MMS-VS | V4: MMS Direct | W4: MMS -N Vol | X4: Residual | Y4: LRO | Z4: LRO | AA4: SOIL N20
S5: MMS | T5: MCF | U5: CH4 | V5: N2O | W5: N2O | X5: N | Y5: N | Z5: N2O | AA5: N2O
F7: MMS1 Name | I7: Ponds I
I9: Total | K9: x Factor | M9: CO2e
G10: CH4 | I10: =SUM(U22:U58) -> 0.228563775 | K10: =CFCH4 -> 21 | M10: =K10*I10 -> 4.799839275
G11: N2O Dir. | I11: =SUM(V22:V58) -> 0.003064285714 | K11: =CFN2O -> 310 | M11: =K11*I11 -> 0.9499285714
G12: N2O Vol. | I12: =SUM(W22:W58) -> 0.006325 | K12: =CFN2O -> 310 | M12: =K12*I12 -> 1.96075
G13: N2O LRO | I13: =SUM(Z22:Z58) -> 0.001175679509 | K13: =CFN2O -> 310 | M13: =K13*I13 -> 0.3644606478
G14: N20 Soil | I14: =SUM(AA22:AA58) -> 0.009358642857 | K14: =CFN2O -> 310 | M14: =K14*I14 -> 2.901179286
I16: Exported Manure | K16: N2O | M16: =SUM(V65:AA65) -> 0
K18: CH4 | M18: =U65 -> 0
F20: Production Type | I20: Indoor
A22: =IF(I20="Outdoor","","*") -> * | B22: =IF(A22="*",0,1) -> 0 | F22: Production System | I22: Free Range | Q22: =INDEX(Assumption!$C$75:$G$75,S22) -> Daily Spread (%) | R22: =IF($I$22="Free Range",1,1-M30) -> 1 | S22: 4 | T22: =INDEX(TableG4MCF,MATCH(HomeState,States),'MMS1'!S22)*B22/100 -> 0 | U22: =EmmPot*'MMS1'!T22*DensCH4*R22 -> 0 | V22: =INDEX(Tale10,'MMS1'!S22)*44/28*B22*R22 -> 0 | W22: =INDEX(TableJ_1,S22)*AtmosDep*44/28*R22*B22 -> 0 | X22: =(1-INDEX(Tale10,'MMS1'!S22)-INDEX(TableJ_1,S22))*B22*R22 -> 0 | Y22: =X22*VLOOKUP(HomeState,TableM2,3,FALSE)*FracLEACH -> 0 | Z22: =X22*VLOOKUP(HomeState,TableM2,3,FALSE)*FracLEACH*EFLRO*44/28 -> 0 | AA22: =X22*0.01*44/28 -> 0
A23: =A22 -> * | B23: =B22 -> 0 | Q23: =INDEX(Assumption!$C$75:$G$75,S23) -> Drylot (%) | R23: =IF($I$22="Free Range",0,M30) -> 0 | S23: 3 | T23: =INDEX(TableG4MCF,MATCH(HomeState,States),'MMS1'!S23)*B23/100 -> 0 | U23: =EmmPot*'MMS1'!T23*DensCH4*R23 -> 0 | V23: =INDEX(Tale10,'MMS1'!S23)*44/28*B23*R23 -> 0 | W23: =INDEX(TableJ_1,S23)*AtmosDep*44/28*R23*B23 -> 0 | X23: =(1-INDEX(Tale10,'MMS1'!S23)-INDEX(TableJ_1,S23))*B23*R23 -> 0 | Y23: =X23*VLOOKUP(HomeState,TableM2,3,FALSE)*FracLEACH -> 0 | Z23: =X23*VLOOKUP(HomeState,TableM2,3,FALSE)*FracLEACH*EFLRO*44/28 -> 0 | AA23: =X23*0.01*44/28 -> 0
A24: =A22 -> * | G24: Dry Lot | I24: Pigs in deep litter sheds which have access to outdoor runs
A25: =A24 -> *
A26: =A25 -> *
A27: =A24 -> * | G27: Free Range | I27: Pigs which do not have deep litter sheds
A28: =A27 -> *
A29: =A28 -> *
A30: =A32 -> * | G30: Manure Collected | M30: 0.4
A31: =A30 -> *
A32: =IF(AND(I20="Outdoor",I22="Dry Lot"),"","*") -> * | F32: Solids Usage | I32: Export Off-Site | R32: Adjustment | X32: =IF($I$32="Export Off-Site",X23*-1,0)*$M$34 -> 0 | Y32: =IF($I$32="Export Off-Site",Y23*-1,0)*$M$34 -> 0 | Z32: =IF($I$32="Export Off-Site",Z23*-1,0)*$M$34 -> 0 | AA32: =IF($I$32="Export Off-Site",AA23*-1,0)*$M$34 -> 0
A33: =A32 -> *
A34: =IF(AND(I20="Outdoor",I22="Dry Lot",I32="Export Off-Site"),"","*") -> * | B34: =IF(I32<>"Export Off-Site","*","") ->  | I34: % Exported Off Site | M34: 0.8
A35: =A34 -> *
A36: =IF(I20="Indoor","","*") ->  | B36: =IF(AND(I20="Indoor",I36="Solid"),1,0) -> 0 | F36: Collection System | I36: Liquid | R36: 1 | S36: 3 | T36: =INDEX(TableG4MCF,MATCH(HomeState,States),'MMS1'!S36)*B36/100 -> 0 | U36: =EmmPot*'MMS1'!T36*DensCH4*R36 -> 0 | V36: =INDEX(Tale10,'MMS1'!S36)*44/28*B36*R36 -> 0 | W36: =INDEX(TableJ_1,S36)*AtmosDep*44/28*R36*B36 -> 0 | X36: =(1-INDEX(Tale10,'MMS1'!S36)-INDEX(TableJ_1,S36))*B36*R36 -> 0 | Y36: =X36*VLOOKUP(HomeState,TableM2,3,FALSE)*FracLEACH -> 0 | Z36: =X36*VLOOKUP(HomeState,TableM2,3,FALSE)*FracLEACH*EFLRO*44/28 -> 0 | AA36: =X36*0.01*44/28 -> 0
A37: =A36 -> 
A38: =IF(AND(I20="Indoor",I36="Solid"),"","*") -> * | F38: Solids Usage | I38: Soil Application | R38: =R32 -> Adjustment | X38: =IF($I$38="Export Off-Site",X36*-1,0)*$M$40 -> 0 | Y38: =IF($I$38="Export Off-Site",Y36*-1,0)*$M$40 -> 0 | Z38: =IF($I$38="Export Off-Site",Z36*-1,0)*$M$40 -> 0 | AA38: =IF($I$38="Export Off-Site",AA36*-1,0)*$M$40 -> 0
A39: =A38 -> *
A40: =IF(AND(I36="Solid",I38="Export Off-Site"),"","*") -> * | I40: % Exported Off Site | M40: 0.5
A41: =A40 -> *
A42: =IF(AND(I20="Indoor",I36="Liquid"),"","*") ->  | F42: Solid Extraction | I42: Run Down Screen
A43: =A42 -> 
A44: =A45 ->  | I44: Extracted | K44: VS | M44: N
A45: =A46 ->  | B45: =IF(AND(I20="Indoor",K45+M45<>0),1,0) -> 1 | K45: =IF(I36="Liquid",IF(ISERROR(VLOOKUP('MMS1'!$I$42,SolidExtVS_N,3,FALSE)),0,VLOOKUP('MMS1'!$I$42,SolidExtVS_N,3,FALSE)),0) -> 0.15 | M45: =IF(I36="Liquid",IF(ISERROR(VLOOKUP('MMS1'!$I$42,SolidExtVS_N,5,FALSE)),0,VLOOKUP('MMS1'!$I$42,SolidExtVS_N,5,FALSE)),0) -> 0.05 | S45: =IF(I42="Effluent Daily Spread",4,3) -> 3 | T45: =INDEX(TableG4MCF,MATCH(HomeState,States),'MMS1'!S45)*B45/100 -> 0.015 | U45: =EmmPot*'MMS1'!T45*DensCH4*K45 -> 0.000670275 | V45: =INDEX(Tale10,'MMS1'!S45)*44/28*B45*M45 -> 0.001571428571 | W45: =INDEX(TableJ_1,S45)*AtmosDep*44/28*M45*B45 -> 0.0003535714286 | X45: =(1-INDEX(Tale10,'MMS1'!S45)-INDEX(TableJ_1,S45))*B45*M45 -> 0.0265 | Y45: =X45*VLOOKUP(HomeState,TableM2,3,FALSE)*FracLEACH -> 0.00266325 | Z45: =X45*VLOOKUP(HomeState,TableM2,3,FALSE)*FracLEACH*EFLRO*44/28 -> 5.231383929e-05 | AA45: =X45*0.01*44/28 -> 0.0004164285714
A46: =A47 -> 
A47: =IF(AND(I20="Indoor",K45+M45<>0),"","*") ->  | F47: Solids Usage | I47: Soil Application | R47: =R38 -> Adjustment | U47: =IF($I$47="Export Off-Site",U45*-1,0)*$M$49 -> 0 | V47: 0 | W47: =IF($I$47="Export Off-Site",W45*-1,0)*$M$49 -> 0 | X47: =IF(I47="Export Off-Site",X45*-1,0)*M49 -> 0 | Y47: =IF($I$47="Export Off-Site",Y45*-1,0)*$M$49 -> 0 | Z47: =IF($I$47="Export Off-Site",Z45*-1,0)*$M$49 -> 0 | AA47: =IF($I$47="Export Off-Site",AA45*-1,0)*$M$49 -> 0
A48: =A47 -> 
A49: =IF(AND(I20="Indoor",K45+M45<>0,I47="Export Off-Site"),"","*") -> * | I49: % Exported Off Site | M49: 0.2
A50: =A49 -> *
A51: =IF(AND(I20="Indoor",I36="Liquid"),"","*") ->  | F51: Liquid Treatment | I51: Anaerobic Lagoon
A52: =A51 -> 
A53: =A52 ->  | I53: Balance | K53: VS | M53: N
A54: =A53 ->  | B54: =IF(AND(I36="Liquid",I20="Indoor",K54+M54<>0),1,0) -> 1 | I54: Balance | K54: =1-K45 -> 0.85 | M54: =1-M45 -> 0.95 | S54: =MATCH(I51,EffTreatment,0) -> 1 | T54: =INDEX(TableG4MCF,MATCH(HomeState,States),'MMS1'!S54)*B54/100 -> 0.9 | U54: =EmmPot*'MMS1'!T54*DensCH4*K54 -> 0.2278935 | V54: =INDEX(Tale10,'MMS1'!S54)*44/28*B54*M54 -> 0.001492857143 | W54: =INDEX(TableJ_1,S54)*AtmosDep*44/28*M54*B54 -> 0.005971428571 | X54: =(1-INDEX(Tale10,'MMS1'!S54)-INDEX(TableJ_1,S54))*B54*M54 -> 0.56905 | Y54: =X54*VLOOKUP(HomeState,TableM2,3,FALSE)*FracLEACH -> 0.057189525 | Z54: =X54*VLOOKUP(HomeState,TableM2,3,FALSE)*FracLEACH*EFLRO*44/28 -> 0.00112336567 | AA54: =X54*0.01*44/28 -> 0.008942214286
A55: =A54 -> 
A56: =A55 ->  | F56: Treated Effluent Use | I56: Soil Application | R56: =R47 -> Adjustment | X56: =IF(I56="Export Off-Site",X54*-1,0)*M58 -> 0 | Y56: =IF(I56="Export Off-Site",Y54*-1,0)*M58 -> 0 | Z56: =IF($I$56="Export Off-Site",Z54*-1,0)*$M$58 -> 0 | AA56: =IF($I$56="Export Off-Site",AA54*-1,0)*$M$58 -> 0
A57: =A58 -> *
A58: =IF(AND(I56="Export Off-Site",I20="Indoor",I36="Liquid"),"","*") -> * | I58: % Exported Off Site | M58: 0.2
R63: Export | U63: =SUMIF(U6:U61,"<0",U6:U61) -> 0 | V63: =SUMIF(V6:V61,"<0",V6:V61) -> 0 | W63: =SUMIF(W6:W61,"<0",W6:W61) -> 0 | Z63: =SUMIF(Z6:Z61,"<0",Z6:Z61) -> 0 | AA63: =SUMIF(AA6:AA61,"<0",AA6:AA61) -> 0
U64: =K10 -> 21 | V64: =K11 -> 310 | W64: =K12 -> 310 | Z64: =K13 -> 310 | AA64: =K14 -> 310
R65: Export C02-e | U65: =U64*U63 -> 0 | V65: =V64*V63 -> 0 | W65: 0 | Z65: 0 | AA65: 0

Sheet MMS2
A1: Hide
U2: 4B.8_1 | V2: 4B.8_4 | W2: 4B.1.a_10c | Y2: 4D3_6 | Z2: 4D3_6
W3: 4D3_4 | Z3: 4D3_7
F4: Manure Management System 1 | U4: MMS-VS | V4: MMS Direct | W4: MMS -N Vol | X4: Residual | Y4: LRO | Z4: LRO | AA4: SOIL N20
S5: MMS | T5: MCF | U5: CH4 | V5: N2O | W5: N2O | X5: N | Y5: N | Z5: N2O | AA5: N2O
F7: MMS2 Name | I7: Straw Igloo
I9: Total | K9: x Factor | M9: CO2e
G10: CH4 | I10: =SUM(U22:U58) -> 0.0044685 | K10: =CFCH4 -> 21 | M10: =K10*I10 -> 0.0938385
G11: N2O Dir. | I11: =SUM(V22:V58) -> 0.03142857143 | K11: =CFN2O -> 310 | M11: =K11*I11 -> 9.742857143
G12: N2O Vol. | I12: =SUM(W22:W58) -> 0.007071428571 | K12: =CFN2O -> 310 | M12: =K12*I12 -> 2.192142857
G13: N2O LRO | I13: =SUM(Z22:Z58) -> 0.001046276786 | K13: =CFN2O -> 310 | M13: =K13*I13 -> 0.3243458036
G14: N20 Soil | I14: =SUM(AA22:AA58) -> 0.008328571429 | K14: =CFN2O -> 310 | M14: =K14*I14 -> 2.581857143
I16: Exported Manure | K16: N2O | M16: =SUM(V65:AA65) -> 0
K18: CH4 | M18: =U65 -> 0
F20: Production Type | I20: Indoor
A22: =IF(I20="Outdoor","","*") -> * | B22: =IF(A22="*",0,1) -> 0 | F22: Production System | I22: Free Range | Q22: =INDEX(Assumption!$C$75:$G$75,S22) -> Daily Spread (%) | R22: =IF($I$22="Free Range",1,1-M30) -> 1 | S22: 4 | T22: =INDEX(TableG4MCF,MATCH(HomeState,States),'MMS2'!S22)*B22/100 -> 0 | U22: =EmmPot*'MMS2'!T22*DensCH4*R22 -> 0 | V22: =INDEX(Tale10,'MMS2'!S22)*44/28*B22*R22 -> 0 | W22: =INDEX(TableJ_1,S22)*AtmosDep*44/28*R22*B22 -> 0 | X22: =(1-INDEX(Tale10,'MMS2'!S22)-INDEX(TableJ_1,S22))*B22*R22 -> 0 | Y22: =X22*VLOOKUP(HomeState,TableM2,3,FALSE)*FracLEACH -> 0 | Z22: =X22*VLOOKUP(HomeState,TableM2,3,FALSE)*FracLEACH*EFLRO*44/28 -> 0 | AA22: =X22*0.01*44/28 -> 0
A23: =A22 -> * | B23: =B22 -> 0 | Q23: =INDEX(Assumption!$C$75:$G$75,S23) -> Drylot (%) | R23: =IF($I$22="Free Range",0,M30) -> 0 | S23: 3 | T23: =INDEX(TableG4MCF,MATCH(HomeState,States),'MMS2'!S23)*B23/100 -> 0 | U23: =EmmPot*'MMS2'!T23*DensCH4*R23 -> 0 | V23: =INDEX(Tale10,'MMS2'!S23)*44/28*B23*R23 -> 0 | W23: =INDEX(TableJ_1,S23)*AtmosDep*44/28*R23*B23 -> 0 | X23: =(1-INDEX(Tale10,'MMS2'!S23)-INDEX(TableJ_1,S23))*B23*R23 -> 0 | Y23: =X23*VLOOKUP(HomeState,TableM2,3,FALSE)*FracLEACH -> 0 | Z23: =X23*VLOOKUP(HomeState,TableM2,3,FALSE)*FracLEACH*EFLRO*44/28 -> 0 | AA23: =X23*0.01*44/28 -> 0
A24: =A22 -> * | G24: Dry Lot | I24: Pigs in deep litter sheds which have access to outdoor runs
A25: =A24 -> *
A26: =A25 -> *
A27: =A24 -> * | G27: Free Range | I27: Pigs which do not have deep litter sheds
A28: =A27 -> *
A29: =A28 -> *
A30: =A32 -> * | G30: Manure Collected | M30: 0.4
A31: =A30 -> *
A32: =IF(AND(I20="Outdoor",I22="Dry Lot"),"","*") -> * | F32: Solids Usage | I32: Export Off-Site | R32: Adjustment | X32: =IF($I$32="Export Off-Site",X23*-1,0)*$M$34 -> 0 | Y32: =IF($I$32="Export Off-Site",Y23*-1,0)*$M$34 -> 0 | Z32: =IF($I$32="Export Off-Site",Z23*-1,0)*$M$34 -> 0 | AA32: =IF($I$32="Export Off-Site",AA23*-1,0)*$M$34 -> 0
A33: =A32 -> *
A34: =IF(AND(I20="Outdoor",I22="Dry Lot",I32="Export Off-Site"),"","*") -> * | B34: =IF(I32<>"Export Off-Site","*","") ->  | I34: % Exported Off Site | M34: 0.8
A35: =A34 -> *
A36: =IF(I20="Indoor","","*") ->  | B36: =IF(AND(I20="Indoor",I36="Solid"),1,0) -> 1 | F36: Collection System | I36: Solid | R36: 1 | S36: 3 | T36: =INDEX(TableG4MCF,MATCH(HomeState,States),'MMS2'!S36)*B36/100 -> 0.015 | U36: =EmmPot*'MMS2'!T36*DensCH4*R36 -> 0.0044685 | V36: =INDEX(Tale10,'MMS2'!S36)*44/28*B36*R36 -> 0.03142857143 | W36: =INDEX(TableJ_1,S36)*AtmosDep*44/28*R36*B36 -> 0.007071428571 | X36: =(1-INDEX(Tale10,'MMS2'!S36)-INDEX(TableJ_1,S36))*B36*R36 -> 0.53 | Y36: =X36*VLOOKUP(HomeState,TableM2,3,FALSE)*FracLEACH -> 0.053265 | Z36: =X36*VLOOKUP(HomeState,TableM2,3,FALSE)*FracLEACH*EFLRO*44/28 -> 0.001046276786 | AA36: =X36*0.01*44/28 -> 0.008328571429
A37: =A36 -> 
A38: =IF(AND(I20="Indoor",I36="Solid"),"","*") ->  | F38: Solids Usage | I38: Soil Application | R38: =R32 -> Adjustment | X38: =IF($I$38="Export Off-Site",X36*-1,0)*$M$40 -> 0 | Y38: =IF($I$38="Export Off-Site",Y36*-1,0)*$M$40 -> 0 | Z38: =IF($I$38="Export Off-Site",Z36*-1,0)*$M$40 -> 0 | AA38: =IF($I$38="Export Off-Site",AA36*-1,0)*$M$40 -> 0
A39: =A38 -> 
A40: =IF(AND(I36="Solid",I38="Export Off-Site"),"","*") -> * | I40: % Exported Off Site | M40: 0
A41: =A40 -> *
A42: =IF(AND(I20="Indoor",I36="Liquid"),"","*") -> * | F42: Solid Extraction | I42: No Solids Separated
A43: =A42 -> *
A44: =A45 -> * | I44: Extracted | K44: VS | M44: N
A45: =A46 -> * | B45: =IF(AND(I20="Indoor",K45+M45<>0),1,0) -> 0 | K45: =IF(I36="Liquid",IF(ISERROR(VLOOKUP('MMS2'!$I$42,SolidExtVS_N,3,FALSE)),0,VLOOKUP('MMS2'!$I$42,SolidExtVS_N,3,FALSE)),0) -> 0 | M45: =IF(I36="Liquid",IF(ISERROR(VLOOKUP('MMS2'!$I$42,SolidExtVS_N,5,FALSE)),0,VLOOKUP('MMS2'!$I$42,SolidExtVS_N,5,FALSE)),0) -> 0 | S45: =IF(I42="Effluent Daily Spread",4,3) -> 3 | T45: =INDEX(TableG4MCF,MATCH(HomeState,States),'MMS2'!S45)*B45/100 -> 0 | U45: =EmmPot*'MMS2'!T45*DensCH4*K45*B45 -> 0 | V45: =INDEX(Tale10,'MMS2'!S45)*44/28*B45*M45 -> 0 | W45: =INDEX(TableJ_1,S45)*AtmosDep*44/28*M45*B45 -> 0 | X45: =(1-INDEX(Tale10,'MMS2'!S45)-INDEX(TableJ_1,S45))*B45*M45 -> 0 | Y45: =X45*VLOOKUP(HomeState,TableM2,3,FALSE)*FracLEACH -> 0 | Z45: =X45*VLOOKUP(HomeState,TableM2,3,FALSE)*FracLEACH*EFLRO*44/28 -> 0 | AA45: =X45*0.01*44/28 -> 0
A46: =A47 -> *
A47: =IF(AND(I20="Indoor",K45+M45<>0),"","*") -> * | F47: Solids Usage | I47: Export Off-Site | R47: =R38 -> Adjustment | U47: =IF($I$47="Export Off-Site",U45*-1,0)*$M$49 -> 0 | V47: 0 | W47: =IF($I$47="Export Off-Site",W45*-1,0)*$M$49 -> 0 | X47: =IF(I47="Export Off-Site",X45*-1,0)*M49 -> 0 | Y47: =IF($I$47="Export Off-Site",Y45*-1,0)*$M$49 -> 0 | Z47: =IF($I$47="Export Off-Site",Z45*-1,0)*$M$49 -> 0 | AA47: =IF($I$47="Export Off-Site",AA45*-1,0)*$M$49 -> 0
A48: =A47 -> *
A49: =IF(AND(I20="Indoor",K45+M45<>0,I47="Export Off-Site"),"","*") -> * | I49: % Exported Off Site | M49: 0.2
A50: =A49 -> *
A51: =IF(AND(I20="Indoor",I36="Liquid"),"","*") -> * | F51: Liquid Treatment | I51: Digester
A52: =A51 -> *
A53: =A52 -> * | I53: Balance | K53: VS | M53: N
A54: =A53 -> * | B54: =IF(AND(I36="Liquid",I20="Indoor",K54+M54<>0),1,0) -> 0 | I54: Balance | K54: =1-K45 -> 1 | M54: =1-M45 -> 1 | S54: =MATCH(I51,EffTreatment,0) -> 5 | T54: =INDEX(TableG4MCF,MATCH(HomeState,States),'MMS2'!S54)*B54/100 -> 0 | U54: =EmmPot*'MMS2'!T54*DensCH4*K54 -> 0 | V54: =INDEX(Tale10,'MMS2'!S54)*44/28*B54*M54 -> 0 | W54: =INDEX(TableJ_1,S54)*AtmosDep*44/28*M54*B54 -> 0 | X54: =(1-INDEX(Tale10,'MMS2'!S54)-INDEX(TableJ_1,S54))*B54*M54 -> 0 | Y54: =X54*VLOOKUP(HomeState,TableM2,3,FALSE)*FracLEACH -> 0 | Z54: =X54*VLOOKUP(HomeState,TableM2,3,FALSE)*FracLEACH*EFLRO*44/28 -> 0 | AA54: =X54*0.01*44/28 -> 0
A55: =A54 -> *
A56: =A55 -> * | F56: Treated Effluent Use | I56: Soil Application | R56: =R47 -> Adjustment | X56: =IF(I56="Export Off-Site",X54*-1,0)*M58 -> 0 | Y56: =IF(I56="Export Off-Site",Y54*-1,0)*M58 -> 0 | Z56: =IF($I$56="Export Off-Site",Z54*-1,0)*$M$58 -> 0 | AA56: =IF($I$56="Export Off-Site",AA54*-1,0)*$M$58 -> 0
A57: =A58 -> *
A58: =IF(AND(I56="Export Off-Site",I20="Indoor",I36="Liquid"),"","*") -> * | I58: % Exported Off Site | M58: 0.2
R63: Export | U63: =SUMIF(U6:U61,"<0",U6:U61) -> 0 | V63: =SUMIF(V6:V61,"<0",V6:V61) -> 0 | W63: =SUMIF(W6:W61,"<0",W6:W61) -> 0 | Z63: =SUMIF(Z6:Z61,"<0",Z6:Z61) -> 0 | AA63: =SUMIF(AA6:AA61,"<0",AA6:AA61) -> 0
U64: =K10 -> 21 | V64: =K11 -> 310 | W64: =K12 -> 310 | Z64: =K13 -> 310 | AA64: =K14 -> 310
R65: Export C02-e | U65: =U64*U63 -> 0 | V65: =V64*V63 -> 0 | W65: 0 | Z65: 0 | AA65: 0

Sheet MMS3
A1: Hide
U2: 4B.8_1 | V2: 4B.8_4 | W2: 4B.1.a_10c | Y2: 4D3_6 | Z2: 4D3_6
W3: 4D3_4 | Z3: 4D3_7
F4: Manure Management System 1 | U4: MMS-VS | V4: MMS Direct | W4: MMS -N Vol | X4: Residual | Y4: LRO | Z4: LRO | AA4: SOIL N20
S5: MMS | T5: MCF | U5: CH4 | V5: N2O | W5: N2O | X5: N | Y5: N | Z5: N2O | AA5: N2O
F7: MMS3 Name | I7: Ponds II
I9: Total | K9: x Factor | M9: CO2e
G10: CH4 | I10: =SUM(U22:U58) -> 0.02979 | K10: =CFCH4 -> 21 | M10: =K10*I10 -> 0.62559
G11: N2O Dir. | I11: =SUM(V22:V58) -> 0.001571428571 | K11: =CFN2O -> 310 | M11: =K11*I11 -> 0.4871428571
G12: N2O Vol. | I12: =SUM(W22:W58) -> 0 | K12: =CFN2O -> 310 | M12: =K12*I12 -> 0
G13: N2O LRO | I13: =SUM(Z22:Z58) -> 0.001972133036 | K13: =CFN2O -> 310 | M13: =K13*I13 -> 0.6113612411
G14: N20 Soil | I14: =SUM(AA22:AA58) -> 0.01569857143 | K14: =CFN2O -> 310 | M14: =K14*I14 -> 4.866557143
I16: Exported Manure | K16: N2O | M16: =SUM(V65:AA65) -> 0
K18: CH4 | M18: =U65 -> 0
F20: Production Type | I20: Indoor
A22: =IF(I20="Outdoor","","*") -> * | B22: =IF(A22="*",0,1) -> 0 | F22: Production System | I22: Dry Lot | Q22: =INDEX(Assumption!$C$75:$G$75,S22) -> Daily Spread (%) | R22: =IF($I$22="Free Range",1,1-M30) -> 0.6 | S22: 4 | T22: =INDEX(TableG4MCF,MATCH(HomeState,States),'MMS3'!S22)*B22/100 -> 0 | U22: =EmmPot*'MMS3'!T22*DensCH4*R22 -> 0 | V22: =INDEX(Tale10,'MMS3'!S22)*44/28*B22*R22 -> 0 | W22: =INDEX(TableJ_1,S22)*AtmosDep*44/28*R22*B22 -> 0 | X22: =(1-INDEX(Tale10,'MMS3'!S22)-INDEX(TableJ_1,S22))*B22*R22 -> 0 | Y22: =X22*VLOOKUP(HomeState,TableM2,3,FALSE)*FracLEACH -> 0 | Z22: =X22*VLOOKUP(HomeState,TableM2,3,FALSE)*FracLEACH*EFLRO*44/28 -> 0 | AA22: =X22*0.01*44/28 -> 0
A23: =A22 -> * | B23: =B22 -> 0 | Q23: =INDEX(Assumption!$C$75:$G$75,S23) -> Drylot (%) | R23: =IF($I$22="Free Range",0,M30) -> 0.4 | S23: 3 | T23: =INDEX(TableG4MCF,MATCH(HomeState,States),'MMS3'!S23)*B23/100 -> 0 | U23: =EmmPot*'MMS3'!T23*DensCH4*R23 -> 0 | V23: =INDEX(Tale10,'MMS3'!S23)*44/28*B23*R23 -> 0 | W23: =INDEX(TableJ_1,S23)*AtmosDep*44/28*R23*B23 -> 0 | X23: =(1-INDEX(Tale10,'MMS3'!S23)-INDEX(TableJ_1,S23))*B23*R23 -> 0 | Y23: =X23*VLOOKUP(HomeState,TableM2,3,FALSE)*FracLEACH -> 0 | Z23: =X23*VLOOKUP(HomeState,TableM2,3,FALSE)*FracLEACH*EFLRO*44/28 -> 0 | AA23: =X23*0.01*44/28 -> 0
A24: =A22 -> * | G24: Dry Lot | I24: Pigs in deep litter sheds which have access to outdoor runs
A25: =A24 -> *
A26: =A25 -> *
A27: =A24 -> * | G27: Free Range | I27: Pigs which do not have deep litter sheds
A28: =A27 -> *
A29: =A28 -> *
A30: =A32 -> * | G30: Manure Collected | M30: 0.4
A31: =A30 -> *
A32: =IF(AND(I20="Outdoor",I22="Dry Lot"),"","*") -> * | F32: Solids Usage | I32: Export Off-Site | R32: Adjustment | X32: =IF($I$32="Export Off-Site",X23*-1,0)*$M$34 -> 0 | Y32: =IF($I$32="Export Off-Site",Y23*-1,0)*$M$34 -> 0 | Z32: =IF($I$32="Export Off-Site",Z23*-1,0)*$M$34 -> 0 | AA32: =IF($I$32="Export Off-Site",AA23*-1,0)*$M$34 -> 0
A33: =A32 -> *
A34: =IF(AND(I20="Outdoor",I22="Dry Lot",I32="Export Off-Site"),"","*") -> * | B34: =IF(I32<>"Export Off-Site","*","") ->  | I34: % Exported Off Site | M34: 0.8
A35: =A34 -> *
A36: =IF(I20="Indoor","","*") ->  | B36: =IF(AND(I20="Indoor",I36="Solid"),1,0) -> 0 | F36: Collection System | I36: Liquid | R36: 1 | S36: 3 | T36: =INDEX(TableG4MCF,MATCH(HomeState,States),'MMS3'!S36)*B36/100 -> 0 | U36: =EmmPot*'MMS3'!T36*DensCH4*R36 -> 0 | V36: =INDEX(Tale10,'MMS3'!S36)*44/28*B36*R36 -> 0 | W36: =INDEX(TableJ_1,S36)*AtmosDep*44/28*R36*B36 -> 0 | X36: =(1-INDEX(Tale10,'MMS3'!S36)-INDEX(TableJ_1,S36))*B36*R36 -> 0 | Y36: =X36*VLOOKUP(HomeState,TableM2,3,FALSE)*FracLEACH -> 0 | Z36: =X36*VLOOKUP(HomeState,TableM2,3,FALSE)*FracLEACH*EFLRO*44/28 -> 0 | AA36: =X36*0.01*44/28 -> 0
A37: =A36 -> 
A38: =IF(AND(I20="Indoor",I36="Solid"),"","*") -> * | F38: Solids Usage | I38: Export Off-Site | R38: =R32 -> Adjustment | X38: =IF($I$38="Export Off-Site",X36*-1,0)*$M$40 -> 0 | Y38: =IF($I$38="Export Off-Site",Y36*-1,0)*$M$40 -> 0 | Z38: =IF($I$38="Export Off-Site",Z36*-1,0)*$M$40 -> 0 | AA38: =IF($I$38="Export Off-Site",AA36*-1,0)*$M$40 -> 0
A39: =A38 -> *
A40: =IF(AND(I36="Solid",I38="Export Off-Site"),"","*") -> * | I40: % Exported Off Site | M40: 0.5
A41: =A40 -> *
A42: =IF(AND(I20="Indoor",I36="Liquid"),"","*") ->  | F42: Solid Extraction | I42: No Solids Separated
A43: =A42 -> 
A44: =A45 -> * | I44: Extracted | K44: VS | M44: N
A45: =A46 -> * | B45: =IF(AND(I20="Indoor",K45+M45<>0),1,0) -> 0 | K45: =IF(I36="Liquid",IF(ISERROR(VLOOKUP('MMS3'!$I$42,SolidExtVS_N,3,FALSE)),0,VLOOKUP('MMS3'!$I$42,SolidExtVS_N,3,FALSE)),0) -> 0 | M45: =IF(I36="Liquid",IF(ISERROR(VLOOKUP('MMS3'!$I$42,SolidExtVS_N,5,FALSE)),0,VLOOKUP('MMS3'!$I$42,SolidExtVS_N,5,FALSE)),0) -> 0 | S45: =IF(I42="Effluent Daily Spread",4,3) -> 3 | T45: =INDEX(TableG4MCF,MATCH(HomeState,States),'MMS3'!S45)*B45/100 -> 0 | U45: =EmmPot*'MMS3'!T45*DensCH4*K45*B45 -> 0 | V45: =INDEX(Tale10,'MMS3'!S45)*44/28*B45*M45 -> 0 | W45: =INDEX(TableJ_1,S45)*AtmosDep*44/28*M45*B45 -> 0 | X45: =(1-INDEX(Tale10,'MMS3'!S45)-INDEX(TableJ_1,S45))*B45*M45 -> 0 | Y45: =X45*VLOOKUP(HomeState,TableM2,3,FALSE)*FracLEACH -> 0 | Z45: =X45*VLOOKUP(HomeState,TableM2,3,FALSE)*FracLEACH*EFLRO*44/28 -> 0 | AA45: =X45*0.01*44/28 -> 0
A46: =A47 -> *
A47: =IF(AND(I20="Indoor",K45+M45<>0),"","*") -> * | F47: Solids Usage | I47: Soil Application | R47: =R38 -> Adjustment | U47: =IF($I$47="Export Off-Site",U45*-1,0)*$M$49 -> 0 | V47: 0 | W47: =IF($I$47="Export Off-Site",W45*-1,0)*$M$49 -> 0 | X47: =IF(I47="Export Off-Site",X45*-1,0)*M49 -> 0 | Y47: =IF($I$47="Export Off-Site",Y45*-1,0)*$M$49 -> 0 | Z47: =IF($I$47="Export Off-Site",Z45*-1,0)*$M$49 -> 0 | AA47: =IF($I$47="Export Off-Site",AA45*-1,0)*$M$49 -> 0
A48: =A47 -> *
A49: =IF(AND(I20="Indoor",K45+M45<>0,I47="Export Off-Site"),"","*") -> * | I49: % Exported Off Site | M49: 0.2
A50: =A49 -> *
A51: =IF(AND(I20="Indoor",I36="Liquid"),"","*") ->  | F51: Liquid Treatment | I51: Digester
A52: =A51 -> 
A53: =A52 ->  | I53: Balance | K53: VS | M53: N
A54: =A53 ->  | B54: =IF(AND(I36="Liquid",I20="Indoor",K54+M54<>0),1,0) -> 1 | I54: Balance | K54: =1-K45 -> 1 | M54: =1-M45 -> 1 | S54: =MATCH(I51,EffTreatment,0) -> 5 | T54: =INDEX(TableG4MCF,MATCH(HomeState,States),'MMS3'!S54)*B54/100 -> 0.1 | U54: =EmmPot*'MMS3'!T54*DensCH4*K54 -> 0.02979 | V54: =INDEX(Tale10,'MMS3'!S54)*44/28*B54*M54 -> 0.001571428571 | W54: =INDEX(TableJ_1,S54)*AtmosDep*44/28*M54*B54 -> 0 | X54: =(1-INDEX(Tale10,'MMS3'!S54)-INDEX(TableJ_1,S54))*B54*M54 -> 0.999 | Y54: =X54*VLOOKUP(HomeState,TableM2,3,FALSE)*FracLEACH -> 0.1003995 | Z54: =X54*VLOOKUP(HomeState,TableM2,3,FALSE)*FracLEACH*EFLRO*44/28 -> 0.001972133036 | AA54: =X54*0.01*44/28 -> 0.01569857143
A55: =A54 -> 
A56: =A55 ->  | F56: Treated Effluent Use | I56: Soil Application | R56: =R47 -> Adjustment | X56: =IF(I56="Export Off-Site",X54*-1,0)*M58 -> 0 | Y56: =IF(I56="Export Off-Site",Y54*-1,0)*M58 -> 0 | Z56: =IF($I$56="Export Off-Site",Z54*-1,0)*$M$58 -> 0 | AA56: =IF($I$56="Export Off-Site",AA54*-1,0)*$M$58 -> 0
A57: =A58 -> *
A58: =IF(AND(I56="Export Off-Site",I20="Indoor",I36="Liquid"),"","*") -> * | I58: % Exported Off Site | M58: 0.2
R63: Export | U63: =SUMIF(U6:U61,"<0",U6:U61) -> 0 | V63: =SUMIF(V6:V61,"<0",V6:V61) -> 0 | W63: =SUMIF(W6:W61,"<0",W6:W61) -> 0 | Z63: =SUMIF(Z6:Z61,"<0",Z6:Z61) -> 0 | AA63: =SUMIF(AA6:AA61,"<0",AA6:AA61) -> 0
U64: =K10 -> 21 | V64: =K11 -> 310 | W64: =K12 -> 310 | Z64: =K13 -> 310 | AA64: =K14 -> 310
R65: Export C02-e | U65: =U64*U63 -> 0 | V65: =V64*V63 -> 0 | W65: 0 | Z65: 0 | AA65: 0

Sheet MMS4
A1: Hide
U2: 4B.8_1 | V2: 4B.8_4 | W2: 4B.1.a_10c | Y2: 4D3_6 | Z2: 4D3_6
W3: 4D3_4 | Z3: 4D3_7
F4: Manure Management System 1 | U4: MMS-VS | V4: MMS Direct | W4: MMS -N Vol | X4: Residual | Y4: LRO | Z4: LRO | AA4: SOIL N20
S5: MMS | T5: MCF | U5: CH4 | V5: N2O | W5: N2O | X5: N | Y5: N | Z5: N2O | AA5: N2O
F7: MMS4 Name | I7: Not Used
I9: Total | K9: x Factor | M9: CO2e
G10: CH4 | I10: =SUM(U22:U58) -> 0.26811 | K10: =CFCH4 -> 21 | M10: =K10*I10 -> 5.63031
G11: N2O Dir. | I11: =SUM(V22:V58) -> 0.001571428571 | K11: =CFN2O -> 310 | M11: =K11*I11 -> 0.4871428571
G12: N2O Vol. | I12: =SUM(W22:W58) -> 0.006285714286 | K12: =CFN2O -> 310 | M12: =K12*I12 -> 1.948571429
G13: N2O LRO | I13: =SUM(Z22:Z58) -> 0.001182490179 | K13: =CFN2O -> 310 | M13: =K13*I13 -> 0.3665719554
G14: N20 Soil | I14: =SUM(AA22:AA58) -> 0.009412857143 | K14: =CFN2O -> 310 | M14: =K14*I14 -> 2.917985714
I16: Exported Manure | K16: N2O | M16: =SUM(V65:AA65) -> 0
K18: CH4 | M18: =U65 -> 0
F20: Production Type | I20: Indoor
A22: =IF(I20="Outdoor","","*") -> * | B22: =IF(A22="*",0,1) -> 0 | F22: Production System | I22: Dry Lot | Q22: =INDEX(Assumption!$C$75:$G$75,S22) -> Daily Spread (%) | R22: =IF($I$22="Free Range",1,1-M30) -> 0.6 | S22: 4 | T22: =INDEX(TableG4MCF,MATCH(HomeState,States),'MMS4'!S22)*B22/100 -> 0 | U22: =EmmPot*'MMS4'!T22*DensCH4*R22 -> 0 | V22: =INDEX(Tale10,'MMS4'!S22)*44/28*B22*R22 -> 0 | W22: =INDEX(TableJ_1,S22)*AtmosDep*44/28*R22*B22 -> 0 | X22: =(1-INDEX(Tale10,'MMS4'!S22)-INDEX(TableJ_1,S22))*B22*R22 -> 0 | Y22: =X22*VLOOKUP(HomeState,TableM2,3,FALSE)*FracLEACH -> 0 | Z22: =X22*VLOOKUP(HomeState,TableM2,3,FALSE)*FracLEACH*EFLRO*44/28 -> 0 | AA22: =X22*0.01*44/28 -> 0
A23: =A22 -> * | B23: =B22 -> 0 | Q23: =INDEX(Assumption!$C$75:$G$75,S23) -> Drylot (%) | R23: =IF($I$22="Free Range",0,M30) -> 0.4 | S23: 3 | T23: =INDEX(TableG4MCF,MATCH(HomeState,States),'MMS4'!S23)*B23/100 -> 0 | U23: =EmmPot*'MMS4'!T23*DensCH4*R23 -> 0 | V23: =INDEX(Tale10,'MMS4'!S23)*44/28*B23*R23 -> 0 | W23: =INDEX(TableJ_1,S23)*AtmosDep*44/28*R23*B23 -> 0 | X23: =(1-INDEX(Tale10,'MMS4'!S23)-INDEX(TableJ_1,S23))*B23*R23 -> 0 | Y23: =X23*VLOOKUP(HomeState,TableM2,3,FALSE)*FracLEACH -> 0 | Z23: =X23*VLOOKUP(HomeState,TableM2,3,FALSE)*FracLEACH*EFLRO*44/28 -> 0 | AA23: =X23*0.01*44/28 -> 0
A24: =A22 -> * | G24: Dry Lot | I24: Pigs in deep litter sheds which have access to outdoor runs
A25: =A24 -> *
A26: =A25 -> *
A27: =A24 -> * | G27: Free Range | I27: Pigs which do not have deep litter sheds
A28: =A27 -> *
A29: =A28 -> *
A30: =A32 -> * | G30: Manure Collected | M30: 0.4
A31: =A30 -> *
A32: =IF(AND(I20="Outdoor",I22="Dry Lot"),"","*") -> * | F32: Solids Usage | I32: Export Off-Site | R32: Adjustment | X32: =IF($I$32="Export Off-Site",X23*-1,0)*$M$34 -> 0 | Y32: =IF($I$32="Export Off-Site",Y23*-1,0)*$M$34 -> 0 | Z32: =IF($I$32="Export Off-Site",Z23*-1,0)*$M$34 -> 0 | AA32: =IF($I$32="Export Off-Site",AA23*-1,0)*$M$34 -> 0
A33: =A32 -> *
A34: =IF(AND(I20="Outdoor",I22="Dry Lot",I32="Export Off-Site"),"","*") -> * | B34: =IF(I32<>"Export Off-Site","*","") ->  | I34: % Exported Off Site | M34: 0.8
A35: =A34 -> *
A36: =IF(I20="Indoor","","*") ->  | B36: =IF(AND(I20="Indoor",I36="Solid"),1,0) -> 0 | F36: Collection System | I36: Liquid | R36: 1 | S36: 3 | T36: =INDEX(TableG4MCF,MATCH(HomeState,States),'MMS4'!S36)*B36/100 -> 0 | U36: =EmmPot*'MMS4'!T36*DensCH4*R36 -> 0 | V36: =INDEX(Tale10,'MMS4'!S36)*44/28*B36*R36 -> 0 | W36: =INDEX(TableJ_1,S36)*AtmosDep*44/28*R36*B36 -> 0 | X36: =(1-INDEX(Tale10,'MMS4'!S36)-INDEX(TableJ_1,S36))*B36*R36 -> 0 | Y36: =X36*VLOOKUP(HomeState,TableM2,3,FALSE)*FracLEACH -> 0 | Z36: =X36*VLOOKUP(HomeState,TableM2,3,FALSE)*FracLEACH*EFLRO*44/28 -> 0 | AA36: =X36*0.01*44/28 -> 0
A37: =A36 -> 
A38: =IF(AND(I20="Indoor",I36="Solid"),"","*") -> * | F38: Solids Usage | I38: Export Off-Site | R38: =R32 -> Adjustment | X38: =IF($I$38="Export Off-Site",X36*-1,0)*$M$40 -> 0 | Y38: =IF($I$38="Export Off-Site",Y36*-1,0)*$M$40 -> 0 | Z38: =IF($I$38="Export Off-Site",Z36*-1,0)*$M$40 -> 0 | AA38: =IF($I$38="Export Off-Site",AA36*-1,0)*$M$40 -> 0
A39: =A38 -> *
A40: =IF(AND(I36="Solid",I38="Export Off-Site"),"","*") -> * | I40: % Exported Off Site | M40: 0.5
A41: =A40 -> *
A42: =IF(AND(I20="Indoor",I36="Liquid"),"","*") ->  | F42: Solid Extraction | I42: No Solids Seperated
A43: =A42 -> 
A44: =A45 -> * | I44: Extracted | K44: VS | M44: N
A45: =A46 -> * | B45: =IF(AND(I20="Indoor",K45+M45<>0),1,0) -> 0 | K45: =IF(I36="Liquid",IF(ISERROR(VLOOKUP('MMS4'!$I$42,SolidExtVS_N,3,FALSE)),0,VLOOKUP('MMS4'!$I$42,SolidExtVS_N,3,FALSE)),0) -> 0 | M45: =IF(I36="Liquid",IF(ISERROR(VLOOKUP('MMS4'!$I$42,SolidExtVS_N,5,FALSE)),0,VLOOKUP('MMS4'!$I$42,SolidExtVS_N,5,FALSE)),0) -> 0 | S45: =IF(I42="Effluent Daily Spread",4,3) -> 3 | T45: =INDEX(TableG4MCF,MATCH(HomeState,States),'MMS4'!S45)*B45/100 -> 0 | U45: =EmmPot*'MMS4'!T45*DensCH4*K45*B45 -> 0 | V45: =INDEX(Tale10,'MMS4'!S45)*44/28*B45*M45 -> 0 | W45: =INDEX(TableJ_1,S45)*AtmosDep*44/28*M45*B45 -> 0 | X45: =(1-INDEX(Tale10,'MMS4'!S45)-INDEX(TableJ_1,S45))*B45*M45 -> 0 | Y45: =X45*VLOOKUP(HomeState,TableM2,3,FALSE)*FracLEACH -> 0 | Z45: =X45*VLOOKUP(HomeState,TableM2,3,FALSE)*FracLEACH*EFLRO*44/28 -> 0 | AA45: =X45*0.01*44/28 -> 0
A46: =A47 -> *
A47: =IF(AND(I20="Indoor",K45+M45<>0),"","*") -> * | F47: Solids Usage | I47: Export Off-Site | R47: =R38 -> Adjustment | U47: =IF($I$47="Export Off-Site",U45*-1,0)*$M$49 -> 0 | V47: 0 | W47: =IF($I$47="Export Off-Site",W45*-1,0)*$M$49 -> 0 | X47: =IF(I47="Export Off-Site",X45*-1,0)*M49 -> 0 | Y47: =IF($I$47="Export Off-Site",Y45*-1,0)*$M$49 -> 0 | Z47: =IF($I$47="Export Off-Site",Z45*-1,0)*$M$49 -> 0 | AA47: =IF($I$47="Export Off-Site",AA45*-1,0)*$M$49 -> 0
A48: =A47 -> *
A49: =IF(AND(I20="Indoor",K45+M45<>0,I47="Export Off-Site"),"","*") -> * | I49: % Exported Off Site | M49: 0.2
A50: =A49 -> *
A51: =IF(AND(I20="Indoor",I36="Liquid"),"","*") ->  | F51: Liquid Treatment | I51: Anaerobic Lagoon
A52: =A51 -> 
A53: =A52 ->  | I53: Balance | K53: VS | M53: N
A54: =A53 ->  | B54: =IF(AND(I36="Liquid",I20="Indoor",K54+M54<>0),1,0) -> 1 | I54: Balance | K54: =1-K45 -> 1 | M54: =1-M45 -> 1 | S54: =MATCH(I51,EffTreatment,0) -> 1 | T54: =INDEX(TableG4MCF,MATCH(HomeState,States),'MMS4'!S54)*B54/100 -> 0.9 | U54: =EmmPot*'MMS4'!T54*DensCH4*K54 -> 0.26811 | V54: =INDEX(Tale10,'MMS4'!S54)*44/28*B54*M54 -> 0.001571428571 | W54: =INDEX(TableJ_1,S54)*AtmosDep*44/28*M54*B54 -> 0.006285714286 | X54: =(1-INDEX(Tale10,'MMS4'!S54)-INDEX(TableJ_1,S54))*B54*M54 -> 0.599 | Y54: =X54*VLOOKUP(HomeState,TableM2,3,FALSE)*FracLEACH -> 0.0601995 | Z54: =X54*VLOOKUP(HomeState,TableM2,3,FALSE)*FracLEACH*EFLRO*44/28 -> 0.001182490179 | AA54: =X54*0.01*44/28 -> 0.009412857143
A55: =A54 -> 
A56: =A55 ->  | F56: Treated Effluent Use | I56: Soil Application | R56: =R47 -> Adjustment | X56: =IF(I56="Export Off-Site",X54*-1,0)*M58 -> 0 | Y56: =IF(I56="Export Off-Site",Y54*-1,0)*M58 -> 0 | Z56: =IF($I$56="Export Off-Site",Z54*-1,0)*$M$58 -> 0 | AA56: =IF($I$56="Export Off-Site",AA54*-1,0)*$M$58 -> 0
A57: =A58 -> *
A58: =IF(AND(I56="Export Off-Site",I20="Indoor",I36="Liquid"),"","*") -> * | I58: % Exported Off Site | M58: 0.2
R63: Export | U63: =SUMIF(U6:U61,"<0",U6:U61) -> 0 | V63: =SUMIF(V6:V61,"<0",V6:V61) -> 0 | W63: =SUMIF(W6:W61,"<0",W6:W61) -> 0 | Z63: =SUMIF(Z6:Z61,"<0",Z6:Z61) -> 0 | AA63: =SUMIF(AA6:AA61,"<0",AA6:AA61) -> 0
U64: =K10 -> 21 | V64: =K11 -> 310 | W64: =K12 -> 310 | Z64: =K13 -> 310 | AA64: =K14 -> 310
R65: Export C02-e | U65: =U64*U63 -> 0 | V65: =V64*V63 -> 0 | W65: 0 | Z65: 0 | AA65: 0

Sheet MMS5
A1: Hide
U2: 4B.8_1 | V2: 4B.8_4 | W2: 4B.1.a_10c | Y2: 4D3_6 | Z2: 4D3_6
W3: 4D3_4 | Z3: 4D3_7
F4: Manure Management System 1 | U4: MMS-VS | V4: MMS Direct | W4: MMS -N Vol | X4: Residual | Y4: LRO | Z4: LRO | AA4: SOIL N20
S5: MMS | T5: MCF | U5: CH4 | V5: N2O | W5: N2O | X5: N | Y5: N | Z5: N2O | AA5: N2O
F7: MMS5 Name | I7: Not Used
I9: Total | K9: x Factor | M9: CO2e
G10: CH4 | I10: =SUM(U22:U58) -> 0.22842972 | K10: =CFCH4 -> 21 | M10: =K10*I10 -> 4.79702412
G11: N2O Dir. | I11: =SUM(V22:V58) -> 0.00275 | K11: =CFN2O -> 310 | M11: =K11*I11 -> 0.8525
G12: N2O Vol. | I12: =SUM(W22:W58) -> 0.006254285714 | K12: =CFN2O -> 310 | M12: =K12*I12 -> 1.938828571
G13: N2O LRO | I13: =SUM(Z22:Z58) -> 0.0009405436071 | K13: =CFN2O -> 310 | M13: =K13*I13 -> 0.2915685182
G14: N20 Soil | I14: =SUM(AA22:AA58) -> 0.007486914286 | K14: =CFN2O -> 310 | M14: =K14*I14 -> 2.320943429
I16: Exported Manure | K16: N2O | M16: =SUM(V65:AA65) -> -0.7724779867
K18: CH4 | M18: =U65 -> -0.002815155
F20: Production Type | I20: Indoor
A22: =IF(I20="Outdoor","","*") -> * | B22: =IF(A22="*",0,1) -> 0 | F22: Production System | I22: Dry Lot | Q22: =INDEX(Assumption!$C$75:$G$75,S22) -> Daily Spread (%) | R22: =IF($I$22="Free Range",1,1-M30) -> 0.6 | S22: 4 | T22: =INDEX(TableG4MCF,MATCH(HomeState,States),'MMS5'!S22)*B22/100 -> 0 | U22: =EmmPot*'MMS5'!T22*DensCH4*R22 -> 0 | V22: =INDEX(Tale10,'MMS5'!S22)*44/28*B22*R22 -> 0 | W22: =INDEX(TableJ_1,S22)*AtmosDep*44/28*R22*B22 -> 0 | X22: =(1-INDEX(Tale10,'MMS5'!S22)-INDEX(TableJ_1,S22))*B22*R22 -> 0 | Y22: =X22*VLOOKUP(HomeState,TableM2,3,FALSE)*FracLEACH -> 0 | Z22: =X22*VLOOKUP(HomeState,TableM2,3,FALSE)*FracLEACH*EFLRO*44/28 -> 0 | AA22: =X22*0.01*44/28 -> 0
A23: =A22 -> * | B23: =B22 -> 0 | Q23: =INDEX(Assumption!$C$75:$G$75,S23) -> Drylot (%) | R23: =IF($I$22="Free Range",0,M30) -> 0.4 | S23: 3 | T23: =INDEX(TableG4MCF,MATCH(HomeState,States),'MMS5'!S23)*B23/100 -> 0 | U23: =EmmPot*'MMS5'!T23*DensCH4*R23 -> 0 | V23: =INDEX(Tale10,'MMS5'!S23)*44/28*B23*R23 -> 0 | W23: =INDEX(TableJ_1,S23)*AtmosDep*44/28*R23*B23 -> 0 | X23: =(1-INDEX(Tale10,'MMS5'!S23)-INDEX(TableJ_1,S23))*B23*R23 -> 0 | Y23: =X23*VLOOKUP(HomeState,TableM2,3,FALSE)*FracLEACH -> 0 | Z23: =X23*VLOOKUP(HomeState,TableM2,3,FALSE)*FracLEACH*EFLRO*44/28 -> 0 | AA23: =X23*0.01*44/28 -> 0
A24: =A22 -> * | G24: Dry Lot | I24: Pigs in deep litter sheds which have access to outdoor runs
A25: =A24 -> *
A26: =A25 -> *
A27: =A24 -> * | G27: Free Range | I27: Pigs which do not have deep litter sheds
A28: =A27 -> *
A29: =A28 -> *
A30: =A32 -> * | G30: Manure Collected | M30: 0.4
A31: =A30 -> *
A32: =IF(AND(I20="Outdoor",I22="Dry Lot"),"","*") -> * | F32: Solids Usage | I32: Export Off-Site | R32: Adjustment | X32: =IF($I$32="Export Off-Site",X23*-1,0)*$M$34 -> 0 | Y32: =IF($I$32="Export Off-Site",Y23*-1,0)*$M$34 -> 0 | Z32: =IF($I$32="Export Off-Site",Z23*-1,0)*$M$34 -> 0 | AA32: =IF($I$32="Export Off-Site",AA23*-1,0)*$M$34 -> 0
A33: =A32 -> *
A34: =IF(AND(I20="Outdoor",I22="Dry Lot",I32="Export Off-Site"),"","*") -> * | B34: =IF(I32<>"Export Off-Site","*","") ->  | I34: % Exported Off Site | M34: 0.8
A35: =A34 -> *
A36: =IF(I20="Indoor","","*") ->  | B36: =IF(AND(I20="Indoor",I36="Solid"),1,0) -> 0 | F36: Collection System | I36: Liquid | R36: 1 | S36: 3 | T36: =INDEX(TableG4MCF,MATCH(HomeState,States),'MMS5'!S36)*B36/100 -> 0 | U36: =EmmPot*'MMS5'!T36*DensCH4*R36 -> 0 | V36: =INDEX(Tale10,'MMS5'!S36)*44/28*B36*R36 -> 0 | W36: =INDEX(TableJ_1,S36)*AtmosDep*44/28*R36*B36 -> 0 | X36: =(1-INDEX(Tale10,'MMS5'!S36)-INDEX(TableJ_1,S36))*B36*R36 -> 0 | Y36: =X36*VLOOKUP(HomeState,TableM2,3,FALSE)*FracLEACH -> 0 | Z36: =X36*VLOOKUP(HomeState,TableM2,3,FALSE)*FracLEACH*EFLRO*44/28 -> 0 | AA36: =X36*0.01*44/28 -> 0
A37: =A36 -> 
A38: =IF(AND(I20="Indoor",I36="Solid"),"","*") -> * | F38: Solids Usage | I38: Export Off-Site | R38: =R32 -> Adjustment | X38: =IF($I$38="Export Off-Site",X36*-1,0)*$M$40 -> 0 | Y38: =IF($I$38="Export Off-Site",Y36*-1,0)*$M$40 -> 0 | Z38: =IF($I$38="Export Off-Site",Z36*-1,0)*$M$40 -> 0 | AA38: =IF($I$38="Export Off-Site",AA36*-1,0)*$M$40 -> 0
A39: =A38 -> *
A40: =IF(AND(I36="Solid",I38="Export Off-Site"),"","*") -> * | I40: % Exported Off Site | M40: 0.5
A41: =A40 -> *
A42: =IF(AND(I20="Indoor",I36="Liquid"),"","*") ->  | F42: Solid Extraction | I42: Run Down Screen
A43: =A42 -> 
A44: =A45 ->  | I44: Extracted | K44: VS | M44: N
A45: =A46 ->  | B45: =IF(AND(I20="Indoor",K45+M45<>0),1,0) -> 1 | K45: =IF(I36="Liquid",IF(ISERROR(VLOOKUP('MMS5'!$I$42,SolidExtVS_N,3,FALSE)),0,VLOOKUP('MMS5'!$I$42,SolidExtVS_N,3,FALSE)),0) -> 0.15 | M45: =IF(I36="Liquid",IF(ISERROR(VLOOKUP('MMS5'!$I$42,SolidExtVS_N,5,FALSE)),0,VLOOKUP('MMS5'!$I$42,SolidExtVS_N,5,FALSE)),0) -> 0.05 | S45: =IF(I42="Effluent Daily Spread",4,3) -> 3 | T45: =INDEX(TableG4MCF,MATCH(HomeState,States),'MMS5'!S45)*B45/100 -> 0.015 | U45: =EmmPot*'MMS5'!T45*DensCH4*K45*B45 -> 0.000670275 | V45: =INDEX(Tale10,'MMS5'!S45)*44/28*B45*M45 -> 0.001571428571 | W45: =INDEX(TableJ_1,S45)*AtmosDep*44/28*M45*B45 -> 0.0003535714286 | X45: =(1-INDEX(Tale10,'MMS5'!S45)-INDEX(TableJ_1,S45))*B45*M45 -> 0.0265 | Y45: =X45*VLOOKUP(HomeState,TableM2,3,FALSE)*FracLEACH -> 0.00266325 | Z45: =X45*VLOOKUP(HomeState,TableM2,3,FALSE)*FracLEACH*EFLRO*44/28 -> 5.231383929e-05 | AA45: =X45*0.01*44/28 -> 0.0004164285714
A46: =A47 -> 
A47: =IF(AND(I20="Indoor",K45+M45<>0),"","*") ->  | F47: Solids Usage | I47: Export Off-Site | R47: =R38 -> Adjustment | U47: =IF($I$47="Export Off-Site",U45*-1,0)*$M$49 -> -0.000134055 | V47: -0.0003142857143 | W47: =IF($I$47="Export Off-Site",W45*-1,0)*$M$49 -> -7.071428571e-05 | X47: =IF(I47="Export Off-Site",X45*-1,0)*M49 -> -0.0053 | Y47: =IF($I$47="Export Off-Site",Y45*-1,0)*$M$49 -> -0.00053265 | Z47: =IF($I$47="Export Off-Site",Z45*-1,0)*$M$49 -> -1.046276786e-05 | AA47: =IF($I$47="Export Off-Site",AA45*-1,0)*$M$49 -> -8.328571429e-05
A48: =A47 -> 
A49: =IF(AND(I20="Indoor",K45+M45<>0,I47="Export Off-Site"),"","*") ->  | I49: % Exported Off Site | M49: 0.2
A50: =A49 -> 
A51: =IF(AND(I20="Indoor",I36="Liquid"),"","*") ->  | F51: Liquid Treatment | I51: Anaerobic Lagoon
A52: =A51 -> 
A53: =A52 ->  | I53: Balance | K53: VS | M53: N
A54: =A53 ->  | B54: =IF(AND(I36="Liquid",I20="Indoor",K54+M54<>0),1,0) -> 1 | I54: Balance | K54: =1-K45 -> 0.85 | M54: =1-M45 -> 0.95 | S54: =MATCH(I51,EffTreatment,0) -> 1 | T54: =INDEX(TableG4MCF,MATCH(HomeState,States),'MMS5'!S54)*B54/100 -> 0.9 | U54: =EmmPot*'MMS5'!T54*DensCH4*K54 -> 0.2278935 | V54: =INDEX(Tale10,'MMS5'!S54)*44/28*B54*M54 -> 0.001492857143 | W54: =INDEX(TableJ_1,S54)*AtmosDep*44/28*M54*B54 -> 0.005971428571 | X54: =(1-INDEX(Tale10,'MMS5'!S54)-INDEX(TableJ_1,S54))*B54*M54 -> 0.56905 | Y54: =X54*VLOOKUP(HomeState,TableM2,3,FALSE)*FracLEACH -> 0.057189525 | Z54: =X54*VLOOKUP(HomeState,TableM2,3,FALSE)*FracLEACH*EFLRO*44/28 -> 0.00112336567 | AA54: =X54*0.01*44/28 -> 0.008942214286
A55: =A54 -> 
A56: =A55 ->  | F56: Treated Effluent Use | I56: Export Off-Site | R56: =R47 -> Adjustment | X56: =IF(I56="Export Off-Site",X54*-1,0)*M58 -> -0.11381 | Y56: =IF(I56="Export Off-Site",Y54*-1,0)*M58 -> -0.011437905 | Z56: =IF($I$56="Export Off-Site",Z54*-1,0)*$M$58 -> -0.0002246731339 | AA56: =IF($I$56="Export Off-Site",AA54*-1,0)*$M$58 -> -0.001788442857
A57: =A58 -> 
A58: =IF(AND(I56="Export Off-Site",I20="Indoor",I36="Liquid"),"","*") ->  | I58: % Exported Off Site | M58: 0.2
R63: Export | U63: =SUMIF(U6:U61,"<0",U6:U61) -> -0.000134055 | V63: =SUMIF(V6:V61,"<0",V6:V61) -> -0.0003142857143 | W63: =SUMIF(W6:W61,"<0",W6:W61) -> -7.071428571e-05 | Z63: =SUMIF(Z6:Z61,"<0",Z6:Z61) -> -0.0002351359018 | AA63: =SUMIF(AA6:AA61,"<0",AA6:AA61) -> -0.001871728571
U64: =K10 -> 21 | V64: =K11 -> 310 | W64: =K12 -> 310 | Z64: =K13 -> 310 | AA64: =K14 -> 310
R65: Export C02-e | U65: =U64*U63 -> -0.002815155 | V65: =V64*V63 -> -0.09742857143 | W65: -0.02192142857 | Z65: -0.07289212955 | AA65: -0.5802358571

Sheet FeedRaws
F3: Ingredient List
H4: REQUIRED | P4: OPTIONAL
B5: Code | F5: As-fed basis | H5: DM (%) | I5: GE (MJ/kg) | J5: DE (MJ/kg) | K5: DMD %* | L5: Crude Protein % | M5: N (%) | N5: Crude Fibre % | O5: Ash (%) | P5: Total Phos (%) | Q5: Phos availability (%) | R5: Avail Phos (%) | S5: K(%) | T5: CO2 -e (kg/kg CO2 -e)
F6: Cereal Grains
B7: Brl11 | G7: Barley 11 | H7: 88 | I7: 16 | J7: 12.8 | K7: =J7/I7 -> 0.8 | L7: 11 | M7: =L7/6.25 -> 1.76 | N7: 4.55 | O7: 2.25 | P7: 0.36 | Q7: 35 | R7: =Q7/100*P7 -> 0.126 | S7: 0.47 | T7: 0.37
B8: Grts | G8: Groats | H8: 90 | I8: 16.06 | J8: 15 | K8: 0.9339975093 | L8: 11 | M8: 1.76 | N8: 1.8 | O8: 2.14 | P8: 0.3 | Q8: 32 | R8: =Q8/100*P8 -> 0.096 | S8: 0.35
B9: Mz8 | G9: Maize 8 | H9: 88 | I9: 16.13 | J9: 14.5 | K9: 0.8989460632 | L9: 8 | M9: 1.28 | N9: 2.15 | O9: 1.21 | P9: 0.259 | Q9: 28 | R9: =Q9/100*P9 -> 0.07252 | S9: 0.33 | T9: 0.15
B10: NkOat | G10: Naked oats | H10: 88 | I10: 17.48 | J10: 15.7 | K10: 0.8981693364 | L10: 10 | M10: 1.6 | N10: 2.5 | O10: 1.8 | P10: 0.46 | Q10: 34 | R10: 0.1564 | S10: 0.36
B11: Oats9 | G11: Oats 9 | H11: 88 | I11: 17.15 | J11: 12 | K11: 0.6997084548 | L11: 9 | M11: 1.44 | N11: 12.19 | O11: 2.64 | P11: 0.32 | Q11: 32 | R11: 0.1024 | S11: 0.36 | T11: 0.37
B12: Sor11 | G12: Sorghum 11 | H12: 88 | I12: 16.28 | J12: 14.2 | K12: 0.8722358722 | L12: 11 | M12: 1.76 | N12: 2.3 | O12: 2 | P12: 0.28 | Q12: 20 | R12: 0.056 | S12: 0.35 | T12: 0.31
B13: Trit11 | G13: Triticale 11 | H13: 88 | I13: 15.75 | J13: 14 | K13: 0.8888888889 | L13: 11 | M13: 1.76 | N13: 2.3 | O13: 1.92 | P13: 0.35 | Q13: 40 | R13: 0.14 | S13: 0.5 | T13: 0.33
B14: Wht12 | G14: Wheat 12 | H14: 88 | I14: 16.22 | J14: 14.3 | K14: 0.8816276202 | L14: 12 | M14: 1.92 | N14: 2 | O14: 1.7 | P14: 0.34 | Q14: 50 | R14: 0.17 | S14: 0.41 | T14: 0.36
B15: WhExt | G15: Wheat Extruded | H15: 88 | I15: 16.22 | J15: 15.2 | K15: 0.9371146732 | L15: 12 | M15: 1.92 | N15: 2 | O15: 1.7 | P15: 0.34 | Q15: 50 | R15: 0.17 | S15: 0.41
F16: Cereal by-products
B17: Homny | G17: Hominy Meal | H17: 89 | I17: 16.98 | J17: 14.6 | K17: =J17/I17 -> 0.8598351001 | L17: 13.4 | M17: =L17/6.25 -> 2.144 | N17: 5.52 | O17: 4.65 | P17: 0.77 | Q17: 21 | R17: 0.1617 | S17: 0
B18: Mllrun | G18: Millrun | H18: 87 | I18: 16.5 | J18: 11.5 | K18: 0.696969697 | L18: 15 | M18: 2.4 | N18: 9 | O18: 5 | P18: 0.95 | Q18: 29 | R18: 0.2755 | S18: 0.8
B19: RcHl | G19: Rice Hulls | H19: 89 | I19: 16 | J19: 2.5 | K19: 0.15625 | L19: 2 | M19: 0.32 | N19: 40 | O19: 5 | P19: 0.07 | Q19: 30 | R19: 0.021 | S19: ¾
B20: RcBrn | G20: Rice bran | H20: 90 | I20: 16 | J20: 7.7 | K20: 0.48125 | L20: 15.5 | M20: 2.48 | N20: 14 | O20: 13 | P20: 1.7 | Q20: 20 | R20: 0.34 | S20: 1.15
B21: RcPld | G21: Rice Pollard | H21: 88 | I21: 16.66 | J21: 15.7 | K21: 0.9423769508 | L21: 15 | M21: 2.4 | N21: 9 | O21: 1.41 | P21: 1.2 | Q21: 33 | R21: 0.396 | S21: 1.17
B22: WhtBrn | G22: Wheat Bran | H22: 87 | I22: 16.44 | J22: 9.4 | K22: 0.5717761557 | L22: 15 | M22: 2.4 | N22: 9.2 | O22: 5.05 | P22: 0.99 | Q22: 30 | R22: 0.297 | S22: 0.4
B23: WhtPld | G23: Wheat Pollard | H23: 87 | I23: 16.53 | J23: 11.2 | K23: 0.6775559589 | L23: 15 | M23: 2.4 | N23: 8.5 | O23: 4.7 | P23: 0.95 | Q23: 29 | R23: 0.2755 | S23: 1.2
F24: Roots & Tubers
G25: Cassava | H25: 87 | I25: 14.5 | J25: 12.8 | K25: =J25/I25 -> 0.8827586207 | L25: 3 | M25: =L25/6.25 -> 0.48 | N25: 4.5 | O25: 5.5 | P25: 0.093 | Q25: 10 | R25: =Q25/100*P25 -> 0.0093 | S25: 0.85
F26: By-products
G27: Biscuit Meal | H27: 89 | I27: 17 | J27: 15.1 | K27: =J27/I27 -> 0.8882352941 | L27: 10 | M27: =L27/6.25 -> 1.6 | N27: 1 | O27: 3 | P27: 0.35 | Q27: 43 | R27: 0.1505 | S27: 0.39
G28: Brewers Grains | H28: 88 | I28: 18.2 | J28: 12 | K28: 0.6593406593 | L28: 22 | M28: =L28/6.25 -> 3.52 | N28: 16 | O28: 4.5 | P28: 0.5 | Q28: 60 | R28: =Q28/100*P28 -> 0.3 | S28: 0.3
G29: Distller's Dried Grains & Solubles (DDGS) | H29: 90 | I29: 20.4 | J29: 15.5 | K29: 0.7598039216 | L29: 26 | M29: =L29/6.25 -> 4.16 | N29: 7.1 | O29: 5 | P29: 0.85 | Q29: 56 | R29: 0.476 | S29: 1.23
G30: Molasses | H30: 74.5 | I30: 11.02 | J30: 10.3 | K30: 0.9346642468 | L30: 4.04 | M30: =L30/6.25 -> 0.6464 | N30: 0 | O30: 10.32 | P30: 0.057 | Q30: 20 | R30: =Q30/100*P30 -> 0.0114 | S30: 3.5
G31: Peanut shell | H31: 92 | I31: 16 | J31: 1.1 | K31: 0.06875 | L31: 3 | M31: =L31/6.25 -> 0.48 | N31: 60 | O31: 8 | P31: 0.09 | Q31: 20 | R31: =Q31/100*P31 -> 0.018 | S31: 1
G32: Sugar | H32: 99 | I32: 20 | J32: 15.1 | K32: 0.755 | L32: 0 | M32: 0 | N32: 0 | O32: 0.5 | P32: 0.04 | Q32: 100 | R32: =Q32/100*P32 -> 0.04 | S32: 0 | T32: 0.16
F33: Legumes
G34: Faba beans | H34: 90 | I34: 16.8 | J34: 14.5 | K34: =J34/I34 -> 0.8630952381 | L34: 23 | M34: =L34/6.25 -> 3.68 | N34: 6.9 | O34: 3.53 | P34: 0.47 | Q34: 37 | R34: 0.1739 | S34: 0.96
G35: Lupins, albus | H35: 88 | I35: 18.7 | J35: 16 | K35: 0.8556149733 | L35: 34 | M35: 5.44 | N35: 10.6 | O35: 3.3 | P35: 0.36 | Q35: 50 | R35: 0.18 | S35: 1.1
G36: Lupins, augustifolius | H36: 88 | I36: 18.1 | J36: 14.6 | K36: 0.8066298343 | L36: 30.5 | M36: 4.88 | N36: 13 | O36: 2.8 | P36: 0.3 | Q36: 50 | R36: 0.15 | S36: 0.85
G37: Chick Peas | H37: 90 | I37: 17.53 | J37: 15.1 | K37: 0.8613804906 | L37: 20 | M37: 3.2 | N37: 7 | O37: 3 | P37: 0.37 | Q37: 20 | R37: 0.074 | S37: 0.8
G38: Field Peas | H38: 86 | I38: 16.8 | J38: 14.5 | K38: 0.8630952381 | L38: 20.5 | M38: 3.28 | N38: 6.1 | O38: 3 | P38: 0.4 | Q38: 50 | R38: 0.2 | S38: 0.95 | T38: 0.31
G39: Mung Beans | H39: 90 | I39: 17 | J39: 15.4 | K39: 0.9058823529 | L39: 24 | M39: 3.84 | N39: 3.9 | O39: 3.7 | P39: 0.7 | Q39: 33 | R39: 0.231 | S39: 0.41
G40: Navy Beans | H40: 90 | I40: 16.4 | J40: 14.4 | K40: 0.8780487805 | L40: 24 | M40: 3.84 | N40: 6.97 | O40: 3.8 | P40: 0.43 | Q40: 33 | R40: 0.1419 | S40: 1.35
F41: Oilseed Meals
G42: Canola Meal | H42: 91 | I42: 17.68 | J42: 12.4 | K42: =J42/I42 -> 0.7013574661 | L42: 34 | M42: =L42/6.25 -> 5.44 | N42: 12 | O42: 6.5 | P42: 1.1 | Q42: 21 | R42: =Q42/100*P42 -> 0.231 | S42: 1.25 | T42: 0.43
G43: Copra meal | H43: 90 | I43: 18.19 | J43: 13.1 | K43: =J43/I43 -> 0.7201759208 | L43: 21 | M43: 3.36 | N43: 12.8 | O43: 6.2 | P43: 0.5 | Q43: 31 | R43: =Q43/100*P43 -> 0.155 | S43: ¾
G44: Cotton seed meal 36 | H44: 90 | I44: 18.31 | L44: 36 | M44: 5.76 | N44: 16.88 | O44: 6.49 | P44: 1.136 | Q44: 26 | R44: =Q44/100*P44 -> 0.29536 | S44: 1.25
G45: Cotton seed meal 43 | H45: 90 | I45: 18.72 | J45: 13 | K45: =J45/I45 -> 0.6944444444 | L45: 43 | M45: 6.88 | N45: 16.8 | O45: 6.5 | P45: 1.14 | Q45: 26 | R45: =Q45/100*P45 -> 0.2964 | S45: 1.25
G46: Palm Kernel meal | H46: 90 | I46: 18.21 | J46: 12.5 | K46: 0.6864360242 | L46: 14.75 | M46: 2.36 | N46: 17.9 | O46: 4.2 | P46: 0.56 | Q46: 31 | R46: =Q46/100*P46 -> 0.1736 | S46: 0.65
G47: Peanut Meal 48 | H47: 90 | I47: 18.2 | J47: 14.6 | K47: 0.8021978022 | L47: 48 | M47: 7.68 | N47: 5.6 | O47: 5 | P47: 0.6 | Q47: 30 | R47: 0.18 | T47: 0.27
G48: Soybean Meal 45 | H48: 88 | I48: 17.08 | J48: 14.9 | K48: 0.8723653396 | L48: 45 | M48: 7.2 | N48: 6.11 | O48: 6.48 | P48: 0.624 | Q48: 20 | R48: 0.1248 | S48: 1.9 | T48: 0.27
G49: Soybean Meal 48 | H49: 88.5 | I49: 17.41 | J49: 14.9 | K49: 0.8558299828 | L49: 48 | M49: 7.68 | N49: 3.7 | O49: 6.5 | P49: 0.65 | Q49: 31 | R49: 0.2015 | S49: 2.1 | T49: 0.73
G50: Soybean, Full fat | H50: 87.5 | I50: 20.5 | J50: 17.5 | K50: 0.8536585366 | L50: 35.5 | M50: 5.68 | N50: 5.8 | O50: 5.3 | P50: 0.55 | Q50: 31 | R50: 0.1705 | S50: 1.7
G51: Soya protein (HP 300) | H51: 92 | I51: 18.85 | J51: 15.5 | K51: 0.8222811671 | L51: 56 | M51: 8.96 | N51: 3.5 | O51: 6.8 | P51: 0.8 | Q51: 30 | R51: 0.24 | S51: 2.3
G52: Soycomil R | H52: 95 | I52: 18.92 | J52: 17.6 | K52: 0.9302325581 | L52: 65 | M52: 10.4 | N52: 3.5 | O52: 6.5 | P52: 0.8 | Q52: 30 | R52: 0.24 | S52: 2.2
G53: Sunflower 30 | H53: 89 | I53: 17.22 | J53: 8.3 | K53: 0.4819976771 | L53: 30 | M53: 4.8 | N53: 24 | O53: 6.3 | P53: 1 | Q53: 19 | R53: 0.19 | S53: 1.46
G54: Sunflower 36 | H54: 89 | I54: 17.23 | J54: 13.1 | K54: 0.7603017992 | L54: 36 | M54: 5.76 | N54: 18 | O54: 7 | P54: 1.2 | Q54: 19 | R54: 0.228 | S54: 1.52
F55: Yeast Products
G56: Brewers Yeast | H56: 90 | I56: 18.64 | J56: 16 | K56: =J56/I56 -> 0.8583690987 | L56: 50 | M56: =L56/6.25 -> 8 | N56: 1.9 | O56: 7.1 | P56: 1.16 | Q56: 20 | R56: =Q56/100*P56 -> 0.232 | S56: 1.7
G57: Nupro | H57: 94 | I57: 18.6 | J57: 14.2 | K57: =J57/I57 -> 0.7634408602 | L57: 47 | M57: =L57/6.25 -> 7.52 | N57: 1 | O57: 8.3 | P57: 1.5 | Q57: 90 | R57: 1.35 | S57: 1.9
F58: Animal & Fish products
G59: Blood meal, spray/ring | H59: 91 | I59: 22.89 | J59: 18.31 | K59: =J59/I59 -> 0.7999126256 | L59: 85 | M59: =L59/6.25 -> 13.6 | N59: =M59/6.25 -> 2.176 | O59: 2.83 | P59: 0.21 | Q59: 90 | R59: 0.189 | S59: 0.26
G60: Blood Plasma | H60: 92 | I60: 20.99 | J60: 17.2 | K60: 0.8194378275 | L60: 78 | M60: =L60/6.25 -> 12.48 | N60: 0.3 | O60: 10 | P60: 1.3 | Q60: 95 | R60: 1.235 | S60: 0.3
G61: Fishmeal 62 | H61: 92 | I61: 18.32 | J61: 14.8 | K61: 0.807860262 | L61: 62 | M61: 9.92 | N61: 0 | O61: 20.75 | P61: 2.85 | Q61: 90 | R61: 2.565 | S61: 0.3
G62: Fishmeal 65 | H62: 92 | I62: 18.98 | J62: 15.7 | K62: 0.8271865121 | L62: 65 | M62: 10.4 | N62: 0 | O62: 16.14 | P62: 2.6 | Q62: 90 | R62: 2.34 | S62: 1.3
G63: Feather meal | H63: 92 | I63: 21.76 | J63: 16.32 | K63: 0.75 | L63: 80 | M63: 12.8 | N63: 0 | O63: 5.34 | P63: 0.796 | Q63: 20 | R63: 0.1592 | S63: 0.1
G64: Meat & bone meal | H64: 93 | I64: 16.57 | J64: 12 | K64: 0.7242003621 | L64: 50 | M64: 8 | N64: 2 | O64: 30 | P64: 4.9 | Q64: 75 | R64: 3.675 | S64: 0.5 | T64: 0.5
G65: Milk, full cream powder | H65: 97 | I65: 22.66 | J65: 21.75 | K65: 0.9598411297 | L65: 26 | M65: 4.16 | N65: 0 | O65: 6 | P65: 0.8 | Q65: 90 | R65: 0.72
G66: Milk, chocolate milk powder | H66: 97 | I66: 17.35 | J66: 16.4 | K66: 0.9452449568 | L66: 17 | M66: 2.72 | N66: 0 | O66: 6 | P66: 1 | Q66: 90 | R66: 0.9
G67: Milk, skim milk powder | H67: 95 | I67: 17.35 | J67: 16.4 | K67: 0.9452449568 | L67: 35.5 | M67: 5.68 | N67: 0 | O67: 8 | P67: 1 | Q67: 90 | R67: 0.9 | S67: 1.6
G68: Milk, whole milk powder | H68: 95 | I68: 22.66 | J68: 21.75 | K68: 0.9598411297 | L68: 25 | M68: 4 | N68: 0 | O68: 6 | P68: 0.8 | Q68: 90 | R68: 0.72 | S68: 1.3
G69: Milk, whey powder | H69: 95 | I69: 16 | J69: 14 | K69: 0.875 | L69: 12.5 | M69: 2 | N69: 0 | O69: 8.7 | P69: 0.9 | Q69: 90 | R69: 0.81 | S69: 5
F70: Hay & Straw
G71: Barley straw | H71: 89 | I71: 16 | J71: 1 | K71: =J71/I71 -> 0.0625 | L71: 3.79 | M71: =L71/6.25 -> 0.6064 | N71: 38.9 | O71: 5.28 | P71: 0.2 | Q71: 20 | R71: =Q71/100*P71 -> 0.04 | S71: 1.17
G72: Cereal straw pellets | H72: 88 | I72: 16.01 | J72: 2 | K72: =J72/I72 -> 0.1249219238 | L72: 3.5 | M72: =L72/6.25 -> 0.56 | N72: 38 | O72: 6 | P72: 0.08 | Q72: 20 | R72: 0.016 | S72: 0.8
G73: Lucerne meal/crumbles | H73: 90 | I73: 16.27 | J73: 7.25 | K73: =J73/I73 -> 0.4456054087 | L73: 16.5 | M73: =L73/6.25 -> 2.64 | N73: 26 | O73: 10 | P73: 0.23 | Q73: 20 | R73: 0.046 | S73: 1.9
G74: Lucerne hay
G75: Oat straw | H75: 87 | I75: 16 | J75: 1 | K75: =J75/I75 -> 0.0625 | L75: 5.2 | M75: =L75/6.25 -> 0.832 | N75: 33.9 | O75: 8.8 | P75: 0.22 | Q75: 20 | R75: =Q75/100*P75 -> 0.044 | S75: 2.27
G76: Wheat straw | H76: 90 | I76: 16.9 | J76: 2.5 | K76: =J76/I76 -> 0.1479289941 | L76: 3.84 | M76: =L76/6.25 -> 0.6144 | N76: 38.17 | O76: 5.85 | P76: 0.067 | Q76: 20 | R76: 0.0134 | S76: 1.33
F77: Fats
G78: Tallow | H78: 99 | I78: 39.29 | J78: 36 | K78: =J78/I78 -> 0.9162636803 | L78: 0.5 | M78: =L78/6.25 -> 0.08 | N78: 0 | O78: 0 | P78: 0 | Q78: 0 | R78: 0 | S78: 0
G79: Vegetable oil | H79: 99.5 | I79: 38.39 | J79: 36.2 | K79: =J79/I79 -> 0.9429538942 | L79: 0 | M79: =L79/6.25 -> 0 | N79: 0 | O79: 0 | P79: 0 | Q79: 0 | R79: 0 | S79: 0
F80: Minerals
G81: Choline Chloride | H81: 95 | I81: 0 | J81: 0 | K81: 0 | L81: 0 | M81: =L81/6.25 -> 0 | N81: 0 | O81: 5 | P81: 0 | Q81: 0 | R81: =Q81/100*P81 -> 0 | S81: 0
G82: Copper Sulphate | H82: 98.5 | I82: 0 | J82: 0 | K82: 0 | L82: 0 | M82: 0 | N82: 0 | O82: 100 | P82: 0 | Q82: 0 | R82: =Q82/100*P82 -> 0 | S82: 0
G83: Dicalphos | H83: 100 | I83: 0 | J83: 0 | K83: 0 | L83: 0 | M83: 0 | N83: 0 | O83: 78 | P83: 18.2 | Q83: 100 | R83: 18.2 | S83: 0
G84: Ferrous Sulphate | H84: 98.5 | I84: 0 | J84: 0 | K84: 0 | L84: 0 | M84: 0 | N84: 0 | O84: 99 | P84: 0 | Q84: 0 | R84: 0 | S84: 0
G85: Kynofos | H85: 98 | I85: 0 | J85: 0 | K85: 0 | L85: 0 | M85: 0 | N85: 0 | O85: 100 | P85: 21 | Q85: 100 | R85: =Q85/100*P85 -> 21 | S85: 0
G86: Limestone | H86: 99 | I86: 0 | J86: 0 | K86: 0 | L86: 0 | M86: 0 | N86: 0 | O86: 99 | P86: 0 | Q86: 0 | R86: 0 | S86: 0
G87: Potassium Choride | H87: 100 | I87: 0 | J87: 0 | K87: 0 | L87: 0 | M87: 0 | N87: 0 | O87: 100 | P87: 0 | Q87: 0 | R87: =Q87/100*P87 -> 0 | S87: 52.1
G88: Potassium sulphate | H88: 100 | I88: 0 | J88: 0 | K88: 0 | L88: 0 | M88: =L88/6.25 -> 0 | N88: 0 | O88: 100 | P88: 0 | Q88: 0 | R88: 0 | S88: 17.55
G89: Salt | H89: 100 | I89: 0 | J89: 0 | K89: 0 | L89: 0 | M89: =L89/6.25 -> 0 | N89: 0 | O89: 100 | P89: 0 | Q89: 0 | R89: 0 | S89: 0
G90: Zinc Oxide | H90: 100 | I90: 0 | J90: 0 | K90: 0 | L90: 0 | M90: =L90/6.25 -> 0 | N90: 0 | O90: 98 | P90: 0 | Q90: 0 | R90: =Q90/100*P90 -> 0 | S90: 0
F91: Synthetic amino acids
G92: L-Lysine HCL | H92: 99.5 | I92: 20.01 | J92: 20.01 | K92: =J92/I92 -> 1 | L92: 95.4 | M92: =L92/6.25 -> 15.264 | N92: 0 | O92: 0.5 | P92: 0 | Q92: 0 | R92: 0 | S92: 0 | T92: 3.6
G93: DL-Methionie | H93: 99.5 | I93: 23.6 | J93: 23.6 | K93: =J93/I93 -> 1 | L93: 58.4 | M93: =L93/6.25 -> 9.344 | N93: 0 | O93: 0.2 | P93: 0 | Q93: 0 | R93: 0 | S93: 0 | T93: 3.6
G94: L-Threonine | H94: 99.5 | I94: 17.24 | J94: 17.24 | K94: =J94/I94 -> 1 | L94: 73.13 | M94: =L94/6.25 -> 11.7008 | N94: 0 | O94: 0.5 | P94: 0 | Q94: 0 | R94: 0 | S94: 0 | T94: 3.6
G95: L-Tryptophan | H95: 99.5 | I95: 27.48 | J95: 27.48 | K95: =J95/I95 -> 1 | L95: 85.26 | M95: =L95/6.25 -> 13.6416 | N95: 0 | O95: 0.5 | P95: 0 | Q95: 0 | R95: 0 | S95: 0 | T95: 3.6
F96: Micellaneous ingredients
G97: Bentonite | H97: 99 | I97: 0 | J97: 0 | K97: 0 | L97: 0 | M97: 0 | N97: 0 | O97: 99 | P97: 0 | Q97: 0 | R97: 0 | S97: 0
F98: Vitamin/mineral premixes
G99: Breeder premix | H99: 100 | I99: 0 | J99: 0 | K99: 0 | L99: 0 | M99: 0 | N99: 0 | O99: 23 | P99: 0 | Q99: 0 | R99: 0
G100: Grower premix | H100: 100 | I100: 0 | J100: 0 | K100: 0 | L100: 0 | M100: =L100/6.25 -> 0 | N100: 0 | O100: 23 | P100: 0 | Q100: 0 | R100: 0
G101: Weaner premix | H101: 100 | I101: 0 | J101: 0 | K101: 0 | L101: 0 | M101: =L101/6.25 -> 0 | N101: 0 | O101: 23 | P101: 0 | Q101: 0 | R101: 0
G102: Bioplex Sow Pak | H102: 100 | I102: 0 | J102: 0 | K102: 0 | L102: 0 | M102: =L102/6.25 -> 0 | N102: 0 | O102: 23 | P102: 0 | Q102: 0 | R102: 0
F103: Enzymes
G104: FEEDZYME (1 kg dose) | H104: 100 | L104: 3000 | M104: =L104/6.25 -> 480 | N104: 0 | Q104: 120 | S104: 0
G105: Kemzyme | H105: 100 | M105: 0 | N105: 0 | R105: 0 | S105: 0
G106: Phyzyme (500 FTU OR 100g dose) | H106: 100 | L106: 6250 | M106: 1000 | N106: 0 | P106: 1200 | Q106: 100 | R106: 1200 | S106: 0
G107: Phyzyme (1000 FTU OR 200g dose) | H107: 100 | L107: 3175 | M107: 508 | N107: 0 | P107: 900 | Q107: 100 | R107: 900 | S107: 0
G108: Ronozyme P 5000 (150g dose) | H108: 100 | L108: 1682 | M108: 269.12 | N108: 0 | P108: 704 | Q108: 75 | R108: =Q108/100*P108 -> 528 | S108: 0
G109: Rovabio Excel premix | H109: 100 | M109: 0 | N109: 0 | S109: 0
G110: Allzyme SSF | H110: 100 | I110: 1260 | J110: 1260 | K110: =J110/I110 -> 1 | L110: 1000 | M110: =L110/6.25 -> 160 | N110: 0 | R110: 500 | S110: 0
F111: Toxin Binders
G112: Biofix | H112: 100 | I112: 0 | J112: 0 | K112: 0 | L112: 0 | M112: 0 | N112: 0 | P112: 0 | Q112: 0 | R112: 0 | S112: 0
G113: Mycofix | H113: 100 | I113: 0 | J113: 0 | K113: 0 | L113: 0 | M113: 0 | N113: 0 | P113: 0 | Q113: 0 | R113: 0 | S113: 0
G114: Mycosorb | H114: 100 | I114: 0 | J114: 0 | K114: 0 | L114: 0 | M114: 0 | N114: 0 | P114: 0 | Q114: 0 | R114: 0 | S114: 0
G115: Elitox | H115: 100 | I115: 0 | J115: 0 | K115: 0 | L115: 0 | M115: 0 | N115: 0 | P115: 0 | Q115: 0 | R115: 0 | S115: 0
G116: Kembind | H116: 100 | I116: 0 | J116: 0 | K116: 0 | L116: 0 | M116: 0 | N116: 0 | P116: 0 | Q116: 0 | R116: 0 | S116: 0
F117: Acidifiers
G118: Biotronic SE (Biomin) | H118: 100 | I118: 0 | J118: 0 | K118: 0 | L118: 0 | M118: 0 | N118: 0 | P118: 0 | Q118: 0 | R118: 0 | S118: 0
G119: Tetracid 500 | H119: 100 | I119: 0 | J119: 0 | K119: 0 | L119: 0 | M119: 0 | N119: 0 | P119: 0 | Q119: 0 | R119: 0 | S119: 0
G120: AcidLac | H120: 100 | I120: 0 | J120: 0 | K120: 0 | L120: 0 | M120: 0 | N120: 0 | P120: 0 | Q120: 0 | R120: 0 | S120: 0
G121: Acid-Pak 4Way | H121: 100 | I121: 0 | J121: 0 | K121: 0 | L121: 0 | M121: 0 | N121: 0 | P121: 0 | Q121: 0 | R121: 0 | S121: 0
F122: Other Additives
G123: Biomin® pHD
G124: Betaine (Betafin) | H124: 100 | I124: 200 | J124: 200 | K124: 1 | L124: 0 | M124: 0 | N124: 0 | P124: 0 | Q124: 0 | R124: 0 | S124: 0
G125: Biomos | H125: 100 | I125: 0 | J125: 0 | K125: 0 | L125: 0 | M125: =L125/6.25 -> 0 | N125: 0 | O125: 98 | P125: 0 | Q125: 0 | R125: =Q125/100*P125 -> 0
G126: De-Oderase | H126: 99 | I126: 0 | J126: 0 | K126: 0 | L126: 0 | M126: =L126/6.25 -> 0 | N126: 0 | O126: 98 | P126: 0 | Q126: 0 | R126: =Q126/100*P126 -> 0
G127: Paylean | H127: 100 | I127: 0 | J127: 0 | K127: 0 | L127: 0 | M127: 0 | N127: 0 | O127: 98 | P127: 0 | Q127: 0 | R127: 0 | S127: 0
F128: Additional Raw Materials
M129: =IF(L129<>0,L129/6.25,"") -> 
M130: =IF(L130<>0,L130/6.25,"") -> 
F142: Complete Diets | Z142: Regression
I143: =IF(K143<>0,J143/K143,"") ->  | K143: =IF(N143<>0,$AA$143+$AA$144*N143+$AA$145*O143,0) -> 0 | M143: =IF(L143<>0,L143/6.25,"") ->  | Z143: Intercept | AA143: 0.9850615949
I144: =IF(K144<>0,J144/K144,"") ->  | K144: 0 | M144: =IF(L144<>0,L144/6.25,"") ->  | Z144: Fibre | AA144: -0.01996645112
I145: =IF(K145<>0,J145/K145,"") ->  | K145: 0 | M145: =IF(L145<>0,L145/6.25,"") ->  | Z145: Ash | AA145: -0.009186869108
I146: =IF(K146<>0,J146/K146,"") ->  | K146: 0 | M146: =IF(L146<>0,L146/6.25,"") -> 
I147: =IF(K147<>0,J147/K147,"") ->  | K147: 0 | M147: =IF(L147<>0,L147/6.25,"") -> 
K148: 0
K149: 0
K150: 0
K151: 0
K152: 0
K153: 0
K154: 0
K155: 0
K156: 0
K157: 0
K158: 0
K159: 0
K160: 0
K161: 0
K162: 0
K163: 0
K164: 0
K165: 0
K166: 0
I167: =IF(K167<>0,J167/K167,"") ->  | K167: 0 | M167: =IF(L167<>0,L167/6.25,"") -> 
K168: 0
K169: 0
K170: 0
K171: 0
K172: 0
K173: 0
K174: 0
K175: =IF(N175<>0,$AA$143+$AA$144*N175+$AA$145*O175,0) -> 0
K176: 0
K177: 0
K178: 0
K179: 0
K180: 0
K181: 0
K182: 0
K183: 0
K184: 0
K185: 0
K186: 0
K187: 0
K188: 0
K189: 0
K190: 0
K191: 0
K192: 0
K193: 0
K194: 0
K195: 0
K196: 0
K197: 0
K198: 0
K199: 0
K200: 0
K201: 0
K202: 0

Sheet Feeds
E4: Mix Total (100 for %) | F4: 100
F7: 1 | J7: 2 | N7: 3 | R7: 4 | V7: 5 | Z7: 6 | AD7: 7 | AH7: 8 | AL7: 9 | AP7: 10
F8: =INDEX(Feeds,F7) -> Sucker | J8: =INDEX(Feeds,J7) -> Weaner | N8: =INDEX(Feeds,N7) -> Grower | R8: =INDEX(Feeds,R7) -> Finisher | V8: =INDEX(Feeds,V7) -> LacSow | Z8: =INDEX(Feeds,Z7) -> DrySow | AD8: =INDEX(Feeds,AD7) -> 0 | AH8: =INDEX(Feeds,AH7) -> 0 | AL8: =INDEX(Feeds,AL7) -> 0 | AP8: =INDEX(Feeds,AP7) -> 0
F9: Diet 1 | G9: Diet 2 | H9: Diet 3 | I9: Diet 4 | J9: =F9 -> Diet 1 | K9: =G9 -> Diet 2 | L9: Diet 3 | M9: Diet 4 | N9: Diet 1 | O9: Diet 2 | P9: Diet 3 | Q9: Diet 4 | R9: Diet 1 | S9: Diet 2 | T9: Diet 3 | U9: Diet 4 | V9: Diet 1 | W9: Diet 2 | X9: Diet 3 | Y9: Diet 4 | Z9: Diet 1 | AA9: Diet 2 | AB9: Diet 3 | AC9: Diet 4 | AD9: Diet 1 | AE9: Diet 2 | AF9: Diet 3 | AG9: Diet 4 | AH9: Diet 1 | AI9: Diet 2 | AJ9: Diet 3 | AK9: Diet 4 | AL9: Diet 1 | AM9: Diet 2 | AN9: Diet 3 | AO9: Diet 4 | AP9: Diet 1 | AQ9: Diet 2 | AR9: Diet 3 | AS9: Diet 4
E10: Balance > | F10: =IF(SUM(F13:F209)<>0,$F$4-SUM(F13:F209),0) -> 0 | G10: =IF(SUM(G13:G209)<>0,$F$4-SUM(G13:G209),0) -> 0 | H10: =IF(SUM(H13:H209)<>0,$F$4-SUM(H13:H209),0) -> 0 | I10: 0 | J10: 0 | K10: 0 | L10: 0 | M10: 0 | N10: -1.421085472e-14 | O10: 0 | P10: 0 | Q10: 0 | R10: 0 | S10: 0 | T10: 0 | U10: 0 | V10: 1.421085472e-14 | W10: 1.421085472e-14 | X10: 0 | Y10: 0 | Z10: 1.421085472e-14 | AA10: 0 | AB10: 0 | AC10: 0 | AD10: 0 | AE10: 0 | AF10: 0 | AG10: 0 | AH10: 0 | AI10: 0 | AJ10: 0 | AK10: 0 | AL10: 0 | AM10: 0 | AN10: 0 | AO10: 0 | AP10: 0 | AQ10: 0 | AR10: 0 | AS10: 0
E11: % of Diet Consumed | I11: =1-(SUM(F11:H11)) -> 1 | M11: =1-(SUM(J11:L11)) -> 1 | N11: 0.5 | O11: 0.5 | Q11: =1-(SUM(N11:P11)) -> 0 | R11: 0.5 | S11: 0.5 | U11: =1-(SUM(R11:T11)) -> 0 | V11: 0.5 | W11: 0.5 | Y11: =1-(SUM(V11:X11)) -> 0 | Z11: 0.5 | AA11: 0.5 | AC11: =1-(SUM(Z11:AB11)) -> 0 | AG11: =1-(SUM(AD11:AF11)) -> 1 | AK11: =1-(SUM(AH11:AJ11)) -> 1 | AO11: =1-(SUM(AL11:AN11)) -> 1 | AS11: =1-(SUM(AP11:AR11)) -> 1
D12: As-fed basis | F12: As-fed basis | J12: As-fed basis | N12: As-fed basis | R12: As-fed basis | V12: As-fed basis | Z12: As-fed basis | AD12: As-fed basis | AH12: As-fed basis | AL12: As-fed basis | AP12: As-fed basis
D13: =FeedRaws!F6 -> Cereal Grains
E14: =FeedRaws!G7 -> Barley 11 | R14: 37 | V14: 35.76 | W14: 45.17 | Z14: 74.82 | AA14: 74.63
E15: =FeedRaws!G8 -> Groats
E16: =FeedRaws!G9 -> Maize 8
E17: =FeedRaws!G10 -> Naked oats
E18: =FeedRaws!G11 -> Oats 9
E19: =FeedRaws!G12 -> Sorghum 11 | O19: 78.93 | S19: 79.7 | W19: 34 | AA19: 14.5
E20: =FeedRaws!G13 -> Triticale 11
E21: =FeedRaws!G14 -> Wheat 12 | I21: 46.75 | M21: 76.67 | N21: 79.79 | R21: 44.03 | V21: 46 | Z21: 15
E22: =FeedRaws!G15 -> Wheat Extruded | I22: 25
D23: =FeedRaws!F16 -> Cereal by-products
E24: =FeedRaws!G17 -> Hominy Meal
E25: =FeedRaws!G18 -> Millrun
E26: =FeedRaws!G19 -> Rice Hulls
E27: =FeedRaws!G20 -> Rice bran
E28: =FeedRaws!G21 -> Rice Pollard
E29: =FeedRaws!G22 -> Wheat Bran
E30: =FeedRaws!G23 -> Wheat Pollard
D31: =FeedRaws!F24 -> Roots & Tubers
D32: =FeedRaws!F25 -> 0 | E32: =FeedRaws!G25 -> Cassava
D33: =FeedRaws!F26 -> By-products
E34: =FeedRaws!G27 -> Biscuit Meal
E35: =FeedRaws!G28 -> Brewers Grains
E36: =FeedRaws!G29 -> Distller's Dried Grains & Solubles (DDGS)
E37: =FeedRaws!G30 -> Molasses
E38: =FeedRaws!G31 -> Peanut shell
E39: =FeedRaws!G32 -> Sugar
D40: =FeedRaws!F33 -> Legumes
E41: =FeedRaws!G34 -> Faba beans
E42: =FeedRaws!G35 -> Lupins, albus
E43: =FeedRaws!G36 -> Lupins, augustifolius
E44: =FeedRaws!G37 -> Chick Peas
E45: =FeedRaws!G38 -> Field Peas
E46: =FeedRaws!G39 -> Mung Beans
E47: =FeedRaws!G40 -> Navy Beans
D48: =FeedRaws!F41 -> Oilseed Meals
E49: =FeedRaws!G42 -> Canola Meal
E50: =FeedRaws!G43 -> Copra meal
E51: =FeedRaws!G44 -> Cotton seed meal 36
E52: =FeedRaws!G45 -> Cotton seed meal 43
E53: =FeedRaws!G46 -> Palm Kernel meal
E54: =FeedRaws!G47 -> Peanut Meal 48
E55: =FeedRaws!G48 -> Soybean Meal 45 | M55: 6.5 | N55: 12 | O55: 12 | R55: 12 | S55: 12 | V55: 8.5 | W55: 10 | Z55: 3.5 | AA55: 4.5
E56: =FeedRaws!G49 -> Soybean Meal 48
E57: =FeedRaws!G50 -> Soybean, Full fat | I57: 4 | M57: 5
E58: =FeedRaws!G51 -> Soya protein (HP 300)
E59: =FeedRaws!G52 -> Soycomil R
E60: =FeedRaws!G53 -> Sunflower 30
E61: =FeedRaws!G54 -> Sunflower 36
D62: =FeedRaws!F55 -> Yeast Products
E63: =FeedRaws!G56 -> Brewers Yeast
E64: =FeedRaws!G57 -> Nupro
D65: =FeedRaws!F58 -> Animal & Fish products
E66: =FeedRaws!G59 -> Blood meal, spray/ring | N66: 1.31 | O66: 2.5 | S66: 2 | W66: 0.5
E67: =FeedRaws!G60 -> Blood Plasma
E68: =FeedRaws!G61 -> Fishmeal 62
E69: =FeedRaws!G62 -> Fishmeal 65 | I69: 12 | M69: 5 | V69: 2.5 | W69: 2.5
E70: =FeedRaws!G63 -> Feather meal
E71: =FeedRaws!G64 -> Meat & bone meal | I71: 4 | M71: 5 | N71: 6.36 | O71: 5 | R71: 6.5 | S71: 5 | V71: 4.5 | W71: 4 | Z71: 6 | AA71: 5.5
E72: =FeedRaws!G65 -> Milk, full cream powder
E73: =FeedRaws!G66 -> Milk, chocolate milk powder
E74: =FeedRaws!G67 -> Milk, skim milk powder | I74: 7.5
E75: =FeedRaws!G68 -> Milk, whole milk powder
E76: =FeedRaws!G69 -> Milk, whey powder
D77: =FeedRaws!F70 -> Hay & Straw
E78: =FeedRaws!G71 -> Barley straw
E79: =FeedRaws!G72 -> Cereal straw pellets
E80: =FeedRaws!G73 -> Lucerne meal/crumbles
E81: =FeedRaws!G74 -> Lucerne hay
E82: =FeedRaws!G75 -> Oat straw
E83: =FeedRaws!G76 -> Wheat straw
D84: =FeedRaws!F77 -> Fats
E85: =IF(FeedRaws!G78<>"",FeedRaws!G78,"") -> Tallow | M85: 1.39 | N85: 0.15 | O85: 0.15 | V85: 2.42 | W85: 3.07
E86: =IF(FeedRaws!G79<>"",FeedRaws!G79,"") -> Vegetable oil | I86: 0.3
D87: =FeedRaws!F80 -> Minerals
E88: =FeedRaws!G81 -> Choline Chloride
E89: =FeedRaws!G82 -> Copper Sulphate
E90: =FeedRaws!G83 -> Dicalphos | O90: 0.85 | R90: 0.12 | S90: 0.85 | W90: 0.44 | Z90: 0.41 | AA90: 0.58
E91: =FeedRaws!G84 -> Ferrous Sulphate
E92: =FeedRaws!G85 -> Kynofos
E93: =FeedRaws!G86 -> Limestone
E94: =FeedRaws!G87 -> Potassium Choride
E95: =FeedRaws!G88 -> Potassium sulphate
E96: =FeedRaws!G89 -> Salt | I96: 0.2 | M96: 0.25 | N96: 0.25 | O96: 0.25 | R96: 0.25 | S96: 0.25 | V96: 0.25 | W96: 0.25 | Z96: 0.25 | AA96: 0.25
E97: =FeedRaws!G90 -> Zinc Oxide
D98: =FeedRaws!F91 -> Synthetic amino acids
E99: =FeedRaws!G92 -> L-Lysine HCL | I99: 0.17 | M99: 0.19 | N99: 0.14 | O99: 0.22 | R99: 0.1 | S99: 0.16
E100: =FeedRaws!G93 -> DL-Methionie | I100: 0.02 | O100: 0.08 | S100: 0.04 | Z100: 0.02 | AA100: 0.04
E101: =FeedRaws!G94 -> L-Threonine | I101: 0.06 | O101: 0.02 | V101: 0.07 | W101: 0.07
E102: =FeedRaws!G95 -> L-Tryptophan
D103: =FeedRaws!F96 -> Micellaneous ingredients
D104: =FeedRaws!F97 -> 0 | E104: =FeedRaws!G97 -> Bentonite
D105: =FeedRaws!F98 -> Vitamin/mineral premixes
E106: =FeedRaws!G99 -> Breeder premix
E107: =FeedRaws!G100 -> Grower premix
E108: =FeedRaws!G101 -> Weaner premix
E109: =FeedRaws!G102 -> Bioplex Sow Pak
D110: =FeedRaws!F103 -> Enzymes
E111: =FeedRaws!G104 -> FEEDZYME (1 kg dose)
E112: =FeedRaws!G105 -> Kemzyme
E113: =FeedRaws!G106 -> Phyzyme (500 FTU OR 100g dose)
E114: =FeedRaws!G107 -> Phyzyme (1000 FTU OR 200g dose)
E115: =FeedRaws!G108 -> Ronozyme P 5000 (150g dose)
E116: =FeedRaws!G109 -> Rovabio Excel premix
E117: =FeedRaws!G110 -> Allzyme SSF
D118: =FeedRaws!F111 -> Toxin Binders
E119: =FeedRaws!G112 -> Biofix
E120: =FeedRaws!G113 -> Mycofix
E121: =FeedRaws!G114 -> Mycosorb
E122: =FeedRaws!G115 -> Elitox
E123: =FeedRaws!G116 -> Kembind
D124: =FeedRaws!F117 -> Acidifiers
E125: =FeedRaws!G118 -> Biotronic SE (Biomin)
E126: =FeedRaws!G119 -> Tetracid 500
E127: =FeedRaws!G120 -> AcidLac
E128: =FeedRaws!G121 -> Acid-Pak 4Way
D129: =FeedRaws!F122 -> Other Additives
E130: =FeedRaws!G123 -> Biomin® pHD
E131: =FeedRaws!G124 -> Betaine (Betafin)
E132: =FeedRaws!G125 -> Biomos
E133: =FeedRaws!G126 -> De-Oderase
E134: =FeedRaws!G127 -> Paylean
D135: =FeedRaws!F128 -> Additional Raw Materials
E136: =FeedRaws!G129 -> 0
E137: =FeedRaws!G130 -> 0
E138: =FeedRaws!G131 -> 0
E139: =FeedRaws!G132 -> 0
E140: =FeedRaws!G133 -> 0
E141: =FeedRaws!G134 -> 0
E142: =FeedRaws!G135 -> 0
E143: =FeedRaws!G136 -> 0
E144: =FeedRaws!G137 -> 0
E145: =FeedRaws!G138 -> 0
E146: =FeedRaws!G139 -> 0
E147: =FeedRaws!G140 -> 0
E148: =FeedRaws!G141 -> 0
D149: =FeedRaws!F142 -> Complete Diets
E150: =FeedRaws!G143 -> 0
E151: =FeedRaws!G144 -> 0
E152: =FeedRaws!G145 -> 0
E153: =FeedRaws!G146 -> 0
E154: =FeedRaws!G147 -> 0
E155: =FeedRaws!G148 -> 0
E156: =FeedRaws!G149 -> 0
E157: =FeedRaws!G150 -> 0
E158: =FeedRaws!G151 -> 0
E159: =FeedRaws!G152 -> 0
E160: =FeedRaws!G153 -> 0
E161: =FeedRaws!G154 -> 0
E162: =FeedRaws!G155 -> 0
E163: =FeedRaws!G156 -> 0
E164: =FeedRaws!G157 -> 0
E165: =FeedRaws!G158 -> 0
E166: =FeedRaws!G159 -> 0
E167: =FeedRaws!G160 -> 0
E168: =FeedRaws!G161 -> 0
E169: =FeedRaws!G162 -> 0
E170: =FeedRaws!G163 -> 0
E171: =FeedRaws!G164 -> 0
E172: =FeedRaws!G165 -> 0
E173: =FeedRaws!G166 -> 0
E174: =FeedRaws!G167 -> 0
E175: =FeedRaws!G168 -> 0
E176: =FeedRaws!G169 -> 0
E177: =FeedRaws!G170 -> 0
E178: =FeedRaws!G171 -> 0
E179: =FeedRaws!G172 -> 0
E180: =FeedRaws!G173 -> 0
E181: =FeedRaws!G174 -> 0
E182: =FeedRaws!G175 -> 0
E183: =FeedRaws!G176 -> 0
E184: =FeedRaws!G177 -> 0
E185: =FeedRaws!G178 -> 0
E186: =FeedRaws!G179 -> 0
E187: =FeedRaws!G180 -> 0
E188: =FeedRaws!G181 -> 0
E189: =FeedRaws!G182 -> 0
E190: =FeedRaws!G183 -> 0
E191: =FeedRaws!G184 -> 0
E192: =FeedRaws!G185 -> 0
E193: =FeedRaws!G186 -> 0
E194: =FeedRaws!G187 -> 0
E195: =FeedRaws!G188 -> 0
E196: =FeedRaws!G189 -> 0
E197: =FeedRaws!G190 -> 0
E198: =FeedRaws!G191 -> 0
E199: =FeedRaws!G192 -> 0
E200: =FeedRaws!G193 -> 0
E201: =FeedRaws!G194 -> 0
E202: =FeedRaws!G195 -> 0
E203: =FeedRaws!G196 -> 0
E204: =FeedRaws!G197 -> 0
E205: =FeedRaws!G198 -> 0
... 25 more rows
